Workbook

Sheet Overview of the model
B8: Coburg North ZSS business case model
E10: Creation Date | G10: 2025-11-20
E11: Client | G11: Jemena
E12: Description | G12: This business case model has been developed by HoustonKemp for Jemena Energy Network (VIC) (JEN) in relation to JEN's North Heidelberg zone substation (NH ZSS) redevelopment. The template underpinning this model is designed for the context of undertaking RIT-D assessments to repex drivers, consistent with the AEMC's 18 July 2017 Final Rule on the Replacement Expenditure Planning Arrangements.
E14: Creators | G14: HoustonKemp
E16: Legend applied throughout the model template
E17: Table Row Name
E18: Input Cell
E19: Calculation cell
E20: Parameter Cell
E21: Output Cell

Sheet Guidance
A1: =MID(CELL("filename",A2),FIND("]",CELL("filename",A2))+1,256) -> Guidance
A2: Guidance on use of the NPV model
B4: Guidance
B6: Model elements
B8: Financial years are used in the model
B9: The model uses financial years that spans 1 July to 30 June. For example, '2024' would denote the financial year that spans 1 July 2023 to 30 June 2024.
B11: Inputs into the model should be consistent with financial years.
B14: Real dollars used in modelling inputs
B15: The model adopts the convention of using real dollars, and therefore all inputs and discount rates are expressed and should be provided by the user in real terms.
B17: For other processes (such as those in Copper Leaf) that may require nominal dollars, an inflation rate assumption will be required to convert real inputs to nominal inputs, and the real discount rate used in this model should be converted to a nominal discount rate using the Fisher equation.
B19: Fisher equation: | D19: (1 + i) = (1 + r)(1 + π)
C21: where | D21: i | E21: nominal interest rate
D22: r | E22: real interest rate
D23: π | E23: inflation rate
B26: Unserved energy
B27: Unserved energy inputs are provided in MWh, and is multiplied with VCR (see below) to calculate involuntary load shedding expressed as a $ value.
B29: For some projects, unserved energy in the base case can be very large to the extent that avoided involuntary load shedding benefits overwhelms the analysis.
B31: To avoid or minimise this issue for those projects, it is suggested two measures, ranked in order of preference of the approach, can be adopted:
B32: 1) | C32: Capping unserved energy inputs (expressed in MWh) a few years after options have been commissioned, eg 10 years or 15 years depending on the project.
B33: 2) | C33: Removing unserved energy inputs after all options have been commissioned, providing that avoided involuntary load shedding benefits are equal among the different options and option rankings do not change.
B35: However, it is imperative that any adjustment to USE (or any other variables) does not affect the ranking of the options (and is noted/explained in the CFI/RIT-D documentation).
B38: Optimal timing analysis
B39: Optimal timing analysis is only applicable where an externally driven need date is absent (eg, a reliability corrective action to meet the connection of load in accordance with the 5.2.3(d) of the NER). Where an externally driven need date is relevant, then the commissioning year of the options considered should align with that externally driven need date.
B42: Scenario parameters and consistency
B43: Care should be taken in setting scenario parameters in the 'R1 Interface and results' tab to ensure scenarios are internally consistent within the scenario and across scenarios.
B44: In general, discount rate and VCR (ie general parameters) should be consistent across scenarios. While cost, risk, and benefit parameters may vary between scenarios.
B45: In developing scenarios, it is important to consider each scenario on a case by case basis, as it may not be appropriate scenarios to be symmetrical to each other. One consequence of symmetrical scenarios is that the effects each scenario cancel each other out in the weighted scenario.
B47: In addition, consideration should be given to scenario weightings on a case by case basis and whether there is a basis to justify a non-uniform or non-standard weighting between different scenarios adopted.
B50: Model usage guidance
B52: R1 Interface and results
B53: User will need to develop scenarios by inputting parameters, factors, and scenario weightings.
B55: Factors are applied to inputs to scale them up or down to create variations in inputs.
B57: Scenarios can be turned off by assigning a weighting zero.
B59: R3 Sensitivities
B60: Default covered in sensitivity analysis are discount rates, capital costs, VCR, and risk costs, as these parameters will more likely be material to the NPV analysis.
B62: Options may not have valid tipping points, and will depend on inputs provided into the model.
B65: I1 General Inputs
B66: Input labelling (for costs, benefits, scenarios) across the model can be changed in this tab.
B68: Option applicable 1/0' switch will need to be turned to '1' for options to operate in the model
B71: I2 CBA Inputs
B72: Capital cost are provided in this input sheet, including capital cost cashflow profiles.
B74: Some benefit categories have input tables for each scenario (eg involuntary load shedding). If each scenario are the same, then the same inputs for each scenario should be provided.
B76: Inputs for 'Changes in load transfer capability' and 'Option value' benefit categories' should be provided as benefit amounts, as base case input cells for these categories are expected to be zero or blank.

Sheet R1 Interface and results
A1: =MID(CELL("filename",A2),FIND("]",CELL("filename",A2))+1,256) -> R1 Interface and results
A2: Interface for scenario settings and key results
B4: Scenario settings
B6: Parameters | F6: =TRANSPOSE('I1 General Inputs'!I37:I40) -> S1 | G6: S2 | H6: S3 | I6: S4 | K6: Sensitivities
B7: General parameters | E7: Unit | F7: =TRANSPOSE('I1 General Inputs'!J37:J40) -> Business case | G7: [Extra] | H7: [Extra] | I7: [Extra] | K7: Lower bound | L7: Upper bound
B8: Commercial discount rate | E8: Percent | F8: 0.05275894127 | K8: 0.023 | L8: 0.075
B9: VCR for involuntary load shedding | E9: $/MWh | F9: ='Load-weighted VCR'!$C$10 -> 39440.4168 | K9: =F9*0.7 -> 27608.29176 | L9: =F9*1.3 -> 51272.54184
B10: VCR for voluntary load curtailment | E10: $/MWh | F10: ='Load-weighted VCR'!$C$10 -> 39440.4168 | K10: =F10*0.7 -> 27608.29176 | L10: =F10*1.3 -> 51272.54184
B12: Cost parameters | E12: Unit | F12: =$F$7 -> Business case | K12: =K$7 -> Lower bound | L12: =L$7 -> Upper bound
B13: ='I1 General Inputs'!B37 -> Capital cost | E13: Factor | F13: 1 | K13: 0.7 | L13: 1.3
B14: ='I1 General Inputs'!B38 -> Planned routine maintenance and refurbishment | E14: Factor | F14: 1 | K14: 0.7 | L14: 1.3
B15: ='I1 General Inputs'!B39 -> Unplanned corrective maintenance | E15: Factor | F15: 1 | K15: 0.7 | L15: 1.3
B16: ='I1 General Inputs'!B40 -> Decommissioning costs | E16: Factor | F16: 1 | K16: 0.7 | L16: 1.3
B17: ='I1 General Inputs'!B41 -> NNO proponent charges | E17: Factor | F17: 1 | K17: 0.7 | L17: 1.3
B18: ='I1 General Inputs'!B42 -> Cost X | E18: Factor | F18: 1 | K18: 0.7 | L18: 1.3
B20: Risk cost parameters | E20: Unit | F20: =$F$7 -> Business case | K20: =K$7 -> Lower bound | L20: =L$7 -> Upper bound
B21: ='I1 General Inputs'!B45 -> Reliability and security risk costs | E21: Factor | F21: 1 | K21: 0.7 | L21: 1.3
B22: ='I1 General Inputs'!B46 -> Safety and health risk costs | E22: Factor | F22: 1 | K22: 0.7 | L22: 1.3
B23: ='I1 General Inputs'!B47 -> Environmental risk costs | E23: Factor | F23: 1 | K23: 0.7 | L23: 1.3
B24: ='I1 General Inputs'!B48 -> Legal/regulatory compliance risk costs | E24: Factor | F24: 1 | K24: 0.7 | L24: 1.3
B25: ='I1 General Inputs'!B49 -> Financial risk costs | E25: Factor | F25: 1 | K25: 0.7 | L25: 1.3
B27: Benefit parameters | E27: Unit | F27: =$F$7 -> Business case | K27: =K$7 -> Lower bound | L27: =L$7 -> Upper bound
B28: ='I1 General Inputs'!B52 -> Avoided involuntary load shedding | E28: Factor | F28: 1 | K28: 0.7 | L28: 1.3
B29: ='I1 General Inputs'!B53 -> Avoided voluntary load curtailment | E29: Factor | F29: 1 | K29: 0.7 | L29: 1.3
B30: ='I1 General Inputs'!B54 -> Avoided costs for non-RIT-D proponent parties | E30: Factor | F30: 1 | K30: 0.7 | L30: 1.3
B31: ='I1 General Inputs'!B55 -> Differences in the timing of unrelated network expenditure | E31: Factor | F31: 1 | K31: 0.7 | L31: 1.3
B32: ='I1 General Inputs'!B56 -> Changes in load transfer capacity | E32: Factor | F32: 1 | K32: 0.7 | L32: 1.3
B33: ='I1 General Inputs'!B57 -> Additional option value | E33: Factor | F33: 1 | K33: 0.7 | L33: 1.3
B34: ='I1 General Inputs'!B58 -> Changes in electrical energy losses | E34: Factor | F34: 1 | K34: 0.7 | L34: 1.3
B36: Scenario weightings | E36: Unit | F36: =$F$7 -> Business case
B37: Weightings | E37: % | F37: 1
B40: Weighted NPV results
B42: Net present value ($, PV) | C42: =F6 -> S1 | D42: S2 | E42: S3 | F42: S4 | J42: Weighted NPV results
B43: Option | C43: Business case | D43: [Extra] | E43: [Extra] | F43: [Extra] | G43: Weighted NPV | H43: Rank
B44: ='I1 General Inputs'!B15 -> Option 2 | C44: ='S1'!E70 -> -590933.1952 | D44: ='S2'!E70 -> 0 | E44: ='S3'!E70 -> 0 | F44: ='S4'!E70 -> 0 | G44: =Weighted!E44 -> -590933.1952 | H44: =IF($G44>0,(IF($G44=0,"",RANK($G44,$G$44:$G$58,0))),IF($G44=0,"",(IF($G44=0,"",RANK($G44,$G$44:$G$58,0)))-(COUNTIF($G$44:$G$58,0)))) -> 3
B45: ='I1 General Inputs'!B16 -> Option 3 | C45: ='S1'!E71 -> 62114424.41 | D45: ='S2'!E71 -> 0 | E45: ='S3'!E71 -> 0 | F45: ='S4'!E71 -> 0 | G45: =Weighted!E45 -> 62114424.41 | H45: =IF($G45>0,(IF($G45=0,"",RANK($G45,$G$44:$G$58,0))),IF($G45=0,"",(IF($G45=0,"",RANK($G45,$G$44:$G$58,0)))-(COUNTIF($G$44:$G$58,0)))) -> 1
B46: ='I1 General Inputs'!B17 -> Option 4 | C46: ='S1'!E72 -> 43558328.71 | D46: ='S2'!E72 -> 0 | E46: ='S3'!E72 -> 0 | F46: ='S4'!E72 -> 0 | G46: =Weighted!E46 -> 43558328.71 | H46: 2
B47: ='I1 General Inputs'!B18 -> Option 5 | C47: ='S1'!E73 -> 0 | D47: ='S2'!E73 -> 0 | E47: ='S3'!E73 -> 0 | F47: ='S4'!E73 -> 0 | G47: =Weighted!E47 -> 0
B48: ='I1 General Inputs'!B19 -> Option 6 | C48: ='S1'!E74 -> 0 | D48: ='S2'!E74 -> 0 | E48: ='S3'!E74 -> 0 | F48: ='S4'!E74 -> 0 | G48: =Weighted!E48 -> 0
B49: ='I1 General Inputs'!B20 -> Option 7 | C49: ='S1'!E75 -> 0 | D49: ='S2'!E75 -> 0 | E49: ='S3'!E75 -> 0 | F49: ='S4'!E75 -> 0 | G49: =Weighted!E49 -> 0
B50: ='I1 General Inputs'!B21 -> Option 8 | C50: ='S1'!E76 -> 0 | D50: ='S2'!E76 -> 0 | E50: ='S3'!E76 -> 0 | F50: ='S4'!E76 -> 0 | G50: =Weighted!E50 -> 0
B51: ='I1 General Inputs'!B22 -> Option 9 | C51: ='S1'!E77 -> 0 | D51: ='S2'!E77 -> 0 | E51: ='S3'!E77 -> 0 | F51: ='S4'!E77 -> 0 | G51: =Weighted!E51 -> 0
B52: ='I1 General Inputs'!B23 -> Option 10 | C52: ='S1'!E78 -> 0 | D52: ='S2'!E78 -> 0 | E52: ='S3'!E78 -> 0 | F52: ='S4'!E78 -> 0 | G52: =Weighted!E52 -> 0
B53: ='I1 General Inputs'!B24 -> Option 11 | C53: ='S1'!E79 -> 0 | D53: ='S2'!E79 -> 0 | E53: ='S3'!E79 -> 0 | F53: ='S4'!E79 -> 0 | G53: =Weighted!E53 -> 0
B54: ='I1 General Inputs'!B25 -> Option 12 | C54: ='S1'!E80 -> 0 | D54: ='S2'!E80 -> 0 | E54: ='S3'!E80 -> 0 | F54: ='S4'!E80 -> 0 | G54: =Weighted!E54 -> 0
B55: ='I1 General Inputs'!B26 -> Option 13 | C55: ='S1'!E81 -> 0 | D55: ='S2'!E81 -> 0 | E55: ='S3'!E81 -> 0 | F55: ='S4'!E81 -> 0 | G55: =Weighted!E55 -> 0
B56: ='I1 General Inputs'!B27 -> Option 14 | C56: ='S1'!E82 -> 0 | D56: ='S2'!E82 -> 0 | E56: ='S3'!E82 -> 0 | F56: ='S4'!E82 -> 0 | G56: =Weighted!E56 -> 0
B57: ='I1 General Inputs'!B28 -> Option 15 | C57: ='S1'!E83 -> 0 | D57: ='S2'!E83 -> 0 | E57: ='S3'!E83 -> 0 | F57: ='S4'!E83 -> 0 | G57: =Weighted!E57 -> 0
B58: ='I1 General Inputs'!B29 -> Option 16 | C58: ='S1'!E84 -> 0 | D58: ='S2'!E84 -> 0 | E58: ='S3'!E84 -> 0 | F58: ='S4'!E84 -> 0 | G58: =Weighted!E58 -> 0
B60: Weighted NPV breakdown for each option ($, PV) | J60: Weighted NPV breakdown results
B61: Option | C61: PV Market benefits | D61: PV Avoided risk cost benefits | E61: PV Costs | F61: =+'S1'!E69 -> NPV | G61: Rank
B62: =B44 -> Option 2 | C62: =Weighted!E62 -> 0 | D62: =Weighted!E98 -> 0 | E62: =Weighted!E80 -> -590933.1952 | F62: =Weighted!E44 -> -590933.1952 | G62: =IF($F62>0,(IF($F62=0,"",RANK($F62,$F$62:$F$76,0))),IF($F62=0,"",(IF($F62=0,"",RANK($F62,$F$62:$F$76,0)))-(COUNTIF($F$62:$F$76,0)))) -> 3
B63: =B45 -> Option 3 | C63: =Weighted!E63 -> 78177136.54 | D63: =Weighted!E99 -> 0 | E63: =Weighted!E81 -> -16062712.13 | F63: =Weighted!E45 -> 62114424.41 | G63: =IF($F63>0,(IF($F63=0,"",RANK($F63,$F$62:$F$76,0))),IF($F63=0,"",(IF($F63=0,"",RANK($F63,$F$62:$F$76,0)))-(COUNTIF($F$62:$F$76,0)))) -> 1
B64: Option 4 | C64: =Weighted!E64 -> 60051045.84 | D64: =Weighted!E100 -> 0 | E64: =Weighted!E82 -> -16492717.13 | F64: =Weighted!E46 -> 43558328.71 | G64: 2
B65: Option 5 | C65: =Weighted!E65 -> 0 | D65: =Weighted!E101 -> 0 | E65: =Weighted!E83 -> 0 | F65: =Weighted!E47 -> 0
B66: Option 6 | C66: =Weighted!E66 -> 0 | D66: =Weighted!E102 -> 0 | E66: =Weighted!E84 -> 0 | F66: =Weighted!E48 -> 0
B67: Option 7 | C67: =Weighted!E67 -> 0 | D67: =Weighted!E103 -> 0 | E67: =Weighted!E85 -> 0 | F67: =Weighted!E49 -> 0
B68: Option 8 | C68: =Weighted!E68 -> 0 | D68: =Weighted!E104 -> 0 | E68: =Weighted!E86 -> 0 | F68: =Weighted!E50 -> 0
B69: Option 9 | C69: =Weighted!E69 -> 0 | D69: =Weighted!E105 -> 0 | E69: =Weighted!E87 -> 0 | F69: =Weighted!E51 -> 0
B70: Option 10 | C70: =Weighted!E70 -> 0 | D70: =Weighted!E106 -> 0 | E70: =Weighted!E88 -> 0 | F70: =Weighted!E52 -> 0
B71: Option 11 | C71: =Weighted!E71 -> 0 | D71: =Weighted!E107 -> 0 | E71: =Weighted!E89 -> 0 | F71: =Weighted!E53 -> 0
B72: Option 12 | C72: =Weighted!E72 -> 0 | D72: =Weighted!E108 -> 0 | E72: =Weighted!E90 -> 0 | F72: =Weighted!E54 -> 0
B73: Option 13 | C73: =Weighted!E73 -> 0 | D73: =Weighted!E109 -> 0 | E73: =Weighted!E91 -> 0 | F73: =Weighted!E55 -> 0
B74: Option 14 | C74: =Weighted!E74 -> 0 | D74: =Weighted!E110 -> 0 | E74: =Weighted!E92 -> 0 | F74: =Weighted!E56 -> 0
B75: Option 15 | C75: =Weighted!E75 -> 0 | D75: =Weighted!E111 -> 0 | E75: =Weighted!E93 -> 0 | F75: =Weighted!E57 -> 0
B76: Option 16 | C76: =Weighted!E76 -> 0 | D76: =Weighted!E112 -> 0 | E76: =Weighted!E94 -> 0 | F76: =Weighted!E58 -> 0

Sheet R2 Charts
A1: =MID(CELL("filename",A2),FIND("]",CELL("filename",A2))+1,256) -> R2 Charts
A2: Standard output charts
B4: Standard charts
B6: ='I1 General Inputs'!J37 -> Business case | C6: NPV result | O6: ='I1 General Inputs'!J38 -> [Extra] | P6: NPV result | AB6: ='I1 General Inputs'!J39 -> [Extra] | AC6: NPV result | AO6: ='I1 General Inputs'!J40 -> [Extra] | AP6: NPV result | BB6: Weighted | BC6: NPV result
B31: =B6 -> Business case | C31: NPV breakdown | O31: =O6 -> [Extra] | P31: NPV breakdown | AB31: =AB6 -> [Extra] | AC31: NPV breakdown | AO31: =AO6 -> [Extra] | AP31: NPV breakdown | BB31: =BB6 -> Weighted | BC31: NPV breakdown
B33: Option | C33: ='S1'!B176 -> Capital cost | D33: Other costs | E33: Avoided risk costs | F33: ='I1 General Inputs'!B52 -> Avoided involuntary load shedding | G33: ='I1 General Inputs'!B53 -> Avoided voluntary load curtailment | H33: ='I1 General Inputs'!B54 -> Avoided costs for non-RIT-D proponent parties | I33: ='I1 General Inputs'!B55 -> Differences in the timing of unrelated network expenditure | J33: ='I1 General Inputs'!B56 -> Changes in load transfer capacity | K33: ='I1 General Inputs'!B57 -> Additional option value | L33: ='I1 General Inputs'!B58 -> Changes in electrical energy losses | M33: NPV | O33: Option | P33: =$C$33 -> Capital cost | Q33: =$D$33 -> Other costs | R33: =$E$33 -> Avoided risk costs | S33: =$F$33 -> Avoided involuntary load shedding | T33: =$G$33 -> Avoided voluntary load curtailment | U33: =$H$33 -> Avoided costs for non-RIT-D proponent parties | V33: =$I$33 -> Differences in the timing of unrelated network expenditure | W33: =$J$33 -> Changes in load transfer capacity | X33: =$K$33 -> Additional option value | Y33: =$L$33 -> Changes in electrical energy losses | Z33: =$M$33 -> NPV | AB33: Option | AC33: =$C$33 -> Capital cost | AD33: =$D$33 -> Other costs | AE33: =$E$33 -> Avoided risk costs | AF33: =$F$33 -> Avoided involuntary load shedding | AG33: =$G$33 -> Avoided voluntary load curtailment | AH33: =$H$33 -> Avoided costs for non-RIT-D proponent parties | AI33: =$I$33 -> Differences in the timing of unrelated network expenditure | AJ33: =$J$33 -> Changes in load transfer capacity | AK33: =$K$33 -> Additional option value | AL33: =$L$33 -> Changes in electrical energy losses | AM33: =$M$33 -> NPV | AO33: Option | AP33: =$C$33 -> Capital cost | AQ33: =$D$33 -> Other costs | AR33: =$E$33 -> Avoided risk costs | AS33: =$F$33 -> Avoided involuntary load shedding | AT33: =$G$33 -> Avoided voluntary load curtailment | AU33: =$H$33 -> Avoided costs for non-RIT-D proponent parties | AV33: =$I$33 -> Differences in the timing of unrelated network expenditure | AW33: =$J$33 -> Changes in load transfer capacity | AX33: =$K$33 -> Additional option value | AY33: =$L$33 -> Changes in electrical energy losses | AZ33: =$M$33 -> NPV | BB33: Option | BC33: =$C$33 -> Capital cost | BD33: =$D$33 -> Other costs | BE33: =$E$33 -> Avoided risk costs | BF33: =$F$33 -> Avoided involuntary load shedding | BG33: =$G$33 -> Avoided voluntary load curtailment | BH33: =$H$33 -> Avoided costs for non-RIT-D proponent parties | BI33: =$I$33 -> Differences in the timing of unrelated network expenditure | BJ33: =$J$33 -> Changes in load transfer capacity | BK33: =$K$33 -> Additional option value | BL33: =$L$33 -> Changes in electrical energy losses | BM33: =$M$33 -> NPV
B34: ='I1 General Inputs'!$B$15 -> Option 2 | C34: ='S1'!E178 -> 0 | D34: =SUM('S1'!E196,'S1'!E214,'S1'!E232,'S1'!E250,'S1'!E268) -> -590933.1952 | E34: =SUM('S1'!E289,'S1'!E307,'S1'!E325,'S1'!E343,'S1'!E361) -> 0 | F34: ='S1'!E382 -> 0 | G34: ='S1'!E400 -> 0 | H34: ='S1'!E418 -> 0 | I34: ='S1'!E436 -> 0 | J34: ='S1'!E454 -> 0 | K34: ='S1'!E472 -> 0 | L34: ='S1'!E490 -> 0 | M34: =SUM(C34:L34) -> -590933.1952 | O34: ='I1 General Inputs'!$B$15 -> Option 2 | P34: ='S2'!E178 -> 0 | Q34: =SUM('S2'!E196,'S2'!E214,'S2'!E232,'S2'!E250,'S2'!E268) -> 0 | R34: =SUM('S2'!E289,'S2'!E307,'S2'!E325,'S2'!E343,'S2'!E361) -> 0 | S34: ='S2'!E382 -> 0 | T34: ='S2'!E400 -> 0 | U34: ='S2'!E418 -> 0 | V34: ='S2'!E436 -> 0 | W34: ='S2'!E454 -> 0 | X34: ='S2'!E472 -> 0 | Y34: ='S2'!E490 -> 0 | Z34: =SUM(P34:Y34) -> 0 | AB34: ='I1 General Inputs'!$B$15 -> Option 2 | AC34: ='S3'!E178 -> 0 | AD34: =SUM('S3'!E196,'S3'!E214,'S3'!E232,'S3'!E250,'S3'!E268) -> 0 | AE34: =SUM('S3'!E289,'S3'!E307,'S3'!E325,'S3'!E343,'S3'!E361) -> 0 | AF34: ='S3'!E382 -> 0 | AG34: ='S3'!E400 -> 0 | AH34: ='S3'!E418 -> 0 | AI34: ='S3'!E436 -> 0 | AJ34: ='S3'!E454 -> 0 | AK34: ='S3'!E472 -> 0 | AL34: ='S3'!E490 -> 0 | AM34: =SUM(AC34:AL34) -> 0 | AO34: ='I1 General Inputs'!$B$15 -> Option 2 | AP34: ='S4'!E178 -> 0 | AQ34: =SUM('S4'!E196,'S4'!E214,'S4'!E232,'S4'!E250,'S4'!E268) -> 0 | AR34: =SUM('S4'!E289,'S4'!E307,'S4'!E325,'S4'!E343,'S4'!E361) -> 0 | AS34: ='S4'!E382 -> 0 | AT34: ='S4'!E400 -> 0 | AU34: ='S4'!E418 -> 0 | AV34: ='S4'!E436 -> 0 | AW34: ='S4'!E454 -> 0 | AX34: ='S4'!E472 -> 0 | AY34: ='S4'!E490 -> 0 | AZ34: =SUM(AP34:AY34) -> 0 | BB34: ='I1 General Inputs'!$B$15 -> Option 2 | BC34: =Weighted!E119 -> 0 | BD34: =SUM(Weighted!E137,Weighted!E155,Weighted!E173,Weighted!E191,Weighted!E209) -> -590933.1952 | BE34: =SUM(Weighted!E230,Weighted!E248,Weighted!E266,Weighted!E284,Weighted!E302) -> 0 | BF34: =Weighted!E323 -> 0 | BG34: =Weighted!E341 -> 0 | BH34: =Weighted!E359 -> 0 | BI34: =Weighted!E377 -> 0 | BJ34: =Weighted!E395 -> 0 | BK34: =Weighted!E413 -> 0 | BL34: =Weighted!E431 -> 0 | BM34: =SUM(BC34:BL34) -> -590933.1952
B35: ='I1 General Inputs'!$B$16 -> Option 3 | C35: ='S1'!E179 -> -16062712.13 | D35: =SUM('S1'!E197,'S1'!E215,'S1'!E233,'S1'!E251,'S1'!E269) -> 0 | E35: =SUM('S1'!E290,'S1'!E308,'S1'!E326,'S1'!E344,'S1'!E362) -> 0 | F35: ='S1'!E383 -> 78177136.54 | G35: ='S1'!E401 -> 0 | H35: ='S1'!E419 -> 0 | I35: ='S1'!E437 -> 0 | J35: ='S1'!E455 -> 0 | K35: ='S1'!E473 -> 0 | L35: ='S1'!E491 -> 0 | M35: =SUM(C35:L35) -> 62114424.41 | O35: ='I1 General Inputs'!$B$16 -> Option 3 | P35: ='S2'!E179 -> 0 | Q35: =SUM('S2'!E197,'S2'!E215,'S2'!E233,'S2'!E251,'S2'!E269) -> 0 | R35: =SUM('S2'!E290,'S2'!E308,'S2'!E326,'S2'!E344,'S2'!E362) -> 0 | S35: ='S2'!E383 -> 0 | T35: ='S2'!E401 -> 0 | U35: ='S2'!E419 -> 0 | V35: ='S2'!E437 -> 0 | W35: ='S2'!E455 -> 0 | X35: ='S2'!E473 -> 0 | Y35: ='S2'!E491 -> 0 | Z35: =SUM(P35:Y35) -> 0 | AB35: ='I1 General Inputs'!$B$16 -> Option 3 | AC35: ='S3'!E179 -> 0 | AD35: =SUM('S3'!E197,'S3'!E215,'S3'!E233,'S3'!E251,'S3'!E269) -> 0 | AE35: =SUM('S3'!E290,'S3'!E308,'S3'!E326,'S3'!E344,'S3'!E362) -> 0 | AF35: ='S3'!E383 -> 0 | AG35: ='S3'!E401 -> 0 | AH35: ='S3'!E419 -> 0 | AI35: ='S3'!E437 -> 0 | AJ35: ='S3'!E455 -> 0 | AK35: ='S3'!E473 -> 0 | AL35: ='S3'!E491 -> 0 | AM35: =SUM(AC35:AL35) -> 0 | AO35: ='I1 General Inputs'!$B$16 -> Option 3 | AP35: ='S4'!E179 -> 0 | AQ35: =SUM('S4'!E197,'S4'!E215,'S4'!E233,'S4'!E251,'S4'!E269) -> 0 | AR35: =SUM('S4'!E290,'S4'!E308,'S4'!E326,'S4'!E344,'S4'!E362) -> 0 | AS35: ='S4'!E383 -> 0 | AT35: ='S4'!E401 -> 0 | AU35: ='S4'!E419 -> 0 | AV35: ='S4'!E437 -> 0 | AW35: ='S4'!E455 -> 0 | AX35: ='S4'!E473 -> 0 | AY35: ='S4'!E491 -> 0 | AZ35: =SUM(AP35:AY35) -> 0 | BB35: ='I1 General Inputs'!$B$16 -> Option 3 | BC35: =Weighted!E120 -> -16062712.13 | BD35: =SUM(Weighted!E138,Weighted!E156,Weighted!E174,Weighted!E192,Weighted!E210) -> 0 | BE35: =SUM(Weighted!E231,Weighted!E249,Weighted!E267,Weighted!E285,Weighted!E303) -> 0 | BF35: =Weighted!E324 -> 78177136.54 | BG35: =Weighted!E342 -> 0 | BH35: =Weighted!E360 -> 0 | BI35: =Weighted!E378 -> 0 | BJ35: =Weighted!E396 -> 0 | BK35: =Weighted!E414 -> 0 | BL35: =Weighted!E432 -> 0 | BM35: =SUM(BC35:BL35) -> 62114424.41
B36: ='I1 General Inputs'!$B$17 -> Option 4 | C36: ='S1'!E180 -> -16492717.13 | D36: =SUM('S1'!E198,'S1'!E216,'S1'!E234,'S1'!E252,'S1'!E270) -> 0 | E36: =SUM('S1'!E291,'S1'!E309,'S1'!E327,'S1'!E345,'S1'!E363) -> 0 | F36: ='S1'!E384 -> 60051045.84 | G36: ='S1'!E402 -> 0 | H36: ='S1'!E420 -> 0 | I36: ='S1'!E438 -> 0 | J36: ='S1'!E456 -> 0 | K36: ='S1'!E474 -> 0 | L36: ='S1'!E492 -> 0 | M36: 43558328.71 | O36: ='I1 General Inputs'!$B$17 -> Option 4 | P36: ='S2'!E180 -> 0 | Q36: =SUM('S2'!E198,'S2'!E216,'S2'!E234,'S2'!E252,'S2'!E270) -> 0 | R36: =SUM('S2'!E291,'S2'!E309,'S2'!E327,'S2'!E345,'S2'!E363) -> 0 | S36: ='S2'!E384 -> 0 | T36: ='S2'!E402 -> 0 | U36: ='S2'!E420 -> 0 | V36: ='S2'!E438 -> 0 | W36: ='S2'!E456 -> 0 | X36: ='S2'!E474 -> 0 | Y36: ='S2'!E492 -> 0 | Z36: 0 | AB36: ='I1 General Inputs'!$B$17 -> Option 4 | AC36: ='S3'!E180 -> 0 | AD36: =SUM('S3'!E198,'S3'!E216,'S3'!E234,'S3'!E252,'S3'!E270) -> 0 | AE36: =SUM('S3'!E291,'S3'!E309,'S3'!E327,'S3'!E345,'S3'!E363) -> 0 | AF36: ='S3'!E384 -> 0 | AG36: ='S3'!E402 -> 0 | AH36: ='S3'!E420 -> 0 | AI36: ='S3'!E438 -> 0 | AJ36: ='S3'!E456 -> 0 | AK36: ='S3'!E474 -> 0 | AL36: ='S3'!E492 -> 0 | AM36: 0 | AO36: ='I1 General Inputs'!$B$17 -> Option 4 | AP36: ='S4'!E180 -> 0 | AQ36: =SUM('S4'!E198,'S4'!E216,'S4'!E234,'S4'!E252,'S4'!E270) -> 0 | AR36: =SUM('S4'!E291,'S4'!E309,'S4'!E327,'S4'!E345,'S4'!E363) -> 0 | AS36: ='S4'!E384 -> 0 | AT36: ='S4'!E402 -> 0 | AU36: ='S4'!E420 -> 0 | AV36: ='S4'!E438 -> 0 | AW36: ='S4'!E456 -> 0 | AX36: ='S4'!E474 -> 0 | AY36: ='S4'!E492 -> 0 | AZ36: 0 | BB36: ='I1 General Inputs'!$B$17 -> Option 4 | BC36: =Weighted!E121 -> -16492717.13 | BD36: =SUM(Weighted!E139,Weighted!E157,Weighted!E175,Weighted!E193,Weighted!E211) -> 0 | BE36: =SUM(Weighted!E232,Weighted!E250,Weighted!E268,Weighted!E286,Weighted!E304) -> 0 | BF36: =Weighted!E325 -> 60051045.84 | BG36: =Weighted!E343 -> 0 | BH36: =Weighted!E361 -> 0 | BI36: =Weighted!E379 -> 0 | BJ36: =Weighted!E397 -> 0 | BK36: =Weighted!E415 -> 0 | BL36: =Weighted!E433 -> 0 | BM36: 43558328.71
B37: ='I1 General Inputs'!$B$18 -> Option 5 | C37: ='S1'!E181 -> 0 | D37: =SUM('S1'!E199,'S1'!E217,'S1'!E235,'S1'!E253,'S1'!E271) -> 0 | E37: =SUM('S1'!E292,'S1'!E310,'S1'!E328,'S1'!E346,'S1'!E364) -> 0 | F37: ='S1'!E385 -> 0 | G37: ='S1'!E403 -> 0 | H37: ='S1'!E421 -> 0 | I37: ='S1'!E439 -> 0 | J37: ='S1'!E457 -> 0 | K37: ='S1'!E475 -> 0 | L37: ='S1'!E493 -> 0 | M37: 0 | O37: ='I1 General Inputs'!$B$18 -> Option 5 | P37: ='S2'!E181 -> 0 | Q37: =SUM('S2'!E199,'S2'!E217,'S2'!E235,'S2'!E253,'S2'!E271) -> 0 | R37: =SUM('S2'!E292,'S2'!E310,'S2'!E328,'S2'!E346,'S2'!E364) -> 0 | S37: ='S2'!E385 -> 0 | T37: ='S2'!E403 -> 0 | U37: ='S2'!E421 -> 0 | V37: ='S2'!E439 -> 0 | W37: ='S2'!E457 -> 0 | X37: ='S2'!E475 -> 0 | Y37: ='S2'!E493 -> 0 | Z37: 0 | AB37: ='I1 General Inputs'!$B$18 -> Option 5 | AC37: ='S3'!E181 -> 0 | AD37: =SUM('S3'!E199,'S3'!E217,'S3'!E235,'S3'!E253,'S3'!E271) -> 0 | AE37: =SUM('S3'!E292,'S3'!E310,'S3'!E328,'S3'!E346,'S3'!E364) -> 0 | AF37: ='S3'!E385 -> 0 | AG37: ='S3'!E403 -> 0 | AH37: ='S3'!E421 -> 0 | AI37: ='S3'!E439 -> 0 | AJ37: ='S3'!E457 -> 0 | AK37: ='S3'!E475 -> 0 | AL37: ='S3'!E493 -> 0 | AM37: 0 | AO37: ='I1 General Inputs'!$B$18 -> Option 5 | AP37: ='S4'!E181 -> 0 | AQ37: =SUM('S4'!E199,'S4'!E217,'S4'!E235,'S4'!E253,'S4'!E271) -> 0 | AR37: =SUM('S4'!E292,'S4'!E310,'S4'!E328,'S4'!E346,'S4'!E364) -> 0 | AS37: ='S4'!E385 -> 0 | AT37: ='S4'!E403 -> 0 | AU37: ='S4'!E421 -> 0 | AV37: ='S4'!E439 -> 0 | AW37: ='S4'!E457 -> 0 | AX37: ='S4'!E475 -> 0 | AY37: ='S4'!E493 -> 0 | AZ37: 0 | BB37: ='I1 General Inputs'!$B$18 -> Option 5 | BC37: =Weighted!E122 -> 0 | BD37: =SUM(Weighted!E140,Weighted!E158,Weighted!E176,Weighted!E194,Weighted!E212) -> 0 | BE37: =SUM(Weighted!E233,Weighted!E251,Weighted!E269,Weighted!E287,Weighted!E305) -> 0 | BF37: =Weighted!E326 -> 0 | BG37: =Weighted!E344 -> 0 | BH37: =Weighted!E362 -> 0 | BI37: =Weighted!E380 -> 0 | BJ37: =Weighted!E398 -> 0 | BK37: =Weighted!E416 -> 0 | BL37: =Weighted!E434 -> 0 | BM37: 0
B38: ='I1 General Inputs'!$B$19 -> Option 6 | C38: ='S1'!E182 -> 0 | D38: =SUM('S1'!E200,'S1'!E218,'S1'!E236,'S1'!E254,'S1'!E272) -> 0 | E38: =SUM('S1'!E293,'S1'!E311,'S1'!E329,'S1'!E347,'S1'!E365) -> 0 | F38: ='S1'!E386 -> 0 | G38: ='S1'!E404 -> 0 | H38: ='S1'!E422 -> 0 | I38: ='S1'!E440 -> 0 | J38: ='S1'!E458 -> 0 | K38: ='S1'!E476 -> 0 | L38: ='S1'!E494 -> 0 | M38: 0 | O38: ='I1 General Inputs'!$B$19 -> Option 6 | P38: ='S2'!E182 -> 0 | Q38: =SUM('S2'!E200,'S2'!E218,'S2'!E236,'S2'!E254,'S2'!E272) -> 0 | R38: =SUM('S2'!E293,'S2'!E311,'S2'!E329,'S2'!E347,'S2'!E365) -> 0 | S38: ='S2'!E386 -> 0 | T38: ='S2'!E404 -> 0 | U38: ='S2'!E422 -> 0 | V38: ='S2'!E440 -> 0 | W38: ='S2'!E458 -> 0 | X38: ='S2'!E476 -> 0 | Y38: ='S2'!E494 -> 0 | Z38: 0 | AB38: ='I1 General Inputs'!$B$19 -> Option 6 | AC38: ='S3'!E182 -> 0 | AD38: =SUM('S3'!E200,'S3'!E218,'S3'!E236,'S3'!E254,'S3'!E272) -> 0 | AE38: =SUM('S3'!E293,'S3'!E311,'S3'!E329,'S3'!E347,'S3'!E365) -> 0 | AF38: ='S3'!E386 -> 0 | AG38: ='S3'!E404 -> 0 | AH38: ='S3'!E422 -> 0 | AI38: ='S3'!E440 -> 0 | AJ38: ='S3'!E458 -> 0 | AK38: ='S3'!E476 -> 0 | AL38: ='S3'!E494 -> 0 | AM38: 0 | AO38: ='I1 General Inputs'!$B$19 -> Option 6 | AP38: ='S4'!E182 -> 0 | AQ38: =SUM('S4'!E200,'S4'!E218,'S4'!E236,'S4'!E254,'S4'!E272) -> 0 | AR38: =SUM('S4'!E293,'S4'!E311,'S4'!E329,'S4'!E347,'S4'!E365) -> 0 | AS38: ='S4'!E386 -> 0 | AT38: ='S4'!E404 -> 0 | AU38: ='S4'!E422 -> 0 | AV38: ='S4'!E440 -> 0 | AW38: ='S4'!E458 -> 0 | AX38: ='S4'!E476 -> 0 | AY38: ='S4'!E494 -> 0 | AZ38: 0 | BB38: ='I1 General Inputs'!$B$19 -> Option 6 | BC38: =Weighted!E123 -> 0 | BD38: =SUM(Weighted!E141,Weighted!E159,Weighted!E177,Weighted!E195,Weighted!E213) -> 0 | BE38: =SUM(Weighted!E234,Weighted!E252,Weighted!E270,Weighted!E288,Weighted!E306) -> 0 | BF38: =Weighted!E327 -> 0 | BG38: =Weighted!E345 -> 0 | BH38: =Weighted!E363 -> 0 | BI38: =Weighted!E381 -> 0 | BJ38: =Weighted!E399 -> 0 | BK38: =Weighted!E417 -> 0 | BL38: =Weighted!E435 -> 0 | BM38: 0
B39: ='I1 General Inputs'!$B$20 -> Option 7 | C39: ='S1'!E183 -> 0 | D39: =SUM('S1'!E201,'S1'!E219,'S1'!E237,'S1'!E255,'S1'!E273) -> 0 | E39: =SUM('S1'!E294,'S1'!E312,'S1'!E330,'S1'!E348,'S1'!E366) -> 0 | F39: ='S1'!E387 -> 0 | G39: ='S1'!E405 -> 0 | H39: ='S1'!E423 -> 0 | I39: ='S1'!E441 -> 0 | J39: ='S1'!E459 -> 0 | K39: ='S1'!E477 -> 0 | L39: ='S1'!E495 -> 0 | M39: 0 | O39: ='I1 General Inputs'!$B$20 -> Option 7 | P39: ='S2'!E183 -> 0 | Q39: =SUM('S2'!E201,'S2'!E219,'S2'!E237,'S2'!E255,'S2'!E273) -> 0 | R39: =SUM('S2'!E294,'S2'!E312,'S2'!E330,'S2'!E348,'S2'!E366) -> 0 | S39: ='S2'!E387 -> 0 | T39: ='S2'!E405 -> 0 | U39: ='S2'!E423 -> 0 | V39: ='S2'!E441 -> 0 | W39: ='S2'!E459 -> 0 | X39: ='S2'!E477 -> 0 | Y39: ='S2'!E495 -> 0 | Z39: 0 | AB39: ='I1 General Inputs'!$B$20 -> Option 7 | AC39: ='S3'!E183 -> 0 | AD39: =SUM('S3'!E201,'S3'!E219,'S3'!E237,'S3'!E255,'S3'!E273) -> 0 | AE39: =SUM('S3'!E294,'S3'!E312,'S3'!E330,'S3'!E348,'S3'!E366) -> 0 | AF39: ='S3'!E387 -> 0 | AG39: ='S3'!E405 -> 0 | AH39: ='S3'!E423 -> 0 | AI39: ='S3'!E441 -> 0 | AJ39: ='S3'!E459 -> 0 | AK39: ='S3'!E477 -> 0 | AL39: ='S3'!E495 -> 0 | AM39: 0 | AO39: ='I1 General Inputs'!$B$20 -> Option 7 | AP39: ='S4'!E183 -> 0 | AQ39: =SUM('S4'!E201,'S4'!E219,'S4'!E237,'S4'!E255,'S4'!E273) -> 0 | AR39: =SUM('S4'!E294,'S4'!E312,'S4'!E330,'S4'!E348,'S4'!E366) -> 0 | AS39: ='S4'!E387 -> 0 | AT39: ='S4'!E405 -> 0 | AU39: ='S4'!E423 -> 0 | AV39: ='S4'!E441 -> 0 | AW39: ='S4'!E459 -> 0 | AX39: ='S4'!E477 -> 0 | AY39: ='S4'!E495 -> 0 | AZ39: 0 | BB39: ='I1 General Inputs'!$B$20 -> Option 7 | BC39: =Weighted!E124 -> 0 | BD39: =SUM(Weighted!E142,Weighted!E160,Weighted!E178,Weighted!E196,Weighted!E214) -> 0 | BE39: =SUM(Weighted!E235,Weighted!E253,Weighted!E271,Weighted!E289,Weighted!E307) -> 0 | BF39: =Weighted!E328 -> 0 | BG39: =Weighted!E346 -> 0 | BH39: =Weighted!E364 -> 0 | BI39: =Weighted!E382 -> 0 | BJ39: =Weighted!E400 -> 0 | BK39: =Weighted!E418 -> 0 | BL39: =Weighted!E436 -> 0 | BM39: 0
B40: ='I1 General Inputs'!$B$21 -> Option 8 | C40: ='S1'!E184 -> 0 | D40: =SUM('S1'!E202,'S1'!E220,'S1'!E238,'S1'!E256,'S1'!E274) -> 0 | E40: =SUM('S1'!E295,'S1'!E313,'S1'!E331,'S1'!E349,'S1'!E367) -> 0 | F40: ='S1'!E388 -> 0 | G40: ='S1'!E406 -> 0 | H40: ='S1'!E424 -> 0 | I40: ='S1'!E442 -> 0 | J40: ='S1'!E460 -> 0 | K40: ='S1'!E478 -> 0 | L40: ='S1'!E496 -> 0 | M40: 0 | O40: ='I1 General Inputs'!$B$21 -> Option 8 | P40: ='S2'!E184 -> 0 | Q40: =SUM('S2'!E202,'S2'!E220,'S2'!E238,'S2'!E256,'S2'!E274) -> 0 | R40: =SUM('S2'!E295,'S2'!E313,'S2'!E331,'S2'!E349,'S2'!E367) -> 0 | S40: ='S2'!E388 -> 0 | T40: ='S2'!E406 -> 0 | U40: ='S2'!E424 -> 0 | V40: ='S2'!E442 -> 0 | W40: ='S2'!E460 -> 0 | X40: ='S2'!E478 -> 0 | Y40: ='S2'!E496 -> 0 | Z40: 0 | AB40: ='I1 General Inputs'!$B$21 -> Option 8 | AC40: ='S3'!E184 -> 0 | AD40: =SUM('S3'!E202,'S3'!E220,'S3'!E238,'S3'!E256,'S3'!E274) -> 0 | AE40: =SUM('S3'!E295,'S3'!E313,'S3'!E331,'S3'!E349,'S3'!E367) -> 0 | AF40: ='S3'!E388 -> 0 | AG40: ='S3'!E406 -> 0 | AH40: ='S3'!E424 -> 0 | AI40: ='S3'!E442 -> 0 | AJ40: ='S3'!E460 -> 0 | AK40: ='S3'!E478 -> 0 | AL40: ='S3'!E496 -> 0 | AM40: 0 | AO40: ='I1 General Inputs'!$B$21 -> Option 8 | AP40: ='S4'!E184 -> 0 | AQ40: =SUM('S4'!E202,'S4'!E220,'S4'!E238,'S4'!E256,'S4'!E274) -> 0 | AR40: =SUM('S4'!E295,'S4'!E313,'S4'!E331,'S4'!E349,'S4'!E367) -> 0 | AS40: ='S4'!E388 -> 0 | AT40: ='S4'!E406 -> 0 | AU40: ='S4'!E424 -> 0 | AV40: ='S4'!E442 -> 0 | AW40: ='S4'!E460 -> 0 | AX40: ='S4'!E478 -> 0 | AY40: ='S4'!E496 -> 0 | AZ40: 0 | BB40: ='I1 General Inputs'!$B$21 -> Option 8 | BC40: =Weighted!E125 -> 0 | BD40: =SUM(Weighted!E143,Weighted!E161,Weighted!E179,Weighted!E197,Weighted!E215) -> 0 | BE40: =SUM(Weighted!E236,Weighted!E254,Weighted!E272,Weighted!E290,Weighted!E308) -> 0 | BF40: =Weighted!E329 -> 0 | BG40: =Weighted!E347 -> 0 | BH40: =Weighted!E365 -> 0 | BI40: =Weighted!E383 -> 0 | BJ40: =Weighted!E401 -> 0 | BK40: =Weighted!E419 -> 0 | BL40: =Weighted!E437 -> 0 | BM40: 0
B41: ='I1 General Inputs'!$B$22 -> Option 9 | C41: ='S1'!E185 -> 0 | D41: =SUM('S1'!E203,'S1'!E221,'S1'!E239,'S1'!E257,'S1'!E275) -> 0 | E41: =SUM('S1'!E296,'S1'!E314,'S1'!E332,'S1'!E350,'S1'!E368) -> 0 | F41: ='S1'!E389 -> 0 | G41: ='S1'!E407 -> 0 | H41: ='S1'!E425 -> 0 | I41: ='S1'!E443 -> 0 | J41: ='S1'!E461 -> 0 | K41: ='S1'!E479 -> 0 | L41: ='S1'!E497 -> 0 | M41: 0 | O41: ='I1 General Inputs'!$B$22 -> Option 9 | P41: ='S2'!E185 -> 0 | Q41: =SUM('S2'!E203,'S2'!E221,'S2'!E239,'S2'!E257,'S2'!E275) -> 0 | R41: =SUM('S2'!E296,'S2'!E314,'S2'!E332,'S2'!E350,'S2'!E368) -> 0 | S41: ='S2'!E389 -> 0 | T41: ='S2'!E407 -> 0 | U41: ='S2'!E425 -> 0 | V41: ='S2'!E443 -> 0 | W41: ='S2'!E461 -> 0 | X41: ='S2'!E479 -> 0 | Y41: ='S2'!E497 -> 0 | Z41: 0 | AB41: ='I1 General Inputs'!$B$22 -> Option 9 | AC41: ='S3'!E185 -> 0 | AD41: =SUM('S3'!E203,'S3'!E221,'S3'!E239,'S3'!E257,'S3'!E275) -> 0 | AE41: =SUM('S3'!E296,'S3'!E314,'S3'!E332,'S3'!E350,'S3'!E368) -> 0 | AF41: ='S3'!E389 -> 0 | AG41: ='S3'!E407 -> 0 | AH41: ='S3'!E425 -> 0 | AI41: ='S3'!E443 -> 0 | AJ41: ='S3'!E461 -> 0 | AK41: ='S3'!E479 -> 0 | AL41: ='S3'!E497 -> 0 | AM41: 0 | AO41: ='I1 General Inputs'!$B$22 -> Option 9 | AP41: ='S4'!E185 -> 0 | AQ41: =SUM('S4'!E203,'S4'!E221,'S4'!E239,'S4'!E257,'S4'!E275) -> 0 | AR41: =SUM('S4'!E296,'S4'!E314,'S4'!E332,'S4'!E350,'S4'!E368) -> 0 | AS41: ='S4'!E389 -> 0 | AT41: ='S4'!E407 -> 0 | AU41: ='S4'!E425 -> 0 | AV41: ='S4'!E443 -> 0 | AW41: ='S4'!E461 -> 0 | AX41: ='S4'!E479 -> 0 | AY41: ='S4'!E497 -> 0 | AZ41: 0 | BB41: ='I1 General Inputs'!$B$22 -> Option 9 | BC41: =Weighted!E126 -> 0 | BD41: =SUM(Weighted!E144,Weighted!E162,Weighted!E180,Weighted!E198,Weighted!E216) -> 0 | BE41: =SUM(Weighted!E237,Weighted!E255,Weighted!E273,Weighted!E291,Weighted!E309) -> 0 | BF41: =Weighted!E330 -> 0 | BG41: =Weighted!E348 -> 0 | BH41: =Weighted!E366 -> 0 | BI41: =Weighted!E384 -> 0 | BJ41: =Weighted!E402 -> 0 | BK41: =Weighted!E420 -> 0 | BL41: =Weighted!E438 -> 0 | BM41: 0
B42: ='I1 General Inputs'!$B$23 -> Option 10 | C42: ='S1'!E186 -> 0 | D42: =SUM('S1'!E204,'S1'!E222,'S1'!E240,'S1'!E258,'S1'!E276) -> 0 | E42: =SUM('S1'!E297,'S1'!E315,'S1'!E333,'S1'!E351,'S1'!E369) -> 0 | F42: ='S1'!E390 -> 0 | G42: ='S1'!E408 -> 0 | H42: ='S1'!E426 -> 0 | I42: ='S1'!E444 -> 0 | J42: ='S1'!E462 -> 0 | K42: ='S1'!E480 -> 0 | L42: ='S1'!E498 -> 0 | M42: 0 | O42: ='I1 General Inputs'!$B$23 -> Option 10 | P42: ='S2'!E186 -> 0 | Q42: =SUM('S2'!E204,'S2'!E222,'S2'!E240,'S2'!E258,'S2'!E276) -> 0 | R42: =SUM('S2'!E297,'S2'!E315,'S2'!E333,'S2'!E351,'S2'!E369) -> 0 | S42: ='S2'!E390 -> 0 | T42: ='S2'!E408 -> 0 | U42: ='S2'!E426 -> 0 | V42: ='S2'!E444 -> 0 | W42: ='S2'!E462 -> 0 | X42: ='S2'!E480 -> 0 | Y42: ='S2'!E498 -> 0 | Z42: 0 | AB42: ='I1 General Inputs'!$B$23 -> Option 10 | AC42: ='S3'!E186 -> 0 | AD42: =SUM('S3'!E204,'S3'!E222,'S3'!E240,'S3'!E258,'S3'!E276) -> 0 | AE42: =SUM('S3'!E297,'S3'!E315,'S3'!E333,'S3'!E351,'S3'!E369) -> 0 | AF42: ='S3'!E390 -> 0 | AG42: ='S3'!E408 -> 0 | AH42: ='S3'!E426 -> 0 | AI42: ='S3'!E444 -> 0 | AJ42: ='S3'!E462 -> 0 | AK42: ='S3'!E480 -> 0 | AL42: ='S3'!E498 -> 0 | AM42: 0 | AO42: ='I1 General Inputs'!$B$23 -> Option 10 | AP42: ='S4'!E186 -> 0 | AQ42: =SUM('S4'!E204,'S4'!E222,'S4'!E240,'S4'!E258,'S4'!E276) -> 0 | AR42: =SUM('S4'!E297,'S4'!E315,'S4'!E333,'S4'!E351,'S4'!E369) -> 0 | AS42: ='S4'!E390 -> 0 | AT42: ='S4'!E408 -> 0 | AU42: ='S4'!E426 -> 0 | AV42: ='S4'!E444 -> 0 | AW42: ='S4'!E462 -> 0 | AX42: ='S4'!E480 -> 0 | AY42: ='S4'!E498 -> 0 | AZ42: 0 | BB42: ='I1 General Inputs'!$B$23 -> Option 10 | BC42: =Weighted!E127 -> 0 | BD42: =SUM(Weighted!E145,Weighted!E163,Weighted!E181,Weighted!E199,Weighted!E217) -> 0 | BE42: =SUM(Weighted!E238,Weighted!E256,Weighted!E274,Weighted!E292,Weighted!E310) -> 0 | BF42: =Weighted!E331 -> 0 | BG42: =Weighted!E349 -> 0 | BH42: =Weighted!E367 -> 0 | BI42: =Weighted!E385 -> 0 | BJ42: =Weighted!E403 -> 0 | BK42: =Weighted!E421 -> 0 | BL42: =Weighted!E439 -> 0 | BM42: 0
B43: ='I1 General Inputs'!$B$24 -> Option 11 | C43: ='S1'!E187 -> 0 | D43: =SUM('S1'!E205,'S1'!E223,'S1'!E241,'S1'!E259,'S1'!E277) -> 0 | E43: =SUM('S1'!E298,'S1'!E316,'S1'!E334,'S1'!E352,'S1'!E370) -> 0 | F43: ='S1'!E391 -> 0 | G43: ='S1'!E409 -> 0 | H43: ='S1'!E427 -> 0 | I43: ='S1'!E445 -> 0 | J43: ='S1'!E463 -> 0 | K43: ='S1'!E481 -> 0 | L43: ='S1'!E499 -> 0 | M43: 0 | O43: ='I1 General Inputs'!$B$24 -> Option 11 | P43: ='S2'!E187 -> 0 | Q43: =SUM('S2'!E205,'S2'!E223,'S2'!E241,'S2'!E259,'S2'!E277) -> 0 | R43: =SUM('S2'!E298,'S2'!E316,'S2'!E334,'S2'!E352,'S2'!E370) -> 0 | S43: ='S2'!E391 -> 0 | T43: ='S2'!E409 -> 0 | U43: ='S2'!E427 -> 0 | V43: ='S2'!E445 -> 0 | W43: ='S2'!E463 -> 0 | X43: ='S2'!E481 -> 0 | Y43: ='S2'!E499 -> 0 | Z43: 0 | AB43: ='I1 General Inputs'!$B$24 -> Option 11 | AC43: ='S3'!E187 -> 0 | AD43: =SUM('S3'!E205,'S3'!E223,'S3'!E241,'S3'!E259,'S3'!E277) -> 0 | AE43: =SUM('S3'!E298,'S3'!E316,'S3'!E334,'S3'!E352,'S3'!E370) -> 0 | AF43: ='S3'!E391 -> 0 | AG43: ='S3'!E409 -> 0 | AH43: ='S3'!E427 -> 0 | AI43: ='S3'!E445 -> 0 | AJ43: ='S3'!E463 -> 0 | AK43: ='S3'!E481 -> 0 | AL43: ='S3'!E499 -> 0 | AM43: 0 | AO43: ='I1 General Inputs'!$B$24 -> Option 11 | AP43: ='S4'!E187 -> 0 | AQ43: =SUM('S4'!E205,'S4'!E223,'S4'!E241,'S4'!E259,'S4'!E277) -> 0 | AR43: =SUM('S4'!E298,'S4'!E316,'S4'!E334,'S4'!E352,'S4'!E370) -> 0 | AS43: ='S4'!E391 -> 0 | AT43: ='S4'!E409 -> 0 | AU43: ='S4'!E427 -> 0 | AV43: ='S4'!E445 -> 0 | AW43: ='S4'!E463 -> 0 | AX43: ='S4'!E481 -> 0 | AY43: ='S4'!E499 -> 0 | AZ43: 0 | BB43: ='I1 General Inputs'!$B$24 -> Option 11 | BC43: =Weighted!E128 -> 0 | BD43: =SUM(Weighted!E146,Weighted!E164,Weighted!E182,Weighted!E200,Weighted!E218) -> 0 | BE43: =SUM(Weighted!E239,Weighted!E257,Weighted!E275,Weighted!E293,Weighted!E311) -> 0 | BF43: =Weighted!E332 -> 0 | BG43: =Weighted!E350 -> 0 | BH43: =Weighted!E368 -> 0 | BI43: =Weighted!E386 -> 0 | BJ43: =Weighted!E404 -> 0 | BK43: =Weighted!E422 -> 0 | BL43: =Weighted!E440 -> 0 | BM43: 0
B44: ='I1 General Inputs'!$B$25 -> Option 12 | C44: ='S1'!E188 -> 0 | D44: =SUM('S1'!E206,'S1'!E224,'S1'!E242,'S1'!E260,'S1'!E278) -> 0 | E44: =SUM('S1'!E299,'S1'!E317,'S1'!E335,'S1'!E353,'S1'!E371) -> 0 | F44: ='S1'!E392 -> 0 | G44: ='S1'!E410 -> 0 | H44: ='S1'!E428 -> 0 | I44: ='S1'!E446 -> 0 | J44: ='S1'!E464 -> 0 | K44: ='S1'!E482 -> 0 | L44: ='S1'!E500 -> 0 | M44: 0 | O44: ='I1 General Inputs'!$B$25 -> Option 12 | P44: ='S2'!E188 -> 0 | Q44: =SUM('S2'!E206,'S2'!E224,'S2'!E242,'S2'!E260,'S2'!E278) -> 0 | R44: =SUM('S2'!E299,'S2'!E317,'S2'!E335,'S2'!E353,'S2'!E371) -> 0 | S44: ='S2'!E392 -> 0 | T44: ='S2'!E410 -> 0 | U44: ='S2'!E428 -> 0 | V44: ='S2'!E446 -> 0 | W44: ='S2'!E464 -> 0 | X44: ='S2'!E482 -> 0 | Y44: ='S2'!E500 -> 0 | Z44: 0 | AB44: ='I1 General Inputs'!$B$25 -> Option 12 | AC44: ='S3'!E188 -> 0 | AD44: =SUM('S3'!E206,'S3'!E224,'S3'!E242,'S3'!E260,'S3'!E278) -> 0 | AE44: =SUM('S3'!E299,'S3'!E317,'S3'!E335,'S3'!E353,'S3'!E371) -> 0 | AF44: ='S3'!E392 -> 0 | AG44: ='S3'!E410 -> 0 | AH44: ='S3'!E428 -> 0 | AI44: ='S3'!E446 -> 0 | AJ44: ='S3'!E464 -> 0 | AK44: ='S3'!E482 -> 0 | AL44: ='S3'!E500 -> 0 | AM44: 0 | AO44: ='I1 General Inputs'!$B$25 -> Option 12 | AP44: ='S4'!E188 -> 0 | AQ44: =SUM('S4'!E206,'S4'!E224,'S4'!E242,'S4'!E260,'S4'!E278) -> 0 | AR44: =SUM('S4'!E299,'S4'!E317,'S4'!E335,'S4'!E353,'S4'!E371) -> 0 | AS44: ='S4'!E392 -> 0 | AT44: ='S4'!E410 -> 0 | AU44: ='S4'!E428 -> 0 | AV44: ='S4'!E446 -> 0 | AW44: ='S4'!E464 -> 0 | AX44: ='S4'!E482 -> 0 | AY44: ='S4'!E500 -> 0 | AZ44: 0 | BB44: ='I1 General Inputs'!$B$25 -> Option 12 | BC44: =Weighted!E129 -> 0 | BD44: =SUM(Weighted!E147,Weighted!E165,Weighted!E183,Weighted!E201,Weighted!E219) -> 0 | BE44: =SUM(Weighted!E240,Weighted!E258,Weighted!E276,Weighted!E294,Weighted!E312) -> 0 | BF44: =Weighted!E333 -> 0 | BG44: =Weighted!E351 -> 0 | BH44: =Weighted!E369 -> 0 | BI44: =Weighted!E387 -> 0 | BJ44: =Weighted!E405 -> 0 | BK44: =Weighted!E423 -> 0 | BL44: =Weighted!E441 -> 0 | BM44: 0
B45: ='I1 General Inputs'!$B$26 -> Option 13 | C45: ='S1'!E189 -> 0 | D45: =SUM('S1'!E207,'S1'!E225,'S1'!E243,'S1'!E261,'S1'!E279) -> 0 | E45: =SUM('S1'!E300,'S1'!E318,'S1'!E336,'S1'!E354,'S1'!E372) -> 0 | F45: ='S1'!E393 -> 0 | G45: ='S1'!E411 -> 0 | H45: ='S1'!E429 -> 0 | I45: ='S1'!E447 -> 0 | J45: ='S1'!E465 -> 0 | K45: ='S1'!E483 -> 0 | L45: ='S1'!E501 -> 0 | M45: 0 | O45: ='I1 General Inputs'!$B$26 -> Option 13 | P45: ='S2'!E189 -> 0 | Q45: =SUM('S2'!E207,'S2'!E225,'S2'!E243,'S2'!E261,'S2'!E279) -> 0 | R45: =SUM('S2'!E300,'S2'!E318,'S2'!E336,'S2'!E354,'S2'!E372) -> 0 | S45: ='S2'!E393 -> 0 | T45: ='S2'!E411 -> 0 | U45: ='S2'!E429 -> 0 | V45: ='S2'!E447 -> 0 | W45: ='S2'!E465 -> 0 | X45: ='S2'!E483 -> 0 | Y45: ='S2'!E501 -> 0 | Z45: 0 | AB45: ='I1 General Inputs'!$B$26 -> Option 13 | AC45: ='S3'!E189 -> 0 | AD45: =SUM('S3'!E207,'S3'!E225,'S3'!E243,'S3'!E261,'S3'!E279) -> 0 | AE45: =SUM('S3'!E300,'S3'!E318,'S3'!E336,'S3'!E354,'S3'!E372) -> 0 | AF45: ='S3'!E393 -> 0 | AG45: ='S3'!E411 -> 0 | AH45: ='S3'!E429 -> 0 | AI45: ='S3'!E447 -> 0 | AJ45: ='S3'!E465 -> 0 | AK45: ='S3'!E483 -> 0 | AL45: ='S3'!E501 -> 0 | AM45: 0 | AO45: ='I1 General Inputs'!$B$26 -> Option 13 | AP45: ='S4'!E189 -> 0 | AQ45: =SUM('S4'!E207,'S4'!E225,'S4'!E243,'S4'!E261,'S4'!E279) -> 0 | AR45: =SUM('S4'!E300,'S4'!E318,'S4'!E336,'S4'!E354,'S4'!E372) -> 0 | AS45: ='S4'!E393 -> 0 | AT45: ='S4'!E411 -> 0 | AU45: ='S4'!E429 -> 0 | AV45: ='S4'!E447 -> 0 | AW45: ='S4'!E465 -> 0 | AX45: ='S4'!E483 -> 0 | AY45: ='S4'!E501 -> 0 | AZ45: 0 | BB45: ='I1 General Inputs'!$B$26 -> Option 13 | BC45: =Weighted!E130 -> 0 | BD45: =SUM(Weighted!E148,Weighted!E166,Weighted!E184,Weighted!E202,Weighted!E220) -> 0 | BE45: =SUM(Weighted!E241,Weighted!E259,Weighted!E277,Weighted!E295,Weighted!E313) -> 0 | BF45: =Weighted!E334 -> 0 | BG45: =Weighted!E352 -> 0 | BH45: =Weighted!E370 -> 0 | BI45: =Weighted!E388 -> 0 | BJ45: =Weighted!E406 -> 0 | BK45: =Weighted!E424 -> 0 | BL45: =Weighted!E442 -> 0 | BM45: 0
B46: ='I1 General Inputs'!$B$27 -> Option 14 | C46: ='S1'!E190 -> 0 | D46: =SUM('S1'!E208,'S1'!E226,'S1'!E244,'S1'!E262,'S1'!E280) -> 0 | E46: =SUM('S1'!E301,'S1'!E319,'S1'!E337,'S1'!E355,'S1'!E373) -> 0 | F46: ='S1'!E394 -> 0 | G46: ='S1'!E412 -> 0 | H46: ='S1'!E430 -> 0 | I46: ='S1'!E448 -> 0 | J46: ='S1'!E466 -> 0 | K46: ='S1'!E484 -> 0 | L46: ='S1'!E502 -> 0 | M46: 0 | O46: ='I1 General Inputs'!$B$27 -> Option 14 | P46: ='S2'!E190 -> 0 | Q46: =SUM('S2'!E208,'S2'!E226,'S2'!E244,'S2'!E262,'S2'!E280) -> 0 | R46: =SUM('S2'!E301,'S2'!E319,'S2'!E337,'S2'!E355,'S2'!E373) -> 0 | S46: ='S2'!E394 -> 0 | T46: ='S2'!E412 -> 0 | U46: ='S2'!E430 -> 0 | V46: ='S2'!E448 -> 0 | W46: ='S2'!E466 -> 0 | X46: ='S2'!E484 -> 0 | Y46: ='S2'!E502 -> 0 | Z46: 0 | AB46: ='I1 General Inputs'!$B$27 -> Option 14 | AC46: ='S3'!E190 -> 0 | AD46: =SUM('S3'!E208,'S3'!E226,'S3'!E244,'S3'!E262,'S3'!E280) -> 0 | AE46: =SUM('S3'!E301,'S3'!E319,'S3'!E337,'S3'!E355,'S3'!E373) -> 0 | AF46: ='S3'!E394 -> 0 | AG46: ='S3'!E412 -> 0 | AH46: ='S3'!E430 -> 0 | AI46: ='S3'!E448 -> 0 | AJ46: ='S3'!E466 -> 0 | AK46: ='S3'!E484 -> 0 | AL46: ='S3'!E502 -> 0 | AM46: 0 | AO46: ='I1 General Inputs'!$B$27 -> Option 14 | AP46: ='S4'!E190 -> 0 | AQ46: =SUM('S4'!E208,'S4'!E226,'S4'!E244,'S4'!E262,'S4'!E280) -> 0 | AR46: =SUM('S4'!E301,'S4'!E319,'S4'!E337,'S4'!E355,'S4'!E373) -> 0 | AS46: ='S4'!E394 -> 0 | AT46: ='S4'!E412 -> 0 | AU46: ='S4'!E430 -> 0 | AV46: ='S4'!E448 -> 0 | AW46: ='S4'!E466 -> 0 | AX46: ='S4'!E484 -> 0 | AY46: ='S4'!E502 -> 0 | AZ46: 0 | BB46: ='I1 General Inputs'!$B$27 -> Option 14 | BC46: =Weighted!E131 -> 0 | BD46: =SUM(Weighted!E149,Weighted!E167,Weighted!E185,Weighted!E203,Weighted!E221) -> 0 | BE46: =SUM(Weighted!E242,Weighted!E260,Weighted!E278,Weighted!E296,Weighted!E314) -> 0 | BF46: =Weighted!E335 -> 0 | BG46: =Weighted!E353 -> 0 | BH46: =Weighted!E371 -> 0 | BI46: =Weighted!E389 -> 0 | BJ46: =Weighted!E407 -> 0 | BK46: =Weighted!E425 -> 0 | BL46: =Weighted!E443 -> 0 | BM46: 0
B47: ='I1 General Inputs'!$B$28 -> Option 15 | C47: ='S1'!E191 -> 0 | D47: =SUM('S1'!E209,'S1'!E227,'S1'!E245,'S1'!E263,'S1'!E281) -> 0 | E47: =SUM('S1'!E302,'S1'!E320,'S1'!E338,'S1'!E356,'S1'!E374) -> 0 | F47: ='S1'!E395 -> 0 | G47: ='S1'!E413 -> 0 | H47: ='S1'!E431 -> 0 | I47: ='S1'!E449 -> 0 | J47: ='S1'!E467 -> 0 | K47: ='S1'!E485 -> 0 | L47: ='S1'!E503 -> 0 | M47: 0 | O47: ='I1 General Inputs'!$B$28 -> Option 15 | P47: ='S2'!E191 -> 0 | Q47: =SUM('S2'!E209,'S2'!E227,'S2'!E245,'S2'!E263,'S2'!E281) -> 0 | R47: =SUM('S2'!E302,'S2'!E320,'S2'!E338,'S2'!E356,'S2'!E374) -> 0 | S47: ='S2'!E395 -> 0 | T47: ='S2'!E413 -> 0 | U47: ='S2'!E431 -> 0 | V47: ='S2'!E449 -> 0 | W47: ='S2'!E467 -> 0 | X47: ='S2'!E485 -> 0 | Y47: ='S2'!E503 -> 0 | Z47: 0 | AB47: ='I1 General Inputs'!$B$28 -> Option 15 | AC47: ='S3'!E191 -> 0 | AD47: =SUM('S3'!E209,'S3'!E227,'S3'!E245,'S3'!E263,'S3'!E281) -> 0 | AE47: =SUM('S3'!E302,'S3'!E320,'S3'!E338,'S3'!E356,'S3'!E374) -> 0 | AF47: ='S3'!E395 -> 0 | AG47: ='S3'!E413 -> 0 | AH47: ='S3'!E431 -> 0 | AI47: ='S3'!E449 -> 0 | AJ47: ='S3'!E467 -> 0 | AK47: ='S3'!E485 -> 0 | AL47: ='S3'!E503 -> 0 | AM47: 0 | AO47: ='I1 General Inputs'!$B$28 -> Option 15 | AP47: ='S4'!E191 -> 0 | AQ47: =SUM('S4'!E209,'S4'!E227,'S4'!E245,'S4'!E263,'S4'!E281) -> 0 | AR47: =SUM('S4'!E302,'S4'!E320,'S4'!E338,'S4'!E356,'S4'!E374) -> 0 | AS47: ='S4'!E395 -> 0 | AT47: ='S4'!E413 -> 0 | AU47: ='S4'!E431 -> 0 | AV47: ='S4'!E449 -> 0 | AW47: ='S4'!E467 -> 0 | AX47: ='S4'!E485 -> 0 | AY47: ='S4'!E503 -> 0 | AZ47: 0 | BB47: ='I1 General Inputs'!$B$28 -> Option 15 | BC47: =Weighted!E132 -> 0 | BD47: =SUM(Weighted!E150,Weighted!E168,Weighted!E186,Weighted!E204,Weighted!E222) -> 0 | BE47: =SUM(Weighted!E243,Weighted!E261,Weighted!E279,Weighted!E297,Weighted!E315) -> 0 | BF47: =Weighted!E336 -> 0 | BG47: =Weighted!E354 -> 0 | BH47: =Weighted!E372 -> 0 | BI47: =Weighted!E390 -> 0 | BJ47: =Weighted!E408 -> 0 | BK47: =Weighted!E426 -> 0 | BL47: =Weighted!E444 -> 0 | BM47: 0
B48: ='I1 General Inputs'!$B$29 -> Option 16 | C48: ='S1'!E192 -> 0 | D48: =SUM('S1'!E210,'S1'!E228,'S1'!E246,'S1'!E264,'S1'!E282) -> 0 | E48: =SUM('S1'!E303,'S1'!E321,'S1'!E339,'S1'!E357,'S1'!E375) -> 0 | F48: ='S1'!E396 -> 0 | G48: ='S1'!E414 -> 0 | H48: ='S1'!E432 -> 0 | I48: ='S1'!E450 -> 0 | J48: ='S1'!E468 -> 0 | K48: ='S1'!E486 -> 0 | L48: ='S1'!E504 -> 0 | M48: 0 | O48: ='I1 General Inputs'!$B$29 -> Option 16 | P48: ='S2'!E192 -> 0 | Q48: =SUM('S2'!E210,'S2'!E228,'S2'!E246,'S2'!E264,'S2'!E282) -> 0 | R48: =SUM('S2'!E303,'S2'!E321,'S2'!E339,'S2'!E357,'S2'!E375) -> 0 | S48: ='S2'!E396 -> 0 | T48: ='S2'!E414 -> 0 | U48: ='S2'!E432 -> 0 | V48: ='S2'!E450 -> 0 | W48: ='S2'!E468 -> 0 | X48: ='S2'!E486 -> 0 | Y48: ='S2'!E504 -> 0 | Z48: 0 | AB48: ='I1 General Inputs'!$B$29 -> Option 16 | AC48: ='S3'!E192 -> 0 | AD48: =SUM('S3'!E210,'S3'!E228,'S3'!E246,'S3'!E264,'S3'!E282) -> 0 | AE48: =SUM('S3'!E303,'S3'!E321,'S3'!E339,'S3'!E357,'S3'!E375) -> 0 | AF48: ='S3'!E396 -> 0 | AG48: ='S3'!E414 -> 0 | AH48: ='S3'!E432 -> 0 | AI48: ='S3'!E450 -> 0 | AJ48: ='S3'!E468 -> 0 | AK48: ='S3'!E486 -> 0 | AL48: ='S3'!E504 -> 0 | AM48: 0 | AO48: ='I1 General Inputs'!$B$29 -> Option 16 | AP48: ='S4'!E192 -> 0 | AQ48: =SUM('S4'!E210,'S4'!E228,'S4'!E246,'S4'!E264,'S4'!E282) -> 0 | AR48: =SUM('S4'!E303,'S4'!E321,'S4'!E339,'S4'!E357,'S4'!E375) -> 0 | AS48: ='S4'!E396 -> 0 | AT48: ='S4'!E414 -> 0 | AU48: ='S4'!E432 -> 0 | AV48: ='S4'!E450 -> 0 | AW48: ='S4'!E468 -> 0 | AX48: ='S4'!E486 -> 0 | AY48: ='S4'!E504 -> 0 | AZ48: 0 | BB48: ='I1 General Inputs'!$B$29 -> Option 16 | BC48: =Weighted!E133 -> 0 | BD48: =SUM(Weighted!E151,Weighted!E169,Weighted!E187,Weighted!E205,Weighted!E223) -> 0 | BE48: =SUM(Weighted!E244,Weighted!E262,Weighted!E280,Weighted!E298,Weighted!E316) -> 0 | BF48: =Weighted!E337 -> 0 | BG48: =Weighted!E355 -> 0 | BH48: =Weighted!E373 -> 0 | BI48: =Weighted!E391 -> 0 | BJ48: =Weighted!E409 -> 0 | BK48: =Weighted!E427 -> 0 | BL48: =Weighted!E445 -> 0 | BM48: 0

Sheet R3 Sensitivities
A1: =MID(CELL("filename",A2),FIND("]",CELL("filename",A2))+1,256) -> R3 Sensitivities
A2: Sensitivity outputs
B4: Weighted sensitivities
B6: Run sensitivities | E6: Note: | F6: The threshold/sensitivity macro takes a few minutes to run.
B8: Discount rate sensitivity | K8: Capital cost sensitivity | T8: VCR sensitivity | AC8: Risk cost sensitivity
B26: Thresholds and tipping points
B28: Rank | C28: Option | D28: Weighted NPV
B29: 1 | C29: =INDEX('R1 Interface and results'!$B$44:$B$58,MATCH('R3 Sensitivities'!$B29,'R1 Interface and results'!$H$44:$H$58,0)) -> Option 3 | D29: =INDEX('R1 Interface and results'!$G$44:$G$58,MATCH('R3 Sensitivities'!$B29,'R1 Interface and results'!$H$44:$H$58,0)) -> 62114424.41
B30: 2 | C30: =INDEX('R1 Interface and results'!$B$44:$B$58,MATCH('R3 Sensitivities'!$B30,'R1 Interface and results'!$H$44:$H$58,0)) -> Option 4 | D30: =INDEX('R1 Interface and results'!$G$44:$G$58,MATCH('R3 Sensitivities'!$B30,'R1 Interface and results'!$H$44:$H$58,0)) -> 43558328.71
B32: Goal seek values
B33: Parameters | C33: Units | D33: Value | E33: Notes
B34: Discount rate | C34: Percent | D34: 0.05275894127 | E34: Users should provide the seed values for goal seek values, which can be the same value from the central scenario. Using extreme seed values may cause issues with the model.
B35: ='I1 General Inputs'!$B$37 -> Capital cost | C35: Factor | D35: 1
B36: VCR | C36: $/MWh | D36: 39440.4168
B37: Risk costs | C37: Factor | D37: 1
B39: Rank 1 | C39: =INDEX('R1 Interface and results'!$B$44:$B$58,MATCH(1,'R1 Interface and results'!$H$44:$H$58,0)) -> Option 3 | D39: for zero NPV
B40: Parameters | C40: Units | D40: Value | E40: Notes
B41: Discount rate | C41: Percent | D41: 0.3034731475 | E41: =IF(OR(DiscountRate_GS1<0,DiscountRate_GS1>100%), "No reasonable discount rate can achieve zero NPV","") -> 
B42: ='I1 General Inputs'!$B$37 -> Capital cost | C42: Factor | D42: 4.866994808 | E42: =IF(OR(CapitalCost_GS1<0,CapitalCost_GS1>100), "No reasonable capital costs can achieve zero NPV","") -> 
B43: VCR | C43: $/MWh | D43: 8103.648835 | E43: =IF(OR(VCR_GS1<0,VCR_GS1>200000), "No reasonable VCR can achieve zero NPV","") -> 
B44: Risk costs | C44: Factor | D44: -335543.32 | E44: =IF(OR(Risk_GS1<0,Risk_GS1>100), "No reasonable risk costs can achieve zero NPV","") -> No reasonable risk costs can achieve zero NPV
B46: Rank 2 | C46: =INDEX('R1 Interface and results'!$B$44:$B$58,MATCH('R3 Sensitivities'!$B30,'R1 Interface and results'!$H$44:$H$58,0)) -> Option 4 | D46: for zero NPV
B47: Parameters | C47: Units | D47: Value | E47: Notes
B48: Discount rate | C48: Percent | D48: 0.3069488374 | E48: =IF(OR(DiscountRate_GS2<0,DiscountRate_GS2>100%), "No reasonable discount rate can achieve zero NPV","") -> 
B49: ='I1 General Inputs'!$B$37 -> Capital cost | C49: Factor | D49: 3.641064439 | E49: =IF(OR(CapitalCost_GS2<0,CapitalCost_GS2>100), "No reasonable capital costs can achieve zero NPV","") -> 
B50: VCR | C50: $/MWh | D50: 10832.11173 | E50: =IF(OR(VCR_GS2<0,VCR_GS2>200000), "No reasonable VCR can achieve zero NPV","") -> 
B51: Risk costs | C51: Factor | D51: 1.125893196e+11 | E51: =IF(OR(Risk_GS2<0,Risk_GS2>100), "No reasonable risk costs can achieve zero NPV","") -> No reasonable risk costs can achieve zero NPV
B53: Tipping points for Rank 1 to Rank 2
B54: Parameters | C54: Units | D54: Value | E54: Notes
B55: Discount rate | C55: Percent | D55: =INDEX(Sensitivities!$B$116:$B$216,MATCH(1,Sensitivities!$F$116:$F$216,0)) ->  | E55: =IF(ISERROR($D55)=TRUE,"No tipping points were identified","") -> No tipping points were identified
B56: Capital cost | C56: Factor | D56: =INDEX(Sensitivities!$S$116:$S$216,MATCH(1,Sensitivities!$W$116:$W$216,0)) ->  | E56: =IF(ISERROR($D56)=TRUE,"No tipping points were identified","") -> No tipping points were identified
B57: VCR | C57: $/MWh | D57: =INDEX(Sensitivities!$AJ$116:$AJ$216,MATCH(1,Sensitivities!$AN$116:$AN$216,0)) ->  | E57: =IF(ISERROR($D57)=TRUE,"No tipping points were identified","") -> No tipping points were identified
B58: Risk costs | C58: Factor | D58: =INDEX(Sensitivities!$BA$116:$BA$216,MATCH(1,Sensitivities!$BE$116:$BE$216,0)) ->  | E58: =IF(ISERROR($D58)=TRUE,"No tipping points were identified","") -> No tipping points were identified

Sheet I1 General Inputs
A1: =MID(CELL("filename",A2),FIND("]",CELL("filename",A2))+1,256) -> I1 General Inputs
A2: Inputs and parameters for business case
B4: General parameter and option inputs
B6: General parameters
B7: Parameter | D7: Unit | E7: Value | F7: Note
B8: First year of analysis | D8: Year | E8: 2025 | F8: Earliest initiation of project options
B9: Base year for dollar inputs | D9: Year | E9: 2024
B10: Analysis period | D10: Years | E10: 20 | F10: =IF(AnalysisPeriod>30,"Analysis period exceeds model capabilities","") -> 
B12: Option descriptions
B13: Option name | D13: Option applicable 1/0 | E13: Short description
B14: Base case | D14: 1 | E14: Do nothing
B15: Option 2 | D15: 1 | E15: Increased maintenance and monitoring
B16: Option 3 | D16: 1 | E16: Redevelop the zone substation
B17: Option 4 | D17: 1 | E17: Staged replacement of assets
B18: Option 5 | D18: 0
B19: Option 6 | D19: 0
B20: Option 7 | D20: 0
B21: Option 8 | D21: 0
B22: Option 9 | D22: 0
B23: Option 10 | D23: 0
B24: Option 11 | D24: 0
B25: Option 12 | D25: 0
B26: Option 13 | D26: 0
B27: Option 14 | D27: 0
B28: Option 15 | D28: 0
B29: Option 16 | D29: 0
B31: Sensitivity inputs
B34: Cost and benefit categories | I34: Scenarios
B36: Cost categories | I36: Scenario | J36: Name
B37: Capital cost | I37: S1 | J37: Business case
B38: Planned routine maintenance and refurbishment | I38: S2 | J38: [Extra]
B39: Unplanned corrective maintenance | I39: S3 | J39: [Extra]
B40: Decommissioning costs | I40: S4 | J40: [Extra]
B41: NNO proponent charges
B42: Cost X
B44: Risk cost categories
B45: Reliability and security risk costs
B46: Safety and health risk costs
B47: Environmental risk costs
B48: Legal/regulatory compliance risk costs
B49: Financial risk costs
B51: Benefit categories | E51: Benefit input category
B52: Avoided involuntary load shedding | E52: Involuntary load shedding
B53: Avoided voluntary load curtailment | E53: Voluntary load curtailment
B54: Avoided costs for non-RIT-D proponent parties | E54: Cost for non-RIT-D proponent parties
B55: Differences in the timing of unrelated network expenditure | E55: Timing of unrelated network expenditure
B56: Changes in load transfer capacity | E56: Changes in load transfer capacity
B57: Additional option value | E57: Option value
B58: Changes in electrical energy losses | E58: Electrical energy losses
B61: RIT market benefits
B63: NER | C63: RIT-D market benefits
B64: 5.17.1(c)(4)(i) | C64: changes in voluntary load curtailment
B65: 5.17.1(c)(4)(ii) | C65: changes in involuntary load shedding
B66: 5.17.1(c)(4)(iii) | C66: changes in costs for parties, other than the RIT-D proponent
B67: 5.17.1(c)(4)(iv) | C67: differences in the timing of expenditure
B68: 5.17.1(c)(4)(v) | C68: changes in load transfer capacity and the capacity of Embedded Generators to take up load
B69: 5.17.1(c)(4)(vi) | C69: any additional option value
B70: 5.17.1(c)(4)(vii) | C70: changes in electrical energy losses
B71: 5.17.1(c)(4)(viii) | C71: any other class of market benefit
B74: Colour scheme
B76: Colour | C76: R | D76: B | E76: G
B77: Green | C77: 0 | D77: 134 | E77: 152
B78: Dark grey | C78: 105 | D78: 106 | E78: 109
B79: Tan | C79: 181 | D79: 169 | E79: 145
B80: Red | C80: 201 | D80: 75 | E80: 32
B81: Brown | C81: 167 | D81: 147 | E81: 68
B82: Navy | C82: 36 | D82: 44 | E82: 49

Sheet I2 CBA Inputs
A1: =MID(CELL("filename",A2),FIND("]",CELL("filename",A2))+1,256) -> I2 CBA Inputs
A2: Inputs and parameters for business case
B5: Cost inputs
B7: ='I1 General Inputs'!B37 -> Capital cost | F7: [DON’T INSERT AND DELETE ROWS] | H7: Build period
B8: Option | C8: Component | D8: Total amount | E8: Commissioning | F8: Asset life | H8: =FirstYear -> 2025 | I8: =H8+1 -> 2026 | J8: =I8+1 -> 2027 | K8: 2028 | L8: 2029 | M8: 2030 | N8: 2031 | O8: 2032 | P8: 2033 | Q8: 2034 | R8: 2035 | S8: 2036 | T8: 2037 | U8: 2038 | V8: 2039 | W8: 2040 | X8: 2041 | Y8: 2042 | Z8: 2043 | AA8: 2044 | AB8: 2045 | AC8: 2046 | AD8: 2047 | AE8: 2048 | AF8: 2049 | AG8: 2050 | AH8: 2051 | AI8: 2052 | AJ8: 2053 | AK8: 2054
B9: Option 3 | C9: Transformers | D9: =SUM(H9:AK9) -> 2423866.086 | E9: 2033 | F9: 50 | M9: ='Cost breakdowns'!F8 -> 301979.3889 | N9: ='Cost breakdowns'!G8 -> 767628.0381 | O9: ='Cost breakdowns'!H8 -> 1354258.659
B10: Option 3 | C10: Switchgear | D10: 22730568.67 | E10: 2033 | F10: 50 | M10: ='Cost breakdowns'!F9 -> 2831906.959 | N10: ='Cost breakdowns'!G9 -> 7198674.025 | O10: ='Cost breakdowns'!H9 -> 12699987.69
B11: Option 3 | C11: Protection systems | D11: 10605186.28 | E11: 2033 | F11: 20 | M11: ='Cost breakdowns'!F10 -> 1321256.026 | N11: ='Cost breakdowns'!G10 -> 3358617.205 | O11: ='Cost breakdowns'!H10 -> 5925313.051
B12: Option 4 | C12: Switchgear | D12: =SUM(H12:AK12) -> 17164618.1 | E12: 2031 | F12: 50 | M12: ='Cost breakdowns'!D11 -> 17164618.1
B13: Option 4 | C13: Transformers | D13: =SUM(H13:AK13) -> 2908639.303 | E13: 2036 | F13: 50 | R13: ='Cost breakdowns'!D12 -> 2908639.303
B14: Option 4 | C14: Switchgear | D14: 10112064.31 | E14: 2036 | F14: 50 | R14: ='Cost breakdowns'!D13 -> 10112064.31
B15: Option 4 | C15: Protection systems | D15: 12726223.54 | E15: 2036 | F15: 20 | R15: ='Cost breakdowns'!D14 -> 12726223.54
D16: 0
D17: 0
D18: 0
D19: 0
D20: 0
D21: 0
D22: 0
D23: 0
D24: 0
D25: 0
D26: 0
D27: 0
D28: 0
D29: 0
D30: 0
D31: 0
D32: 0
D33: 0
D34: 0
D35: 0
D36: 0
D37: 0
D38: 0
B40: ='I1 General Inputs'!B38 -> Planned routine maintenance and refurbishment
B41: Option name | D41: Unit | E41: =FirstYear -> 2025 | F41: =+E41+1 -> 2026 | G41: =+F41+1 -> 2027 | H41: 2028 | I41: 2029 | J41: 2030 | K41: 2031 | L41: 2032 | M41: 2033 | N41: 2034 | O41: 2035 | P41: 2036 | Q41: 2037 | R41: 2038 | S41: 2039 | T41: 2040 | U41: 2041 | V41: 2042 | W41: 2043 | X41: 2044 | Y41: 2045 | Z41: 2046 | AA41: 2047 | AB41: 2048 | AC41: 2049 | AD41: 2050 | AE41: 2051 | AF41: 2052 | AG41: 2053 | AH41: 2054
B42: ='I1 General Inputs'!B14 -> Base case | D42: $, real | E42: 75000 | F42: 75000 | G42: 75000 | H42: 75000 | I42: 75000 | J42: 75000 | K42: 75000 | L42: 75000 | M42: 75000 | N42: 75000 | O42: 75000 | P42: 75000 | Q42: 75000 | R42: 75000 | S42: 75000 | T42: 75000 | U42: 75000 | V42: 75000 | W42: 75000 | X42: 75000 | AJ42: =E42/$G$2 ->  | AK42: =F42/$G$2 -> 
B43: ='I1 General Inputs'!B15 -> Option 2 | D43: $, real | E43: 75000 | F43: 75000 | G43: 75000 | H43: 75000 | I43: 75000 | J43: 150000 | K43: 150000 | L43: 150000 | M43: 150000 | N43: 150000 | O43: 150000 | P43: 150000 | Q43: 150000 | R43: 150000 | S43: 150000 | T43: 150000 | U43: 150000 | V43: 150000 | W43: 150000 | X43: 150000 | AJ43: =E43/$G$2 -> 
B44: ='I1 General Inputs'!B16 -> Option 3 | D44: $, real | E44: 75000 | F44: 75000 | G44: 75000 | H44: 75000 | I44: 75000 | J44: 75000 | K44: 75000 | L44: 75000 | M44: 75000 | N44: 75000 | O44: 75000 | P44: 75000 | Q44: 75000 | R44: 75000 | S44: 75000 | T44: 75000 | U44: 75000 | V44: 75000 | W44: 75000 | X44: 75000 | AJ44: =E44/$G$2 -> 
B45: ='I1 General Inputs'!B17 -> Option 4 | D45: $, real | E45: 75000 | F45: 75000 | G45: 75000 | H45: 75000 | I45: 75000 | J45: 75000 | K45: 75000 | L45: 75000 | M45: 75000 | N45: 75000 | O45: 75000 | P45: 75000 | Q45: 75000 | R45: 75000 | S45: 75000 | T45: 75000 | U45: 75000 | V45: 75000 | W45: 75000 | X45: 75000 | AJ45: =E45/$G$2 -> 
B46: ='I1 General Inputs'!B18 -> Option 5 | D46: $, real
B47: ='I1 General Inputs'!B19 -> Option 6 | D47: $, real
B48: ='I1 General Inputs'!B20 -> Option 7 | D48: $, real
B49: ='I1 General Inputs'!B21 -> Option 8 | D49: $, real
B50: ='I1 General Inputs'!B22 -> Option 9 | D50: $, real
B51: ='I1 General Inputs'!B23 -> Option 10 | D51: $, real
B52: ='I1 General Inputs'!B24 -> Option 11 | D52: $, real
B53: ='I1 General Inputs'!B25 -> Option 12 | D53: $, real
B54: ='I1 General Inputs'!B26 -> Option 13 | D54: $, real
B55: ='I1 General Inputs'!B27 -> Option 14 | D55: $, real
B56: ='I1 General Inputs'!B28 -> Option 15 | D56: $, real
B57: ='I1 General Inputs'!B29 -> Option 16 | D57: $, real
B59: ='I1 General Inputs'!B39 -> Unplanned corrective maintenance
B60: Option name | D60: Unit | E60: =FirstYear -> 2025 | F60: =+E60+1 -> 2026 | G60: 2027 | H60: 2028 | I60: 2029 | J60: 2030 | K60: 2031 | L60: 2032 | M60: 2033 | N60: 2034 | O60: 2035 | P60: 2036 | Q60: 2037 | R60: 2038 | S60: 2039 | T60: 2040 | U60: 2041 | V60: 2042 | W60: 2043 | X60: 2044 | Y60: 2045 | Z60: 2046 | AA60: 2047 | AB60: 2048 | AC60: 2049 | AD60: 2050 | AE60: 2051 | AF60: 2052 | AG60: 2053 | AH60: 2054
B61: =+'I1 General Inputs'!$B$14 -> Base case | D61: $, real
B62: =+'I1 General Inputs'!$B$15 -> Option 2 | D62: $, real
B63: =+'I1 General Inputs'!$B$16 -> Option 3 | D63: $, real
B64: =+'I1 General Inputs'!$B$17 -> Option 4 | D64: $, real
B65: =+'I1 General Inputs'!$B$18 -> Option 5 | D65: $, real
B66: =+'I1 General Inputs'!$B$19 -> Option 6 | D66: $, real
B67: =+'I1 General Inputs'!$B$20 -> Option 7 | D67: $, real
B68: =+'I1 General Inputs'!$B$21 -> Option 8 | D68: $, real
B69: =+'I1 General Inputs'!$B$22 -> Option 9 | D69: $, real
B70: =+'I1 General Inputs'!$B$23 -> Option 10 | D70: $, real
B71: =+'I1 General Inputs'!$B$24 -> Option 11 | D71: $, real
B72: =+'I1 General Inputs'!$B$25 -> Option 12 | D72: $, real
B73: =+'I1 General Inputs'!$B$26 -> Option 13 | D73: $, real
B74: =+'I1 General Inputs'!$B$27 -> Option 14 | D74: $, real
B75: =+'I1 General Inputs'!$B$28 -> Option 15 | D75: $, real
B76: =+'I1 General Inputs'!$B$29 -> Option 16 | D76: $, real
B78: ='I1 General Inputs'!B40 -> Decommissioning costs
B79: Option name | D79: Unit | E79: =FirstYear -> 2025 | F79: =+E79+1 -> 2026 | G79: 2027 | H79: 2028 | I79: 2029 | J79: 2030 | K79: 2031 | L79: 2032 | M79: 2033 | N79: 2034 | O79: 2035 | P79: 2036 | Q79: 2037 | R79: 2038 | S79: 2039 | T79: 2040 | U79: 2041 | V79: 2042 | W79: 2043 | X79: 2044 | Y79: 2045 | Z79: 2046 | AA79: 2047 | AB79: 2048 | AC79: 2049 | AD79: 2050 | AE79: 2051 | AF79: 2052 | AG79: 2053 | AH79: 2054
B80: =+'I1 General Inputs'!$B$14 -> Base case | D80: $, real
B81: =+'I1 General Inputs'!$B$15 -> Option 2 | D81: $, real
B82: =+'I1 General Inputs'!$B$16 -> Option 3 | D82: $, real
B83: =+'I1 General Inputs'!$B$17 -> Option 4 | D83: $, real
B84: =+'I1 General Inputs'!$B$18 -> Option 5 | D84: $, real
B85: =+'I1 General Inputs'!$B$19 -> Option 6 | D85: $, real
B86: =+'I1 General Inputs'!$B$20 -> Option 7 | D86: $, real
B87: =+'I1 General Inputs'!$B$21 -> Option 8 | D87: $, real
B88: =+'I1 General Inputs'!$B$22 -> Option 9 | D88: $, real
B89: =+'I1 General Inputs'!$B$23 -> Option 10 | D89: $, real
B90: =+'I1 General Inputs'!$B$24 -> Option 11 | D90: $, real
B91: =+'I1 General Inputs'!$B$25 -> Option 12 | D91: $, real
B92: =+'I1 General Inputs'!$B$26 -> Option 13 | D92: $, real
B93: =+'I1 General Inputs'!$B$27 -> Option 14 | D93: $, real
B94: =+'I1 General Inputs'!$B$28 -> Option 15 | D94: $, real
B95: =+'I1 General Inputs'!$B$29 -> Option 16 | D95: $, real
B97: ='I1 General Inputs'!B41 -> NNO proponent charges
B98: Option name | D98: Unit | E98: =FirstYear -> 2025 | F98: =+E98+1 -> 2026 | G98: 2027 | H98: 2028 | I98: 2029 | J98: 2030 | K98: 2031 | L98: 2032 | M98: 2033 | N98: 2034 | O98: 2035 | P98: 2036 | Q98: 2037 | R98: 2038 | S98: 2039 | T98: 2040 | U98: 2041 | V98: 2042 | W98: 2043 | X98: 2044 | Y98: 2045 | Z98: 2046 | AA98: 2047 | AB98: 2048 | AC98: 2049 | AD98: 2050 | AE98: 2051 | AF98: 2052 | AG98: 2053 | AH98: 2054
B99: =+'I1 General Inputs'!$B$14 -> Base case | D99: $, real
B100: =+'I1 General Inputs'!$B$15 -> Option 2 | D100: $, real
B101: =+'I1 General Inputs'!$B$16 -> Option 3 | D101: $, real
B102: =+'I1 General Inputs'!$B$17 -> Option 4 | D102: $, real
B103: =+'I1 General Inputs'!$B$18 -> Option 5 | D103: $, real
B104: =+'I1 General Inputs'!$B$19 -> Option 6 | D104: $, real
B105: =+'I1 General Inputs'!$B$20 -> Option 7 | D105: $, real
B106: =+'I1 General Inputs'!$B$21 -> Option 8 | D106: $, real
B107: =+'I1 General Inputs'!$B$22 -> Option 9 | D107: $, real
B108: =+'I1 General Inputs'!$B$23 -> Option 10 | D108: $, real
B109: =+'I1 General Inputs'!$B$24 -> Option 11 | D109: $, real
B110: =+'I1 General Inputs'!$B$25 -> Option 12 | D110: $, real
B111: =+'I1 General Inputs'!$B$26 -> Option 13 | D111: $, real
B112: =+'I1 General Inputs'!$B$27 -> Option 14 | D112: $, real
B113: =+'I1 General Inputs'!$B$28 -> Option 15 | D113: $, real
B114: =+'I1 General Inputs'!$B$29 -> Option 16 | D114: $, real
B116: ='I1 General Inputs'!B42 -> Cost X
B117: Option name | D117: Unit | E117: =FirstYear -> 2025 | F117: =+E117+1 -> 2026 | G117: 2027 | H117: 2028 | I117: 2029 | J117: 2030 | K117: 2031 | L117: 2032 | M117: 2033 | N117: 2034 | O117: 2035 | P117: 2036 | Q117: 2037 | R117: 2038 | S117: 2039 | T117: 2040 | U117: 2041 | V117: 2042 | W117: 2043 | X117: 2044 | Y117: 2045 | Z117: 2046 | AA117: 2047 | AB117: 2048 | AC117: 2049 | AD117: 2050 | AE117: 2051 | AF117: 2052 | AG117: 2053 | AH117: 2054
B118: =+'I1 General Inputs'!$B$14 -> Base case | D118: $, real
B119: =+'I1 General Inputs'!$B$15 -> Option 2 | D119: $, real
B120: =+'I1 General Inputs'!$B$16 -> Option 3 | D120: $, real
B121: =+'I1 General Inputs'!$B$17 -> Option 4 | D121: $, real
B122: =+'I1 General Inputs'!$B$18 -> Option 5 | D122: $, real
B123: =+'I1 General Inputs'!$B$19 -> Option 6 | D123: $, real
B124: =+'I1 General Inputs'!$B$20 -> Option 7 | D124: $, real
B125: =+'I1 General Inputs'!$B$21 -> Option 8 | D125: $, real
B126: =+'I1 General Inputs'!$B$22 -> Option 9 | D126: $, real
B127: =+'I1 General Inputs'!$B$23 -> Option 10 | D127: $, real
B128: =+'I1 General Inputs'!$B$24 -> Option 11 | D128: $, real
B129: =+'I1 General Inputs'!$B$25 -> Option 12 | D129: $, real
B130: =+'I1 General Inputs'!$B$26 -> Option 13 | D130: $, real
B131: =+'I1 General Inputs'!$B$27 -> Option 14 | D131: $, real
B132: =+'I1 General Inputs'!$B$28 -> Option 15 | D132: $, real
B133: =+'I1 General Inputs'!$B$29 -> Option 16 | D133: $, real
B135: Avoided 'risk cost' benefit inputs
B137: ='I1 General Inputs'!$B$45 -> Reliability and security risk costs
B138: ='I1 General Inputs'!$J$37 -> Business case | C138: ='I1 General Inputs'!$I$37 -> S1 | D138: Unit | E138: =FirstYear -> 2025 | F138: =+E138+1 -> 2026 | G138: 2027 | H138: 2028 | I138: 2029 | J138: 2030 | K138: 2031 | L138: 2032 | M138: 2033 | N138: 2034 | O138: 2035 | P138: 2036 | Q138: 2037 | R138: 2038 | S138: 2039 | T138: 2040 | U138: 2041 | V138: 2042 | W138: 2043 | X138: 2044 | Y138: 2045 | Z138: 2046 | AA138: 2047 | AB138: 2048 | AC138: 2049 | AD138: 2050 | AE138: 2051 | AF138: 2052 | AG138: 2053 | AH138: 2054
B139: =+'I1 General Inputs'!$B$14 -> Base case | D139: $, real
B140: =+'I1 General Inputs'!$B$15 -> Option 2 | D140: $, real
B141: =+'I1 General Inputs'!$B$16 -> Option 3 | D141: $, real
B142: =+'I1 General Inputs'!$B$17 -> Option 4 | D142: $, real
B143: =+'I1 General Inputs'!$B$18 -> Option 5 | D143: $, real
B144: =+'I1 General Inputs'!$B$19 -> Option 6 | D144: $, real
B145: =+'I1 General Inputs'!$B$20 -> Option 7 | D145: $, real
B146: =+'I1 General Inputs'!$B$21 -> Option 8 | D146: $, real
B147: =+'I1 General Inputs'!$B$22 -> Option 9 | D147: $, real
B148: =+'I1 General Inputs'!$B$23 -> Option 10 | D148: $, real
B149: =+'I1 General Inputs'!$B$24 -> Option 11 | D149: $, real
B150: =+'I1 General Inputs'!$B$25 -> Option 12 | D150: $, real
B151: =+'I1 General Inputs'!$B$26 -> Option 13 | D151: $, real
B152: =+'I1 General Inputs'!$B$27 -> Option 14 | D152: $, real
B153: =+'I1 General Inputs'!$B$28 -> Option 15 | D153: $, real
B154: =+'I1 General Inputs'!$B$29 -> Option 16 | D154: $, real
B156: ='I1 General Inputs'!$J$38 -> [Extra] | C156: ='I1 General Inputs'!$I$38 -> S2 | D156: Unit | E156: =FirstYear -> 2025 | F156: =+E156+1 -> 2026 | G156: 2027 | H156: 2028 | I156: 2029 | J156: 2030 | K156: 2031 | L156: 2032 | M156: 2033 | N156: 2034 | O156: 2035 | P156: 2036 | Q156: 2037 | R156: 2038 | S156: 2039 | T156: 2040 | U156: 2041 | V156: 2042 | W156: 2043 | X156: 2044 | Y156: 2045 | Z156: 2046 | AA156: 2047 | AB156: 2048 | AC156: 2049 | AD156: 2050 | AE156: 2051 | AF156: 2052 | AG156: 2053 | AH156: 2054
B157: =+'I1 General Inputs'!$B$14 -> Base case | D157: $, real
B158: =+'I1 General Inputs'!$B$15 -> Option 2 | D158: $, real
B159: =+'I1 General Inputs'!$B$16 -> Option 3 | D159: $, real
B160: =+'I1 General Inputs'!$B$17 -> Option 4 | D160: $, real
B161: =+'I1 General Inputs'!$B$18 -> Option 5 | D161: $, real
B162: =+'I1 General Inputs'!$B$19 -> Option 6 | D162: $, real
B163: =+'I1 General Inputs'!$B$20 -> Option 7 | D163: $, real
B164: =+'I1 General Inputs'!$B$21 -> Option 8 | D164: $, real
B165: =+'I1 General Inputs'!$B$22 -> Option 9 | D165: $, real
B166: =+'I1 General Inputs'!$B$23 -> Option 10 | D166: $, real
B167: =+'I1 General Inputs'!$B$24 -> Option 11 | D167: $, real
B168: =+'I1 General Inputs'!$B$25 -> Option 12 | D168: $, real
B169: =+'I1 General Inputs'!$B$26 -> Option 13 | D169: $, real
B170: =+'I1 General Inputs'!$B$27 -> Option 14 | D170: $, real
B171: =+'I1 General Inputs'!$B$28 -> Option 15 | D171: $, real
B172: =+'I1 General Inputs'!$B$29 -> Option 16 | D172: $, real
B174: ='I1 General Inputs'!$J$39 -> [Extra] | C174: ='I1 General Inputs'!$I$39 -> S3 | D174: Unit | E174: =FirstYear -> 2025 | F174: =+E174+1 -> 2026 | G174: 2027 | H174: 2028 | I174: 2029 | J174: 2030 | K174: 2031 | L174: 2032 | M174: 2033 | N174: 2034 | O174: 2035 | P174: 2036 | Q174: 2037 | R174: 2038 | S174: 2039 | T174: 2040 | U174: 2041 | V174: 2042 | W174: 2043 | X174: 2044 | Y174: 2045 | Z174: 2046 | AA174: 2047 | AB174: 2048 | AC174: 2049 | AD174: 2050 | AE174: 2051 | AF174: 2052 | AG174: 2053 | AH174: 2054
B175: =+'I1 General Inputs'!$B$14 -> Base case | D175: $, real
B176: =+'I1 General Inputs'!$B$15 -> Option 2 | D176: $, real
B177: =+'I1 General Inputs'!$B$16 -> Option 3 | D177: $, real
B178: =+'I1 General Inputs'!$B$17 -> Option 4 | D178: $, real
B179: =+'I1 General Inputs'!$B$18 -> Option 5 | D179: $, real
B180: =+'I1 General Inputs'!$B$19 -> Option 6 | D180: $, real
B181: =+'I1 General Inputs'!$B$20 -> Option 7 | D181: $, real
B182: =+'I1 General Inputs'!$B$21 -> Option 8 | D182: $, real
B183: =+'I1 General Inputs'!$B$22 -> Option 9 | D183: $, real
B184: =+'I1 General Inputs'!$B$23 -> Option 10 | D184: $, real
B185: =+'I1 General Inputs'!$B$24 -> Option 11 | D185: $, real
B186: =+'I1 General Inputs'!$B$25 -> Option 12 | D186: $, real
B187: =+'I1 General Inputs'!$B$26 -> Option 13 | D187: $, real
B188: =+'I1 General Inputs'!$B$27 -> Option 14 | D188: $, real
B189: =+'I1 General Inputs'!$B$28 -> Option 15 | D189: $, real
B190: =+'I1 General Inputs'!$B$29 -> Option 16 | D190: $, real
B192: ='I1 General Inputs'!$J$40 -> [Extra] | C192: ='I1 General Inputs'!$I$40 -> S4 | D192: Unit | E192: =FirstYear -> 2025 | F192: =+E192+1 -> 2026 | G192: 2027 | H192: 2028 | I192: 2029 | J192: 2030 | K192: 2031 | L192: 2032 | M192: 2033 | N192: 2034 | O192: 2035 | P192: 2036 | Q192: 2037 | R192: 2038 | S192: 2039 | T192: 2040 | U192: 2041 | V192: 2042 | W192: 2043 | X192: 2044 | Y192: 2045 | Z192: 2046 | AA192: 2047 | AB192: 2048 | AC192: 2049 | AD192: 2050 | AE192: 2051 | AF192: 2052 | AG192: 2053 | AH192: 2054
B193: =+'I1 General Inputs'!$B$14 -> Base case | D193: $, real
B194: =+'I1 General Inputs'!$B$15 -> Option 2 | D194: $, real
B195: =+'I1 General Inputs'!$B$16 -> Option 3 | D195: $, real
B196: =+'I1 General Inputs'!$B$17 -> Option 4 | D196: $, real
B197: =+'I1 General Inputs'!$B$18 -> Option 5 | D197: $, real
B198: =+'I1 General Inputs'!$B$19 -> Option 6 | D198: $, real
B199: =+'I1 General Inputs'!$B$20 -> Option 7 | D199: $, real
B200: =+'I1 General Inputs'!$B$21 -> Option 8 | D200: $, real
B201: =+'I1 General Inputs'!$B$22 -> Option 9 | D201: $, real
B202: =+'I1 General Inputs'!$B$23 -> Option 10 | D202: $, real
B203: =+'I1 General Inputs'!$B$24 -> Option 11 | D203: $, real
B204: =+'I1 General Inputs'!$B$25 -> Option 12 | D204: $, real
B205: =+'I1 General Inputs'!$B$26 -> Option 13 | D205: $, real
B206: =+'I1 General Inputs'!$B$27 -> Option 14 | D206: $, real
B207: =+'I1 General Inputs'!$B$28 -> Option 15 | D207: $, real
B208: =+'I1 General Inputs'!$B$29 -> Option 16 | D208: $, real
B210: ='I1 General Inputs'!$B$46 -> Safety and health risk costs
B211: ='I1 General Inputs'!$J$37 -> Business case | C211: ='I1 General Inputs'!$I$37 -> S1 | D211: Unit | E211: =FirstYear -> 2025 | F211: =+E211+1 -> 2026 | G211: 2027 | H211: 2028 | I211: 2029 | J211: 2030 | K211: 2031 | L211: 2032 | M211: 2033 | N211: 2034 | O211: 2035 | P211: 2036 | Q211: 2037 | R211: 2038 | S211: 2039 | T211: 2040 | U211: 2041 | V211: 2042 | W211: 2043 | X211: 2044 | Y211: 2045 | Z211: 2046 | AA211: 2047 | AB211: 2048 | AC211: 2049 | AD211: 2050 | AE211: 2051 | AF211: 2052 | AG211: 2053 | AH211: 2054
B212: =+'I1 General Inputs'!$B$14 -> Base case | D212: $, real
B213: =+'I1 General Inputs'!$B$15 -> Option 2 | D213: $, real
B214: =+'I1 General Inputs'!$B$16 -> Option 3 | D214: $, real
... 602 more rows

Sheet S1
A1: =MID(CELL("filename",A2),FIND("]",CELL("filename",A2))+1,256) -> S1 | B1: =INDEX('I1 General Inputs'!$J$37:$J$40,MATCH($A$1,'I1 General Inputs'!$I$37:$I$40,0)) -> Business case
A2: Calculating costs, benefits and NPV for each option
B4: ="Parameters for "&$A$1 -> Parameters for S1
B6: Parameters
B7: General parameters | E7: Unit | F7: Active | G7: Scenario
B8: Commercial discount rate | E8: Percent | F8: =G8 -> 0.05275894127 | G8: =SUMIF('R1 Interface and results'!$F$6:$I$6,'S1'!$A$1,'R1 Interface and results'!F8:I8) -> 0.05275894127
B9: ='I1 General Inputs'!B52 -> Avoided involuntary load shedding | E9: $/MWh | F9: =G9 -> 39440.4168 | G9: =SUMIF('R1 Interface and results'!$F$6:$I$6,'S1'!$A$1,'R1 Interface and results'!F9:I9) -> 39440.4168
B10: ='I1 General Inputs'!B53 -> Avoided voluntary load curtailment | E10: $/MWh | F10: =G10 -> 39440.4168 | G10: =SUMIF('R1 Interface and results'!$F$6:$I$6,'S1'!$A$1,'R1 Interface and results'!F10:I10) -> 39440.4168
B12: Cost parameters | E12: Unit | F12: Active | G12: Scenario
B13: ='I1 General Inputs'!B37 -> Capital cost | E13: Factor | F13: =G13 -> 1 | G13: =SUMIF('R1 Interface and results'!$F$6:$I$6,'S1'!$A$1,'R1 Interface and results'!F13:I13) -> 1
B14: ='I1 General Inputs'!B38 -> Planned routine maintenance and refurbishment | E14: Factor | F14: 1 | G14: =SUMIF('R1 Interface and results'!$F$6:$I$6,'S1'!$A$1,'R1 Interface and results'!F14:I14) -> 1
B15: ='I1 General Inputs'!B39 -> Unplanned corrective maintenance | E15: Factor | F15: 1 | G15: =SUMIF('R1 Interface and results'!$F$6:$I$6,'S1'!$A$1,'R1 Interface and results'!F15:I15) -> 1
B16: ='I1 General Inputs'!B40 -> Decommissioning costs | E16: Factor | F16: 1 | G16: =SUMIF('R1 Interface and results'!$F$6:$I$6,'S1'!$A$1,'R1 Interface and results'!F16:I16) -> 1
B17: ='I1 General Inputs'!B41 -> NNO proponent charges | E17: Factor | F17: 1 | G17: =SUMIF('R1 Interface and results'!$F$6:$I$6,'S1'!$A$1,'R1 Interface and results'!F17:I17) -> 1
B18: ='I1 General Inputs'!B42 -> Cost X | E18: Factor | F18: 1 | G18: =SUMIF('R1 Interface and results'!$F$6:$I$6,'S1'!$A$1,'R1 Interface and results'!F18:I18) -> 1
B20: Risk cost parameters | E20: Unit | F20: Active | G20: Scenario
B21: ='I1 General Inputs'!B45 -> Reliability and security risk costs | E21: Factor | F21: =G21 -> 1 | G21: =SUMIF('R1 Interface and results'!$F$6:$I$6,'S1'!$A$1,'R1 Interface and results'!F21:I21) -> 1
B22: ='I1 General Inputs'!B46 -> Safety and health risk costs | E22: Factor | F22: =G22 -> 1 | G22: =SUMIF('R1 Interface and results'!$F$6:$I$6,'S1'!$A$1,'R1 Interface and results'!F22:I22) -> 1
B23: ='I1 General Inputs'!B47 -> Environmental risk costs | E23: Factor | F23: =G23 -> 1 | G23: =SUMIF('R1 Interface and results'!$F$6:$I$6,'S1'!$A$1,'R1 Interface and results'!F23:I23) -> 1
B24: ='I1 General Inputs'!B48 -> Legal/regulatory compliance risk costs | E24: Factor | F24: =G24 -> 1 | G24: =SUMIF('R1 Interface and results'!$F$6:$I$6,'S1'!$A$1,'R1 Interface and results'!F24:I24) -> 1
B25: ='I1 General Inputs'!B49 -> Financial risk costs | E25: Factor | F25: =G25 -> 1 | G25: =SUMIF('R1 Interface and results'!$F$6:$I$6,'S1'!$A$1,'R1 Interface and results'!F25:I25) -> 1
B27: Benefit parameters | E27: Unit | F27: Active | G27: Scenario
B28: ='I1 General Inputs'!B52 -> Avoided involuntary load shedding | E28: Factor | F28: =G28 -> 1 | G28: =SUMIF('R1 Interface and results'!$F$6:$I$6,'S1'!$A$1,'R1 Interface and results'!F28:I28) -> 1
B29: ='I1 General Inputs'!B53 -> Avoided voluntary load curtailment | E29: Factor | F29: 1 | G29: =SUMIF('R1 Interface and results'!$F$6:$I$6,'S1'!$A$1,'R1 Interface and results'!F29:I29) -> 1
B30: ='I1 General Inputs'!B54 -> Avoided costs for non-RIT-D proponent parties | E30: Factor | F30: 1 | G30: =SUMIF('R1 Interface and results'!$F$6:$I$6,'S1'!$A$1,'R1 Interface and results'!F30:I30) -> 1
B31: ='I1 General Inputs'!B55 -> Differences in the timing of unrelated network expenditure | E31: Factor | F31: 1 | G31: =SUMIF('R1 Interface and results'!$F$6:$I$6,'S1'!$A$1,'R1 Interface and results'!F31:I31) -> 1
B32: ='I1 General Inputs'!B56 -> Changes in load transfer capacity | E32: Factor | F32: 1 | G32: =SUMIF('R1 Interface and results'!$F$6:$I$6,'S1'!$A$1,'R1 Interface and results'!F32:I32) -> 1
B33: ='I1 General Inputs'!B57 -> Additional option value | E33: Factor | F33: 1 | G33: =SUMIF('R1 Interface and results'!$F$6:$I$6,'S1'!$A$1,'R1 Interface and results'!F33:I33) -> 1
B34: ='I1 General Inputs'!B58 -> Changes in electrical energy losses | E34: Factor | F34: 1 | G34: =SUMIF('R1 Interface and results'!$F$6:$I$6,'S1'!$A$1,'R1 Interface and results'!F34:I34) -> 1
B37: Gross calculations for the base case
B39: Gross costs for the base case
B40: Category | D40: =+D$69 -> Units | E40: PV | F40: =F$69 -> 2025 | G40: =G$69 -> 2026 | H40: 2027 | I40: 2028 | J40: 2029 | K40: 2030 | L40: 2031 | M40: 2032 | N40: 2033 | O40: 2034 | P40: 2035 | Q40: 2036 | R40: 2037 | S40: 2038 | T40: 2039 | U40: 2040 | V40: 2041 | W40: 2042 | X40: 2043 | Y40: 2044 | Z40: 0 | AA40: 0 | AB40: 0 | AC40: 0 | AD40: 0 | AE40: 0 | AF40: 0 | AG40: 0 | AH40: 0 | AI40: 0
B41: ='I1 General Inputs'!B37 -> Capital cost | D41: $ | E41: =NPV($F$8,$F41:$AI41)/(1+$F$8)^(FirstYear-BaseYear-1) -> 0 | F41: =SUMIF($B$145:$B$174,'I1 General Inputs'!$B$14,F145:F174) -> 0 | G41: =SUMIF($B$145:$B$174,'I1 General Inputs'!$B$14,G145:G174) -> 0 | H41: =SUMIF($B$145:$B$174,'I1 General Inputs'!$B$14,H145:H174) -> 0 | I41: =SUMIF($B$145:$B$174,'I1 General Inputs'!$B$14,I145:I174) -> 0 | J41: =SUMIF($B$145:$B$174,'I1 General Inputs'!$B$14,J145:J174) -> 0 | K41: =SUMIF($B$145:$B$174,'I1 General Inputs'!$B$14,K145:K174) -> 0 | L41: =SUMIF($B$145:$B$174,'I1 General Inputs'!$B$14,L145:L174) -> 0 | M41: =SUMIF($B$145:$B$174,'I1 General Inputs'!$B$14,M145:M174) -> 0 | N41: =SUMIF($B$145:$B$174,'I1 General Inputs'!$B$14,N145:N174) -> 0 | O41: =SUMIF($B$145:$B$174,'I1 General Inputs'!$B$14,O145:O174) -> 0 | P41: =SUMIF($B$145:$B$174,'I1 General Inputs'!$B$14,P145:P174) -> 0 | Q41: =SUMIF($B$145:$B$174,'I1 General Inputs'!$B$14,Q145:Q174) -> 0 | R41: =SUMIF($B$145:$B$174,'I1 General Inputs'!$B$14,R145:R174) -> 0 | S41: =SUMIF($B$145:$B$174,'I1 General Inputs'!$B$14,S145:S174) -> 0 | T41: =SUMIF($B$145:$B$174,'I1 General Inputs'!$B$14,T145:T174) -> 0 | U41: =SUMIF($B$145:$B$174,'I1 General Inputs'!$B$14,U145:U174) -> 0 | V41: =SUMIF($B$145:$B$174,'I1 General Inputs'!$B$14,V145:V174) -> 0 | W41: =SUMIF($B$145:$B$174,'I1 General Inputs'!$B$14,W145:W174) -> 0 | X41: =SUMIF($B$145:$B$174,'I1 General Inputs'!$B$14,X145:X174) -> 0 | Y41: =SUMIF($B$145:$B$174,'I1 General Inputs'!$B$14,Y145:Y174) -> 0 | Z41: =SUMIF($B$145:$B$174,'I1 General Inputs'!$B$14,Z145:Z174) -> 0 | AA41: =SUMIF($B$145:$B$174,'I1 General Inputs'!$B$14,AA145:AA174) -> 0 | AB41: =SUMIF($B$145:$B$174,'I1 General Inputs'!$B$14,AB145:AB174) -> 0 | AC41: =SUMIF($B$145:$B$174,'I1 General Inputs'!$B$14,AC145:AC174) -> 0 | AD41: =SUMIF($B$145:$B$174,'I1 General Inputs'!$B$14,AD145:AD174) -> 0 | AE41: =SUMIF($B$145:$B$174,'I1 General Inputs'!$B$14,AE145:AE174) -> 0 | AF41: =SUMIF($B$145:$B$174,'I1 General Inputs'!$B$14,AF145:AF174) -> 0 | AG41: =SUMIF($B$145:$B$174,'I1 General Inputs'!$B$14,AG145:AG174) -> 0 | AH41: =SUMIF($B$145:$B$174,'I1 General Inputs'!$B$14,AH145:AH174) -> 0 | AI41: =SUMIF($B$145:$B$174,'I1 General Inputs'!$B$14,AI145:AI174) -> 0
B42: ='I1 General Inputs'!B38 -> Planned routine maintenance and refurbishment | D42: $ | E42: -913182.3754 | F42: =-'I2 CBA Inputs'!E42*$F$14*F$141 -> -75000 | G42: =-'I2 CBA Inputs'!F42*$F$14*G$141 -> -75000 | H42: =-'I2 CBA Inputs'!G42*$F$14*H$141 -> -75000 | I42: =-'I2 CBA Inputs'!H42*$F$14*I$141 -> -75000 | J42: =-'I2 CBA Inputs'!I42*$F$14*J$141 -> -75000 | K42: =-'I2 CBA Inputs'!J42*$F$14*K$141 -> -75000 | L42: =-'I2 CBA Inputs'!K42*$F$14*L$141 -> -75000 | M42: =-'I2 CBA Inputs'!L42*$F$14*M$141 -> -75000 | N42: =-'I2 CBA Inputs'!M42*$F$14*N$141 -> -75000 | O42: =-'I2 CBA Inputs'!N42*$F$14*O$141 -> -75000 | P42: =-'I2 CBA Inputs'!O42*$F$14*P$141 -> -75000 | Q42: =-'I2 CBA Inputs'!P42*$F$14*Q$141 -> -75000 | R42: =-'I2 CBA Inputs'!Q42*$F$14*R$141 -> -75000 | S42: =-'I2 CBA Inputs'!R42*$F$14*S$141 -> -75000 | T42: =-'I2 CBA Inputs'!S42*$F$14*T$141 -> -75000 | U42: =-'I2 CBA Inputs'!T42*$F$14*U$141 -> -75000 | V42: =-'I2 CBA Inputs'!U42*$F$14*V$141 -> -75000 | W42: =-'I2 CBA Inputs'!V42*$F$14*W$141 -> -75000 | X42: =-'I2 CBA Inputs'!W42*$F$14*X$141 -> -75000 | Y42: =-'I2 CBA Inputs'!X42*$F$14*Y$141 -> -75000 | Z42: =-'I2 CBA Inputs'!Y42*$F$14*Z$141 -> 0 | AA42: =-'I2 CBA Inputs'!Z42*$F$14*AA$141 -> 0 | AB42: =-'I2 CBA Inputs'!AA42*$F$14*AB$141 -> 0 | AC42: =-'I2 CBA Inputs'!AB42*$F$14*AC$141 -> 0 | AD42: =-'I2 CBA Inputs'!AC42*$F$14*AD$141 -> 0 | AE42: =-'I2 CBA Inputs'!AD42*$F$14*AE$141 -> 0 | AF42: =-'I2 CBA Inputs'!AE42*$F$14*AF$141 -> 0 | AG42: =-'I2 CBA Inputs'!AF42*$F$14*AG$141 -> 0 | AH42: =-'I2 CBA Inputs'!AG42*$F$14*AH$141 -> 0 | AI42: =-'I2 CBA Inputs'!AH42*$F$14*AI$141 -> 0
B43: ='I1 General Inputs'!B39 -> Unplanned corrective maintenance | D43: $ | E43: 0 | F43: =-'I2 CBA Inputs'!E61*$F$15*F$141 -> 0 | G43: =-'I2 CBA Inputs'!F61*$F$15*G$141 -> 0 | H43: =-'I2 CBA Inputs'!G61*$F$15*H$141 -> 0 | I43: =-'I2 CBA Inputs'!H61*$F$15*I$141 -> 0 | J43: =-'I2 CBA Inputs'!I61*$F$15*J$141 -> 0 | K43: =-'I2 CBA Inputs'!J61*$F$15*K$141 -> 0 | L43: =-'I2 CBA Inputs'!K61*$F$15*L$141 -> 0 | M43: =-'I2 CBA Inputs'!L61*$F$15*M$141 -> 0 | N43: =-'I2 CBA Inputs'!M61*$F$15*N$141 -> 0 | O43: =-'I2 CBA Inputs'!N61*$F$15*O$141 -> 0 | P43: =-'I2 CBA Inputs'!O61*$F$15*P$141 -> 0 | Q43: =-'I2 CBA Inputs'!P61*$F$15*Q$141 -> 0 | R43: =-'I2 CBA Inputs'!Q61*$F$15*R$141 -> 0 | S43: =-'I2 CBA Inputs'!R61*$F$15*S$141 -> 0 | T43: =-'I2 CBA Inputs'!S61*$F$15*T$141 -> 0 | U43: =-'I2 CBA Inputs'!T61*$F$15*U$141 -> 0 | V43: =-'I2 CBA Inputs'!U61*$F$15*V$141 -> 0 | W43: =-'I2 CBA Inputs'!V61*$F$15*W$141 -> 0 | X43: =-'I2 CBA Inputs'!W61*$F$15*X$141 -> 0 | Y43: =-'I2 CBA Inputs'!X61*$F$15*Y$141 -> 0 | Z43: =-'I2 CBA Inputs'!Y61*$F$15*Z$141 -> 0 | AA43: =-'I2 CBA Inputs'!Z61*$F$15*AA$141 -> 0 | AB43: =-'I2 CBA Inputs'!AA61*$F$15*AB$141 -> 0 | AC43: =-'I2 CBA Inputs'!AB61*$F$15*AC$141 -> 0 | AD43: =-'I2 CBA Inputs'!AC61*$F$15*AD$141 -> 0 | AE43: =-'I2 CBA Inputs'!AD61*$F$15*AE$141 -> 0 | AF43: =-'I2 CBA Inputs'!AE61*$F$15*AF$141 -> 0 | AG43: =-'I2 CBA Inputs'!AF61*$F$15*AG$141 -> 0 | AH43: =-'I2 CBA Inputs'!AG61*$F$15*AH$141 -> 0 | AI43: =-'I2 CBA Inputs'!AH61*$F$15*AI$141 -> 0
B44: ='I1 General Inputs'!B40 -> Decommissioning costs | D44: $ | E44: 0 | F44: =-'I2 CBA Inputs'!E80*$F$16*F$141 -> 0 | G44: =-'I2 CBA Inputs'!F80*$F$16*G$141 -> 0 | H44: =-'I2 CBA Inputs'!G80*$F$16*H$141 -> 0 | I44: =-'I2 CBA Inputs'!H80*$F$16*I$141 -> 0 | J44: =-'I2 CBA Inputs'!I80*$F$16*J$141 -> 0 | K44: =-'I2 CBA Inputs'!J80*$F$16*K$141 -> 0 | L44: =-'I2 CBA Inputs'!K80*$F$16*L$141 -> 0 | M44: =-'I2 CBA Inputs'!L80*$F$16*M$141 -> 0 | N44: =-'I2 CBA Inputs'!M80*$F$16*N$141 -> 0 | O44: =-'I2 CBA Inputs'!N80*$F$16*O$141 -> 0 | P44: =-'I2 CBA Inputs'!O80*$F$16*P$141 -> 0 | Q44: =-'I2 CBA Inputs'!P80*$F$16*Q$141 -> 0 | R44: =-'I2 CBA Inputs'!Q80*$F$16*R$141 -> 0 | S44: =-'I2 CBA Inputs'!R80*$F$16*S$141 -> 0 | T44: =-'I2 CBA Inputs'!S80*$F$16*T$141 -> 0 | U44: =-'I2 CBA Inputs'!T80*$F$16*U$141 -> 0 | V44: =-'I2 CBA Inputs'!U80*$F$16*V$141 -> 0 | W44: =-'I2 CBA Inputs'!V80*$F$16*W$141 -> 0 | X44: =-'I2 CBA Inputs'!W80*$F$16*X$141 -> 0 | Y44: =-'I2 CBA Inputs'!X80*$F$16*Y$141 -> 0 | Z44: =-'I2 CBA Inputs'!Y80*$F$16*Z$141 -> 0 | AA44: =-'I2 CBA Inputs'!Z80*$F$16*AA$141 -> 0 | AB44: =-'I2 CBA Inputs'!AA80*$F$16*AB$141 -> 0 | AC44: =-'I2 CBA Inputs'!AB80*$F$16*AC$141 -> 0 | AD44: =-'I2 CBA Inputs'!AC80*$F$16*AD$141 -> 0 | AE44: =-'I2 CBA Inputs'!AD80*$F$16*AE$141 -> 0 | AF44: =-'I2 CBA Inputs'!AE80*$F$16*AF$141 -> 0 | AG44: =-'I2 CBA Inputs'!AF80*$F$16*AG$141 -> 0 | AH44: =-'I2 CBA Inputs'!AG80*$F$16*AH$141 -> 0 | AI44: =-'I2 CBA Inputs'!AH80*$F$16*AI$141 -> 0
B45: ='I1 General Inputs'!B41 -> NNO proponent charges | D45: $ | E45: 0 | F45: =-'I2 CBA Inputs'!E99*$F$17*F$141 -> 0 | G45: =-'I2 CBA Inputs'!F99*$F$17*G$141 -> 0 | H45: =-'I2 CBA Inputs'!G99*$F$17*H$141 -> 0 | I45: =-'I2 CBA Inputs'!H99*$F$17*I$141 -> 0 | J45: =-'I2 CBA Inputs'!I99*$F$17*J$141 -> 0 | K45: =-'I2 CBA Inputs'!J99*$F$17*K$141 -> 0 | L45: =-'I2 CBA Inputs'!K99*$F$17*L$141 -> 0 | M45: =-'I2 CBA Inputs'!L99*$F$17*M$141 -> 0 | N45: =-'I2 CBA Inputs'!M99*$F$17*N$141 -> 0 | O45: =-'I2 CBA Inputs'!N99*$F$17*O$141 -> 0 | P45: =-'I2 CBA Inputs'!O99*$F$17*P$141 -> 0 | Q45: =-'I2 CBA Inputs'!P99*$F$17*Q$141 -> 0 | R45: =-'I2 CBA Inputs'!Q99*$F$17*R$141 -> 0 | S45: =-'I2 CBA Inputs'!R99*$F$17*S$141 -> 0 | T45: =-'I2 CBA Inputs'!S99*$F$17*T$141 -> 0 | U45: =-'I2 CBA Inputs'!T99*$F$17*U$141 -> 0 | V45: =-'I2 CBA Inputs'!U99*$F$17*V$141 -> 0 | W45: =-'I2 CBA Inputs'!V99*$F$17*W$141 -> 0 | X45: =-'I2 CBA Inputs'!W99*$F$17*X$141 -> 0 | Y45: =-'I2 CBA Inputs'!X99*$F$17*Y$141 -> 0 | Z45: =-'I2 CBA Inputs'!Y99*$F$17*Z$141 -> 0 | AA45: =-'I2 CBA Inputs'!Z99*$F$17*AA$141 -> 0 | AB45: =-'I2 CBA Inputs'!AA99*$F$17*AB$141 -> 0 | AC45: =-'I2 CBA Inputs'!AB99*$F$17*AC$141 -> 0 | AD45: =-'I2 CBA Inputs'!AC99*$F$17*AD$141 -> 0 | AE45: =-'I2 CBA Inputs'!AD99*$F$17*AE$141 -> 0 | AF45: =-'I2 CBA Inputs'!AE99*$F$17*AF$141 -> 0 | AG45: =-'I2 CBA Inputs'!AF99*$F$17*AG$141 -> 0 | AH45: =-'I2 CBA Inputs'!AG99*$F$17*AH$141 -> 0 | AI45: =-'I2 CBA Inputs'!AH99*$F$17*AI$141 -> 0
B46: ='I1 General Inputs'!B42 -> Cost X | D46: $ | E46: 0 | F46: =-'I2 CBA Inputs'!E118*$F$18*F$141 -> 0 | G46: =-'I2 CBA Inputs'!F118*$F$18*G$141 -> 0 | H46: =-'I2 CBA Inputs'!G118*$F$18*H$141 -> 0 | I46: =-'I2 CBA Inputs'!H118*$F$18*I$141 -> 0 | J46: =-'I2 CBA Inputs'!I118*$F$18*J$141 -> 0 | K46: =-'I2 CBA Inputs'!J118*$F$18*K$141 -> 0 | L46: =-'I2 CBA Inputs'!K118*$F$18*L$141 -> 0 | M46: =-'I2 CBA Inputs'!L118*$F$18*M$141 -> 0 | N46: =-'I2 CBA Inputs'!M118*$F$18*N$141 -> 0 | O46: =-'I2 CBA Inputs'!N118*$F$18*O$141 -> 0 | P46: =-'I2 CBA Inputs'!O118*$F$18*P$141 -> 0 | Q46: =-'I2 CBA Inputs'!P118*$F$18*Q$141 -> 0 | R46: =-'I2 CBA Inputs'!Q118*$F$18*R$141 -> 0 | S46: =-'I2 CBA Inputs'!R118*$F$18*S$141 -> 0 | T46: =-'I2 CBA Inputs'!S118*$F$18*T$141 -> 0 | U46: =-'I2 CBA Inputs'!T118*$F$18*U$141 -> 0 | V46: =-'I2 CBA Inputs'!U118*$F$18*V$141 -> 0 | W46: =-'I2 CBA Inputs'!V118*$F$18*W$141 -> 0 | X46: =-'I2 CBA Inputs'!W118*$F$18*X$141 -> 0 | Y46: =-'I2 CBA Inputs'!X118*$F$18*Y$141 -> 0 | Z46: =-'I2 CBA Inputs'!Y118*$F$18*Z$141 -> 0 | AA46: =-'I2 CBA Inputs'!Z118*$F$18*AA$141 -> 0 | AB46: =-'I2 CBA Inputs'!AA118*$F$18*AB$141 -> 0 | AC46: =-'I2 CBA Inputs'!AB118*$F$18*AC$141 -> 0 | AD46: =-'I2 CBA Inputs'!AC118*$F$18*AD$141 -> 0 | AE46: =-'I2 CBA Inputs'!AD118*$F$18*AE$141 -> 0 | AF46: =-'I2 CBA Inputs'!AE118*$F$18*AF$141 -> 0 | AG46: =-'I2 CBA Inputs'!AF118*$F$18*AG$141 -> 0 | AH46: =-'I2 CBA Inputs'!AG118*$F$18*AH$141 -> 0 | AI46: =-'I2 CBA Inputs'!AH118*$F$18*AI$141 -> 0
B48: Gross risk costs for the base case
B49: Category | D49: =+D$69 -> Units | E49: PV | F49: =F$69 -> 2025 | G49: =G$69 -> 2026 | H49: 2027 | I49: 2028 | J49: 2029 | K49: 2030 | L49: 2031 | M49: 2032 | N49: 2033 | O49: 2034 | P49: 2035 | Q49: 2036 | R49: 2037 | S49: 2038 | T49: 2039 | U49: 2040 | V49: 2041 | W49: 2042 | X49: 2043 | Y49: 2044 | Z49: 0 | AA49: 0 | AB49: 0 | AC49: 0 | AD49: 0 | AE49: 0 | AF49: 0 | AG49: 0 | AH49: 0 | AI49: 0
B50: =B287 -> Reliability and security risk costs | D50: $ | E50: =NPV($F$8,$F50:$AI50)/(1+$F$8)^(FirstYear-BaseYear-1) -> 0 | F50: =-(IF('I2 CBA Inputs'!$C$138=$A$1,'I2 CBA Inputs'!E$139)+IF('I2 CBA Inputs'!$C$156=$A$1,'I2 CBA Inputs'!E$157)+IF('I2 CBA Inputs'!$C$174=$A$1,'I2 CBA Inputs'!E$175)+IF('I2 CBA Inputs'!$C$192=$A$1,'I2 CBA Inputs'!E$193))*$F$21*F$68*'I1 General Inputs'!$D15 -> 0 | G50: =-(IF('I2 CBA Inputs'!$C$138=$A$1,'I2 CBA Inputs'!F$139)+IF('I2 CBA Inputs'!$C$156=$A$1,'I2 CBA Inputs'!F$157)+IF('I2 CBA Inputs'!$C$174=$A$1,'I2 CBA Inputs'!F$175)+IF('I2 CBA Inputs'!$C$192=$A$1,'I2 CBA Inputs'!F$193))*$F$21*G$68*'I1 General Inputs'!$D15 -> 0 | H50: =-(IF('I2 CBA Inputs'!$C$138=$A$1,'I2 CBA Inputs'!G$139)+IF('I2 CBA Inputs'!$C$156=$A$1,'I2 CBA Inputs'!G$157)+IF('I2 CBA Inputs'!$C$174=$A$1,'I2 CBA Inputs'!G$175)+IF('I2 CBA Inputs'!$C$192=$A$1,'I2 CBA Inputs'!G$193))*$F$21*H$68*'I1 General Inputs'!$D15 -> 0 | I50: =-(IF('I2 CBA Inputs'!$C$138=$A$1,'I2 CBA Inputs'!H$139)+IF('I2 CBA Inputs'!$C$156=$A$1,'I2 CBA Inputs'!H$157)+IF('I2 CBA Inputs'!$C$174=$A$1,'I2 CBA Inputs'!H$175)+IF('I2 CBA Inputs'!$C$192=$A$1,'I2 CBA Inputs'!H$193))*$F$21*I$68*'I1 General Inputs'!$D15 -> 0 | J50: =-(IF('I2 CBA Inputs'!$C$138=$A$1,'I2 CBA Inputs'!I$139)+IF('I2 CBA Inputs'!$C$156=$A$1,'I2 CBA Inputs'!I$157)+IF('I2 CBA Inputs'!$C$174=$A$1,'I2 CBA Inputs'!I$175)+IF('I2 CBA Inputs'!$C$192=$A$1,'I2 CBA Inputs'!I$193))*$F$21*J$68*'I1 General Inputs'!$D15 -> 0 | K50: =-(IF('I2 CBA Inputs'!$C$138=$A$1,'I2 CBA Inputs'!J$139)+IF('I2 CBA Inputs'!$C$156=$A$1,'I2 CBA Inputs'!J$157)+IF('I2 CBA Inputs'!$C$174=$A$1,'I2 CBA Inputs'!J$175)+IF('I2 CBA Inputs'!$C$192=$A$1,'I2 CBA Inputs'!J$193))*$F$21*K$68*'I1 General Inputs'!$D15 -> 0 | L50: =-(IF('I2 CBA Inputs'!$C$138=$A$1,'I2 CBA Inputs'!K$139)+IF('I2 CBA Inputs'!$C$156=$A$1,'I2 CBA Inputs'!K$157)+IF('I2 CBA Inputs'!$C$174=$A$1,'I2 CBA Inputs'!K$175)+IF('I2 CBA Inputs'!$C$192=$A$1,'I2 CBA Inputs'!K$193))*$F$21*L$68*'I1 General Inputs'!$D15 -> 0 | M50: =-(IF('I2 CBA Inputs'!$C$138=$A$1,'I2 CBA Inputs'!L$139)+IF('I2 CBA Inputs'!$C$156=$A$1,'I2 CBA Inputs'!L$157)+IF('I2 CBA Inputs'!$C$174=$A$1,'I2 CBA Inputs'!L$175)+IF('I2 CBA Inputs'!$C$192=$A$1,'I2 CBA Inputs'!L$193))*$F$21*M$68*'I1 General Inputs'!$D15 -> 0 | N50: =-(IF('I2 CBA Inputs'!$C$138=$A$1,'I2 CBA Inputs'!M$139)+IF('I2 CBA Inputs'!$C$156=$A$1,'I2 CBA Inputs'!M$157)+IF('I2 CBA Inputs'!$C$174=$A$1,'I2 CBA Inputs'!M$175)+IF('I2 CBA Inputs'!$C$192=$A$1,'I2 CBA Inputs'!M$193))*$F$21*N$68*'I1 General Inputs'!$D15 -> 0 | O50: =-(IF('I2 CBA Inputs'!$C$138=$A$1,'I2 CBA Inputs'!N$139)+IF('I2 CBA Inputs'!$C$156=$A$1,'I2 CBA Inputs'!N$157)+IF('I2 CBA Inputs'!$C$174=$A$1,'I2 CBA Inputs'!N$175)+IF('I2 CBA Inputs'!$C$192=$A$1,'I2 CBA Inputs'!N$193))*$F$21*O$68*'I1 General Inputs'!$D15 -> 0 | P50: =-(IF('I2 CBA Inputs'!$C$138=$A$1,'I2 CBA Inputs'!O$139)+IF('I2 CBA Inputs'!$C$156=$A$1,'I2 CBA Inputs'!O$157)+IF('I2 CBA Inputs'!$C$174=$A$1,'I2 CBA Inputs'!O$175)+IF('I2 CBA Inputs'!$C$192=$A$1,'I2 CBA Inputs'!O$193))*$F$21*P$68*'I1 General Inputs'!$D15 -> 0 | Q50: =-(IF('I2 CBA Inputs'!$C$138=$A$1,'I2 CBA Inputs'!P$139)+IF('I2 CBA Inputs'!$C$156=$A$1,'I2 CBA Inputs'!P$157)+IF('I2 CBA Inputs'!$C$174=$A$1,'I2 CBA Inputs'!P$175)+IF('I2 CBA Inputs'!$C$192=$A$1,'I2 CBA Inputs'!P$193))*$F$21*Q$68*'I1 General Inputs'!$D15 -> 0 | R50: =-(IF('I2 CBA Inputs'!$C$138=$A$1,'I2 CBA Inputs'!Q$139)+IF('I2 CBA Inputs'!$C$156=$A$1,'I2 CBA Inputs'!Q$157)+IF('I2 CBA Inputs'!$C$174=$A$1,'I2 CBA Inputs'!Q$175)+IF('I2 CBA Inputs'!$C$192=$A$1,'I2 CBA Inputs'!Q$193))*$F$21*R$68*'I1 General Inputs'!$D15 -> 0 | S50: =-(IF('I2 CBA Inputs'!$C$138=$A$1,'I2 CBA Inputs'!R$139)+IF('I2 CBA Inputs'!$C$156=$A$1,'I2 CBA Inputs'!R$157)+IF('I2 CBA Inputs'!$C$174=$A$1,'I2 CBA Inputs'!R$175)+IF('I2 CBA Inputs'!$C$192=$A$1,'I2 CBA Inputs'!R$193))*$F$21*S$68*'I1 General Inputs'!$D15 -> 0 | T50: =-(IF('I2 CBA Inputs'!$C$138=$A$1,'I2 CBA Inputs'!S$139)+IF('I2 CBA Inputs'!$C$156=$A$1,'I2 CBA Inputs'!S$157)+IF('I2 CBA Inputs'!$C$174=$A$1,'I2 CBA Inputs'!S$175)+IF('I2 CBA Inputs'!$C$192=$A$1,'I2 CBA Inputs'!S$193))*$F$21*T$68*'I1 General Inputs'!$D15 -> 0 | U50: =-(IF('I2 CBA Inputs'!$C$138=$A$1,'I2 CBA Inputs'!T$139)+IF('I2 CBA Inputs'!$C$156=$A$1,'I2 CBA Inputs'!T$157)+IF('I2 CBA Inputs'!$C$174=$A$1,'I2 CBA Inputs'!T$175)+IF('I2 CBA Inputs'!$C$192=$A$1,'I2 CBA Inputs'!T$193))*$F$21*U$68*'I1 General Inputs'!$D15 -> 0 | V50: =-(IF('I2 CBA Inputs'!$C$138=$A$1,'I2 CBA Inputs'!U$139)+IF('I2 CBA Inputs'!$C$156=$A$1,'I2 CBA Inputs'!U$157)+IF('I2 CBA Inputs'!$C$174=$A$1,'I2 CBA Inputs'!U$175)+IF('I2 CBA Inputs'!$C$192=$A$1,'I2 CBA Inputs'!U$193))*$F$21*V$68*'I1 General Inputs'!$D15 -> 0 | W50: =-(IF('I2 CBA Inputs'!$C$138=$A$1,'I2 CBA Inputs'!V$139)+IF('I2 CBA Inputs'!$C$156=$A$1,'I2 CBA Inputs'!V$157)+IF('I2 CBA Inputs'!$C$174=$A$1,'I2 CBA Inputs'!V$175)+IF('I2 CBA Inputs'!$C$192=$A$1,'I2 CBA Inputs'!V$193))*$F$21*W$68*'I1 General Inputs'!$D15 -> 0 | X50: =-(IF('I2 CBA Inputs'!$C$138=$A$1,'I2 CBA Inputs'!W$139)+IF('I2 CBA Inputs'!$C$156=$A$1,'I2 CBA Inputs'!W$157)+IF('I2 CBA Inputs'!$C$174=$A$1,'I2 CBA Inputs'!W$175)+IF('I2 CBA Inputs'!$C$192=$A$1,'I2 CBA Inputs'!W$193))*$F$21*X$68*'I1 General Inputs'!$D15 -> 0 | Y50: =-(IF('I2 CBA Inputs'!$C$138=$A$1,'I2 CBA Inputs'!X$139)+IF('I2 CBA Inputs'!$C$156=$A$1,'I2 CBA Inputs'!X$157)+IF('I2 CBA Inputs'!$C$174=$A$1,'I2 CBA Inputs'!X$175)+IF('I2 CBA Inputs'!$C$192=$A$1,'I2 CBA Inputs'!X$193))*$F$21*Y$68*'I1 General Inputs'!$D15 -> 0 | Z50: =-(IF('I2 CBA Inputs'!$C$138=$A$1,'I2 CBA Inputs'!Y$139)+IF('I2 CBA Inputs'!$C$156=$A$1,'I2 CBA Inputs'!Y$157)+IF('I2 CBA Inputs'!$C$174=$A$1,'I2 CBA Inputs'!Y$175)+IF('I2 CBA Inputs'!$C$192=$A$1,'I2 CBA Inputs'!Y$193))*$F$21*Z$68*'I1 General Inputs'!$D15 -> 0 | AA50: =-(IF('I2 CBA Inputs'!$C$138=$A$1,'I2 CBA Inputs'!Z$139)+IF('I2 CBA Inputs'!$C$156=$A$1,'I2 CBA Inputs'!Z$157)+IF('I2 CBA Inputs'!$C$174=$A$1,'I2 CBA Inputs'!Z$175)+IF('I2 CBA Inputs'!$C$192=$A$1,'I2 CBA Inputs'!Z$193))*$F$21*AA$68*'I1 General Inputs'!$D15 -> 0 | AB50: =-(IF('I2 CBA Inputs'!$C$138=$A$1,'I2 CBA Inputs'!AA$139)+IF('I2 CBA Inputs'!$C$156=$A$1,'I2 CBA Inputs'!AA$157)+IF('I2 CBA Inputs'!$C$174=$A$1,'I2 CBA Inputs'!AA$175)+IF('I2 CBA Inputs'!$C$192=$A$1,'I2 CBA Inputs'!AA$193))*$F$21*AB$68*'I1 General Inputs'!$D15 -> 0 | AC50: =-(IF('I2 CBA Inputs'!$C$138=$A$1,'I2 CBA Inputs'!AB$139)+IF('I2 CBA Inputs'!$C$156=$A$1,'I2 CBA Inputs'!AB$157)+IF('I2 CBA Inputs'!$C$174=$A$1,'I2 CBA Inputs'!AB$175)+IF('I2 CBA Inputs'!$C$192=$A$1,'I2 CBA Inputs'!AB$193))*$F$21*AC$68*'I1 General Inputs'!$D15 -> 0 | AD50: =-(IF('I2 CBA Inputs'!$C$138=$A$1,'I2 CBA Inputs'!AC$139)+IF('I2 CBA Inputs'!$C$156=$A$1,'I2 CBA Inputs'!AC$157)+IF('I2 CBA Inputs'!$C$174=$A$1,'I2 CBA Inputs'!AC$175)+IF('I2 CBA Inputs'!$C$192=$A$1,'I2 CBA Inputs'!AC$193))*$F$21*AD$68*'I1 General Inputs'!$D15 -> 0 | AE50: =-(IF('I2 CBA Inputs'!$C$138=$A$1,'I2 CBA Inputs'!AD$139)+IF('I2 CBA Inputs'!$C$156=$A$1,'I2 CBA Inputs'!AD$157)+IF('I2 CBA Inputs'!$C$174=$A$1,'I2 CBA Inputs'!AD$175)+IF('I2 CBA Inputs'!$C$192=$A$1,'I2 CBA Inputs'!AD$193))*$F$21*AE$68*'I1 General Inputs'!$D15 -> 0 | AF50: =-(IF('I2 CBA Inputs'!$C$138=$A$1,'I2 CBA Inputs'!AE$139)+IF('I2 CBA Inputs'!$C$156=$A$1,'I2 CBA Inputs'!AE$157)+IF('I2 CBA Inputs'!$C$174=$A$1,'I2 CBA Inputs'!AE$175)+IF('I2 CBA Inputs'!$C$192=$A$1,'I2 CBA Inputs'!AE$193))*$F$21*AF$68*'I1 General Inputs'!$D15 -> 0 | AG50: =-(IF('I2 CBA Inputs'!$C$138=$A$1,'I2 CBA Inputs'!AF$139)+IF('I2 CBA Inputs'!$C$156=$A$1,'I2 CBA Inputs'!AF$157)+IF('I2 CBA Inputs'!$C$174=$A$1,'I2 CBA Inputs'!AF$175)+IF('I2 CBA Inputs'!$C$192=$A$1,'I2 CBA Inputs'!AF$193))*$F$21*AG$68*'I1 General Inputs'!$D15 -> 0 | AH50: =-(IF('I2 CBA Inputs'!$C$138=$A$1,'I2 CBA Inputs'!AG$139)+IF('I2 CBA Inputs'!$C$156=$A$1,'I2 CBA Inputs'!AG$157)+IF('I2 CBA Inputs'!$C$174=$A$1,'I2 CBA Inputs'!AG$175)+IF('I2 CBA Inputs'!$C$192=$A$1,'I2 CBA Inputs'!AG$193))*$F$21*AH$68*'I1 General Inputs'!$D15 -> 0 | AI50: =-(IF('I2 CBA Inputs'!$C$138=$A$1,'I2 CBA Inputs'!AH$139)+IF('I2 CBA Inputs'!$C$156=$A$1,'I2 CBA Inputs'!AH$157)+IF('I2 CBA Inputs'!$C$174=$A$1,'I2 CBA Inputs'!AH$175)+IF('I2 CBA Inputs'!$C$192=$A$1,'I2 CBA Inputs'!AH$193))*$F$21*AI$68*'I1 General Inputs'!$D15 -> 0
B51: =B305 -> Safety and health risk costs | D51: $ | E51: =NPV($F$8,$F51:$AI51)/(1+$F$8)^(FirstYear-BaseYear-1) -> 0 | F51: =-(IF('I2 CBA Inputs'!$C$211=$A$1,'I2 CBA Inputs'!E$212)+IF('I2 CBA Inputs'!$C$229=$A$1,'I2 CBA Inputs'!E$230)+IF('I2 CBA Inputs'!$C$247=$A$1,'I2 CBA Inputs'!E$248)+IF('I2 CBA Inputs'!$C$265=$A$1,'I2 CBA Inputs'!E$266))*$F$22*F$68*'I1 General Inputs'!$D15 -> 0 | G51: =-(IF('I2 CBA Inputs'!$C$211=$A$1,'I2 CBA Inputs'!F$212)+IF('I2 CBA Inputs'!$C$229=$A$1,'I2 CBA Inputs'!F$230)+IF('I2 CBA Inputs'!$C$247=$A$1,'I2 CBA Inputs'!F$248)+IF('I2 CBA Inputs'!$C$265=$A$1,'I2 CBA Inputs'!F$266))*$F$22*G$68*'I1 General Inputs'!$D15 -> 0 | H51: =-(IF('I2 CBA Inputs'!$C$211=$A$1,'I2 CBA Inputs'!G$212)+IF('I2 CBA Inputs'!$C$229=$A$1,'I2 CBA Inputs'!G$230)+IF('I2 CBA Inputs'!$C$247=$A$1,'I2 CBA Inputs'!G$248)+IF('I2 CBA Inputs'!$C$265=$A$1,'I2 CBA Inputs'!G$266))*$F$22*H$68*'I1 General Inputs'!$D15 -> 0 | I51: =-(IF('I2 CBA Inputs'!$C$211=$A$1,'I2 CBA Inputs'!H$212)+IF('I2 CBA Inputs'!$C$229=$A$1,'I2 CBA Inputs'!H$230)+IF('I2 CBA Inputs'!$C$247=$A$1,'I2 CBA Inputs'!H$248)+IF('I2 CBA Inputs'!$C$265=$A$1,'I2 CBA Inputs'!H$266))*$F$22*I$68*'I1 General Inputs'!$D15 -> 0 | J51: =-(IF('I2 CBA Inputs'!$C$211=$A$1,'I2 CBA Inputs'!I$212)+IF('I2 CBA Inputs'!$C$229=$A$1,'I2 CBA Inputs'!I$230)+IF('I2 CBA Inputs'!$C$247=$A$1,'I2 CBA Inputs'!I$248)+IF('I2 CBA Inputs'!$C$265=$A$1,'I2 CBA Inputs'!I$266))*$F$22*J$68*'I1 General Inputs'!$D15 -> 0 | K51: =-(IF('I2 CBA Inputs'!$C$211=$A$1,'I2 CBA Inputs'!J$212)+IF('I2 CBA Inputs'!$C$229=$A$1,'I2 CBA Inputs'!J$230)+IF('I2 CBA Inputs'!$C$247=$A$1,'I2 CBA Inputs'!J$248)+IF('I2 CBA Inputs'!$C$265=$A$1,'I2 CBA Inputs'!J$266))*$F$22*K$68*'I1 General Inputs'!$D15 -> 0 | L51: =-(IF('I2 CBA Inputs'!$C$211=$A$1,'I2 CBA Inputs'!K$212)+IF('I2 CBA Inputs'!$C$229=$A$1,'I2 CBA Inputs'!K$230)+IF('I2 CBA Inputs'!$C$247=$A$1,'I2 CBA Inputs'!K$248)+IF('I2 CBA Inputs'!$C$265=$A$1,'I2 CBA Inputs'!K$266))*$F$22*L$68*'I1 General Inputs'!$D15 -> 0 | M51: =-(IF('I2 CBA Inputs'!$C$211=$A$1,'I2 CBA Inputs'!L$212)+IF('I2 CBA Inputs'!$C$229=$A$1,'I2 CBA Inputs'!L$230)+IF('I2 CBA Inputs'!$C$247=$A$1,'I2 CBA Inputs'!L$248)+IF('I2 CBA Inputs'!$C$265=$A$1,'I2 CBA Inputs'!L$266))*$F$22*M$68*'I1 General Inputs'!$D15 -> 0 | N51: =-(IF('I2 CBA Inputs'!$C$211=$A$1,'I2 CBA Inputs'!M$212)+IF('I2 CBA Inputs'!$C$229=$A$1,'I2 CBA Inputs'!M$230)+IF('I2 CBA Inputs'!$C$247=$A$1,'I2 CBA Inputs'!M$248)+IF('I2 CBA Inputs'!$C$265=$A$1,'I2 CBA Inputs'!M$266))*$F$22*N$68*'I1 General Inputs'!$D15 -> 0 | O51: =-(IF('I2 CBA Inputs'!$C$211=$A$1,'I2 CBA Inputs'!N$212)+IF('I2 CBA Inputs'!$C$229=$A$1,'I2 CBA Inputs'!N$230)+IF('I2 CBA Inputs'!$C$247=$A$1,'I2 CBA Inputs'!N$248)+IF('I2 CBA Inputs'!$C$265=$A$1,'I2 CBA Inputs'!N$266))*$F$22*O$68*'I1 General Inputs'!$D15 -> 0 | P51: =-(IF('I2 CBA Inputs'!$C$211=$A$1,'I2 CBA Inputs'!O$212)+IF('I2 CBA Inputs'!$C$229=$A$1,'I2 CBA Inputs'!O$230)+IF('I2 CBA Inputs'!$C$247=$A$1,'I2 CBA Inputs'!O$248)+IF('I2 CBA Inputs'!$C$265=$A$1,'I2 CBA Inputs'!O$266))*$F$22*P$68*'I1 General Inputs'!$D15 -> 0 | Q51: =-(IF('I2 CBA Inputs'!$C$211=$A$1,'I2 CBA Inputs'!P$212)+IF('I2 CBA Inputs'!$C$229=$A$1,'I2 CBA Inputs'!P$230)+IF('I2 CBA Inputs'!$C$247=$A$1,'I2 CBA Inputs'!P$248)+IF('I2 CBA Inputs'!$C$265=$A$1,'I2 CBA Inputs'!P$266))*$F$22*Q$68*'I1 General Inputs'!$D15 -> 0 | R51: =-(IF('I2 CBA Inputs'!$C$211=$A$1,'I2 CBA Inputs'!Q$212)+IF('I2 CBA Inputs'!$C$229=$A$1,'I2 CBA Inputs'!Q$230)+IF('I2 CBA Inputs'!$C$247=$A$1,'I2 CBA Inputs'!Q$248)+IF('I2 CBA Inputs'!$C$265=$A$1,'I2 CBA Inputs'!Q$266))*$F$22*R$68*'I1 General Inputs'!$D15 -> 0 | S51: =-(IF('I2 CBA Inputs'!$C$211=$A$1,'I2 CBA Inputs'!R$212)+IF('I2 CBA Inputs'!$C$229=$A$1,'I2 CBA Inputs'!R$230)+IF('I2 CBA Inputs'!$C$247=$A$1,'I2 CBA Inputs'!R$248)+IF('I2 CBA Inputs'!$C$265=$A$1,'I2 CBA Inputs'!R$266))*$F$22*S$68*'I1 General Inputs'!$D15 -> 0 | T51: =-(IF('I2 CBA Inputs'!$C$211=$A$1,'I2 CBA Inputs'!S$212)+IF('I2 CBA Inputs'!$C$229=$A$1,'I2 CBA Inputs'!S$230)+IF('I2 CBA Inputs'!$C$247=$A$1,'I2 CBA Inputs'!S$248)+IF('I2 CBA Inputs'!$C$265=$A$1,'I2 CBA Inputs'!S$266))*$F$22*T$68*'I1 General Inputs'!$D15 -> 0 | U51: =-(IF('I2 CBA Inputs'!$C$211=$A$1,'I2 CBA Inputs'!T$212)+IF('I2 CBA Inputs'!$C$229=$A$1,'I2 CBA Inputs'!T$230)+IF('I2 CBA Inputs'!$C$247=$A$1,'I2 CBA Inputs'!T$248)+IF('I2 CBA Inputs'!$C$265=$A$1,'I2 CBA Inputs'!T$266))*$F$22*U$68*'I1 General Inputs'!$D15 -> 0 | V51: =-(IF('I2 CBA Inputs'!$C$211=$A$1,'I2 CBA Inputs'!U$212)+IF('I2 CBA Inputs'!$C$229=$A$1,'I2 CBA Inputs'!U$230)+IF('I2 CBA Inputs'!$C$247=$A$1,'I2 CBA Inputs'!U$248)+IF('I2 CBA Inputs'!$C$265=$A$1,'I2 CBA Inputs'!U$266))*$F$22*V$68*'I1 General Inputs'!$D15 -> 0 | W51: =-(IF('I2 CBA Inputs'!$C$211=$A$1,'I2 CBA Inputs'!V$212)+IF('I2 CBA Inputs'!$C$229=$A$1,'I2 CBA Inputs'!V$230)+IF('I2 CBA Inputs'!$C$247=$A$1,'I2 CBA Inputs'!V$248)+IF('I2 CBA Inputs'!$C$265=$A$1,'I2 CBA Inputs'!V$266))*$F$22*W$68*'I1 General Inputs'!$D15 -> 0 | X51: =-(IF('I2 CBA Inputs'!$C$211=$A$1,'I2 CBA Inputs'!W$212)+IF('I2 CBA Inputs'!$C$229=$A$1,'I2 CBA Inputs'!W$230)+IF('I2 CBA Inputs'!$C$247=$A$1,'I2 CBA Inputs'!W$248)+IF('I2 CBA Inputs'!$C$265=$A$1,'I2 CBA Inputs'!W$266))*$F$22*X$68*'I1 General Inputs'!$D15 -> 0 | Y51: =-(IF('I2 CBA Inputs'!$C$211=$A$1,'I2 CBA Inputs'!X$212)+IF('I2 CBA Inputs'!$C$229=$A$1,'I2 CBA Inputs'!X$230)+IF('I2 CBA Inputs'!$C$247=$A$1,'I2 CBA Inputs'!X$248)+IF('I2 CBA Inputs'!$C$265=$A$1,'I2 CBA Inputs'!X$266))*$F$22*Y$68*'I1 General Inputs'!$D15 -> 0 | Z51: =-(IF('I2 CBA Inputs'!$C$211=$A$1,'I2 CBA Inputs'!Y$212)+IF('I2 CBA Inputs'!$C$229=$A$1,'I2 CBA Inputs'!Y$230)+IF('I2 CBA Inputs'!$C$247=$A$1,'I2 CBA Inputs'!Y$248)+IF('I2 CBA Inputs'!$C$265=$A$1,'I2 CBA Inputs'!Y$266))*$F$22*Z$68*'I1 General Inputs'!$D15 -> 0 | AA51: =-(IF('I2 CBA Inputs'!$C$211=$A$1,'I2 CBA Inputs'!Z$212)+IF('I2 CBA Inputs'!$C$229=$A$1,'I2 CBA Inputs'!Z$230)+IF('I2 CBA Inputs'!$C$247=$A$1,'I2 CBA Inputs'!Z$248)+IF('I2 CBA Inputs'!$C$265=$A$1,'I2 CBA Inputs'!Z$266))*$F$22*AA$68*'I1 General Inputs'!$D15 -> 0 | AB51: =-(IF('I2 CBA Inputs'!$C$211=$A$1,'I2 CBA Inputs'!AA$212)+IF('I2 CBA Inputs'!$C$229=$A$1,'I2 CBA Inputs'!AA$230)+IF('I2 CBA Inputs'!$C$247=$A$1,'I2 CBA Inputs'!AA$248)+IF('I2 CBA Inputs'!$C$265=$A$1,'I2 CBA Inputs'!AA$266))*$F$22*AB$68*'I1 General Inputs'!$D15 -> 0 | AC51: =-(IF('I2 CBA Inputs'!$C$211=$A$1,'I2 CBA Inputs'!AB$212)+IF('I2 CBA Inputs'!$C$229=$A$1,'I2 CBA Inputs'!AB$230)+IF('I2 CBA Inputs'!$C$247=$A$1,'I2 CBA Inputs'!AB$248)+IF('I2 CBA Inputs'!$C$265=$A$1,'I2 CBA Inputs'!AB$266))*$F$22*AC$68*'I1 General Inputs'!$D15 -> 0 | AD51: =-(IF('I2 CBA Inputs'!$C$211=$A$1,'I2 CBA Inputs'!AC$212)+IF('I2 CBA Inputs'!$C$229=$A$1,'I2 CBA Inputs'!AC$230)+IF('I2 CBA Inputs'!$C$247=$A$1,'I2 CBA Inputs'!AC$248)+IF('I2 CBA Inputs'!$C$265=$A$1,'I2 CBA Inputs'!AC$266))*$F$22*AD$68*'I1 General Inputs'!$D15 -> 0 | AE51: =-(IF('I2 CBA Inputs'!$C$211=$A$1,'I2 CBA Inputs'!AD$212)+IF('I2 CBA Inputs'!$C$229=$A$1,'I2 CBA Inputs'!AD$230)+IF('I2 CBA Inputs'!$C$247=$A$1,'I2 CBA Inputs'!AD$248)+IF('I2 CBA Inputs'!$C$265=$A$1,'I2 CBA Inputs'!AD$266))*$F$22*AE$68*'I1 General Inputs'!$D15 -> 0 | AF51: =-(IF('I2 CBA Inputs'!$C$211=$A$1,'I2 CBA Inputs'!AE$212)+IF('I2 CBA Inputs'!$C$229=$A$1,'I2 CBA Inputs'!AE$230)+IF('I2 CBA Inputs'!$C$247=$A$1,'I2 CBA Inputs'!AE$248)+IF('I2 CBA Inputs'!$C$265=$A$1,'I2 CBA Inputs'!AE$266))*$F$22*AF$68*'I1 General Inputs'!$D15 -> 0 | AG51: =-(IF('I2 CBA Inputs'!$C$211=$A$1,'I2 CBA Inputs'!AF$212)+IF('I2 CBA Inputs'!$C$229=$A$1,'I2 CBA Inputs'!AF$230)+IF('I2 CBA Inputs'!$C$247=$A$1,'I2 CBA Inputs'!AF$248)+IF('I2 CBA Inputs'!$C$265=$A$1,'I2 CBA Inputs'!AF$266))*$F$22*AG$68*'I1 General Inputs'!$D15 -> 0 | AH51: =-(IF('I2 CBA Inputs'!$C$211=$A$1,'I2 CBA Inputs'!AG$212)+IF('I2 CBA Inputs'!$C$229=$A$1,'I2 CBA Inputs'!AG$230)+IF('I2 CBA Inputs'!$C$247=$A$1,'I2 CBA Inputs'!AG$248)+IF('I2 CBA Inputs'!$C$265=$A$1,'I2 CBA Inputs'!AG$266))*$F$22*AH$68*'I1 General Inputs'!$D15 -> 0 | AI51: =-(IF('I2 CBA Inputs'!$C$211=$A$1,'I2 CBA Inputs'!AH$212)+IF('I2 CBA Inputs'!$C$229=$A$1,'I2 CBA Inputs'!AH$230)+IF('I2 CBA Inputs'!$C$247=$A$1,'I2 CBA Inputs'!AH$248)+IF('I2 CBA Inputs'!$C$265=$A$1,'I2 CBA Inputs'!AH$266))*$F$22*AI$68*'I1 General Inputs'!$D15 -> 0
B52: =B323 -> Environmental risk costs | D52: $ | E52: =NPV($F$8,$F52:$AI52)/(1+$F$8)^(FirstYear-BaseYear-1) -> 0 | F52: =-(IF('I2 CBA Inputs'!$C$284=$A$1,'I2 CBA Inputs'!E$285)+IF('I2 CBA Inputs'!$C$302=$A$1,'I2 CBA Inputs'!E$303)+IF('I2 CBA Inputs'!$C$320=$A$1,'I2 CBA Inputs'!E$321)+IF('I2 CBA Inputs'!$C$338=$A$1,'I2 CBA Inputs'!E$339))*$F$23*F$68*'I1 General Inputs'!$D15 -> 0 | G52: =-(IF('I2 CBA Inputs'!$C$284=$A$1,'I2 CBA Inputs'!F$285)+IF('I2 CBA Inputs'!$C$302=$A$1,'I2 CBA Inputs'!F$303)+IF('I2 CBA Inputs'!$C$320=$A$1,'I2 CBA Inputs'!F$321)+IF('I2 CBA Inputs'!$C$338=$A$1,'I2 CBA Inputs'!F$339))*$F$23*G$68*'I1 General Inputs'!$D15 -> 0 | H52: =-(IF('I2 CBA Inputs'!$C$284=$A$1,'I2 CBA Inputs'!G$285)+IF('I2 CBA Inputs'!$C$302=$A$1,'I2 CBA Inputs'!G$303)+IF('I2 CBA Inputs'!$C$320=$A$1,'I2 CBA Inputs'!G$321)+IF('I2 CBA Inputs'!$C$338=$A$1,'I2 CBA Inputs'!G$339))*$F$23*H$68*'I1 General Inputs'!$D15 -> 0 | I52: =-(IF('I2 CBA Inputs'!$C$284=$A$1,'I2 CBA Inputs'!H$285)+IF('I2 CBA Inputs'!$C$302=$A$1,'I2 CBA Inputs'!H$303)+IF('I2 CBA Inputs'!$C$320=$A$1,'I2 CBA Inputs'!H$321)+IF('I2 CBA Inputs'!$C$338=$A$1,'I2 CBA Inputs'!H$339))*$F$23*I$68*'I1 General Inputs'!$D15 -> 0 | J52: =-(IF('I2 CBA Inputs'!$C$284=$A$1,'I2 CBA Inputs'!I$285)+IF('I2 CBA Inputs'!$C$302=$A$1,'I2 CBA Inputs'!I$303)+IF('I2 CBA Inputs'!$C$320=$A$1,'I2 CBA Inputs'!I$321)+IF('I2 CBA Inputs'!$C$338=$A$1,'I2 CBA Inputs'!I$339))*$F$23*J$68*'I1 General Inputs'!$D15 -> 0 | K52: =-(IF('I2 CBA Inputs'!$C$284=$A$1,'I2 CBA Inputs'!J$285)+IF('I2 CBA Inputs'!$C$302=$A$1,'I2 CBA Inputs'!J$303)+IF('I2 CBA Inputs'!$C$320=$A$1,'I2 CBA Inputs'!J$321)+IF('I2 CBA Inputs'!$C$338=$A$1,'I2 CBA Inputs'!J$339))*$F$23*K$68*'I1 General Inputs'!$D15 -> 0 | L52: =-(IF('I2 CBA Inputs'!$C$284=$A$1,'I2 CBA Inputs'!K$285)+IF('I2 CBA Inputs'!$C$302=$A$1,'I2 CBA Inputs'!K$303)+IF('I2 CBA Inputs'!$C$320=$A$1,'I2 CBA Inputs'!K$321)+IF('I2 CBA Inputs'!$C$338=$A$1,'I2 CBA Inputs'!K$339))*$F$23*L$68*'I1 General Inputs'!$D15 -> 0 | M52: =-(IF('I2 CBA Inputs'!$C$284=$A$1,'I2 CBA Inputs'!L$285)+IF('I2 CBA Inputs'!$C$302=$A$1,'I2 CBA Inputs'!L$303)+IF('I2 CBA Inputs'!$C$320=$A$1,'I2 CBA Inputs'!L$321)+IF('I2 CBA Inputs'!$C$338=$A$1,'I2 CBA Inputs'!L$339))*$F$23*M$68*'I1 General Inputs'!$D15 -> 0 | N52: =-(IF('I2 CBA Inputs'!$C$284=$A$1,'I2 CBA Inputs'!M$285)+IF('I2 CBA Inputs'!$C$302=$A$1,'I2 CBA Inputs'!M$303)+IF('I2 CBA Inputs'!$C$320=$A$1,'I2 CBA Inputs'!M$321)+IF('I2 CBA Inputs'!$C$338=$A$1,'I2 CBA Inputs'!M$339))*$F$23*N$68*'I1 General Inputs'!$D15 -> 0 | O52: =-(IF('I2 CBA Inputs'!$C$284=$A$1,'I2 CBA Inputs'!N$285)+IF('I2 CBA Inputs'!$C$302=$A$1,'I2 CBA Inputs'!N$303)+IF('I2 CBA Inputs'!$C$320=$A$1,'I2 CBA Inputs'!N$321)+IF('I2 CBA Inputs'!$C$338=$A$1,'I2 CBA Inputs'!N$339))*$F$23*O$68*'I1 General Inputs'!$D15 -> 0 | P52: =-(IF('I2 CBA Inputs'!$C$284=$A$1,'I2 CBA Inputs'!O$285)+IF('I2 CBA Inputs'!$C$302=$A$1,'I2 CBA Inputs'!O$303)+IF('I2 CBA Inputs'!$C$320=$A$1,'I2 CBA Inputs'!O$321)+IF('I2 CBA Inputs'!$C$338=$A$1,'I2 CBA Inputs'!O$339))*$F$23*P$68*'I1 General Inputs'!$D15 -> 0 | Q52: =-(IF('I2 CBA Inputs'!$C$284=$A$1,'I2 CBA Inputs'!P$285)+IF('I2 CBA Inputs'!$C$302=$A$1,'I2 CBA Inputs'!P$303)+IF('I2 CBA Inputs'!$C$320=$A$1,'I2 CBA Inputs'!P$321)+IF('I2 CBA Inputs'!$C$338=$A$1,'I2 CBA Inputs'!P$339))*$F$23*Q$68*'I1 General Inputs'!$D15 -> 0 | R52: =-(IF('I2 CBA Inputs'!$C$284=$A$1,'I2 CBA Inputs'!Q$285)+IF('I2 CBA Inputs'!$C$302=$A$1,'I2 CBA Inputs'!Q$303)+IF('I2 CBA Inputs'!$C$320=$A$1,'I2 CBA Inputs'!Q$321)+IF('I2 CBA Inputs'!$C$338=$A$1,'I2 CBA Inputs'!Q$339))*$F$23*R$68*'I1 General Inputs'!$D15 -> 0 | S52: =-(IF('I2 CBA Inputs'!$C$284=$A$1,'I2 CBA Inputs'!R$285)+IF('I2 CBA Inputs'!$C$302=$A$1,'I2 CBA Inputs'!R$303)+IF('I2 CBA Inputs'!$C$320=$A$1,'I2 CBA Inputs'!R$321)+IF('I2 CBA Inputs'!$C$338=$A$1,'I2 CBA Inputs'!R$339))*$F$23*S$68*'I1 General Inputs'!$D15 -> 0 | T52: =-(IF('I2 CBA Inputs'!$C$284=$A$1,'I2 CBA Inputs'!S$285)+IF('I2 CBA Inputs'!$C$302=$A$1,'I2 CBA Inputs'!S$303)+IF('I2 CBA Inputs'!$C$320=$A$1,'I2 CBA Inputs'!S$321)+IF('I2 CBA Inputs'!$C$338=$A$1,'I2 CBA Inputs'!S$339))*$F$23*T$68*'I1 General Inputs'!$D15 -> 0 | U52: =-(IF('I2 CBA Inputs'!$C$284=$A$1,'I2 CBA Inputs'!T$285)+IF('I2 CBA Inputs'!$C$302=$A$1,'I2 CBA Inputs'!T$303)+IF('I2 CBA Inputs'!$C$320=$A$1,'I2 CBA Inputs'!T$321)+IF('I2 CBA Inputs'!$C$338=$A$1,'I2 CBA Inputs'!T$339))*$F$23*U$68*'I1 General Inputs'!$D15 -> 0 | V52: =-(IF('I2 CBA Inputs'!$C$284=$A$1,'I2 CBA Inputs'!U$285)+IF('I2 CBA Inputs'!$C$302=$A$1,'I2 CBA Inputs'!U$303)+IF('I2 CBA Inputs'!$C$320=$A$1,'I2 CBA Inputs'!U$321)+IF('I2 CBA Inputs'!$C$338=$A$1,'I2 CBA Inputs'!U$339))*$F$23*V$68*'I1 General Inputs'!$D15 -> 0 | W52: =-(IF('I2 CBA Inputs'!$C$284=$A$1,'I2 CBA Inputs'!V$285)+IF('I2 CBA Inputs'!$C$302=$A$1,'I2 CBA Inputs'!V$303)+IF('I2 CBA Inputs'!$C$320=$A$1,'I2 CBA Inputs'!V$321)+IF('I2 CBA Inputs'!$C$338=$A$1,'I2 CBA Inputs'!V$339))*$F$23*W$68*'I1 General Inputs'!$D15 -> 0 | X52: =-(IF('I2 CBA Inputs'!$C$284=$A$1,'I2 CBA Inputs'!W$285)+IF('I2 CBA Inputs'!$C$302=$A$1,'I2 CBA Inputs'!W$303)+IF('I2 CBA Inputs'!$C$320=$A$1,'I2 CBA Inputs'!W$321)+IF('I2 CBA Inputs'!$C$338=$A$1,'I2 CBA Inputs'!W$339))*$F$23*X$68*'I1 General Inputs'!$D15 -> 0 | Y52: =-(IF('I2 CBA Inputs'!$C$284=$A$1,'I2 CBA Inputs'!X$285)+IF('I2 CBA Inputs'!$C$302=$A$1,'I2 CBA Inputs'!X$303)+IF('I2 CBA Inputs'!$C$320=$A$1,'I2 CBA Inputs'!X$321)+IF('I2 CBA Inputs'!$C$338=$A$1,'I2 CBA Inputs'!X$339))*$F$23*Y$68*'I1 General Inputs'!$D15 -> 0 | Z52: =-(IF('I2 CBA Inputs'!$C$284=$A$1,'I2 CBA Inputs'!Y$285)+IF('I2 CBA Inputs'!$C$302=$A$1,'I2 CBA Inputs'!Y$303)+IF('I2 CBA Inputs'!$C$320=$A$1,'I2 CBA Inputs'!Y$321)+IF('I2 CBA Inputs'!$C$338=$A$1,'I2 CBA Inputs'!Y$339))*$F$23*Z$68*'I1 General Inputs'!$D15 -> 0 | AA52: =-(IF('I2 CBA Inputs'!$C$284=$A$1,'I2 CBA Inputs'!Z$285)+IF('I2 CBA Inputs'!$C$302=$A$1,'I2 CBA Inputs'!Z$303)+IF('I2 CBA Inputs'!$C$320=$A$1,'I2 CBA Inputs'!Z$321)+IF('I2 CBA Inputs'!$C$338=$A$1,'I2 CBA Inputs'!Z$339))*$F$23*AA$68*'I1 General Inputs'!$D15 -> 0 | AB52: =-(IF('I2 CBA Inputs'!$C$284=$A$1,'I2 CBA Inputs'!AA$285)+IF('I2 CBA Inputs'!$C$302=$A$1,'I2 CBA Inputs'!AA$303)+IF('I2 CBA Inputs'!$C$320=$A$1,'I2 CBA Inputs'!AA$321)+IF('I2 CBA Inputs'!$C$338=$A$1,'I2 CBA Inputs'!AA$339))*$F$23*AB$68*'I1 General Inputs'!$D15 -> 0 | AC52: =-(IF('I2 CBA Inputs'!$C$284=$A$1,'I2 CBA Inputs'!AB$285)+IF('I2 CBA Inputs'!$C$302=$A$1,'I2 CBA Inputs'!AB$303)+IF('I2 CBA Inputs'!$C$320=$A$1,'I2 CBA Inputs'!AB$321)+IF('I2 CBA Inputs'!$C$338=$A$1,'I2 CBA Inputs'!AB$339))*$F$23*AC$68*'I1 General Inputs'!$D15 -> 0 | AD52: =-(IF('I2 CBA Inputs'!$C$284=$A$1,'I2 CBA Inputs'!AC$285)+IF('I2 CBA Inputs'!$C$302=$A$1,'I2 CBA Inputs'!AC$303)+IF('I2 CBA Inputs'!$C$320=$A$1,'I2 CBA Inputs'!AC$321)+IF('I2 CBA Inputs'!$C$338=$A$1,'I2 CBA Inputs'!AC$339))*$F$23*AD$68*'I1 General Inputs'!$D15 -> 0 | AE52: =-(IF('I2 CBA Inputs'!$C$284=$A$1,'I2 CBA Inputs'!AD$285)+IF('I2 CBA Inputs'!$C$302=$A$1,'I2 CBA Inputs'!AD$303)+IF('I2 CBA Inputs'!$C$320=$A$1,'I2 CBA Inputs'!AD$321)+IF('I2 CBA Inputs'!$C$338=$A$1,'I2 CBA Inputs'!AD$339))*$F$23*AE$68*'I1 General Inputs'!$D15 -> 0 | AF52: =-(IF('I2 CBA Inputs'!$C$284=$A$1,'I2 CBA Inputs'!AE$285)+IF('I2 CBA Inputs'!$C$302=$A$1,'I2 CBA Inputs'!AE$303)+IF('I2 CBA Inputs'!$C$320=$A$1,'I2 CBA Inputs'!AE$321)+IF('I2 CBA Inputs'!$C$338=$A$1,'I2 CBA Inputs'!AE$339))*$F$23*AF$68*'I1 General Inputs'!$D15 -> 0 | AG52: =-(IF('I2 CBA Inputs'!$C$284=$A$1,'I2 CBA Inputs'!AF$285)+IF('I2 CBA Inputs'!$C$302=$A$1,'I2 CBA Inputs'!AF$303)+IF('I2 CBA Inputs'!$C$320=$A$1,'I2 CBA Inputs'!AF$321)+IF('I2 CBA Inputs'!$C$338=$A$1,'I2 CBA Inputs'!AF$339))*$F$23*AG$68*'I1 General Inputs'!$D15 -> 0 | AH52: =-(IF('I2 CBA Inputs'!$C$284=$A$1,'I2 CBA Inputs'!AG$285)+IF('I2 CBA Inputs'!$C$302=$A$1,'I2 CBA Inputs'!AG$303)+IF('I2 CBA Inputs'!$C$320=$A$1,'I2 CBA Inputs'!AG$321)+IF('I2 CBA Inputs'!$C$338=$A$1,'I2 CBA Inputs'!AG$339))*$F$23*AH$68*'I1 General Inputs'!$D15 -> 0 | AI52: =-(IF('I2 CBA Inputs'!$C$284=$A$1,'I2 CBA Inputs'!AH$285)+IF('I2 CBA Inputs'!$C$302=$A$1,'I2 CBA Inputs'!AH$303)+IF('I2 CBA Inputs'!$C$320=$A$1,'I2 CBA Inputs'!AH$321)+IF('I2 CBA Inputs'!$C$338=$A$1,'I2 CBA Inputs'!AH$339))*$F$23*AI$68*'I1 General Inputs'!$D15 -> 0
B53: =B341 -> Legal/regulatory compliance risk costs | D53: $ | E53: =NPV($F$8,$F53:$AI53)/(1+$F$8)^(FirstYear-BaseYear-1) -> 0 | F53: =-(IF('I2 CBA Inputs'!$C$357=$A$1,'I2 CBA Inputs'!E$358)+IF('I2 CBA Inputs'!$C$375=$A$1,'I2 CBA Inputs'!E$376)+IF('I2 CBA Inputs'!$C$393=$A$1,'I2 CBA Inputs'!E$394)+IF('I2 CBA Inputs'!$C$411=$A$1,'I2 CBA Inputs'!E$412))*$F$24*F$68*'I1 General Inputs'!$D15 -> 0 | G53: =-(IF('I2 CBA Inputs'!$C$357=$A$1,'I2 CBA Inputs'!F$358)+IF('I2 CBA Inputs'!$C$375=$A$1,'I2 CBA Inputs'!F$376)+IF('I2 CBA Inputs'!$C$393=$A$1,'I2 CBA Inputs'!F$394)+IF('I2 CBA Inputs'!$C$411=$A$1,'I2 CBA Inputs'!F$412))*$F$24*G$68*'I1 General Inputs'!$D15 -> 0 | H53: =-(IF('I2 CBA Inputs'!$C$357=$A$1,'I2 CBA Inputs'!G$358)+IF('I2 CBA Inputs'!$C$375=$A$1,'I2 CBA Inputs'!G$376)+IF('I2 CBA Inputs'!$C$393=$A$1,'I2 CBA Inputs'!G$394)+IF('I2 CBA Inputs'!$C$411=$A$1,'I2 CBA Inputs'!G$412))*$F$24*H$68*'I1 General Inputs'!$D15 -> 0 | I53: =-(IF('I2 CBA Inputs'!$C$357=$A$1,'I2 CBA Inputs'!H$358)+IF('I2 CBA Inputs'!$C$375=$A$1,'I2 CBA Inputs'!H$376)+IF('I2 CBA Inputs'!$C$393=$A$1,'I2 CBA Inputs'!H$394)+IF('I2 CBA Inputs'!$C$411=$A$1,'I2 CBA Inputs'!H$412))*$F$24*I$68*'I1 General Inputs'!$D15 -> 0 | J53: =-(IF('I2 CBA Inputs'!$C$357=$A$1,'I2 CBA Inputs'!I$358)+IF('I2 CBA Inputs'!$C$375=$A$1,'I2 CBA Inputs'!I$376)+IF('I2 CBA Inputs'!$C$393=$A$1,'I2 CBA Inputs'!I$394)+IF('I2 CBA Inputs'!$C$411=$A$1,'I2 CBA Inputs'!I$412))*$F$24*J$68*'I1 General Inputs'!$D15 -> 0 | K53: =-(IF('I2 CBA Inputs'!$C$357=$A$1,'I2 CBA Inputs'!J$358)+IF('I2 CBA Inputs'!$C$375=$A$1,'I2 CBA Inputs'!J$376)+IF('I2 CBA Inputs'!$C$393=$A$1,'I2 CBA Inputs'!J$394)+IF('I2 CBA Inputs'!$C$411=$A$1,'I2 CBA Inputs'!J$412))*$F$24*K$68*'I1 General Inputs'!$D15 -> 0 | L53: =-(IF('I2 CBA Inputs'!$C$357=$A$1,'I2 CBA Inputs'!K$358)+IF('I2 CBA Inputs'!$C$375=$A$1,'I2 CBA Inputs'!K$376)+IF('I2 CBA Inputs'!$C$393=$A$1,'I2 CBA Inputs'!K$394)+IF('I2 CBA Inputs'!$C$411=$A$1,'I2 CBA Inputs'!K$412))*$F$24*L$68*'I1 General Inputs'!$D15 -> 0 | M53: =-(IF('I2 CBA Inputs'!$C$357=$A$1,'I2 CBA Inputs'!L$358)+IF('I2 CBA Inputs'!$C$375=$A$1,'I2 CBA Inputs'!L$376)+IF('I2 CBA Inputs'!$C$393=$A$1,'I2 CBA Inputs'!L$394)+IF('I2 CBA Inputs'!$C$411=$A$1,'I2 CBA Inputs'!L$412))*$F$24*M$68*'I1 General Inputs'!$D15 -> 0 | N53: =-(IF('I2 CBA Inputs'!$C$357=$A$1,'I2 CBA Inputs'!M$358)+IF('I2 CBA Inputs'!$C$375=$A$1,'I2 CBA Inputs'!M$376)+IF('I2 CBA Inputs'!$C$393=$A$1,'I2 CBA Inputs'!M$394)+IF('I2 CBA Inputs'!$C$411=$A$1,'I2 CBA Inputs'!M$412))*$F$24*N$68*'I1 General Inputs'!$D15 -> 0 | O53: =-(IF('I2 CBA Inputs'!$C$357=$A$1,'I2 CBA Inputs'!N$358)+IF('I2 CBA Inputs'!$C$375=$A$1,'I2 CBA Inputs'!N$376)+IF('I2 CBA Inputs'!$C$393=$A$1,'I2 CBA Inputs'!N$394)+IF('I2 CBA Inputs'!$C$411=$A$1,'I2 CBA Inputs'!N$412))*$F$24*O$68*'I1 General Inputs'!$D15 -> 0 | P53: =-(IF('I2 CBA Inputs'!$C$357=$A$1,'I2 CBA Inputs'!O$358)+IF('I2 CBA Inputs'!$C$375=$A$1,'I2 CBA Inputs'!O$376)+IF('I2 CBA Inputs'!$C$393=$A$1,'I2 CBA Inputs'!O$394)+IF('I2 CBA Inputs'!$C$411=$A$1,'I2 CBA Inputs'!O$412))*$F$24*P$68*'I1 General Inputs'!$D15 -> 0 | Q53: =-(IF('I2 CBA Inputs'!$C$357=$A$1,'I2 CBA Inputs'!P$358)+IF('I2 CBA Inputs'!$C$375=$A$1,'I2 CBA Inputs'!P$376)+IF('I2 CBA Inputs'!$C$393=$A$1,'I2 CBA Inputs'!P$394)+IF('I2 CBA Inputs'!$C$411=$A$1,'I2 CBA Inputs'!P$412))*$F$24*Q$68*'I1 General Inputs'!$D15 -> 0 | R53: =-(IF('I2 CBA Inputs'!$C$357=$A$1,'I2 CBA Inputs'!Q$358)+IF('I2 CBA Inputs'!$C$375=$A$1,'I2 CBA Inputs'!Q$376)+IF('I2 CBA Inputs'!$C$393=$A$1,'I2 CBA Inputs'!Q$394)+IF('I2 CBA Inputs'!$C$411=$A$1,'I2 CBA Inputs'!Q$412))*$F$24*R$68*'I1 General Inputs'!$D15 -> 0 | S53: =-(IF('I2 CBA Inputs'!$C$357=$A$1,'I2 CBA Inputs'!R$358)+IF('I2 CBA Inputs'!$C$375=$A$1,'I2 CBA Inputs'!R$376)+IF('I2 CBA Inputs'!$C$393=$A$1,'I2 CBA Inputs'!R$394)+IF('I2 CBA Inputs'!$C$411=$A$1,'I2 CBA Inputs'!R$412))*$F$24*S$68*'I1 General Inputs'!$D15 -> 0 | T53: =-(IF('I2 CBA Inputs'!$C$357=$A$1,'I2 CBA Inputs'!S$358)+IF('I2 CBA Inputs'!$C$375=$A$1,'I2 CBA Inputs'!S$376)+IF('I2 CBA Inputs'!$C$393=$A$1,'I2 CBA Inputs'!S$394)+IF('I2 CBA Inputs'!$C$411=$A$1,'I2 CBA Inputs'!S$412))*$F$24*T$68*'I1 General Inputs'!$D15 -> 0 | U53: =-(IF('I2 CBA Inputs'!$C$357=$A$1,'I2 CBA Inputs'!T$358)+IF('I2 CBA Inputs'!$C$375=$A$1,'I2 CBA Inputs'!T$376)+IF('I2 CBA Inputs'!$C$393=$A$1,'I2 CBA Inputs'!T$394)+IF('I2 CBA Inputs'!$C$411=$A$1,'I2 CBA Inputs'!T$412))*$F$24*U$68*'I1 General Inputs'!$D15 -> 0 | V53: =-(IF('I2 CBA Inputs'!$C$357=$A$1,'I2 CBA Inputs'!U$358)+IF('I2 CBA Inputs'!$C$375=$A$1,'I2 CBA Inputs'!U$376)+IF('I2 CBA Inputs'!$C$393=$A$1,'I2 CBA Inputs'!U$394)+IF('I2 CBA Inputs'!$C$411=$A$1,'I2 CBA Inputs'!U$412))*$F$24*V$68*'I1 General Inputs'!$D15 -> 0 | W53: =-(IF('I2 CBA Inputs'!$C$357=$A$1,'I2 CBA Inputs'!V$358)+IF('I2 CBA Inputs'!$C$375=$A$1,'I2 CBA Inputs'!V$376)+IF('I2 CBA Inputs'!$C$393=$A$1,'I2 CBA Inputs'!V$394)+IF('I2 CBA Inputs'!$C$411=$A$1,'I2 CBA Inputs'!V$412))*$F$24*W$68*'I1 General Inputs'!$D15 -> 0 | X53: =-(IF('I2 CBA Inputs'!$C$357=$A$1,'I2 CBA Inputs'!W$358)+IF('I2 CBA Inputs'!$C$375=$A$1,'I2 CBA Inputs'!W$376)+IF('I2 CBA Inputs'!$C$393=$A$1,'I2 CBA Inputs'!W$394)+IF('I2 CBA Inputs'!$C$411=$A$1,'I2 CBA Inputs'!W$412))*$F$24*X$68*'I1 General Inputs'!$D15 -> 0 | Y53: =-(IF('I2 CBA Inputs'!$C$357=$A$1,'I2 CBA Inputs'!X$358)+IF('I2 CBA Inputs'!$C$375=$A$1,'I2 CBA Inputs'!X$376)+IF('I2 CBA Inputs'!$C$393=$A$1,'I2 CBA Inputs'!X$394)+IF('I2 CBA Inputs'!$C$411=$A$1,'I2 CBA Inputs'!X$412))*$F$24*Y$68*'I1 General Inputs'!$D15 -> 0 | Z53: =-(IF('I2 CBA Inputs'!$C$357=$A$1,'I2 CBA Inputs'!Y$358)+IF('I2 CBA Inputs'!$C$375=$A$1,'I2 CBA Inputs'!Y$376)+IF('I2 CBA Inputs'!$C$393=$A$1,'I2 CBA Inputs'!Y$394)+IF('I2 CBA Inputs'!$C$411=$A$1,'I2 CBA Inputs'!Y$412))*$F$24*Z$68*'I1 General Inputs'!$D15 -> 0 | AA53: =-(IF('I2 CBA Inputs'!$C$357=$A$1,'I2 CBA Inputs'!Z$358)+IF('I2 CBA Inputs'!$C$375=$A$1,'I2 CBA Inputs'!Z$376)+IF('I2 CBA Inputs'!$C$393=$A$1,'I2 CBA Inputs'!Z$394)+IF('I2 CBA Inputs'!$C$411=$A$1,'I2 CBA Inputs'!Z$412))*$F$24*AA$68*'I1 General Inputs'!$D15 -> 0 | AB53: =-(IF('I2 CBA Inputs'!$C$357=$A$1,'I2 CBA Inputs'!AA$358)+IF('I2 CBA Inputs'!$C$375=$A$1,'I2 CBA Inputs'!AA$376)+IF('I2 CBA Inputs'!$C$393=$A$1,'I2 CBA Inputs'!AA$394)+IF('I2 CBA Inputs'!$C$411=$A$1,'I2 CBA Inputs'!AA$412))*$F$24*AB$68*'I1 General Inputs'!$D15 -> 0 | AC53: =-(IF('I2 CBA Inputs'!$C$357=$A$1,'I2 CBA Inputs'!AB$358)+IF('I2 CBA Inputs'!$C$375=$A$1,'I2 CBA Inputs'!AB$376)+IF('I2 CBA Inputs'!$C$393=$A$1,'I2 CBA Inputs'!AB$394)+IF('I2 CBA Inputs'!$C$411=$A$1,'I2 CBA Inputs'!AB$412))*$F$24*AC$68*'I1 General Inputs'!$D15 -> 0 | AD53: =-(IF('I2 CBA Inputs'!$C$357=$A$1,'I2 CBA Inputs'!AC$358)+IF('I2 CBA Inputs'!$C$375=$A$1,'I2 CBA Inputs'!AC$376)+IF('I2 CBA Inputs'!$C$393=$A$1,'I2 CBA Inputs'!AC$394)+IF('I2 CBA Inputs'!$C$411=$A$1,'I2 CBA Inputs'!AC$412))*$F$24*AD$68*'I1 General Inputs'!$D15 -> 0 | AE53: =-(IF('I2 CBA Inputs'!$C$357=$A$1,'I2 CBA Inputs'!AD$358)+IF('I2 CBA Inputs'!$C$375=$A$1,'I2 CBA Inputs'!AD$376)+IF('I2 CBA Inputs'!$C$393=$A$1,'I2 CBA Inputs'!AD$394)+IF('I2 CBA Inputs'!$C$411=$A$1,'I2 CBA Inputs'!AD$412))*$F$24*AE$68*'I1 General Inputs'!$D15 -> 0 | AF53: =-(IF('I2 CBA Inputs'!$C$357=$A$1,'I2 CBA Inputs'!AE$358)+IF('I2 CBA Inputs'!$C$375=$A$1,'I2 CBA Inputs'!AE$376)+IF('I2 CBA Inputs'!$C$393=$A$1,'I2 CBA Inputs'!AE$394)+IF('I2 CBA Inputs'!$C$411=$A$1,'I2 CBA Inputs'!AE$412))*$F$24*AF$68*'I1 General Inputs'!$D15 -> 0 | AG53: =-(IF('I2 CBA Inputs'!$C$357=$A$1,'I2 CBA Inputs'!AF$358)+IF('I2 CBA Inputs'!$C$375=$A$1,'I2 CBA Inputs'!AF$376)+IF('I2 CBA Inputs'!$C$393=$A$1,'I2 CBA Inputs'!AF$394)+IF('I2 CBA Inputs'!$C$411=$A$1,'I2 CBA Inputs'!AF$412))*$F$24*AG$68*'I1 General Inputs'!$D15 -> 0 | AH53: =-(IF('I2 CBA Inputs'!$C$357=$A$1,'I2 CBA Inputs'!AG$358)+IF('I2 CBA Inputs'!$C$375=$A$1,'I2 CBA Inputs'!AG$376)+IF('I2 CBA Inputs'!$C$393=$A$1,'I2 CBA Inputs'!AG$394)+IF('I2 CBA Inputs'!$C$411=$A$1,'I2 CBA Inputs'!AG$412))*$F$24*AH$68*'I1 General Inputs'!$D15 -> 0 | AI53: =-(IF('I2 CBA Inputs'!$C$357=$A$1,'I2 CBA Inputs'!AH$358)+IF('I2 CBA Inputs'!$C$375=$A$1,'I2 CBA Inputs'!AH$376)+IF('I2 CBA Inputs'!$C$393=$A$1,'I2 CBA Inputs'!AH$394)+IF('I2 CBA Inputs'!$C$411=$A$1,'I2 CBA Inputs'!AH$412))*$F$24*AI$68*'I1 General Inputs'!$D15 -> 0
B54: =B359 -> Financial risk costs | D54: $ | E54: =NPV($F$8,$F54:$AI54)/(1+$F$8)^(FirstYear-BaseYear-1) -> 0 | F54: =-(IF('I2 CBA Inputs'!$C$431=$A$1,'I2 CBA Inputs'!E$432)+IF('I2 CBA Inputs'!$C$449=$A$1,'I2 CBA Inputs'!E$450)+IF('I2 CBA Inputs'!$C$467=$A$1,'I2 CBA Inputs'!E$468)+IF('I2 CBA Inputs'!$C$485=$A$1,'I2 CBA Inputs'!E$486))*$F$25*F$68*'I1 General Inputs'!$D15 -> 0 | G54: =-(IF('I2 CBA Inputs'!$C$431=$A$1,'I2 CBA Inputs'!F$432)+IF('I2 CBA Inputs'!$C$449=$A$1,'I2 CBA Inputs'!F$450)+IF('I2 CBA Inputs'!$C$467=$A$1,'I2 CBA Inputs'!F$468)+IF('I2 CBA Inputs'!$C$485=$A$1,'I2 CBA Inputs'!F$486))*$F$25*G$68*'I1 General Inputs'!$D15 -> 0 | H54: =-(IF('I2 CBA Inputs'!$C$431=$A$1,'I2 CBA Inputs'!G$432)+IF('I2 CBA Inputs'!$C$449=$A$1,'I2 CBA Inputs'!G$450)+IF('I2 CBA Inputs'!$C$467=$A$1,'I2 CBA Inputs'!G$468)+IF('I2 CBA Inputs'!$C$485=$A$1,'I2 CBA Inputs'!G$486))*$F$25*H$68*'I1 General Inputs'!$D15 -> 0 | I54: =-(IF('I2 CBA Inputs'!$C$431=$A$1,'I2 CBA Inputs'!H$432)+IF('I2 CBA Inputs'!$C$449=$A$1,'I2 CBA Inputs'!H$450)+IF('I2 CBA Inputs'!$C$467=$A$1,'I2 CBA Inputs'!H$468)+IF('I2 CBA Inputs'!$C$485=$A$1,'I2 CBA Inputs'!H$486))*$F$25*I$68*'I1 General Inputs'!$D15 -> 0 | J54: =-(IF('I2 CBA Inputs'!$C$431=$A$1,'I2 CBA Inputs'!I$432)+IF('I2 CBA Inputs'!$C$449=$A$1,'I2 CBA Inputs'!I$450)+IF('I2 CBA Inputs'!$C$467=$A$1,'I2 CBA Inputs'!I$468)+IF('I2 CBA Inputs'!$C$485=$A$1,'I2 CBA Inputs'!I$486))*$F$25*J$68*'I1 General Inputs'!$D15 -> 0 | K54: =-(IF('I2 CBA Inputs'!$C$431=$A$1,'I2 CBA Inputs'!J$432)+IF('I2 CBA Inputs'!$C$449=$A$1,'I2 CBA Inputs'!J$450)+IF('I2 CBA Inputs'!$C$467=$A$1,'I2 CBA Inputs'!J$468)+IF('I2 CBA Inputs'!$C$485=$A$1,'I2 CBA Inputs'!J$486))*$F$25*K$68*'I1 General Inputs'!$D15 -> 0 | L54: =-(IF('I2 CBA Inputs'!$C$431=$A$1,'I2 CBA Inputs'!K$432)+IF('I2 CBA Inputs'!$C$449=$A$1,'I2 CBA Inputs'!K$450)+IF('I2 CBA Inputs'!$C$467=$A$1,'I2 CBA Inputs'!K$468)+IF('I2 CBA Inputs'!$C$485=$A$1,'I2 CBA Inputs'!K$486))*$F$25*L$68*'I1 General Inputs'!$D15 -> 0 | M54: =-(IF('I2 CBA Inputs'!$C$431=$A$1,'I2 CBA Inputs'!L$432)+IF('I2 CBA Inputs'!$C$449=$A$1,'I2 CBA Inputs'!L$450)+IF('I2 CBA Inputs'!$C$467=$A$1,'I2 CBA Inputs'!L$468)+IF('I2 CBA Inputs'!$C$485=$A$1,'I2 CBA Inputs'!L$486))*$F$25*M$68*'I1 General Inputs'!$D15 -> 0 | N54: =-(IF('I2 CBA Inputs'!$C$431=$A$1,'I2 CBA Inputs'!M$432)+IF('I2 CBA Inputs'!$C$449=$A$1,'I2 CBA Inputs'!M$450)+IF('I2 CBA Inputs'!$C$467=$A$1,'I2 CBA Inputs'!M$468)+IF('I2 CBA Inputs'!$C$485=$A$1,'I2 CBA Inputs'!M$486))*$F$25*N$68*'I1 General Inputs'!$D15 -> 0 | O54: =-(IF('I2 CBA Inputs'!$C$431=$A$1,'I2 CBA Inputs'!N$432)+IF('I2 CBA Inputs'!$C$449=$A$1,'I2 CBA Inputs'!N$450)+IF('I2 CBA Inputs'!$C$467=$A$1,'I2 CBA Inputs'!N$468)+IF('I2 CBA Inputs'!$C$485=$A$1,'I2 CBA Inputs'!N$486))*$F$25*O$68*'I1 General Inputs'!$D15 -> 0 | P54: =-(IF('I2 CBA Inputs'!$C$431=$A$1,'I2 CBA Inputs'!O$432)+IF('I2 CBA Inputs'!$C$449=$A$1,'I2 CBA Inputs'!O$450)+IF('I2 CBA Inputs'!$C$467=$A$1,'I2 CBA Inputs'!O$468)+IF('I2 CBA Inputs'!$C$485=$A$1,'I2 CBA Inputs'!O$486))*$F$25*P$68*'I1 General Inputs'!$D15 -> 0 | Q54: =-(IF('I2 CBA Inputs'!$C$431=$A$1,'I2 CBA Inputs'!P$432)+IF('I2 CBA Inputs'!$C$449=$A$1,'I2 CBA Inputs'!P$450)+IF('I2 CBA Inputs'!$C$467=$A$1,'I2 CBA Inputs'!P$468)+IF('I2 CBA Inputs'!$C$485=$A$1,'I2 CBA Inputs'!P$486))*$F$25*Q$68*'I1 General Inputs'!$D15 -> 0 | R54: =-(IF('I2 CBA Inputs'!$C$431=$A$1,'I2 CBA Inputs'!Q$432)+IF('I2 CBA Inputs'!$C$449=$A$1,'I2 CBA Inputs'!Q$450)+IF('I2 CBA Inputs'!$C$467=$A$1,'I2 CBA Inputs'!Q$468)+IF('I2 CBA Inputs'!$C$485=$A$1,'I2 CBA Inputs'!Q$486))*$F$25*R$68*'I1 General Inputs'!$D15 -> 0 | S54: =-(IF('I2 CBA Inputs'!$C$431=$A$1,'I2 CBA Inputs'!R$432)+IF('I2 CBA Inputs'!$C$449=$A$1,'I2 CBA Inputs'!R$450)+IF('I2 CBA Inputs'!$C$467=$A$1,'I2 CBA Inputs'!R$468)+IF('I2 CBA Inputs'!$C$485=$A$1,'I2 CBA Inputs'!R$486))*$F$25*S$68*'I1 General Inputs'!$D15 -> 0 | T54: =-(IF('I2 CBA Inputs'!$C$431=$A$1,'I2 CBA Inputs'!S$432)+IF('I2 CBA Inputs'!$C$449=$A$1,'I2 CBA Inputs'!S$450)+IF('I2 CBA Inputs'!$C$467=$A$1,'I2 CBA Inputs'!S$468)+IF('I2 CBA Inputs'!$C$485=$A$1,'I2 CBA Inputs'!S$486))*$F$25*T$68*'I1 General Inputs'!$D15 -> 0 | U54: =-(IF('I2 CBA Inputs'!$C$431=$A$1,'I2 CBA Inputs'!T$432)+IF('I2 CBA Inputs'!$C$449=$A$1,'I2 CBA Inputs'!T$450)+IF('I2 CBA Inputs'!$C$467=$A$1,'I2 CBA Inputs'!T$468)+IF('I2 CBA Inputs'!$C$485=$A$1,'I2 CBA Inputs'!T$486))*$F$25*U$68*'I1 General Inputs'!$D15 -> 0 | V54: =-(IF('I2 CBA Inputs'!$C$431=$A$1,'I2 CBA Inputs'!U$432)+IF('I2 CBA Inputs'!$C$449=$A$1,'I2 CBA Inputs'!U$450)+IF('I2 CBA Inputs'!$C$467=$A$1,'I2 CBA Inputs'!U$468)+IF('I2 CBA Inputs'!$C$485=$A$1,'I2 CBA Inputs'!U$486))*$F$25*V$68*'I1 General Inputs'!$D15 -> 0 | W54: =-(IF('I2 CBA Inputs'!$C$431=$A$1,'I2 CBA Inputs'!V$432)+IF('I2 CBA Inputs'!$C$449=$A$1,'I2 CBA Inputs'!V$450)+IF('I2 CBA Inputs'!$C$467=$A$1,'I2 CBA Inputs'!V$468)+IF('I2 CBA Inputs'!$C$485=$A$1,'I2 CBA Inputs'!V$486))*$F$25*W$68*'I1 General Inputs'!$D15 -> 0 | X54: =-(IF('I2 CBA Inputs'!$C$431=$A$1,'I2 CBA Inputs'!W$432)+IF('I2 CBA Inputs'!$C$449=$A$1,'I2 CBA Inputs'!W$450)+IF('I2 CBA Inputs'!$C$467=$A$1,'I2 CBA Inputs'!W$468)+IF('I2 CBA Inputs'!$C$485=$A$1,'I2 CBA Inputs'!W$486))*$F$25*X$68*'I1 General Inputs'!$D15 -> 0 | Y54: =-(IF('I2 CBA Inputs'!$C$431=$A$1,'I2 CBA Inputs'!X$432)+IF('I2 CBA Inputs'!$C$449=$A$1,'I2 CBA Inputs'!X$450)+IF('I2 CBA Inputs'!$C$467=$A$1,'I2 CBA Inputs'!X$468)+IF('I2 CBA Inputs'!$C$485=$A$1,'I2 CBA Inputs'!X$486))*$F$25*Y$68*'I1 General Inputs'!$D15 -> 0 | Z54: =-(IF('I2 CBA Inputs'!$C$431=$A$1,'I2 CBA Inputs'!Y$432)+IF('I2 CBA Inputs'!$C$449=$A$1,'I2 CBA Inputs'!Y$450)+IF('I2 CBA Inputs'!$C$467=$A$1,'I2 CBA Inputs'!Y$468)+IF('I2 CBA Inputs'!$C$485=$A$1,'I2 CBA Inputs'!Y$486))*$F$25*Z$68*'I1 General Inputs'!$D15 -> 0 | AA54: =-(IF('I2 CBA Inputs'!$C$431=$A$1,'I2 CBA Inputs'!Z$432)+IF('I2 CBA Inputs'!$C$449=$A$1,'I2 CBA Inputs'!Z$450)+IF('I2 CBA Inputs'!$C$467=$A$1,'I2 CBA Inputs'!Z$468)+IF('I2 CBA Inputs'!$C$485=$A$1,'I2 CBA Inputs'!Z$486))*$F$25*AA$68*'I1 General Inputs'!$D15 -> 0 | AB54: =-(IF('I2 CBA Inputs'!$C$431=$A$1,'I2 CBA Inputs'!AA$432)+IF('I2 CBA Inputs'!$C$449=$A$1,'I2 CBA Inputs'!AA$450)+IF('I2 CBA Inputs'!$C$467=$A$1,'I2 CBA Inputs'!AA$468)+IF('I2 CBA Inputs'!$C$485=$A$1,'I2 CBA Inputs'!AA$486))*$F$25*AB$68*'I1 General Inputs'!$D15 -> 0 | AC54: =-(IF('I2 CBA Inputs'!$C$431=$A$1,'I2 CBA Inputs'!AB$432)+IF('I2 CBA Inputs'!$C$449=$A$1,'I2 CBA Inputs'!AB$450)+IF('I2 CBA Inputs'!$C$467=$A$1,'I2 CBA Inputs'!AB$468)+IF('I2 CBA Inputs'!$C$485=$A$1,'I2 CBA Inputs'!AB$486))*$F$25*AC$68*'I1 General Inputs'!$D15 -> 0 | AD54: =-(IF('I2 CBA Inputs'!$C$431=$A$1,'I2 CBA Inputs'!AC$432)+IF('I2 CBA Inputs'!$C$449=$A$1,'I2 CBA Inputs'!AC$450)+IF('I2 CBA Inputs'!$C$467=$A$1,'I2 CBA Inputs'!AC$468)+IF('I2 CBA Inputs'!$C$485=$A$1,'I2 CBA Inputs'!AC$486))*$F$25*AD$68*'I1 General Inputs'!$D15 -> 0 | AE54: =-(IF('I2 CBA Inputs'!$C$431=$A$1,'I2 CBA Inputs'!AD$432)+IF('I2 CBA Inputs'!$C$449=$A$1,'I2 CBA Inputs'!AD$450)+IF('I2 CBA Inputs'!$C$467=$A$1,'I2 CBA Inputs'!AD$468)+IF('I2 CBA Inputs'!$C$485=$A$1,'I2 CBA Inputs'!AD$486))*$F$25*AE$68*'I1 General Inputs'!$D15 -> 0 | AF54: =-(IF('I2 CBA Inputs'!$C$431=$A$1,'I2 CBA Inputs'!AE$432)+IF('I2 CBA Inputs'!$C$449=$A$1,'I2 CBA Inputs'!AE$450)+IF('I2 CBA Inputs'!$C$467=$A$1,'I2 CBA Inputs'!AE$468)+IF('I2 CBA Inputs'!$C$485=$A$1,'I2 CBA Inputs'!AE$486))*$F$25*AF$68*'I1 General Inputs'!$D15 -> 0 | AG54: =-(IF('I2 CBA Inputs'!$C$431=$A$1,'I2 CBA Inputs'!AF$432)+IF('I2 CBA Inputs'!$C$449=$A$1,'I2 CBA Inputs'!AF$450)+IF('I2 CBA Inputs'!$C$467=$A$1,'I2 CBA Inputs'!AF$468)+IF('I2 CBA Inputs'!$C$485=$A$1,'I2 CBA Inputs'!AF$486))*$F$25*AG$68*'I1 General Inputs'!$D15 -> 0 | AH54: =-(IF('I2 CBA Inputs'!$C$431=$A$1,'I2 CBA Inputs'!AG$432)+IF('I2 CBA Inputs'!$C$449=$A$1,'I2 CBA Inputs'!AG$450)+IF('I2 CBA Inputs'!$C$467=$A$1,'I2 CBA Inputs'!AG$468)+IF('I2 CBA Inputs'!$C$485=$A$1,'I2 CBA Inputs'!AG$486))*$F$25*AH$68*'I1 General Inputs'!$D15 -> 0 | AI54: =-(IF('I2 CBA Inputs'!$C$431=$A$1,'I2 CBA Inputs'!AH$432)+IF('I2 CBA Inputs'!$C$449=$A$1,'I2 CBA Inputs'!AH$450)+IF('I2 CBA Inputs'!$C$467=$A$1,'I2 CBA Inputs'!AH$468)+IF('I2 CBA Inputs'!$C$485=$A$1,'I2 CBA Inputs'!AH$486))*$F$25*AI$68*'I1 General Inputs'!$D15 -> 0
B56: Gross market benefits for the base case
B57: Category | D57: =+D$69 -> Units | E57: PV | F57: =F$69 -> 2025 | G57: =G$69 -> 2026 | H57: 2027 | I57: 2028 | J57: 2029 | K57: 2030 | L57: 2031 | M57: 2032 | N57: 2033 | O57: 2034 | P57: 2035 | Q57: 2036 | R57: 2037 | S57: 2038 | T57: 2039 | U57: 2040 | V57: 2041 | W57: 2042 | X57: 2043 | Y57: 2044 | Z57: 0 | AA57: 0 | AB57: 0 | AC57: 0 | AD57: 0 | AE57: 0 | AF57: 0 | AG57: 0 | AH57: 0 | AI57: 0
B58: ='I1 General Inputs'!B52 -> Avoided involuntary load shedding | D58: $ | E58: =NPV($F$8,$F58:$AI58)/(1+$F$8)^(FirstYear-BaseYear-1) -> -146621901.4 | F58: =-(IF('I2 CBA Inputs'!$C$507=$A$1,'I2 CBA Inputs'!E$508)+IF('I2 CBA Inputs'!$C$525=$A$1,'I2 CBA Inputs'!E$526)+IF('I2 CBA Inputs'!$C$543=$A$1,'I2 CBA Inputs'!E$544)+IF('I2 CBA Inputs'!$C$561=$A$1,'I2 CBA Inputs'!E$562))*$F$9*$F$28*F$68*'I1 General Inputs'!$D15 -> -9035539.654 | G58: =-(IF('I2 CBA Inputs'!$C$507=$A$1,'I2 CBA Inputs'!F$508)+IF('I2 CBA Inputs'!$C$525=$A$1,'I2 CBA Inputs'!F$526)+IF('I2 CBA Inputs'!$C$543=$A$1,'I2 CBA Inputs'!F$544)+IF('I2 CBA Inputs'!$C$561=$A$1,'I2 CBA Inputs'!F$562))*$F$9*$F$28*G$68*'I1 General Inputs'!$D15 -> -9582152.122 | H58: =-(IF('I2 CBA Inputs'!$C$507=$A$1,'I2 CBA Inputs'!G$508)+IF('I2 CBA Inputs'!$C$525=$A$1,'I2 CBA Inputs'!G$526)+IF('I2 CBA Inputs'!$C$543=$A$1,'I2 CBA Inputs'!G$544)+IF('I2 CBA Inputs'!$C$561=$A$1,'I2 CBA Inputs'!G$562))*$F$9*$F$28*H$68*'I1 General Inputs'!$D15 -> -10228427.76 | I58: =-(IF('I2 CBA Inputs'!$C$507=$A$1,'I2 CBA Inputs'!H$508)+IF('I2 CBA Inputs'!$C$525=$A$1,'I2 CBA Inputs'!H$526)+IF('I2 CBA Inputs'!$C$543=$A$1,'I2 CBA Inputs'!H$544)+IF('I2 CBA Inputs'!$C$561=$A$1,'I2 CBA Inputs'!H$562))*$F$9*$F$28*I$68*'I1 General Inputs'!$D15 -> -10752337.57 | J58: =-(IF('I2 CBA Inputs'!$C$507=$A$1,'I2 CBA Inputs'!I$508)+IF('I2 CBA Inputs'!$C$525=$A$1,'I2 CBA Inputs'!I$526)+IF('I2 CBA Inputs'!$C$543=$A$1,'I2 CBA Inputs'!I$544)+IF('I2 CBA Inputs'!$C$561=$A$1,'I2 CBA Inputs'!I$562))*$F$9*$F$28*J$68*'I1 General Inputs'!$D15 -> -11098738.37 | K58: =-(IF('I2 CBA Inputs'!$C$507=$A$1,'I2 CBA Inputs'!J$508)+IF('I2 CBA Inputs'!$C$525=$A$1,'I2 CBA Inputs'!J$526)+IF('I2 CBA Inputs'!$C$543=$A$1,'I2 CBA Inputs'!J$544)+IF('I2 CBA Inputs'!$C$561=$A$1,'I2 CBA Inputs'!J$562))*$F$9*$F$28*K$68*'I1 General Inputs'!$D15 -> -11399015.37 | L58: =-(IF('I2 CBA Inputs'!$C$507=$A$1,'I2 CBA Inputs'!K$508)+IF('I2 CBA Inputs'!$C$525=$A$1,'I2 CBA Inputs'!K$526)+IF('I2 CBA Inputs'!$C$543=$A$1,'I2 CBA Inputs'!K$544)+IF('I2 CBA Inputs'!$C$561=$A$1,'I2 CBA Inputs'!K$562))*$F$9*$F$28*L$68*'I1 General Inputs'!$D15 -> -11732857.38 | M58: =-(IF('I2 CBA Inputs'!$C$507=$A$1,'I2 CBA Inputs'!L$508)+IF('I2 CBA Inputs'!$C$525=$A$1,'I2 CBA Inputs'!L$526)+IF('I2 CBA Inputs'!$C$543=$A$1,'I2 CBA Inputs'!L$544)+IF('I2 CBA Inputs'!$C$561=$A$1,'I2 CBA Inputs'!L$562))*$F$9*$F$28*M$68*'I1 General Inputs'!$D15 -> -12148362.68 | N58: =-(IF('I2 CBA Inputs'!$C$507=$A$1,'I2 CBA Inputs'!M$508)+IF('I2 CBA Inputs'!$C$525=$A$1,'I2 CBA Inputs'!M$526)+IF('I2 CBA Inputs'!$C$543=$A$1,'I2 CBA Inputs'!M$544)+IF('I2 CBA Inputs'!$C$561=$A$1,'I2 CBA Inputs'!M$562))*$F$9*$F$28*N$68*'I1 General Inputs'!$D15 -> -12537631.94 | O58: =-(IF('I2 CBA Inputs'!$C$507=$A$1,'I2 CBA Inputs'!N$508)+IF('I2 CBA Inputs'!$C$525=$A$1,'I2 CBA Inputs'!N$526)+IF('I2 CBA Inputs'!$C$543=$A$1,'I2 CBA Inputs'!N$544)+IF('I2 CBA Inputs'!$C$561=$A$1,'I2 CBA Inputs'!N$562))*$F$9*$F$28*O$68*'I1 General Inputs'!$D15 -> -12753641.82 | P58: =-(IF('I2 CBA Inputs'!$C$507=$A$1,'I2 CBA Inputs'!O$508)+IF('I2 CBA Inputs'!$C$525=$A$1,'I2 CBA Inputs'!O$526)+IF('I2 CBA Inputs'!$C$543=$A$1,'I2 CBA Inputs'!O$544)+IF('I2 CBA Inputs'!$C$561=$A$1,'I2 CBA Inputs'!O$562))*$F$9*$F$28*P$68*'I1 General Inputs'!$D15 -> -12883017.91 | Q58: =-(IF('I2 CBA Inputs'!$C$507=$A$1,'I2 CBA Inputs'!P$508)+IF('I2 CBA Inputs'!$C$525=$A$1,'I2 CBA Inputs'!P$526)+IF('I2 CBA Inputs'!$C$543=$A$1,'I2 CBA Inputs'!P$544)+IF('I2 CBA Inputs'!$C$561=$A$1,'I2 CBA Inputs'!P$562))*$F$9*$F$28*Q$68*'I1 General Inputs'!$D15 -> -13108022.36 | R58: =-(IF('I2 CBA Inputs'!$C$507=$A$1,'I2 CBA Inputs'!Q$508)+IF('I2 CBA Inputs'!$C$525=$A$1,'I2 CBA Inputs'!Q$526)+IF('I2 CBA Inputs'!$C$543=$A$1,'I2 CBA Inputs'!Q$544)+IF('I2 CBA Inputs'!$C$561=$A$1,'I2 CBA Inputs'!Q$562))*$F$9*$F$28*R$68*'I1 General Inputs'!$D15 -> -13408889.56 | S58: =-(IF('I2 CBA Inputs'!$C$507=$A$1,'I2 CBA Inputs'!R$508)+IF('I2 CBA Inputs'!$C$525=$A$1,'I2 CBA Inputs'!R$526)+IF('I2 CBA Inputs'!$C$543=$A$1,'I2 CBA Inputs'!R$544)+IF('I2 CBA Inputs'!$C$561=$A$1,'I2 CBA Inputs'!R$562))*$F$9*$F$28*S$68*'I1 General Inputs'!$D15 -> -13736296.59 | T58: =-(IF('I2 CBA Inputs'!$C$507=$A$1,'I2 CBA Inputs'!S$508)+IF('I2 CBA Inputs'!$C$525=$A$1,'I2 CBA Inputs'!S$526)+IF('I2 CBA Inputs'!$C$543=$A$1,'I2 CBA Inputs'!S$544)+IF('I2 CBA Inputs'!$C$561=$A$1,'I2 CBA Inputs'!S$562))*$F$9*$F$28*T$68*'I1 General Inputs'!$D15 -> -13975196.73 | U58: =-(IF('I2 CBA Inputs'!$C$507=$A$1,'I2 CBA Inputs'!T$508)+IF('I2 CBA Inputs'!$C$525=$A$1,'I2 CBA Inputs'!T$526)+IF('I2 CBA Inputs'!$C$543=$A$1,'I2 CBA Inputs'!T$544)+IF('I2 CBA Inputs'!$C$561=$A$1,'I2 CBA Inputs'!T$562))*$F$9*$F$28*U$68*'I1 General Inputs'!$D15 -> -14150396.08 | V58: =-(IF('I2 CBA Inputs'!$C$507=$A$1,'I2 CBA Inputs'!U$508)+IF('I2 CBA Inputs'!$C$525=$A$1,'I2 CBA Inputs'!U$526)+IF('I2 CBA Inputs'!$C$543=$A$1,'I2 CBA Inputs'!U$544)+IF('I2 CBA Inputs'!$C$561=$A$1,'I2 CBA Inputs'!U$562))*$F$9*$F$28*V$68*'I1 General Inputs'!$D15 -> -14321186.86 | W58: =-(IF('I2 CBA Inputs'!$C$507=$A$1,'I2 CBA Inputs'!V$508)+IF('I2 CBA Inputs'!$C$525=$A$1,'I2 CBA Inputs'!V$526)+IF('I2 CBA Inputs'!$C$543=$A$1,'I2 CBA Inputs'!V$544)+IF('I2 CBA Inputs'!$C$561=$A$1,'I2 CBA Inputs'!V$562))*$F$9*$F$28*W$68*'I1 General Inputs'!$D15 -> -14486948.4 | X58: =-(IF('I2 CBA Inputs'!$C$507=$A$1,'I2 CBA Inputs'!W$508)+IF('I2 CBA Inputs'!$C$525=$A$1,'I2 CBA Inputs'!W$526)+IF('I2 CBA Inputs'!$C$543=$A$1,'I2 CBA Inputs'!W$544)+IF('I2 CBA Inputs'!$C$561=$A$1,'I2 CBA Inputs'!W$562))*$F$9*$F$28*X$68*'I1 General Inputs'!$D15 -> -14639990.24 | Y58: =-(IF('I2 CBA Inputs'!$C$507=$A$1,'I2 CBA Inputs'!X$508)+IF('I2 CBA Inputs'!$C$525=$A$1,'I2 CBA Inputs'!X$526)+IF('I2 CBA Inputs'!$C$543=$A$1,'I2 CBA Inputs'!X$544)+IF('I2 CBA Inputs'!$C$561=$A$1,'I2 CBA Inputs'!X$562))*$F$9*$F$28*Y$68*'I1 General Inputs'!$D15 -> -14820079.03 | Z58: =-(IF('I2 CBA Inputs'!$C$507=$A$1,'I2 CBA Inputs'!Y$508)+IF('I2 CBA Inputs'!$C$525=$A$1,'I2 CBA Inputs'!Y$526)+IF('I2 CBA Inputs'!$C$543=$A$1,'I2 CBA Inputs'!Y$544)+IF('I2 CBA Inputs'!$C$561=$A$1,'I2 CBA Inputs'!Y$562))*$F$9*$F$28*Z$68*'I1 General Inputs'!$D15 -> 0 | AA58: =-(IF('I2 CBA Inputs'!$C$507=$A$1,'I2 CBA Inputs'!Z$508)+IF('I2 CBA Inputs'!$C$525=$A$1,'I2 CBA Inputs'!Z$526)+IF('I2 CBA Inputs'!$C$543=$A$1,'I2 CBA Inputs'!Z$544)+IF('I2 CBA Inputs'!$C$561=$A$1,'I2 CBA Inputs'!Z$562))*$F$9*$F$28*AA$68*'I1 General Inputs'!$D15 -> 0 | AB58: =-(IF('I2 CBA Inputs'!$C$507=$A$1,'I2 CBA Inputs'!AA$508)+IF('I2 CBA Inputs'!$C$525=$A$1,'I2 CBA Inputs'!AA$526)+IF('I2 CBA Inputs'!$C$543=$A$1,'I2 CBA Inputs'!AA$544)+IF('I2 CBA Inputs'!$C$561=$A$1,'I2 CBA Inputs'!AA$562))*$F$9*$F$28*AB$68*'I1 General Inputs'!$D15 -> 0 | AC58: =-(IF('I2 CBA Inputs'!$C$507=$A$1,'I2 CBA Inputs'!AB$508)+IF('I2 CBA Inputs'!$C$525=$A$1,'I2 CBA Inputs'!AB$526)+IF('I2 CBA Inputs'!$C$543=$A$1,'I2 CBA Inputs'!AB$544)+IF('I2 CBA Inputs'!$C$561=$A$1,'I2 CBA Inputs'!AB$562))*$F$9*$F$28*AC$68*'I1 General Inputs'!$D15 -> 0 | AD58: =-(IF('I2 CBA Inputs'!$C$507=$A$1,'I2 CBA Inputs'!AC$508)+IF('I2 CBA Inputs'!$C$525=$A$1,'I2 CBA Inputs'!AC$526)+IF('I2 CBA Inputs'!$C$543=$A$1,'I2 CBA Inputs'!AC$544)+IF('I2 CBA Inputs'!$C$561=$A$1,'I2 CBA Inputs'!AC$562))*$F$9*$F$28*AD$68*'I1 General Inputs'!$D15 -> 0 | AE58: =-(IF('I2 CBA Inputs'!$C$507=$A$1,'I2 CBA Inputs'!AD$508)+IF('I2 CBA Inputs'!$C$525=$A$1,'I2 CBA Inputs'!AD$526)+IF('I2 CBA Inputs'!$C$543=$A$1,'I2 CBA Inputs'!AD$544)+IF('I2 CBA Inputs'!$C$561=$A$1,'I2 CBA Inputs'!AD$562))*$F$9*$F$28*AE$68*'I1 General Inputs'!$D15 -> 0 | AF58: =-(IF('I2 CBA Inputs'!$C$507=$A$1,'I2 CBA Inputs'!AE$508)+IF('I2 CBA Inputs'!$C$525=$A$1,'I2 CBA Inputs'!AE$526)+IF('I2 CBA Inputs'!$C$543=$A$1,'I2 CBA Inputs'!AE$544)+IF('I2 CBA Inputs'!$C$561=$A$1,'I2 CBA Inputs'!AE$562))*$F$9*$F$28*AF$68*'I1 General Inputs'!$D15 -> 0 | AG58: =-(IF('I2 CBA Inputs'!$C$507=$A$1,'I2 CBA Inputs'!AF$508)+IF('I2 CBA Inputs'!$C$525=$A$1,'I2 CBA Inputs'!AF$526)+IF('I2 CBA Inputs'!$C$543=$A$1,'I2 CBA Inputs'!AF$544)+IF('I2 CBA Inputs'!$C$561=$A$1,'I2 CBA Inputs'!AF$562))*$F$9*$F$28*AG$68*'I1 General Inputs'!$D15 -> 0 | AH58: =-(IF('I2 CBA Inputs'!$C$507=$A$1,'I2 CBA Inputs'!AG$508)+IF('I2 CBA Inputs'!$C$525=$A$1,'I2 CBA Inputs'!AG$526)+IF('I2 CBA Inputs'!$C$543=$A$1,'I2 CBA Inputs'!AG$544)+IF('I2 CBA Inputs'!$C$561=$A$1,'I2 CBA Inputs'!AG$562))*$F$9*$F$28*AH$68*'I1 General Inputs'!$D15 -> 0 | AI58: =-(IF('I2 CBA Inputs'!$C$507=$A$1,'I2 CBA Inputs'!AH$508)+IF('I2 CBA Inputs'!$C$525=$A$1,'I2 CBA Inputs'!AH$526)+IF('I2 CBA Inputs'!$C$543=$A$1,'I2 CBA Inputs'!AH$544)+IF('I2 CBA Inputs'!$C$561=$A$1,'I2 CBA Inputs'!AH$562))*$F$9*$F$28*AI$68*'I1 General Inputs'!$D15 -> 0
B59: ='I1 General Inputs'!B53 -> Avoided voluntary load curtailment | D59: $ | E59: 0 | F59: =-(IF('I2 CBA Inputs'!$C$580=$A$1,'I2 CBA Inputs'!E$581)+IF('I2 CBA Inputs'!$C$598=$A$1,'I2 CBA Inputs'!E$599)+IF('I2 CBA Inputs'!$C$616=$A$1,'I2 CBA Inputs'!E$617)+IF('I2 CBA Inputs'!$C$634=$A$1,'I2 CBA Inputs'!E$635))*$F$10*$F$29*F$68*'I1 General Inputs'!$D15 -> 0 | G59: =-(IF('I2 CBA Inputs'!$C$580=$A$1,'I2 CBA Inputs'!F$581)+IF('I2 CBA Inputs'!$C$598=$A$1,'I2 CBA Inputs'!F$599)+IF('I2 CBA Inputs'!$C$616=$A$1,'I2 CBA Inputs'!F$617)+IF('I2 CBA Inputs'!$C$634=$A$1,'I2 CBA Inputs'!F$635))*$F$10*$F$29*G$68*'I1 General Inputs'!$D15 -> 0 | H59: =-(IF('I2 CBA Inputs'!$C$580=$A$1,'I2 CBA Inputs'!G$581)+IF('I2 CBA Inputs'!$C$598=$A$1,'I2 CBA Inputs'!G$599)+IF('I2 CBA Inputs'!$C$616=$A$1,'I2 CBA Inputs'!G$617)+IF('I2 CBA Inputs'!$C$634=$A$1,'I2 CBA Inputs'!G$635))*$F$10*$F$29*H$68*'I1 General Inputs'!$D15 -> 0 | I59: =-(IF('I2 CBA Inputs'!$C$580=$A$1,'I2 CBA Inputs'!H$581)+IF('I2 CBA Inputs'!$C$598=$A$1,'I2 CBA Inputs'!H$599)+IF('I2 CBA Inputs'!$C$616=$A$1,'I2 CBA Inputs'!H$617)+IF('I2 CBA Inputs'!$C$634=$A$1,'I2 CBA Inputs'!H$635))*$F$10*$F$29*I$68*'I1 General Inputs'!$D15 -> 0 | J59: =-(IF('I2 CBA Inputs'!$C$580=$A$1,'I2 CBA Inputs'!I$581)+IF('I2 CBA Inputs'!$C$598=$A$1,'I2 CBA Inputs'!I$599)+IF('I2 CBA Inputs'!$C$616=$A$1,'I2 CBA Inputs'!I$617)+IF('I2 CBA Inputs'!$C$634=$A$1,'I2 CBA Inputs'!I$635))*$F$10*$F$29*J$68*'I1 General Inputs'!$D15 -> 0 | K59: =-(IF('I2 CBA Inputs'!$C$580=$A$1,'I2 CBA Inputs'!J$581)+IF('I2 CBA Inputs'!$C$598=$A$1,'I2 CBA Inputs'!J$599)+IF('I2 CBA Inputs'!$C$616=$A$1,'I2 CBA Inputs'!J$617)+IF('I2 CBA Inputs'!$C$634=$A$1,'I2 CBA Inputs'!J$635))*$F$10*$F$29*K$68*'I1 General Inputs'!$D15 -> 0 | L59: =-(IF('I2 CBA Inputs'!$C$580=$A$1,'I2 CBA Inputs'!K$581)+IF('I2 CBA Inputs'!$C$598=$A$1,'I2 CBA Inputs'!K$599)+IF('I2 CBA Inputs'!$C$616=$A$1,'I2 CBA Inputs'!K$617)+IF('I2 CBA Inputs'!$C$634=$A$1,'I2 CBA Inputs'!K$635))*$F$10*$F$29*L$68*'I1 General Inputs'!$D15 -> 0 | M59: =-(IF('I2 CBA Inputs'!$C$580=$A$1,'I2 CBA Inputs'!L$581)+IF('I2 CBA Inputs'!$C$598=$A$1,'I2 CBA Inputs'!L$599)+IF('I2 CBA Inputs'!$C$616=$A$1,'I2 CBA Inputs'!L$617)+IF('I2 CBA Inputs'!$C$634=$A$1,'I2 CBA Inputs'!L$635))*$F$10*$F$29*M$68*'I1 General Inputs'!$D15 -> 0 | N59: =-(IF('I2 CBA Inputs'!$C$580=$A$1,'I2 CBA Inputs'!M$581)+IF('I2 CBA Inputs'!$C$598=$A$1,'I2 CBA Inputs'!M$599)+IF('I2 CBA Inputs'!$C$616=$A$1,'I2 CBA Inputs'!M$617)+IF('I2 CBA Inputs'!$C$634=$A$1,'I2 CBA Inputs'!M$635))*$F$10*$F$29*N$68*'I1 General Inputs'!$D15 -> 0 | O59: =-(IF('I2 CBA Inputs'!$C$580=$A$1,'I2 CBA Inputs'!N$581)+IF('I2 CBA Inputs'!$C$598=$A$1,'I2 CBA Inputs'!N$599)+IF('I2 CBA Inputs'!$C$616=$A$1,'I2 CBA Inputs'!N$617)+IF('I2 CBA Inputs'!$C$634=$A$1,'I2 CBA Inputs'!N$635))*$F$10*$F$29*O$68*'I1 General Inputs'!$D15 -> 0 | P59: =-(IF('I2 CBA Inputs'!$C$580=$A$1,'I2 CBA Inputs'!O$581)+IF('I2 CBA Inputs'!$C$598=$A$1,'I2 CBA Inputs'!O$599)+IF('I2 CBA Inputs'!$C$616=$A$1,'I2 CBA Inputs'!O$617)+IF('I2 CBA Inputs'!$C$634=$A$1,'I2 CBA Inputs'!O$635))*$F$10*$F$29*P$68*'I1 General Inputs'!$D15 -> 0 | Q59: =-(IF('I2 CBA Inputs'!$C$580=$A$1,'I2 CBA Inputs'!P$581)+IF('I2 CBA Inputs'!$C$598=$A$1,'I2 CBA Inputs'!P$599)+IF('I2 CBA Inputs'!$C$616=$A$1,'I2 CBA Inputs'!P$617)+IF('I2 CBA Inputs'!$C$634=$A$1,'I2 CBA Inputs'!P$635))*$F$10*$F$29*Q$68*'I1 General Inputs'!$D15 -> 0 | R59: =-(IF('I2 CBA Inputs'!$C$580=$A$1,'I2 CBA Inputs'!Q$581)+IF('I2 CBA Inputs'!$C$598=$A$1,'I2 CBA Inputs'!Q$599)+IF('I2 CBA Inputs'!$C$616=$A$1,'I2 CBA Inputs'!Q$617)+IF('I2 CBA Inputs'!$C$634=$A$1,'I2 CBA Inputs'!Q$635))*$F$10*$F$29*R$68*'I1 General Inputs'!$D15 -> 0 | S59: =-(IF('I2 CBA Inputs'!$C$580=$A$1,'I2 CBA Inputs'!R$581)+IF('I2 CBA Inputs'!$C$598=$A$1,'I2 CBA Inputs'!R$599)+IF('I2 CBA Inputs'!$C$616=$A$1,'I2 CBA Inputs'!R$617)+IF('I2 CBA Inputs'!$C$634=$A$1,'I2 CBA Inputs'!R$635))*$F$10*$F$29*S$68*'I1 General Inputs'!$D15 -> 0 | T59: =-(IF('I2 CBA Inputs'!$C$580=$A$1,'I2 CBA Inputs'!S$581)+IF('I2 CBA Inputs'!$C$598=$A$1,'I2 CBA Inputs'!S$599)+IF('I2 CBA Inputs'!$C$616=$A$1,'I2 CBA Inputs'!S$617)+IF('I2 CBA Inputs'!$C$634=$A$1,'I2 CBA Inputs'!S$635))*$F$10*$F$29*T$68*'I1 General Inputs'!$D15 -> 0 | U59: =-(IF('I2 CBA Inputs'!$C$580=$A$1,'I2 CBA Inputs'!T$581)+IF('I2 CBA Inputs'!$C$598=$A$1,'I2 CBA Inputs'!T$599)+IF('I2 CBA Inputs'!$C$616=$A$1,'I2 CBA Inputs'!T$617)+IF('I2 CBA Inputs'!$C$634=$A$1,'I2 CBA Inputs'!T$635))*$F$10*$F$29*U$68*'I1 General Inputs'!$D15 -> 0 | V59: =-(IF('I2 CBA Inputs'!$C$580=$A$1,'I2 CBA Inputs'!U$581)+IF('I2 CBA Inputs'!$C$598=$A$1,'I2 CBA Inputs'!U$599)+IF('I2 CBA Inputs'!$C$616=$A$1,'I2 CBA Inputs'!U$617)+IF('I2 CBA Inputs'!$C$634=$A$1,'I2 CBA Inputs'!U$635))*$F$10*$F$29*V$68*'I1 General Inputs'!$D15 -> 0 | W59: =-(IF('I2 CBA Inputs'!$C$580=$A$1,'I2 CBA Inputs'!V$581)+IF('I2 CBA Inputs'!$C$598=$A$1,'I2 CBA Inputs'!V$599)+IF('I2 CBA Inputs'!$C$616=$A$1,'I2 CBA Inputs'!V$617)+IF('I2 CBA Inputs'!$C$634=$A$1,'I2 CBA Inputs'!V$635))*$F$10*$F$29*W$68*'I1 General Inputs'!$D15 -> 0 | X59: =-(IF('I2 CBA Inputs'!$C$580=$A$1,'I2 CBA Inputs'!W$581)+IF('I2 CBA Inputs'!$C$598=$A$1,'I2 CBA Inputs'!W$599)+IF('I2 CBA Inputs'!$C$616=$A$1,'I2 CBA Inputs'!W$617)+IF('I2 CBA Inputs'!$C$634=$A$1,'I2 CBA Inputs'!W$635))*$F$10*$F$29*X$68*'I1 General Inputs'!$D15 -> 0 | Y59: =-(IF('I2 CBA Inputs'!$C$580=$A$1,'I2 CBA Inputs'!X$581)+IF('I2 CBA Inputs'!$C$598=$A$1,'I2 CBA Inputs'!X$599)+IF('I2 CBA Inputs'!$C$616=$A$1,'I2 CBA Inputs'!X$617)+IF('I2 CBA Inputs'!$C$634=$A$1,'I2 CBA Inputs'!X$635))*$F$10*$F$29*Y$68*'I1 General Inputs'!$D15 -> 0 | Z59: =-(IF('I2 CBA Inputs'!$C$580=$A$1,'I2 CBA Inputs'!Y$581)+IF('I2 CBA Inputs'!$C$598=$A$1,'I2 CBA Inputs'!Y$599)+IF('I2 CBA Inputs'!$C$616=$A$1,'I2 CBA Inputs'!Y$617)+IF('I2 CBA Inputs'!$C$634=$A$1,'I2 CBA Inputs'!Y$635))*$F$10*$F$29*Z$68*'I1 General Inputs'!$D15 -> 0 | AA59: =-(IF('I2 CBA Inputs'!$C$580=$A$1,'I2 CBA Inputs'!Z$581)+IF('I2 CBA Inputs'!$C$598=$A$1,'I2 CBA Inputs'!Z$599)+IF('I2 CBA Inputs'!$C$616=$A$1,'I2 CBA Inputs'!Z$617)+IF('I2 CBA Inputs'!$C$634=$A$1,'I2 CBA Inputs'!Z$635))*$F$10*$F$29*AA$68*'I1 General Inputs'!$D15 -> 0 | AB59: =-(IF('I2 CBA Inputs'!$C$580=$A$1,'I2 CBA Inputs'!AA$581)+IF('I2 CBA Inputs'!$C$598=$A$1,'I2 CBA Inputs'!AA$599)+IF('I2 CBA Inputs'!$C$616=$A$1,'I2 CBA Inputs'!AA$617)+IF('I2 CBA Inputs'!$C$634=$A$1,'I2 CBA Inputs'!AA$635))*$F$10*$F$29*AB$68*'I1 General Inputs'!$D15 -> 0 | AC59: =-(IF('I2 CBA Inputs'!$C$580=$A$1,'I2 CBA Inputs'!AB$581)+IF('I2 CBA Inputs'!$C$598=$A$1,'I2 CBA Inputs'!AB$599)+IF('I2 CBA Inputs'!$C$616=$A$1,'I2 CBA Inputs'!AB$617)+IF('I2 CBA Inputs'!$C$634=$A$1,'I2 CBA Inputs'!AB$635))*$F$10*$F$29*AC$68*'I1 General Inputs'!$D15 -> 0 | AD59: =-(IF('I2 CBA Inputs'!$C$580=$A$1,'I2 CBA Inputs'!AC$581)+IF('I2 CBA Inputs'!$C$598=$A$1,'I2 CBA Inputs'!AC$599)+IF('I2 CBA Inputs'!$C$616=$A$1,'I2 CBA Inputs'!AC$617)+IF('I2 CBA Inputs'!$C$634=$A$1,'I2 CBA Inputs'!AC$635))*$F$10*$F$29*AD$68*'I1 General Inputs'!$D15 -> 0 | AE59: =-(IF('I2 CBA Inputs'!$C$580=$A$1,'I2 CBA Inputs'!AD$581)+IF('I2 CBA Inputs'!$C$598=$A$1,'I2 CBA Inputs'!AD$599)+IF('I2 CBA Inputs'!$C$616=$A$1,'I2 CBA Inputs'!AD$617)+IF('I2 CBA Inputs'!$C$634=$A$1,'I2 CBA Inputs'!AD$635))*$F$10*$F$29*AE$68*'I1 General Inputs'!$D15 -> 0 | AF59: =-(IF('I2 CBA Inputs'!$C$580=$A$1,'I2 CBA Inputs'!AE$581)+IF('I2 CBA Inputs'!$C$598=$A$1,'I2 CBA Inputs'!AE$599)+IF('I2 CBA Inputs'!$C$616=$A$1,'I2 CBA Inputs'!AE$617)+IF('I2 CBA Inputs'!$C$634=$A$1,'I2 CBA Inputs'!AE$635))*$F$10*$F$29*AF$68*'I1 General Inputs'!$D15 -> 0 | AG59: =-(IF('I2 CBA Inputs'!$C$580=$A$1,'I2 CBA Inputs'!AF$581)+IF('I2 CBA Inputs'!$C$598=$A$1,'I2 CBA Inputs'!AF$599)+IF('I2 CBA Inputs'!$C$616=$A$1,'I2 CBA Inputs'!AF$617)+IF('I2 CBA Inputs'!$C$634=$A$1,'I2 CBA Inputs'!AF$635))*$F$10*$F$29*AG$68*'I1 General Inputs'!$D15 -> 0 | AH59: =-(IF('I2 CBA Inputs'!$C$580=$A$1,'I2 CBA Inputs'!AG$581)+IF('I2 CBA Inputs'!$C$598=$A$1,'I2 CBA Inputs'!AG$599)+IF('I2 CBA Inputs'!$C$616=$A$1,'I2 CBA Inputs'!AG$617)+IF('I2 CBA Inputs'!$C$634=$A$1,'I2 CBA Inputs'!AG$635))*$F$10*$F$29*AH$68*'I1 General Inputs'!$D15 -> 0 | AI59: =-(IF('I2 CBA Inputs'!$C$580=$A$1,'I2 CBA Inputs'!AH$581)+IF('I2 CBA Inputs'!$C$598=$A$1,'I2 CBA Inputs'!AH$599)+IF('I2 CBA Inputs'!$C$616=$A$1,'I2 CBA Inputs'!AH$617)+IF('I2 CBA Inputs'!$C$634=$A$1,'I2 CBA Inputs'!AH$635))*$F$10*$F$29*AI$68*'I1 General Inputs'!$D15 -> 0
B60: ='I1 General Inputs'!B54 -> Avoided costs for non-RIT-D proponent parties | D60: $ | E60: 0 | F60: =-(IF('I2 CBA Inputs'!$C$653=$A$1,'I2 CBA Inputs'!E$654)+IF('I2 CBA Inputs'!$C$671=$A$1,'I2 CBA Inputs'!E$672)+IF('I2 CBA Inputs'!$C$689=$A$1,'I2 CBA Inputs'!E$690)+IF('I2 CBA Inputs'!$C$707=$A$1,'I2 CBA Inputs'!E$708))*$F$30*F$68*'I1 General Inputs'!$D15 -> 0 | G60: =-(IF('I2 CBA Inputs'!$C$653=$A$1,'I2 CBA Inputs'!F$654)+IF('I2 CBA Inputs'!$C$671=$A$1,'I2 CBA Inputs'!F$672)+IF('I2 CBA Inputs'!$C$689=$A$1,'I2 CBA Inputs'!F$690)+IF('I2 CBA Inputs'!$C$707=$A$1,'I2 CBA Inputs'!F$708))*$F$30*G$68*'I1 General Inputs'!$D15 -> 0 | H60: =-(IF('I2 CBA Inputs'!$C$653=$A$1,'I2 CBA Inputs'!G$654)+IF('I2 CBA Inputs'!$C$671=$A$1,'I2 CBA Inputs'!G$672)+IF('I2 CBA Inputs'!$C$689=$A$1,'I2 CBA Inputs'!G$690)+IF('I2 CBA Inputs'!$C$707=$A$1,'I2 CBA Inputs'!G$708))*$F$30*H$68*'I1 General Inputs'!$D15 -> 0 | I60: =-(IF('I2 CBA Inputs'!$C$653=$A$1,'I2 CBA Inputs'!H$654)+IF('I2 CBA Inputs'!$C$671=$A$1,'I2 CBA Inputs'!H$672)+IF('I2 CBA Inputs'!$C$689=$A$1,'I2 CBA Inputs'!H$690)+IF('I2 CBA Inputs'!$C$707=$A$1,'I2 CBA Inputs'!H$708))*$F$30*I$68*'I1 General Inputs'!$D15 -> 0 | J60: =-(IF('I2 CBA Inputs'!$C$653=$A$1,'I2 CBA Inputs'!I$654)+IF('I2 CBA Inputs'!$C$671=$A$1,'I2 CBA Inputs'!I$672)+IF('I2 CBA Inputs'!$C$689=$A$1,'I2 CBA Inputs'!I$690)+IF('I2 CBA Inputs'!$C$707=$A$1,'I2 CBA Inputs'!I$708))*$F$30*J$68*'I1 General Inputs'!$D15 -> 0 | K60: =-(IF('I2 CBA Inputs'!$C$653=$A$1,'I2 CBA Inputs'!J$654)+IF('I2 CBA Inputs'!$C$671=$A$1,'I2 CBA Inputs'!J$672)+IF('I2 CBA Inputs'!$C$689=$A$1,'I2 CBA Inputs'!J$690)+IF('I2 CBA Inputs'!$C$707=$A$1,'I2 CBA Inputs'!J$708))*$F$30*K$68*'I1 General Inputs'!$D15 -> 0 | L60: =-(IF('I2 CBA Inputs'!$C$653=$A$1,'I2 CBA Inputs'!K$654)+IF('I2 CBA Inputs'!$C$671=$A$1,'I2 CBA Inputs'!K$672)+IF('I2 CBA Inputs'!$C$689=$A$1,'I2 CBA Inputs'!K$690)+IF('I2 CBA Inputs'!$C$707=$A$1,'I2 CBA Inputs'!K$708))*$F$30*L$68*'I1 General Inputs'!$D15 -> 0 | M60: =-(IF('I2 CBA Inputs'!$C$653=$A$1,'I2 CBA Inputs'!L$654)+IF('I2 CBA Inputs'!$C$671=$A$1,'I2 CBA Inputs'!L$672)+IF('I2 CBA Inputs'!$C$689=$A$1,'I2 CBA Inputs'!L$690)+IF('I2 CBA Inputs'!$C$707=$A$1,'I2 CBA Inputs'!L$708))*$F$30*M$68*'I1 General Inputs'!$D15 -> 0 | N60: =-(IF('I2 CBA Inputs'!$C$653=$A$1,'I2 CBA Inputs'!M$654)+IF('I2 CBA Inputs'!$C$671=$A$1,'I2 CBA Inputs'!M$672)+IF('I2 CBA Inputs'!$C$689=$A$1,'I2 CBA Inputs'!M$690)+IF('I2 CBA Inputs'!$C$707=$A$1,'I2 CBA Inputs'!M$708))*$F$30*N$68*'I1 General Inputs'!$D15 -> 0 | O60: =-(IF('I2 CBA Inputs'!$C$653=$A$1,'I2 CBA Inputs'!N$654)+IF('I2 CBA Inputs'!$C$671=$A$1,'I2 CBA Inputs'!N$672)+IF('I2 CBA Inputs'!$C$689=$A$1,'I2 CBA Inputs'!N$690)+IF('I2 CBA Inputs'!$C$707=$A$1,'I2 CBA Inputs'!N$708))*$F$30*O$68*'I1 General Inputs'!$D15 -> 0 | P60: =-(IF('I2 CBA Inputs'!$C$653=$A$1,'I2 CBA Inputs'!O$654)+IF('I2 CBA Inputs'!$C$671=$A$1,'I2 CBA Inputs'!O$672)+IF('I2 CBA Inputs'!$C$689=$A$1,'I2 CBA Inputs'!O$690)+IF('I2 CBA Inputs'!$C$707=$A$1,'I2 CBA Inputs'!O$708))*$F$30*P$68*'I1 General Inputs'!$D15 -> 0 | Q60: =-(IF('I2 CBA Inputs'!$C$653=$A$1,'I2 CBA Inputs'!P$654)+IF('I2 CBA Inputs'!$C$671=$A$1,'I2 CBA Inputs'!P$672)+IF('I2 CBA Inputs'!$C$689=$A$1,'I2 CBA Inputs'!P$690)+IF('I2 CBA Inputs'!$C$707=$A$1,'I2 CBA Inputs'!P$708))*$F$30*Q$68*'I1 General Inputs'!$D15 -> 0 | R60: =-(IF('I2 CBA Inputs'!$C$653=$A$1,'I2 CBA Inputs'!Q$654)+IF('I2 CBA Inputs'!$C$671=$A$1,'I2 CBA Inputs'!Q$672)+IF('I2 CBA Inputs'!$C$689=$A$1,'I2 CBA Inputs'!Q$690)+IF('I2 CBA Inputs'!$C$707=$A$1,'I2 CBA Inputs'!Q$708))*$F$30*R$68*'I1 General Inputs'!$D15 -> 0 | S60: =-(IF('I2 CBA Inputs'!$C$653=$A$1,'I2 CBA Inputs'!R$654)+IF('I2 CBA Inputs'!$C$671=$A$1,'I2 CBA Inputs'!R$672)+IF('I2 CBA Inputs'!$C$689=$A$1,'I2 CBA Inputs'!R$690)+IF('I2 CBA Inputs'!$C$707=$A$1,'I2 CBA Inputs'!R$708))*$F$30*S$68*'I1 General Inputs'!$D15 -> 0 | T60: =-(IF('I2 CBA Inputs'!$C$653=$A$1,'I2 CBA Inputs'!S$654)+IF('I2 CBA Inputs'!$C$671=$A$1,'I2 CBA Inputs'!S$672)+IF('I2 CBA Inputs'!$C$689=$A$1,'I2 CBA Inputs'!S$690)+IF('I2 CBA Inputs'!$C$707=$A$1,'I2 CBA Inputs'!S$708))*$F$30*T$68*'I1 General Inputs'!$D15 -> 0 | U60: =-(IF('I2 CBA Inputs'!$C$653=$A$1,'I2 CBA Inputs'!T$654)+IF('I2 CBA Inputs'!$C$671=$A$1,'I2 CBA Inputs'!T$672)+IF('I2 CBA Inputs'!$C$689=$A$1,'I2 CBA Inputs'!T$690)+IF('I2 CBA Inputs'!$C$707=$A$1,'I2 CBA Inputs'!T$708))*$F$30*U$68*'I1 General Inputs'!$D15 -> 0 | V60: =-(IF('I2 CBA Inputs'!$C$653=$A$1,'I2 CBA Inputs'!U$654)+IF('I2 CBA Inputs'!$C$671=$A$1,'I2 CBA Inputs'!U$672)+IF('I2 CBA Inputs'!$C$689=$A$1,'I2 CBA Inputs'!U$690)+IF('I2 CBA Inputs'!$C$707=$A$1,'I2 CBA Inputs'!U$708))*$F$30*V$68*'I1 General Inputs'!$D15 -> 0 | W60: =-(IF('I2 CBA Inputs'!$C$653=$A$1,'I2 CBA Inputs'!V$654)+IF('I2 CBA Inputs'!$C$671=$A$1,'I2 CBA Inputs'!V$672)+IF('I2 CBA Inputs'!$C$689=$A$1,'I2 CBA Inputs'!V$690)+IF('I2 CBA Inputs'!$C$707=$A$1,'I2 CBA Inputs'!V$708))*$F$30*W$68*'I1 General Inputs'!$D15 -> 0 | X60: =-(IF('I2 CBA Inputs'!$C$653=$A$1,'I2 CBA Inputs'!W$654)+IF('I2 CBA Inputs'!$C$671=$A$1,'I2 CBA Inputs'!W$672)+IF('I2 CBA Inputs'!$C$689=$A$1,'I2 CBA Inputs'!W$690)+IF('I2 CBA Inputs'!$C$707=$A$1,'I2 CBA Inputs'!W$708))*$F$30*X$68*'I1 General Inputs'!$D15 -> 0 | Y60: =-(IF('I2 CBA Inputs'!$C$653=$A$1,'I2 CBA Inputs'!X$654)+IF('I2 CBA Inputs'!$C$671=$A$1,'I2 CBA Inputs'!X$672)+IF('I2 CBA Inputs'!$C$689=$A$1,'I2 CBA Inputs'!X$690)+IF('I2 CBA Inputs'!$C$707=$A$1,'I2 CBA Inputs'!X$708))*$F$30*Y$68*'I1 General Inputs'!$D15 -> 0 | Z60: =-(IF('I2 CBA Inputs'!$C$653=$A$1,'I2 CBA Inputs'!Y$654)+IF('I2 CBA Inputs'!$C$671=$A$1,'I2 CBA Inputs'!Y$672)+IF('I2 CBA Inputs'!$C$689=$A$1,'I2 CBA Inputs'!Y$690)+IF('I2 CBA Inputs'!$C$707=$A$1,'I2 CBA Inputs'!Y$708))*$F$30*Z$68*'I1 General Inputs'!$D15 -> 0 | AA60: =-(IF('I2 CBA Inputs'!$C$653=$A$1,'I2 CBA Inputs'!Z$654)+IF('I2 CBA Inputs'!$C$671=$A$1,'I2 CBA Inputs'!Z$672)+IF('I2 CBA Inputs'!$C$689=$A$1,'I2 CBA Inputs'!Z$690)+IF('I2 CBA Inputs'!$C$707=$A$1,'I2 CBA Inputs'!Z$708))*$F$30*AA$68*'I1 General Inputs'!$D15 -> 0 | AB60: =-(IF('I2 CBA Inputs'!$C$653=$A$1,'I2 CBA Inputs'!AA$654)+IF('I2 CBA Inputs'!$C$671=$A$1,'I2 CBA Inputs'!AA$672)+IF('I2 CBA Inputs'!$C$689=$A$1,'I2 CBA Inputs'!AA$690)+IF('I2 CBA Inputs'!$C$707=$A$1,'I2 CBA Inputs'!AA$708))*$F$30*AB$68*'I1 General Inputs'!$D15 -> 0 | AC60: =-(IF('I2 CBA Inputs'!$C$653=$A$1,'I2 CBA Inputs'!AB$654)+IF('I2 CBA Inputs'!$C$671=$A$1,'I2 CBA Inputs'!AB$672)+IF('I2 CBA Inputs'!$C$689=$A$1,'I2 CBA Inputs'!AB$690)+IF('I2 CBA Inputs'!$C$707=$A$1,'I2 CBA Inputs'!AB$708))*$F$30*AC$68*'I1 General Inputs'!$D15 -> 0 | AD60: =-(IF('I2 CBA Inputs'!$C$653=$A$1,'I2 CBA Inputs'!AC$654)+IF('I2 CBA Inputs'!$C$671=$A$1,'I2 CBA Inputs'!AC$672)+IF('I2 CBA Inputs'!$C$689=$A$1,'I2 CBA Inputs'!AC$690)+IF('I2 CBA Inputs'!$C$707=$A$1,'I2 CBA Inputs'!AC$708))*$F$30*AD$68*'I1 General Inputs'!$D15 -> 0 | AE60: =-(IF('I2 CBA Inputs'!$C$653=$A$1,'I2 CBA Inputs'!AD$654)+IF('I2 CBA Inputs'!$C$671=$A$1,'I2 CBA Inputs'!AD$672)+IF('I2 CBA Inputs'!$C$689=$A$1,'I2 CBA Inputs'!AD$690)+IF('I2 CBA Inputs'!$C$707=$A$1,'I2 CBA Inputs'!AD$708))*$F$30*AE$68*'I1 General Inputs'!$D15 -> 0 | AF60: =-(IF('I2 CBA Inputs'!$C$653=$A$1,'I2 CBA Inputs'!AE$654)+IF('I2 CBA Inputs'!$C$671=$A$1,'I2 CBA Inputs'!AE$672)+IF('I2 CBA Inputs'!$C$689=$A$1,'I2 CBA Inputs'!AE$690)+IF('I2 CBA Inputs'!$C$707=$A$1,'I2 CBA Inputs'!AE$708))*$F$30*AF$68*'I1 General Inputs'!$D15 -> 0 | AG60: =-(IF('I2 CBA Inputs'!$C$653=$A$1,'I2 CBA Inputs'!AF$654)+IF('I2 CBA Inputs'!$C$671=$A$1,'I2 CBA Inputs'!AF$672)+IF('I2 CBA Inputs'!$C$689=$A$1,'I2 CBA Inputs'!AF$690)+IF('I2 CBA Inputs'!$C$707=$A$1,'I2 CBA Inputs'!AF$708))*$F$30*AG$68*'I1 General Inputs'!$D15 -> 0 | AH60: =-(IF('I2 CBA Inputs'!$C$653=$A$1,'I2 CBA Inputs'!AG$654)+IF('I2 CBA Inputs'!$C$671=$A$1,'I2 CBA Inputs'!AG$672)+IF('I2 CBA Inputs'!$C$689=$A$1,'I2 CBA Inputs'!AG$690)+IF('I2 CBA Inputs'!$C$707=$A$1,'I2 CBA Inputs'!AG$708))*$F$30*AH$68*'I1 General Inputs'!$D15 -> 0 | AI60: =-(IF('I2 CBA Inputs'!$C$653=$A$1,'I2 CBA Inputs'!AH$654)+IF('I2 CBA Inputs'!$C$671=$A$1,'I2 CBA Inputs'!AH$672)+IF('I2 CBA Inputs'!$C$689=$A$1,'I2 CBA Inputs'!AH$690)+IF('I2 CBA Inputs'!$C$707=$A$1,'I2 CBA Inputs'!AH$708))*$F$30*AI$68*'I1 General Inputs'!$D15 -> 0
B61: ='I1 General Inputs'!B55 -> Differences in the timing of unrelated network expenditure | D61: $ | E61: 0 | F61: =-(IF('I2 CBA Inputs'!$C$726=$A$1,'I2 CBA Inputs'!E$727)+IF('I2 CBA Inputs'!$C$744=$A$1,'I2 CBA Inputs'!E$745)+IF('I2 CBA Inputs'!$C$762=$A$1,'I2 CBA Inputs'!E$763)+IF('I2 CBA Inputs'!$C$780=$A$1,'I2 CBA Inputs'!E$781))*$F$31*F$68*'I1 General Inputs'!$D15 -> 0 | G61: =-(IF('I2 CBA Inputs'!$C$726=$A$1,'I2 CBA Inputs'!F$727)+IF('I2 CBA Inputs'!$C$744=$A$1,'I2 CBA Inputs'!F$745)+IF('I2 CBA Inputs'!$C$762=$A$1,'I2 CBA Inputs'!F$763)+IF('I2 CBA Inputs'!$C$780=$A$1,'I2 CBA Inputs'!F$781))*$F$31*G$68*'I1 General Inputs'!$D15 -> 0 | H61: =-(IF('I2 CBA Inputs'!$C$726=$A$1,'I2 CBA Inputs'!G$727)+IF('I2 CBA Inputs'!$C$744=$A$1,'I2 CBA Inputs'!G$745)+IF('I2 CBA Inputs'!$C$762=$A$1,'I2 CBA Inputs'!G$763)+IF('I2 CBA Inputs'!$C$780=$A$1,'I2 CBA Inputs'!G$781))*$F$31*H$68*'I1 General Inputs'!$D15 -> 0 | I61: =-(IF('I2 CBA Inputs'!$C$726=$A$1,'I2 CBA Inputs'!H$727)+IF('I2 CBA Inputs'!$C$744=$A$1,'I2 CBA Inputs'!H$745)+IF('I2 CBA Inputs'!$C$762=$A$1,'I2 CBA Inputs'!H$763)+IF('I2 CBA Inputs'!$C$780=$A$1,'I2 CBA Inputs'!H$781))*$F$31*I$68*'I1 General Inputs'!$D15 -> 0 | J61: =-(IF('I2 CBA Inputs'!$C$726=$A$1,'I2 CBA Inputs'!I$727)+IF('I2 CBA Inputs'!$C$744=$A$1,'I2 CBA Inputs'!I$745)+IF('I2 CBA Inputs'!$C$762=$A$1,'I2 CBA Inputs'!I$763)+IF('I2 CBA Inputs'!$C$780=$A$1,'I2 CBA Inputs'!I$781))*$F$31*J$68*'I1 General Inputs'!$D15 -> 0 | K61: =-(IF('I2 CBA Inputs'!$C$726=$A$1,'I2 CBA Inputs'!J$727)+IF('I2 CBA Inputs'!$C$744=$A$1,'I2 CBA Inputs'!J$745)+IF('I2 CBA Inputs'!$C$762=$A$1,'I2 CBA Inputs'!J$763)+IF('I2 CBA Inputs'!$C$780=$A$1,'I2 CBA Inputs'!J$781))*$F$31*K$68*'I1 General Inputs'!$D15 -> 0 | L61: =-(IF('I2 CBA Inputs'!$C$726=$A$1,'I2 CBA Inputs'!K$727)+IF('I2 CBA Inputs'!$C$744=$A$1,'I2 CBA Inputs'!K$745)+IF('I2 CBA Inputs'!$C$762=$A$1,'I2 CBA Inputs'!K$763)+IF('I2 CBA Inputs'!$C$780=$A$1,'I2 CBA Inputs'!K$781))*$F$31*L$68*'I1 General Inputs'!$D15 -> 0 | M61: =-(IF('I2 CBA Inputs'!$C$726=$A$1,'I2 CBA Inputs'!L$727)+IF('I2 CBA Inputs'!$C$744=$A$1,'I2 CBA Inputs'!L$745)+IF('I2 CBA Inputs'!$C$762=$A$1,'I2 CBA Inputs'!L$763)+IF('I2 CBA Inputs'!$C$780=$A$1,'I2 CBA Inputs'!L$781))*$F$31*M$68*'I1 General Inputs'!$D15 -> 0 | N61: =-(IF('I2 CBA Inputs'!$C$726=$A$1,'I2 CBA Inputs'!M$727)+IF('I2 CBA Inputs'!$C$744=$A$1,'I2 CBA Inputs'!M$745)+IF('I2 CBA Inputs'!$C$762=$A$1,'I2 CBA Inputs'!M$763)+IF('I2 CBA Inputs'!$C$780=$A$1,'I2 CBA Inputs'!M$781))*$F$31*N$68*'I1 General Inputs'!$D15 -> 0 | O61: =-(IF('I2 CBA Inputs'!$C$726=$A$1,'I2 CBA Inputs'!N$727)+IF('I2 CBA Inputs'!$C$744=$A$1,'I2 CBA Inputs'!N$745)+IF('I2 CBA Inputs'!$C$762=$A$1,'I2 CBA Inputs'!N$763)+IF('I2 CBA Inputs'!$C$780=$A$1,'I2 CBA Inputs'!N$781))*$F$31*O$68*'I1 General Inputs'!$D15 -> 0 | P61: =-(IF('I2 CBA Inputs'!$C$726=$A$1,'I2 CBA Inputs'!O$727)+IF('I2 CBA Inputs'!$C$744=$A$1,'I2 CBA Inputs'!O$745)+IF('I2 CBA Inputs'!$C$762=$A$1,'I2 CBA Inputs'!O$763)+IF('I2 CBA Inputs'!$C$780=$A$1,'I2 CBA Inputs'!O$781))*$F$31*P$68*'I1 General Inputs'!$D15 -> 0 | Q61: =-(IF('I2 CBA Inputs'!$C$726=$A$1,'I2 CBA Inputs'!P$727)+IF('I2 CBA Inputs'!$C$744=$A$1,'I2 CBA Inputs'!P$745)+IF('I2 CBA Inputs'!$C$762=$A$1,'I2 CBA Inputs'!P$763)+IF('I2 CBA Inputs'!$C$780=$A$1,'I2 CBA Inputs'!P$781))*$F$31*Q$68*'I1 General Inputs'!$D15 -> 0 | R61: =-(IF('I2 CBA Inputs'!$C$726=$A$1,'I2 CBA Inputs'!Q$727)+IF('I2 CBA Inputs'!$C$744=$A$1,'I2 CBA Inputs'!Q$745)+IF('I2 CBA Inputs'!$C$762=$A$1,'I2 CBA Inputs'!Q$763)+IF('I2 CBA Inputs'!$C$780=$A$1,'I2 CBA Inputs'!Q$781))*$F$31*R$68*'I1 General Inputs'!$D15 -> 0 | S61: =-(IF('I2 CBA Inputs'!$C$726=$A$1,'I2 CBA Inputs'!R$727)+IF('I2 CBA Inputs'!$C$744=$A$1,'I2 CBA Inputs'!R$745)+IF('I2 CBA Inputs'!$C$762=$A$1,'I2 CBA Inputs'!R$763)+IF('I2 CBA Inputs'!$C$780=$A$1,'I2 CBA Inputs'!R$781))*$F$31*S$68*'I1 General Inputs'!$D15 -> 0 | T61: =-(IF('I2 CBA Inputs'!$C$726=$A$1,'I2 CBA Inputs'!S$727)+IF('I2 CBA Inputs'!$C$744=$A$1,'I2 CBA Inputs'!S$745)+IF('I2 CBA Inputs'!$C$762=$A$1,'I2 CBA Inputs'!S$763)+IF('I2 CBA Inputs'!$C$780=$A$1,'I2 CBA Inputs'!S$781))*$F$31*T$68*'I1 General Inputs'!$D15 -> 0 | U61: =-(IF('I2 CBA Inputs'!$C$726=$A$1,'I2 CBA Inputs'!T$727)+IF('I2 CBA Inputs'!$C$744=$A$1,'I2 CBA Inputs'!T$745)+IF('I2 CBA Inputs'!$C$762=$A$1,'I2 CBA Inputs'!T$763)+IF('I2 CBA Inputs'!$C$780=$A$1,'I2 CBA Inputs'!T$781))*$F$31*U$68*'I1 General Inputs'!$D15 -> 0 | V61: =-(IF('I2 CBA Inputs'!$C$726=$A$1,'I2 CBA Inputs'!U$727)+IF('I2 CBA Inputs'!$C$744=$A$1,'I2 CBA Inputs'!U$745)+IF('I2 CBA Inputs'!$C$762=$A$1,'I2 CBA Inputs'!U$763)+IF('I2 CBA Inputs'!$C$780=$A$1,'I2 CBA Inputs'!U$781))*$F$31*V$68*'I1 General Inputs'!$D15 -> 0 | W61: =-(IF('I2 CBA Inputs'!$C$726=$A$1,'I2 CBA Inputs'!V$727)+IF('I2 CBA Inputs'!$C$744=$A$1,'I2 CBA Inputs'!V$745)+IF('I2 CBA Inputs'!$C$762=$A$1,'I2 CBA Inputs'!V$763)+IF('I2 CBA Inputs'!$C$780=$A$1,'I2 CBA Inputs'!V$781))*$F$31*W$68*'I1 General Inputs'!$D15 -> 0 | X61: =-(IF('I2 CBA Inputs'!$C$726=$A$1,'I2 CBA Inputs'!W$727)+IF('I2 CBA Inputs'!$C$744=$A$1,'I2 CBA Inputs'!W$745)+IF('I2 CBA Inputs'!$C$762=$A$1,'I2 CBA Inputs'!W$763)+IF('I2 CBA Inputs'!$C$780=$A$1,'I2 CBA Inputs'!W$781))*$F$31*X$68*'I1 General Inputs'!$D15 -> 0 | Y61: =-(IF('I2 CBA Inputs'!$C$726=$A$1,'I2 CBA Inputs'!X$727)+IF('I2 CBA Inputs'!$C$744=$A$1,'I2 CBA Inputs'!X$745)+IF('I2 CBA Inputs'!$C$762=$A$1,'I2 CBA Inputs'!X$763)+IF('I2 CBA Inputs'!$C$780=$A$1,'I2 CBA Inputs'!X$781))*$F$31*Y$68*'I1 General Inputs'!$D15 -> 0 | Z61: =-(IF('I2 CBA Inputs'!$C$726=$A$1,'I2 CBA Inputs'!Y$727)+IF('I2 CBA Inputs'!$C$744=$A$1,'I2 CBA Inputs'!Y$745)+IF('I2 CBA Inputs'!$C$762=$A$1,'I2 CBA Inputs'!Y$763)+IF('I2 CBA Inputs'!$C$780=$A$1,'I2 CBA Inputs'!Y$781))*$F$31*Z$68*'I1 General Inputs'!$D15 -> 0 | AA61: =-(IF('I2 CBA Inputs'!$C$726=$A$1,'I2 CBA Inputs'!Z$727)+IF('I2 CBA Inputs'!$C$744=$A$1,'I2 CBA Inputs'!Z$745)+IF('I2 CBA Inputs'!$C$762=$A$1,'I2 CBA Inputs'!Z$763)+IF('I2 CBA Inputs'!$C$780=$A$1,'I2 CBA Inputs'!Z$781))*$F$31*AA$68*'I1 General Inputs'!$D15 -> 0 | AB61: =-(IF('I2 CBA Inputs'!$C$726=$A$1,'I2 CBA Inputs'!AA$727)+IF('I2 CBA Inputs'!$C$744=$A$1,'I2 CBA Inputs'!AA$745)+IF('I2 CBA Inputs'!$C$762=$A$1,'I2 CBA Inputs'!AA$763)+IF('I2 CBA Inputs'!$C$780=$A$1,'I2 CBA Inputs'!AA$781))*$F$31*AB$68*'I1 General Inputs'!$D15 -> 0 | AC61: =-(IF('I2 CBA Inputs'!$C$726=$A$1,'I2 CBA Inputs'!AB$727)+IF('I2 CBA Inputs'!$C$744=$A$1,'I2 CBA Inputs'!AB$745)+IF('I2 CBA Inputs'!$C$762=$A$1,'I2 CBA Inputs'!AB$763)+IF('I2 CBA Inputs'!$C$780=$A$1,'I2 CBA Inputs'!AB$781))*$F$31*AC$68*'I1 General Inputs'!$D15 -> 0 | AD61: =-(IF('I2 CBA Inputs'!$C$726=$A$1,'I2 CBA Inputs'!AC$727)+IF('I2 CBA Inputs'!$C$744=$A$1,'I2 CBA Inputs'!AC$745)+IF('I2 CBA Inputs'!$C$762=$A$1,'I2 CBA Inputs'!AC$763)+IF('I2 CBA Inputs'!$C$780=$A$1,'I2 CBA Inputs'!AC$781))*$F$31*AD$68*'I1 General Inputs'!$D15 -> 0 | AE61: =-(IF('I2 CBA Inputs'!$C$726=$A$1,'I2 CBA Inputs'!AD$727)+IF('I2 CBA Inputs'!$C$744=$A$1,'I2 CBA Inputs'!AD$745)+IF('I2 CBA Inputs'!$C$762=$A$1,'I2 CBA Inputs'!AD$763)+IF('I2 CBA Inputs'!$C$780=$A$1,'I2 CBA Inputs'!AD$781))*$F$31*AE$68*'I1 General Inputs'!$D15 -> 0 | AF61: =-(IF('I2 CBA Inputs'!$C$726=$A$1,'I2 CBA Inputs'!AE$727)+IF('I2 CBA Inputs'!$C$744=$A$1,'I2 CBA Inputs'!AE$745)+IF('I2 CBA Inputs'!$C$762=$A$1,'I2 CBA Inputs'!AE$763)+IF('I2 CBA Inputs'!$C$780=$A$1,'I2 CBA Inputs'!AE$781))*$F$31*AF$68*'I1 General Inputs'!$D15 -> 0 | AG61: =-(IF('I2 CBA Inputs'!$C$726=$A$1,'I2 CBA Inputs'!AF$727)+IF('I2 CBA Inputs'!$C$744=$A$1,'I2 CBA Inputs'!AF$745)+IF('I2 CBA Inputs'!$C$762=$A$1,'I2 CBA Inputs'!AF$763)+IF('I2 CBA Inputs'!$C$780=$A$1,'I2 CBA Inputs'!AF$781))*$F$31*AG$68*'I1 General Inputs'!$D15 -> 0 | AH61: =-(IF('I2 CBA Inputs'!$C$726=$A$1,'I2 CBA Inputs'!AG$727)+IF('I2 CBA Inputs'!$C$744=$A$1,'I2 CBA Inputs'!AG$745)+IF('I2 CBA Inputs'!$C$762=$A$1,'I2 CBA Inputs'!AG$763)+IF('I2 CBA Inputs'!$C$780=$A$1,'I2 CBA Inputs'!AG$781))*$F$31*AH$68*'I1 General Inputs'!$D15 -> 0 | AI61: =-(IF('I2 CBA Inputs'!$C$726=$A$1,'I2 CBA Inputs'!AH$727)+IF('I2 CBA Inputs'!$C$744=$A$1,'I2 CBA Inputs'!AH$745)+IF('I2 CBA Inputs'!$C$762=$A$1,'I2 CBA Inputs'!AH$763)+IF('I2 CBA Inputs'!$C$780=$A$1,'I2 CBA Inputs'!AH$781))*$F$31*AI$68*'I1 General Inputs'!$D15 -> 0
B62: ='I1 General Inputs'!B56 -> Changes in load transfer capacity | D62: $ | E62: 0 | F62: ='I2 CBA Inputs'!E$800*$F$32*F$68*'I1 General Inputs'!$D15 -> 0 | G62: ='I2 CBA Inputs'!F$800*$F$32*G$68*'I1 General Inputs'!$D15 -> 0 | H62: ='I2 CBA Inputs'!G$800*$F$32*H$68*'I1 General Inputs'!$D15 -> 0 | I62: ='I2 CBA Inputs'!H$800*$F$32*I$68*'I1 General Inputs'!$D15 -> 0 | J62: ='I2 CBA Inputs'!I$800*$F$32*J$68*'I1 General Inputs'!$D15 -> 0 | K62: ='I2 CBA Inputs'!J$800*$F$32*K$68*'I1 General Inputs'!$D15 -> 0 | L62: ='I2 CBA Inputs'!K$800*$F$32*L$68*'I1 General Inputs'!$D15 -> 0 | M62: ='I2 CBA Inputs'!L$800*$F$32*M$68*'I1 General Inputs'!$D15 -> 0 | N62: ='I2 CBA Inputs'!M$800*$F$32*N$68*'I1 General Inputs'!$D15 -> 0 | O62: ='I2 CBA Inputs'!N$800*$F$32*O$68*'I1 General Inputs'!$D15 -> 0 | P62: ='I2 CBA Inputs'!O$800*$F$32*P$68*'I1 General Inputs'!$D15 -> 0 | Q62: ='I2 CBA Inputs'!P$800*$F$32*Q$68*'I1 General Inputs'!$D15 -> 0 | R62: ='I2 CBA Inputs'!Q$800*$F$32*R$68*'I1 General Inputs'!$D15 -> 0 | S62: ='I2 CBA Inputs'!R$800*$F$32*S$68*'I1 General Inputs'!$D15 -> 0 | T62: ='I2 CBA Inputs'!S$800*$F$32*T$68*'I1 General Inputs'!$D15 -> 0 | U62: ='I2 CBA Inputs'!T$800*$F$32*U$68*'I1 General Inputs'!$D15 -> 0 | V62: ='I2 CBA Inputs'!U$800*$F$32*V$68*'I1 General Inputs'!$D15 -> 0 | W62: ='I2 CBA Inputs'!V$800*$F$32*W$68*'I1 General Inputs'!$D15 -> 0 | X62: ='I2 CBA Inputs'!W$800*$F$32*X$68*'I1 General Inputs'!$D15 -> 0 | Y62: ='I2 CBA Inputs'!X$800*$F$32*Y$68*'I1 General Inputs'!$D15 -> 0 | Z62: ='I2 CBA Inputs'!Y$800*$F$32*Z$68*'I1 General Inputs'!$D15 -> 0 | AA62: ='I2 CBA Inputs'!Z$800*$F$32*AA$68*'I1 General Inputs'!$D15 -> 0 | AB62: ='I2 CBA Inputs'!AA$800*$F$32*AB$68*'I1 General Inputs'!$D15 -> 0 | AC62: ='I2 CBA Inputs'!AB$800*$F$32*AC$68*'I1 General Inputs'!$D15 -> 0 | AD62: ='I2 CBA Inputs'!AC$800*$F$32*AD$68*'I1 General Inputs'!$D15 -> 0 | AE62: ='I2 CBA Inputs'!AD$800*$F$32*AE$68*'I1 General Inputs'!$D15 -> 0 | AF62: ='I2 CBA Inputs'!AE$800*$F$32*AF$68*'I1 General Inputs'!$D15 -> 0 | AG62: ='I2 CBA Inputs'!AF$800*$F$32*AG$68*'I1 General Inputs'!$D15 -> 0 | AH62: ='I2 CBA Inputs'!AG$800*$F$32*AH$68*'I1 General Inputs'!$D15 -> 0 | AI62: ='I2 CBA Inputs'!AH$800*$F$32*AI$68*'I1 General Inputs'!$D15 -> 0
B63: ='I1 General Inputs'!B57 -> Additional option value | D63: $ | E63: 0 | F63: ='I2 CBA Inputs'!E$819*$F$33*F$68*'I1 General Inputs'!$D15 -> 0 | G63: ='I2 CBA Inputs'!F$819*$F$33*G$68*'I1 General Inputs'!$D15 -> 0 | H63: ='I2 CBA Inputs'!G$819*$F$33*H$68*'I1 General Inputs'!$D15 -> 0 | I63: ='I2 CBA Inputs'!H$819*$F$33*I$68*'I1 General Inputs'!$D15 -> 0 | J63: ='I2 CBA Inputs'!I$819*$F$33*J$68*'I1 General Inputs'!$D15 -> 0 | K63: ='I2 CBA Inputs'!J$819*$F$33*K$68*'I1 General Inputs'!$D15 -> 0 | L63: ='I2 CBA Inputs'!K$819*$F$33*L$68*'I1 General Inputs'!$D15 -> 0 | M63: ='I2 CBA Inputs'!L$819*$F$33*M$68*'I1 General Inputs'!$D15 -> 0 | N63: ='I2 CBA Inputs'!M$819*$F$33*N$68*'I1 General Inputs'!$D15 -> 0 | O63: ='I2 CBA Inputs'!N$819*$F$33*O$68*'I1 General Inputs'!$D15 -> 0 | P63: ='I2 CBA Inputs'!O$819*$F$33*P$68*'I1 General Inputs'!$D15 -> 0 | Q63: ='I2 CBA Inputs'!P$819*$F$33*Q$68*'I1 General Inputs'!$D15 -> 0 | R63: ='I2 CBA Inputs'!Q$819*$F$33*R$68*'I1 General Inputs'!$D15 -> 0 | S63: ='I2 CBA Inputs'!R$819*$F$33*S$68*'I1 General Inputs'!$D15 -> 0 | T63: ='I2 CBA Inputs'!S$819*$F$33*T$68*'I1 General Inputs'!$D15 -> 0 | U63: ='I2 CBA Inputs'!T$819*$F$33*U$68*'I1 General Inputs'!$D15 -> 0 | V63: ='I2 CBA Inputs'!U$819*$F$33*V$68*'I1 General Inputs'!$D15 -> 0 | W63: ='I2 CBA Inputs'!V$819*$F$33*W$68*'I1 General Inputs'!$D15 -> 0 | X63: ='I2 CBA Inputs'!W$819*$F$33*X$68*'I1 General Inputs'!$D15 -> 0 | Y63: ='I2 CBA Inputs'!X$819*$F$33*Y$68*'I1 General Inputs'!$D15 -> 0 | Z63: ='I2 CBA Inputs'!Y$819*$F$33*Z$68*'I1 General Inputs'!$D15 -> 0 | AA63: ='I2 CBA Inputs'!Z$819*$F$33*AA$68*'I1 General Inputs'!$D15 -> 0 | AB63: ='I2 CBA Inputs'!AA$819*$F$33*AB$68*'I1 General Inputs'!$D15 -> 0 | AC63: ='I2 CBA Inputs'!AB$819*$F$33*AC$68*'I1 General Inputs'!$D15 -> 0 | AD63: ='I2 CBA Inputs'!AC$819*$F$33*AD$68*'I1 General Inputs'!$D15 -> 0 | AE63: ='I2 CBA Inputs'!AD$819*$F$33*AE$68*'I1 General Inputs'!$D15 -> 0 | AF63: ='I2 CBA Inputs'!AE$819*$F$33*AF$68*'I1 General Inputs'!$D15 -> 0 | AG63: ='I2 CBA Inputs'!AF$819*$F$33*AG$68*'I1 General Inputs'!$D15 -> 0 | AH63: ='I2 CBA Inputs'!AG$819*$F$33*AH$68*'I1 General Inputs'!$D15 -> 0 | AI63: ='I2 CBA Inputs'!AH$819*$F$33*AI$68*'I1 General Inputs'!$D15 -> 0
B64: ='I1 General Inputs'!B58 -> Changes in electrical energy losses | D64: $ | E64: 0 | F64: =-'I2 CBA Inputs'!E$838*$F$34*F$68*'I1 General Inputs'!$D15 -> 0 | G64: =-'I2 CBA Inputs'!F$838*$F$34*G$68*'I1 General Inputs'!$D15 -> 0 | H64: =-'I2 CBA Inputs'!G$838*$F$34*H$68*'I1 General Inputs'!$D15 -> 0 | I64: =-'I2 CBA Inputs'!H$838*$F$34*I$68*'I1 General Inputs'!$D15 -> 0 | J64: =-'I2 CBA Inputs'!I$838*$F$34*J$68*'I1 General Inputs'!$D15 -> 0 | K64: =-'I2 CBA Inputs'!J$838*$F$34*K$68*'I1 General Inputs'!$D15 -> 0 | L64: =-'I2 CBA Inputs'!K$838*$F$34*L$68*'I1 General Inputs'!$D15 -> 0 | M64: =-'I2 CBA Inputs'!L$838*$F$34*M$68*'I1 General Inputs'!$D15 -> 0 | N64: =-'I2 CBA Inputs'!M$838*$F$34*N$68*'I1 General Inputs'!$D15 -> 0 | O64: =-'I2 CBA Inputs'!N$838*$F$34*O$68*'I1 General Inputs'!$D15 -> 0 | P64: =-'I2 CBA Inputs'!O$838*$F$34*P$68*'I1 General Inputs'!$D15 -> 0 | Q64: =-'I2 CBA Inputs'!P$838*$F$34*Q$68*'I1 General Inputs'!$D15 -> 0 | R64: =-'I2 CBA Inputs'!Q$838*$F$34*R$68*'I1 General Inputs'!$D15 -> 0 | S64: =-'I2 CBA Inputs'!R$838*$F$34*S$68*'I1 General Inputs'!$D15 -> 0 | T64: =-'I2 CBA Inputs'!S$838*$F$34*T$68*'I1 General Inputs'!$D15 -> 0 | U64: =-'I2 CBA Inputs'!T$838*$F$34*U$68*'I1 General Inputs'!$D15 -> 0 | V64: =-'I2 CBA Inputs'!U$838*$F$34*V$68*'I1 General Inputs'!$D15 -> 0 | W64: =-'I2 CBA Inputs'!V$838*$F$34*W$68*'I1 General Inputs'!$D15 -> 0 | X64: =-'I2 CBA Inputs'!W$838*$F$34*X$68*'I1 General Inputs'!$D15 -> 0 | Y64: =-'I2 CBA Inputs'!X$838*$F$34*Y$68*'I1 General Inputs'!$D15 -> 0 | Z64: =-'I2 CBA Inputs'!Y$838*$F$34*Z$68*'I1 General Inputs'!$D15 -> 0 | AA64: =-'I2 CBA Inputs'!Z$838*$F$34*AA$68*'I1 General Inputs'!$D15 -> 0 | AB64: =-'I2 CBA Inputs'!AA$838*$F$34*AB$68*'I1 General Inputs'!$D15 -> 0 | AC64: =-'I2 CBA Inputs'!AB$838*$F$34*AC$68*'I1 General Inputs'!$D15 -> 0 | AD64: =-'I2 CBA Inputs'!AC$838*$F$34*AD$68*'I1 General Inputs'!$D15 -> 0 | AE64: =-'I2 CBA Inputs'!AD$838*$F$34*AE$68*'I1 General Inputs'!$D15 -> 0 | AF64: =-'I2 CBA Inputs'!AE$838*$F$34*AF$68*'I1 General Inputs'!$D15 -> 0 | AG64: =-'I2 CBA Inputs'!AF$838*$F$34*AG$68*'I1 General Inputs'!$D15 -> 0 | AH64: =-'I2 CBA Inputs'!AG$838*$F$34*AH$68*'I1 General Inputs'!$D15 -> 0 | AI64: =-'I2 CBA Inputs'!AH$838*$F$34*AI$68*'I1 General Inputs'!$D15 -> 0
B66: Incremental net present value calculation
B68: Net present value for each option | F68: =IF(FirstYear+AnalysisPeriod-1>='I2 CBA Inputs'!E41,1,0) -> 1 | G68: =IF(FirstYear+AnalysisPeriod-1>='I2 CBA Inputs'!F41,1,0) -> 1 | H68: =IF(FirstYear+AnalysisPeriod-1>='I2 CBA Inputs'!G41,1,0) -> 1 | I68: =IF(FirstYear+AnalysisPeriod-1>='I2 CBA Inputs'!H41,1,0) -> 1 | J68: =IF(FirstYear+AnalysisPeriod-1>='I2 CBA Inputs'!I41,1,0) -> 1 | K68: =IF(FirstYear+AnalysisPeriod-1>='I2 CBA Inputs'!J41,1,0) -> 1 | L68: =IF(FirstYear+AnalysisPeriod-1>='I2 CBA Inputs'!K41,1,0) -> 1 | M68: =IF(FirstYear+AnalysisPeriod-1>='I2 CBA Inputs'!L41,1,0) -> 1 | N68: =IF(FirstYear+AnalysisPeriod-1>='I2 CBA Inputs'!M41,1,0) -> 1 | O68: =IF(FirstYear+AnalysisPeriod-1>='I2 CBA Inputs'!N41,1,0) -> 1 | P68: =IF(FirstYear+AnalysisPeriod-1>='I2 CBA Inputs'!O41,1,0) -> 1 | Q68: =IF(FirstYear+AnalysisPeriod-1>='I2 CBA Inputs'!P41,1,0) -> 1 | R68: =IF(FirstYear+AnalysisPeriod-1>='I2 CBA Inputs'!Q41,1,0) -> 1 | S68: =IF(FirstYear+AnalysisPeriod-1>='I2 CBA Inputs'!R41,1,0) -> 1 | T68: =IF(FirstYear+AnalysisPeriod-1>='I2 CBA Inputs'!S41,1,0) -> 1 | U68: =IF(FirstYear+AnalysisPeriod-1>='I2 CBA Inputs'!T41,1,0) -> 1 | V68: =IF(FirstYear+AnalysisPeriod-1>='I2 CBA Inputs'!U41,1,0) -> 1 | W68: =IF(FirstYear+AnalysisPeriod-1>='I2 CBA Inputs'!V41,1,0) -> 1 | X68: =IF(FirstYear+AnalysisPeriod-1>='I2 CBA Inputs'!W41,1,0) -> 1 | Y68: =IF(FirstYear+AnalysisPeriod-1>='I2 CBA Inputs'!X41,1,0) -> 1 | Z68: =IF(FirstYear+AnalysisPeriod-1>='I2 CBA Inputs'!Y41,1,0) -> 0 | AA68: =IF(FirstYear+AnalysisPeriod-1>='I2 CBA Inputs'!Z41,1,0) -> 0 | AB68: =IF(FirstYear+AnalysisPeriod-1>='I2 CBA Inputs'!AA41,1,0) -> 0 | AC68: =IF(FirstYear+AnalysisPeriod-1>='I2 CBA Inputs'!AB41,1,0) -> 0 | AD68: =IF(FirstYear+AnalysisPeriod-1>='I2 CBA Inputs'!AC41,1,0) -> 0 | AE68: =IF(FirstYear+AnalysisPeriod-1>='I2 CBA Inputs'!AD41,1,0) -> 0 | AF68: =IF(FirstYear+AnalysisPeriod-1>='I2 CBA Inputs'!AE41,1,0) -> 0 | AG68: =IF(FirstYear+AnalysisPeriod-1>='I2 CBA Inputs'!AF41,1,0) -> 0 | AH68: =IF(FirstYear+AnalysisPeriod-1>='I2 CBA Inputs'!AG41,1,0) -> 0 | AI68: =IF(FirstYear+AnalysisPeriod-1>='I2 CBA Inputs'!AH41,1,0) -> 0
B69: Option name | D69: Units | E69: NPV | F69: =IF(FirstYear+AnalysisPeriod-1>='I2 CBA Inputs'!E41,'I2 CBA Inputs'!E41,"") -> 2025 | G69: =IF(FirstYear+AnalysisPeriod-1>='I2 CBA Inputs'!F41,'I2 CBA Inputs'!F41,0) -> 2026 | H69: =IF(FirstYear+AnalysisPeriod-1>='I2 CBA Inputs'!G41,'I2 CBA Inputs'!G41,0) -> 2027 | I69: =IF(FirstYear+AnalysisPeriod-1>='I2 CBA Inputs'!H41,'I2 CBA Inputs'!H41,0) -> 2028 | J69: =IF(FirstYear+AnalysisPeriod-1>='I2 CBA Inputs'!I41,'I2 CBA Inputs'!I41,0) -> 2029 | K69: =IF(FirstYear+AnalysisPeriod-1>='I2 CBA Inputs'!J41,'I2 CBA Inputs'!J41,0) -> 2030 | L69: =IF(FirstYear+AnalysisPeriod-1>='I2 CBA Inputs'!K41,'I2 CBA Inputs'!K41,0) -> 2031 | M69: =IF(FirstYear+AnalysisPeriod-1>='I2 CBA Inputs'!L41,'I2 CBA Inputs'!L41,0) -> 2032 | N69: =IF(FirstYear+AnalysisPeriod-1>='I2 CBA Inputs'!M41,'I2 CBA Inputs'!M41,0) -> 2033 | O69: =IF(FirstYear+AnalysisPeriod-1>='I2 CBA Inputs'!N41,'I2 CBA Inputs'!N41,0) -> 2034 | P69: =IF(FirstYear+AnalysisPeriod-1>='I2 CBA Inputs'!O41,'I2 CBA Inputs'!O41,0) -> 2035 | Q69: =IF(FirstYear+AnalysisPeriod-1>='I2 CBA Inputs'!P41,'I2 CBA Inputs'!P41,0) -> 2036 | R69: =IF(FirstYear+AnalysisPeriod-1>='I2 CBA Inputs'!Q41,'I2 CBA Inputs'!Q41,0) -> 2037 | S69: =IF(FirstYear+AnalysisPeriod-1>='I2 CBA Inputs'!R41,'I2 CBA Inputs'!R41,0) -> 2038 | T69: =IF(FirstYear+AnalysisPeriod-1>='I2 CBA Inputs'!S41,'I2 CBA Inputs'!S41,0) -> 2039 | U69: =IF(FirstYear+AnalysisPeriod-1>='I2 CBA Inputs'!T41,'I2 CBA Inputs'!T41,0) -> 2040 | V69: =IF(FirstYear+AnalysisPeriod-1>='I2 CBA Inputs'!U41,'I2 CBA Inputs'!U41,0) -> 2041 | W69: =IF(FirstYear+AnalysisPeriod-1>='I2 CBA Inputs'!V41,'I2 CBA Inputs'!V41,0) -> 2042 | X69: =IF(FirstYear+AnalysisPeriod-1>='I2 CBA Inputs'!W41,'I2 CBA Inputs'!W41,0) -> 2043 | Y69: =IF(FirstYear+AnalysisPeriod-1>='I2 CBA Inputs'!X41,'I2 CBA Inputs'!X41,0) -> 2044 | Z69: =IF(FirstYear+AnalysisPeriod-1>='I2 CBA Inputs'!Y41,'I2 CBA Inputs'!Y41,0) -> 0 | AA69: =IF(FirstYear+AnalysisPeriod-1>='I2 CBA Inputs'!Z41,'I2 CBA Inputs'!Z41,0) -> 0 | AB69: =IF(FirstYear+AnalysisPeriod-1>='I2 CBA Inputs'!AA41,'I2 CBA Inputs'!AA41,0) -> 0 | AC69: =IF(FirstYear+AnalysisPeriod-1>='I2 CBA Inputs'!AB41,'I2 CBA Inputs'!AB41,0) -> 0 | AD69: =IF(FirstYear+AnalysisPeriod-1>='I2 CBA Inputs'!AC41,'I2 CBA Inputs'!AC41,0) -> 0 | AE69: =IF(FirstYear+AnalysisPeriod-1>='I2 CBA Inputs'!AD41,'I2 CBA Inputs'!AD41,0) -> 0 | AF69: =IF(FirstYear+AnalysisPeriod-1>='I2 CBA Inputs'!AE41,'I2 CBA Inputs'!AE41,0) -> 0 | AG69: =IF(FirstYear+AnalysisPeriod-1>='I2 CBA Inputs'!AF41,'I2 CBA Inputs'!AF41,0) -> 0 | AH69: =IF(FirstYear+AnalysisPeriod-1>='I2 CBA Inputs'!AG41,'I2 CBA Inputs'!AG41,0) -> 0 | AI69: =IF(FirstYear+AnalysisPeriod-1>='I2 CBA Inputs'!AH41,'I2 CBA Inputs'!AH41,0) -> 0
B70: =+'I1 General Inputs'!$B$15 -> Option 2 | D70: $ | E70: =NPV($F$8,$F70:$AI70)/(1+$F$8)^(FirstYear-BaseYear-1) -> -590933.1952 | F70: =SUMIF($B$176:$B$504,$B70,F$176:F$504) -> 0 | G70: =SUMIF($B$176:$B$504,$B70,G$176:G$504) -> 0 | H70: 0 | I70: 0 | J70: 0 | K70: -75000 | L70: -75000 | M70: -75000 | N70: -75000 | O70: -75000 | P70: -75000 | Q70: -75000 | R70: -75000 | S70: -75000 | T70: -75000 | U70: -75000 | V70: -75000 | W70: =SUMIF($B$176:$B$504,$B70,W$176:W$504) -> -75000 | X70: -75000 | Y70: -75000 | Z70: 0 | AA70: 0 | AB70: 0 | AC70: 0 | AD70: 0 | AE70: 0 | AF70: 0 | AG70: 0 | AH70: 0 | AI70: 0
B71: =+'I1 General Inputs'!$B$16 -> Option 3 | D71: $ | E71: 62114424.41 | F71: 0 | G71: 0 | H71: 0 | I71: 0 | J71: 0 | K71: -4455142.374 | L71: -11324919.27 | M71: -19979559.4 | N71: 12537602 | O71: 12741458.85 | P71: 12856877.91 | Q71: 13066083.11 | R71: 13349078.65 | S71: 13656556.44 | T71: 13874136.36 | U71: 14026904.96 | V71: 14173786.61 | W71: 14314184.69 | X71: 14440451.31 | Y71: 37951351.36 | Z71: 0 | AA71: 0 | AB71: 0 | AC71: 0 | AD71: 0 | AE71: 0 | AF71: 0 | AG71: 0 | AH71: 0 | AI71: 0
B72: =+'I1 General Inputs'!$B$17 -> Option 4 | D72: $ | E72: 43558328.71 | F72: 0 | G72: 0 | H72: 0 | I72: 0 | J72: 0 | K72: -17164618.1 | L72: 1492817.62 | M72: 1527630.093 | N72: 1557950.592 | O72: 1565797.255 | P72: -24184636.71 | Q72: 13030733.82 | R72: 13310907.17 | S72: 13615823.69 | T72: 13831470.2 | U72: 13982779.25 | V72: 14128489.11 | W72: 14268142.25 | X72: 14394117.79 | Y72: 44580398.33 | Z72: 0 | AA72: 0 | AB72: 0 | AC72: 0 | AD72: 0 | AE72: 0 | AF72: 0 | AG72: 0 | AH72: 0 | AI72: 0
B73: =+'I1 General Inputs'!$B$18 -> Option 5 | D73: $ | E73: 0 | F73: =SUMIF($B$176:$B$504,$B73,F$176:F$504) -> 0 | G73: 0 | H73: 0 | I73: 0 | J73: 0 | K73: 0 | L73: 0 | M73: 0 | N73: 0 | O73: 0 | P73: 0 | Q73: 0 | R73: 0 | S73: 0 | T73: 0 | U73: 0 | V73: 0 | W73: 0 | X73: 0 | Y73: 0 | Z73: 0 | AA73: 0 | AB73: 0 | AC73: 0 | AD73: 0 | AE73: 0 | AF73: 0 | AG73: 0 | AH73: 0 | AI73: 0
B74: =+'I1 General Inputs'!$B$19 -> Option 6 | D74: $ | E74: 0 | F74: 0 | G74: 0 | H74: 0 | I74: 0 | J74: 0 | K74: 0 | L74: 0 | M74: 0 | N74: 0 | O74: 0 | P74: 0 | Q74: 0 | R74: 0 | S74: 0 | T74: 0 | U74: 0 | V74: 0 | W74: 0 | X74: 0 | Y74: 0 | Z74: 0 | AA74: 0 | AB74: 0 | AC74: 0 | AD74: 0 | AE74: 0 | AF74: 0 | AG74: 0 | AH74: 0 | AI74: 0
B75: =+'I1 General Inputs'!$B$20 -> Option 7 | D75: $ | E75: 0 | F75: 0 | G75: 0 | H75: 0 | I75: 0 | J75: 0 | K75: 0 | L75: 0 | M75: 0 | N75: 0 | O75: 0 | P75: 0 | Q75: 0 | R75: 0 | S75: 0 | T75: 0 | U75: 0 | V75: 0 | W75: 0 | X75: 0 | Y75: 0 | Z75: 0 | AA75: 0 | AB75: 0 | AC75: 0 | AD75: 0 | AE75: 0 | AF75: 0 | AG75: 0 | AH75: 0 | AI75: 0
B76: =+'I1 General Inputs'!$B$21 -> Option 8 | D76: $ | E76: 0 | F76: 0 | G76: 0 | H76: 0 | I76: 0 | J76: 0 | K76: 0 | L76: 0 | M76: 0 | N76: 0 | O76: 0 | P76: 0 | Q76: 0 | R76: 0 | S76: 0 | T76: 0 | U76: 0 | V76: 0 | W76: 0 | X76: 0 | Y76: 0 | Z76: 0 | AA76: 0 | AB76: 0 | AC76: 0 | AD76: 0 | AE76: 0 | AF76: 0 | AG76: 0 | AH76: 0 | AI76: 0
B77: =+'I1 General Inputs'!$B$22 -> Option 9 | D77: $ | E77: 0 | F77: 0 | G77: 0 | H77: 0 | I77: 0 | J77: 0 | K77: 0 | L77: 0 | M77: 0 | N77: 0 | O77: 0 | P77: 0 | Q77: 0 | R77: 0 | S77: 0 | T77: 0 | U77: 0 | V77: 0 | W77: 0 | X77: 0 | Y77: 0 | Z77: 0 | AA77: 0 | AB77: 0 | AC77: 0 | AD77: 0 | AE77: 0 | AF77: 0 | AG77: 0 | AH77: 0 | AI77: 0
B78: =+'I1 General Inputs'!$B$23 -> Option 10 | D78: $ | E78: 0 | F78: 0 | G78: 0 | H78: 0 | I78: 0 | J78: 0 | K78: 0 | L78: 0 | M78: 0 | N78: 0 | O78: 0 | P78: 0 | Q78: 0 | R78: 0 | S78: 0 | T78: 0 | U78: 0 | V78: 0 | W78: 0 | X78: 0 | Y78: 0 | Z78: 0 | AA78: 0 | AB78: 0 | AC78: 0 | AD78: 0 | AE78: 0 | AF78: 0 | AG78: 0 | AH78: 0 | AI78: 0
B79: =+'I1 General Inputs'!$B$24 -> Option 11 | D79: $ | E79: 0 | F79: 0 | G79: 0 | H79: 0 | I79: 0 | J79: 0 | K79: 0 | L79: 0 | M79: 0 | N79: 0 | O79: 0 | P79: 0 | Q79: 0 | R79: 0 | S79: 0 | T79: 0 | U79: 0 | V79: 0 | W79: 0 | X79: 0 | Y79: 0 | Z79: 0 | AA79: 0 | AB79: 0 | AC79: 0 | AD79: 0 | AE79: 0 | AF79: 0 | AG79: 0 | AH79: 0 | AI79: 0
B80: =+'I1 General Inputs'!$B$25 -> Option 12 | D80: $ | E80: 0 | F80: 0 | G80: 0 | H80: 0 | I80: 0 | J80: 0 | K80: 0 | L80: 0 | M80: 0 | N80: 0 | O80: 0 | P80: 0 | Q80: 0 | R80: 0 | S80: 0 | T80: 0 | U80: 0 | V80: 0 | W80: 0 | X80: 0 | Y80: 0 | Z80: 0 | AA80: 0 | AB80: 0 | AC80: 0 | AD80: 0 | AE80: 0 | AF80: 0 | AG80: 0 | AH80: 0 | AI80: 0
B81: =+'I1 General Inputs'!$B$26 -> Option 13 | D81: $ | E81: 0 | F81: 0 | G81: 0 | H81: 0 | I81: 0 | J81: 0 | K81: 0 | L81: 0 | M81: 0 | N81: 0 | O81: 0 | P81: 0 | Q81: 0 | R81: 0 | S81: 0 | T81: 0 | U81: 0 | V81: 0 | W81: 0 | X81: 0 | Y81: 0 | Z81: 0 | AA81: 0 | AB81: 0 | AC81: 0 | AD81: 0 | AE81: 0 | AF81: 0 | AG81: 0 | AH81: 0 | AI81: 0
B82: =+'I1 General Inputs'!$B$27 -> Option 14 | D82: $ | E82: 0 | F82: 0 | G82: 0 | H82: 0 | I82: 0 | J82: 0 | K82: 0 | L82: 0 | M82: 0 | N82: 0 | O82: 0 | P82: 0 | Q82: 0 | R82: 0 | S82: 0 | T82: 0 | U82: 0 | V82: 0 | W82: 0 | X82: 0 | Y82: 0 | Z82: 0 | AA82: 0 | AB82: 0 | AC82: 0 | AD82: 0 | AE82: 0 | AF82: 0 | AG82: 0 | AH82: 0 | AI82: 0
B83: =+'I1 General Inputs'!$B$28 -> Option 15 | D83: $ | E83: 0 | F83: 0 | G83: 0 | H83: 0 | I83: 0 | J83: 0 | K83: 0 | L83: 0 | M83: 0 | N83: 0 | O83: 0 | P83: 0 | Q83: 0 | R83: 0 | S83: 0 | T83: 0 | U83: 0 | V83: 0 | W83: 0 | X83: 0 | Y83: 0 | Z83: 0 | AA83: 0 | AB83: 0 | AC83: 0 | AD83: 0 | AE83: 0 | AF83: 0 | AG83: 0 | AH83: 0 | AI83: 0
B84: =+'I1 General Inputs'!$B$29 -> Option 16 | D84: $ | E84: 0 | F84: 0 | G84: 0 | H84: 0 | I84: 0 | J84: 0 | K84: 0 | L84: 0 | M84: 0 | N84: 0 | O84: 0 | P84: 0 | Q84: 0 | R84: 0 | S84: 0 | T84: 0 | U84: 0 | V84: 0 | W84: 0 | X84: 0 | Y84: 0 | Z84: 0 | AA84: 0 | AB84: 0 | AC84: 0 | AD84: 0 | AE84: 0 | AF84: 0 | AG84: 0 | AH84: 0 | AI84: 0
B86: Present value of market benefits for each option
B87: Option name | D87: Units | E87: PV | F87: =+F69 -> 2025 | G87: =+G69 -> 2026 | H87: 2027 | I87: 2028 | J87: 2029 | K87: 2030 | L87: 2031 | M87: 2032 | N87: 2033 | O87: 2034 | P87: 2035 | Q87: 2036 | R87: 2037 | S87: 2038 | T87: 2039 | U87: 2040 | V87: 2041 | W87: 2042 | X87: 2043 | Y87: 2044 | Z87: 0 | AA87: 0 | AB87: 0 | AC87: 0 | AD87: 0 | AE87: 0 | AF87: 0 | AG87: 0 | AH87: 0 | AI87: 0
B88: =+'I1 General Inputs'!$B$15 -> Option 2 | D88: $ | E88: =NPV($F$8,$F88:$AI88)/(1+$F$8)^(FirstYear-BaseYear-1) -> 0 | F88: =SUMIF($B$380:$B$504,$B88,F$380:F$504) -> 0 | G88: =SUMIF($B$380:$B$504,$B88,G$380:G$504) -> 0 | H88: 0 | I88: 0 | J88: 0 | K88: 0 | L88: 0 | M88: 0 | N88: 0 | O88: 0 | P88: 0 | Q88: 0 | R88: 0 | S88: 0 | T88: 0 | U88: 0 | V88: 0 | W88: =SUMIF($B$380:$B$504,$B88,W$380:W$504) -> 0 | X88: 0 | Y88: 0 | Z88: 0 | AA88: 0 | AB88: 0 | AC88: 0 | AD88: 0 | AE88: 0 | AF88: 0 | AG88: 0 | AH88: 0 | AI88: 0
B89: =+'I1 General Inputs'!$B$16 -> Option 3 | D89: $ | E89: 78177136.54 | F89: 0 | G89: 0 | H89: 0 | I89: 0 | J89: 0 | K89: 0 | L89: 0 | M89: 0 | N89: 12537602 | O89: 12741458.85 | P89: 12856877.91 | Q89: 13066083.11 | R89: 13349078.65 | S89: 13656556.44 | T89: 13874136.36 | U89: 14026904.96 | V89: 14173786.61 | W89: 14314184.69 | X89: 14440451.31 | Y89: 14591906.44 | Z89: 0 | AA89: 0 | AB89: 0 | AC89: 0 | AD89: 0 | AE89: 0 | AF89: 0 | AG89: 0 | AH89: 0 | AI89: 0
B90: =+'I1 General Inputs'!$B$17 -> Option 4 | D90: $ | E90: 60051045.84 | F90: 0 | G90: 0 | H90: 0 | I90: 0 | J90: 0 | K90: 0 | L90: 1492817.62 | M90: 1527630.093 | N90: 1557950.592 | O90: 1565797.255 | P90: 1562290.438 | Q90: 13030733.82 | R90: 13310907.17 | S90: 13615823.69 | T90: 13831470.2 | U90: 13982779.25 | V90: 14128489.11 | W90: 14268142.25 | X90: 14394117.79 | Y90: 14545473.4 | Z90: 0 | AA90: 0 | AB90: 0 | AC90: 0 | AD90: 0 | AE90: 0 | AF90: 0 | AG90: 0 | AH90: 0 | AI90: 0
B91: =+'I1 General Inputs'!$B$18 -> Option 5 | D91: $ | E91: 0 | F91: 0 | G91: 0 | H91: 0 | I91: 0 | J91: 0 | K91: 0 | L91: 0 | M91: 0 | N91: 0 | O91: 0 | P91: 0 | Q91: 0 | R91: 0 | S91: 0 | T91: 0 | U91: 0 | V91: 0 | W91: 0 | X91: 0 | Y91: 0 | Z91: 0 | AA91: 0 | AB91: 0 | AC91: 0 | AD91: 0 | AE91: 0 | AF91: 0 | AG91: 0 | AH91: 0 | AI91: 0
B92: =+'I1 General Inputs'!$B$19 -> Option 6 | D92: $ | E92: 0 | F92: 0 | G92: 0 | H92: 0 | I92: 0 | J92: 0 | K92: 0 | L92: 0 | M92: 0 | N92: 0 | O92: 0 | P92: 0 | Q92: 0 | R92: 0 | S92: 0 | T92: 0 | U92: 0 | V92: 0 | W92: 0 | X92: 0 | Y92: 0 | Z92: 0 | AA92: 0 | AB92: 0 | AC92: 0 | AD92: 0 | AE92: 0 | AF92: 0 | AG92: 0 | AH92: 0 | AI92: 0
B93: =+'I1 General Inputs'!$B$20 -> Option 7 | D93: $ | E93: 0 | F93: 0 | G93: 0 | H93: 0 | I93: 0 | J93: 0 | K93: 0 | L93: 0 | M93: 0 | N93: 0 | O93: 0 | P93: 0 | Q93: 0 | R93: 0 | S93: 0 | T93: 0 | U93: 0 | V93: 0 | W93: 0 | X93: 0 | Y93: 0 | Z93: 0 | AA93: 0 | AB93: 0 | AC93: 0 | AD93: 0 | AE93: 0 | AF93: 0 | AG93: 0 | AH93: 0 | AI93: 0
B94: =+'I1 General Inputs'!$B$21 -> Option 8 | D94: $ | E94: 0 | F94: 0 | G94: 0 | H94: 0 | I94: 0 | J94: 0 | K94: 0 | L94: 0 | M94: 0 | N94: 0 | O94: 0 | P94: 0 | Q94: 0 | R94: 0 | S94: 0 | T94: 0 | U94: 0 | V94: 0 | W94: 0 | X94: 0 | Y94: 0 | Z94: 0 | AA94: 0 | AB94: 0 | AC94: 0 | AD94: 0 | AE94: 0 | AF94: 0 | AG94: 0 | AH94: 0 | AI94: 0
B95: =+'I1 General Inputs'!$B$22 -> Option 9 | D95: $ | E95: 0 | F95: 0 | G95: 0 | H95: 0 | I95: 0 | J95: 0 | K95: 0 | L95: 0 | M95: 0 | N95: 0 | O95: 0 | P95: 0 | Q95: 0 | R95: 0 | S95: 0 | T95: 0 | U95: 0 | V95: 0 | W95: 0 | X95: 0 | Y95: 0 | Z95: 0 | AA95: 0 | AB95: 0 | AC95: 0 | AD95: 0 | AE95: 0 | AF95: 0 | AG95: 0 | AH95: 0 | AI95: 0
B96: =+'I1 General Inputs'!$B$23 -> Option 10 | D96: $ | E96: 0 | F96: 0 | G96: 0 | H96: 0 | I96: 0 | J96: 0 | K96: 0 | L96: 0 | M96: 0 | N96: 0 | O96: 0 | P96: 0 | Q96: 0 | R96: 0 | S96: 0 | T96: 0 | U96: 0 | V96: 0 | W96: 0 | X96: 0 | Y96: 0 | Z96: 0 | AA96: 0 | AB96: 0 | AC96: 0 | AD96: 0 | AE96: 0 | AF96: 0 | AG96: 0 | AH96: 0 | AI96: 0
B97: =+'I1 General Inputs'!$B$24 -> Option 11 | D97: $ | E97: 0 | F97: 0 | G97: 0 | H97: 0 | I97: 0 | J97: 0 | K97: 0 | L97: 0 | M97: 0 | N97: 0 | O97: 0 | P97: 0 | Q97: 0 | R97: 0 | S97: 0 | T97: 0 | U97: 0 | V97: 0 | W97: 0 | X97: 0 | Y97: 0 | Z97: 0 | AA97: 0 | AB97: 0 | AC97: 0 | AD97: 0 | AE97: 0 | AF97: 0 | AG97: 0 | AH97: 0 | AI97: 0
B98: =+'I1 General Inputs'!$B$25 -> Option 12 | D98: $ | E98: 0 | F98: 0 | G98: 0 | H98: 0 | I98: 0 | J98: 0 | K98: 0 | L98: 0 | M98: 0 | N98: 0 | O98: 0 | P98: 0 | Q98: 0 | R98: 0 | S98: 0 | T98: 0 | U98: 0 | V98: 0 | W98: 0 | X98: 0 | Y98: 0 | Z98: 0 | AA98: 0 | AB98: 0 | AC98: 0 | AD98: 0 | AE98: 0 | AF98: 0 | AG98: 0 | AH98: 0 | AI98: 0
B99: =+'I1 General Inputs'!$B$26 -> Option 13 | D99: $ | E99: 0 | F99: 0 | G99: 0 | H99: 0 | I99: 0 | J99: 0 | K99: 0 | L99: 0 | M99: 0 | N99: 0 | O99: 0 | P99: 0 | Q99: 0 | R99: 0 | S99: 0 | T99: 0 | U99: 0 | V99: 0 | W99: 0 | X99: 0 | Y99: 0 | Z99: 0 | AA99: 0 | AB99: 0 | AC99: 0 | AD99: 0 | AE99: 0 | AF99: 0 | AG99: 0 | AH99: 0 | AI99: 0
B100: =+'I1 General Inputs'!$B$27 -> Option 14 | D100: $ | E100: 0 | F100: 0 | G100: 0 | H100: 0 | I100: 0 | J100: 0 | K100: 0 | L100: 0 | M100: 0 | N100: 0 | O100: 0 | P100: 0 | Q100: 0 | R100: 0 | S100: 0 | T100: 0 | U100: 0 | V100: 0 | W100: 0 | X100: 0 | Y100: 0 | Z100: 0 | AA100: 0 | AB100: 0 | AC100: 0 | AD100: 0 | AE100: 0 | AF100: 0 | AG100: 0 | AH100: 0 | AI100: 0
B101: =+'I1 General Inputs'!$B$28 -> Option 15 | D101: $ | E101: 0 | F101: 0 | G101: 0 | H101: 0 | I101: 0 | J101: 0 | K101: 0 | L101: 0 | M101: 0 | N101: 0 | O101: 0 | P101: 0 | Q101: 0 | R101: 0 | S101: 0 | T101: 0 | U101: 0 | V101: 0 | W101: 0 | X101: 0 | Y101: 0 | Z101: 0 | AA101: 0 | AB101: 0 | AC101: 0 | AD101: 0 | AE101: 0 | AF101: 0 | AG101: 0 | AH101: 0 | AI101: 0
B102: =+'I1 General Inputs'!$B$29 -> Option 16 | D102: $ | E102: 0 | F102: 0 | G102: 0 | H102: 0 | I102: 0 | J102: 0 | K102: 0 | L102: 0 | M102: 0 | N102: 0 | O102: 0 | P102: 0 | Q102: 0 | R102: 0 | S102: 0 | T102: 0 | U102: 0 | V102: 0 | W102: 0 | X102: 0 | Y102: 0 | Z102: 0 | AA102: 0 | AB102: 0 | AC102: 0 | AD102: 0 | AE102: 0 | AF102: 0 | AG102: 0 | AH102: 0 | AI102: 0
B104: Present value of costs for each option
B105: Option name | D105: Units | E105: PV | F105: =+F69 -> 2025 | G105: 2026 | H105: 2027 | I105: 2028 | J105: 2029 | K105: 2030 | L105: 2031 | M105: 2032 | N105: 2033 | O105: 2034 | P105: 2035 | Q105: 2036 | R105: 2037 | S105: 2038 | T105: 2039 | U105: 2040 | V105: 2041 | W105: 2042 | X105: 2043 | Y105: 2044 | Z105: 0 | AA105: 0 | AB105: 0 | AC105: 0 | AD105: 0 | AE105: 0 | AF105: 0 | AG105: 0 | AH105: 0 | AI105: 0
B106: =+'I1 General Inputs'!$B$15 -> Option 2 | D106: $ | E106: =NPV($F$8,$F106:$AI106)/(1+$F$8)^(FirstYear-BaseYear-1) -> -590933.1952 | F106: =SUMIF($B$176:$B$282,$B106,F$176:F$282) -> 0 | G106: =SUMIF($B$176:$B$282,$B106,G$176:G$282) -> 0 | H106: 0 | I106: 0 | J106: 0 | K106: -75000 | L106: -75000 | M106: -75000 | N106: -75000 | O106: -75000 | P106: -75000 | Q106: -75000 | R106: -75000 | S106: -75000 | T106: -75000 | U106: -75000 | V106: -75000 | W106: =SUMIF($B$176:$B$282,$B106,W$176:W$282) -> -75000 | X106: -75000 | Y106: -75000 | Z106: 0 | AA106: 0 | AB106: 0 | AC106: 0 | AD106: 0 | AE106: 0 | AF106: 0 | AG106: 0 | AH106: 0 | AI106: 0
B107: =+'I1 General Inputs'!$B$16 -> Option 3 | D107: $ | E107: -16062712.13 | F107: 0 | G107: 0 | H107: 0 | I107: 0 | J107: 0 | K107: -4455142.374 | L107: -11324919.27 | M107: -19979559.4 | N107: 0 | O107: 0 | P107: 0 | Q107: 0 | R107: 0 | S107: 0 | T107: 0 | U107: 0 | V107: 0 | W107: 0 | X107: 0 | Y107: 23359444.93 | Z107: 0 | AA107: 0 | AB107: 0 | AC107: 0 | AD107: 0 | AE107: 0 | AF107: 0 | AG107: 0 | AH107: 0 | AI107: 0
B108: =+'I1 General Inputs'!$B$17 -> Option 4 | D108: $ | E108: -16492717.13 | F108: 0 | G108: 0 | H108: 0 | I108: 0 | J108: 0 | K108: -17164618.1 | L108: 0 | M108: 0 | N108: 0 | O108: 0 | P108: -25746927.15 | Q108: 0 | R108: 0 | S108: 0 | T108: 0 | U108: 0 | V108: 0 | W108: 0 | X108: 0 | Y108: 30034924.94 | Z108: 0 | AA108: 0 | AB108: 0 | AC108: 0 | AD108: 0 | AE108: 0 | AF108: 0 | AG108: 0 | AH108: 0 | AI108: 0
B109: =+'I1 General Inputs'!$B$18 -> Option 5 | D109: $ | E109: 0 | F109: 0 | G109: 0 | H109: 0 | I109: 0 | J109: 0 | K109: 0 | L109: 0 | M109: 0 | N109: 0 | O109: 0 | P109: 0 | Q109: 0 | R109: 0 | S109: 0 | T109: 0 | U109: 0 | V109: 0 | W109: 0 | X109: 0 | Y109: 0 | Z109: 0 | AA109: 0 | AB109: 0 | AC109: 0 | AD109: 0 | AE109: 0 | AF109: 0 | AG109: 0 | AH109: 0 | AI109: 0
B110: =+'I1 General Inputs'!$B$19 -> Option 6 | D110: $ | E110: 0 | F110: 0 | G110: 0 | H110: 0 | I110: 0 | J110: 0 | K110: 0 | L110: 0 | M110: 0 | N110: 0 | O110: 0 | P110: 0 | Q110: 0 | R110: 0 | S110: 0 | T110: 0 | U110: 0 | V110: 0 | W110: 0 | X110: 0 | Y110: 0 | Z110: 0 | AA110: 0 | AB110: 0 | AC110: 0 | AD110: 0 | AE110: 0 | AF110: 0 | AG110: 0 | AH110: 0 | AI110: 0
B111: =+'I1 General Inputs'!$B$20 -> Option 7 | D111: $ | E111: 0 | F111: 0 | G111: 0 | H111: 0 | I111: 0 | J111: 0 | K111: 0 | L111: 0 | M111: 0 | N111: 0 | O111: 0 | P111: 0 | Q111: 0 | R111: 0 | S111: 0 | T111: 0 | U111: 0 | V111: 0 | W111: 0 | X111: 0 | Y111: 0 | Z111: 0 | AA111: 0 | AB111: 0 | AC111: 0 | AD111: 0 | AE111: 0 | AF111: 0 | AG111: 0 | AH111: 0 | AI111: 0
B112: =+'I1 General Inputs'!$B$21 -> Option 8 | D112: $ | E112: 0 | F112: 0 | G112: 0 | H112: 0 | I112: 0 | J112: 0 | K112: 0 | L112: 0 | M112: 0 | N112: 0 | O112: 0 | P112: 0 | Q112: 0 | R112: 0 | S112: 0 | T112: 0 | U112: 0 | V112: 0 | W112: 0 | X112: 0 | Y112: 0 | Z112: 0 | AA112: 0 | AB112: 0 | AC112: 0 | AD112: 0 | AE112: 0 | AF112: 0 | AG112: 0 | AH112: 0 | AI112: 0
B113: =+'I1 General Inputs'!$B$22 -> Option 9 | D113: $ | E113: 0 | F113: 0 | G113: 0 | H113: 0 | I113: 0 | J113: 0 | K113: 0 | L113: 0 | M113: 0 | N113: 0 | O113: 0 | P113: 0 | Q113: 0 | R113: 0 | S113: 0 | T113: 0 | U113: 0 | V113: 0 | W113: 0 | X113: 0 | Y113: 0 | Z113: 0 | AA113: 0 | AB113: 0 | AC113: 0 | AD113: 0 | AE113: 0 | AF113: 0 | AG113: 0 | AH113: 0 | AI113: 0
B114: =+'I1 General Inputs'!$B$23 -> Option 10 | D114: $ | E114: 0 | F114: 0 | G114: 0 | H114: 0 | I114: 0 | J114: 0 | K114: 0 | L114: 0 | M114: 0 | N114: 0 | O114: 0 | P114: 0 | Q114: 0 | R114: 0 | S114: 0 | T114: 0 | U114: 0 | V114: 0 | W114: 0 | X114: 0 | Y114: 0 | Z114: 0 | AA114: 0 | AB114: 0 | AC114: 0 | AD114: 0 | AE114: 0 | AF114: 0 | AG114: 0 | AH114: 0 | AI114: 0
B115: =+'I1 General Inputs'!$B$24 -> Option 11 | D115: $ | E115: 0 | F115: 0 | G115: 0 | H115: 0 | I115: 0 | J115: 0 | K115: 0 | L115: 0 | M115: 0 | N115: 0 | O115: 0 | P115: 0 | Q115: 0 | R115: 0 | S115: 0 | T115: 0 | U115: 0 | V115: 0 | W115: 0 | X115: 0 | Y115: 0 | Z115: 0 | AA115: 0 | AB115: 0 | AC115: 0 | AD115: 0 | AE115: 0 | AF115: 0 | AG115: 0 | AH115: 0 | AI115: 0
B116: =+'I1 General Inputs'!$B$25 -> Option 12 | D116: $ | E116: 0 | F116: 0 | G116: 0 | H116: 0 | I116: 0 | J116: 0 | K116: 0 | L116: 0 | M116: 0 | N116: 0 | O116: 0 | P116: 0 | Q116: 0 | R116: 0 | S116: 0 | T116: 0 | U116: 0 | V116: 0 | W116: 0 | X116: 0 | Y116: 0 | Z116: 0 | AA116: 0 | AB116: 0 | AC116: 0 | AD116: 0 | AE116: 0 | AF116: 0 | AG116: 0 | AH116: 0 | AI116: 0
B117: =+'I1 General Inputs'!$B$26 -> Option 13 | D117: $ | E117: 0 | F117: 0 | G117: 0 | H117: 0 | I117: 0 | J117: 0 | K117: 0 | L117: 0 | M117: 0 | N117: 0 | O117: 0 | P117: 0 | Q117: 0 | R117: 0 | S117: 0 | T117: 0 | U117: 0 | V117: 0 | W117: 0 | X117: 0 | Y117: 0 | Z117: 0 | AA117: 0 | AB117: 0 | AC117: 0 | AD117: 0 | AE117: 0 | AF117: 0 | AG117: 0 | AH117: 0 | AI117: 0
B118: =+'I1 General Inputs'!$B$27 -> Option 14 | D118: $ | E118: 0 | F118: 0 | G118: 0 | H118: 0 | I118: 0 | J118: 0 | K118: 0 | L118: 0 | M118: 0 | N118: 0 | O118: 0 | P118: 0 | Q118: 0 | R118: 0 | S118: 0 | T118: 0 | U118: 0 | V118: 0 | W118: 0 | X118: 0 | Y118: 0 | Z118: 0 | AA118: 0 | AB118: 0 | AC118: 0 | AD118: 0 | AE118: 0 | AF118: 0 | AG118: 0 | AH118: 0 | AI118: 0
B119: =+'I1 General Inputs'!$B$28 -> Option 15 | D119: $ | E119: 0 | F119: 0 | G119: 0 | H119: 0 | I119: 0 | J119: 0 | K119: 0 | L119: 0 | M119: 0 | N119: 0 | O119: 0 | P119: 0 | Q119: 0 | R119: 0 | S119: 0 | T119: 0 | U119: 0 | V119: 0 | W119: 0 | X119: 0 | Y119: 0 | Z119: 0 | AA119: 0 | AB119: 0 | AC119: 0 | AD119: 0 | AE119: 0 | AF119: 0 | AG119: 0 | AH119: 0 | AI119: 0
B120: =+'I1 General Inputs'!$B$29 -> Option 16 | D120: $ | E120: 0 | F120: 0 | G120: 0 | H120: 0 | I120: 0 | J120: 0 | K120: 0 | L120: 0 | M120: 0 | N120: 0 | O120: 0 | P120: 0 | Q120: 0 | R120: 0 | S120: 0 | T120: 0 | U120: 0 | V120: 0 | W120: 0 | X120: 0 | Y120: 0 | Z120: 0 | AA120: 0 | AB120: 0 | AC120: 0 | AD120: 0 | AE120: 0 | AF120: 0 | AG120: 0 | AH120: 0 | AI120: 0
B122: Present value of avoided risk costs for each option
B123: Option name | D123: Units | E123: PV | F123: =+F87 -> 2025 | G123: 2026 | H123: 2027 | I123: 2028 | J123: 2029 | K123: 2030 | L123: 2031 | M123: 2032 | N123: 2033 | O123: 2034 | P123: 2035 | Q123: 2036 | R123: 2037 | S123: 2038 | T123: 2039 | U123: 2040 | V123: 2041 | W123: 2042 | X123: 2043 | Y123: 2044 | Z123: 0 | AA123: 0 | AB123: 0 | AC123: 0 | AD123: 0 | AE123: 0 | AF123: 0 | AG123: 0 | AH123: 0 | AI123: 0
B124: =+'I1 General Inputs'!$B$15 -> Option 2 | D124: $ | E124: =NPV($F$8,$F124:$AI124)/(1+$F$8)^(FirstYear-BaseYear-1) -> 0 | F124: =SUMIF($B$287:$B$375,$B124,F$287:F$375) -> 0 | G124: =SUMIF($B$287:$B$375,$B124,G$287:G$375) -> 0 | H124: 0 | I124: 0 | J124: 0 | K124: 0 | L124: 0 | M124: 0 | N124: 0 | O124: 0 | P124: 0 | Q124: 0 | R124: 0 | S124: 0 | T124: 0 | U124: 0 | V124: 0 | W124: =SUMIF($B$287:$B$375,$B124,W$287:W$375) -> 0 | X124: 0 | Y124: 0 | Z124: 0 | AA124: 0 | AB124: 0 | AC124: 0 | AD124: 0 | AE124: 0 | AF124: 0 | AG124: 0 | AH124: 0 | AI124: 0
B125: =+'I1 General Inputs'!$B$16 -> Option 3 | D125: $ | E125: 0 | F125: 0 | G125: 0 | H125: 0 | I125: 0 | J125: 0 | K125: 0 | L125: 0 | M125: 0 | N125: 0 | O125: 0 | P125: 0 | Q125: 0 | R125: 0 | S125: 0 | T125: 0 | U125: 0 | V125: 0 | W125: 0 | X125: 0 | Y125: 0 | Z125: 0 | AA125: 0 | AB125: 0 | AC125: 0 | AD125: 0 | AE125: 0 | AF125: 0 | AG125: 0 | AH125: 0 | AI125: 0
B126: =+'I1 General Inputs'!$B$17 -> Option 4 | D126: $ | E126: 0 | F126: 0 | G126: 0 | H126: 0 | I126: 0 | J126: 0 | K126: 0 | L126: 0 | M126: 0 | N126: 0 | O126: 0 | P126: 0 | Q126: 0 | R126: 0 | S126: 0 | T126: 0 | U126: 0 | V126: 0 | W126: 0 | X126: 0 | Y126: 0 | Z126: 0 | AA126: 0 | AB126: 0 | AC126: 0 | AD126: 0 | AE126: 0 | AF126: 0 | AG126: 0 | AH126: 0 | AI126: 0
B127: =+'I1 General Inputs'!$B$18 -> Option 5 | D127: $ | E127: 0 | F127: 0 | G127: 0 | H127: 0 | I127: 0 | J127: 0 | K127: 0 | L127: 0 | M127: 0 | N127: 0 | O127: 0 | P127: 0 | Q127: 0 | R127: 0 | S127: 0 | T127: 0 | U127: 0 | V127: 0 | W127: 0 | X127: 0 | Y127: 0 | Z127: 0 | AA127: 0 | AB127: 0 | AC127: 0 | AD127: 0 | AE127: 0 | AF127: 0 | AG127: 0 | AH127: 0 | AI127: 0
B128: =+'I1 General Inputs'!$B$19 -> Option 6 | D128: $ | E128: 0 | F128: 0 | G128: 0 | H128: 0 | I128: 0 | J128: 0 | K128: 0 | L128: 0 | M128: 0 | N128: 0 | O128: 0 | P128: 0 | Q128: 0 | R128: 0 | S128: 0 | T128: 0 | U128: 0 | V128: 0 | W128: 0 | X128: 0 | Y128: 0 | Z128: 0 | AA128: 0 | AB128: 0 | AC128: 0 | AD128: 0 | AE128: 0 | AF128: 0 | AG128: 0 | AH128: 0 | AI128: 0
B129: =+'I1 General Inputs'!$B$20 -> Option 7 | D129: $ | E129: 0 | F129: 0 | G129: 0 | H129: 0 | I129: 0 | J129: 0 | K129: 0 | L129: 0 | M129: 0 | N129: 0 | O129: 0 | P129: 0 | Q129: 0 | R129: 0 | S129: 0 | T129: 0 | U129: 0 | V129: 0 | W129: 0 | X129: 0 | Y129: 0 | Z129: 0 | AA129: 0 | AB129: 0 | AC129: 0 | AD129: 0 | AE129: 0 | AF129: 0 | AG129: 0 | AH129: 0 | AI129: 0
B130: =+'I1 General Inputs'!$B$21 -> Option 8 | D130: $ | E130: 0 | F130: 0 | G130: 0 | H130: 0 | I130: 0 | J130: 0 | K130: 0 | L130: 0 | M130: 0 | N130: 0 | O130: 0 | P130: 0 | Q130: 0 | R130: 0 | S130: 0 | T130: 0 | U130: 0 | V130: 0 | W130: 0 | X130: 0 | Y130: 0 | Z130: 0 | AA130: 0 | AB130: 0 | AC130: 0 | AD130: 0 | AE130: 0 | AF130: 0 | AG130: 0 | AH130: 0 | AI130: 0
B131: =+'I1 General Inputs'!$B$22 -> Option 9 | D131: $ | E131: 0 | F131: 0 | G131: 0 | H131: 0 | I131: 0 | J131: 0 | K131: 0 | L131: 0 | M131: 0 | N131: 0 | O131: 0 | P131: 0 | Q131: 0 | R131: 0 | S131: 0 | T131: 0 | U131: 0 | V131: 0 | W131: 0 | X131: 0 | Y131: 0 | Z131: 0 | AA131: 0 | AB131: 0 | AC131: 0 | AD131: 0 | AE131: 0 | AF131: 0 | AG131: 0 | AH131: 0 | AI131: 0
B132: =+'I1 General Inputs'!$B$23 -> Option 10 | D132: $ | E132: 0 | F132: 0 | G132: 0 | H132: 0 | I132: 0 | J132: 0 | K132: 0 | L132: 0 | M132: 0 | N132: 0 | O132: 0 | P132: 0 | Q132: 0 | R132: 0 | S132: 0 | T132: 0 | U132: 0 | V132: 0 | W132: 0 | X132: 0 | Y132: 0 | Z132: 0 | AA132: 0 | AB132: 0 | AC132: 0 | AD132: 0 | AE132: 0 | AF132: 0 | AG132: 0 | AH132: 0 | AI132: 0
B133: =+'I1 General Inputs'!$B$24 -> Option 11 | D133: $ | E133: 0 | F133: 0 | G133: 0 | H133: 0 | I133: 0 | J133: 0 | K133: 0 | L133: 0 | M133: 0 | N133: 0 | O133: 0 | P133: 0 | Q133: 0 | R133: 0 | S133: 0 | T133: 0 | U133: 0 | V133: 0 | W133: 0 | X133: 0 | Y133: 0 | Z133: 0 | AA133: 0 | AB133: 0 | AC133: 0 | AD133: 0 | AE133: 0 | AF133: 0 | AG133: 0 | AH133: 0 | AI133: 0
B134: =+'I1 General Inputs'!$B$25 -> Option 12 | D134: $ | E134: 0 | F134: 0 | G134: 0 | H134: 0 | I134: 0 | J134: 0 | K134: 0 | L134: 0 | M134: 0 | N134: 0 | O134: 0 | P134: 0 | Q134: 0 | R134: 0 | S134: 0 | T134: 0 | U134: 0 | V134: 0 | W134: 0 | X134: 0 | Y134: 0 | Z134: 0 | AA134: 0 | AB134: 0 | AC134: 0 | AD134: 0 | AE134: 0 | AF134: 0 | AG134: 0 | AH134: 0 | AI134: 0
B135: =+'I1 General Inputs'!$B$26 -> Option 13 | D135: $ | E135: 0 | F135: 0 | G135: 0 | H135: 0 | I135: 0 | J135: 0 | K135: 0 | L135: 0 | M135: 0 | N135: 0 | O135: 0 | P135: 0 | Q135: 0 | R135: 0 | S135: 0 | T135: 0 | U135: 0 | V135: 0 | W135: 0 | X135: 0 | Y135: 0 | Z135: 0 | AA135: 0 | AB135: 0 | AC135: 0 | AD135: 0 | AE135: 0 | AF135: 0 | AG135: 0 | AH135: 0 | AI135: 0
B136: =+'I1 General Inputs'!$B$27 -> Option 14 | D136: $ | E136: 0 | F136: 0 | G136: 0 | H136: 0 | I136: 0 | J136: 0 | K136: 0 | L136: 0 | M136: 0 | N136: 0 | O136: 0 | P136: 0 | Q136: 0 | R136: 0 | S136: 0 | T136: 0 | U136: 0 | V136: 0 | W136: 0 | X136: 0 | Y136: 0 | Z136: 0 | AA136: 0 | AB136: 0 | AC136: 0 | AD136: 0 | AE136: 0 | AF136: 0 | AG136: 0 | AH136: 0 | AI136: 0
B137: =+'I1 General Inputs'!$B$28 -> Option 15 | D137: $ | E137: 0 | F137: 0 | G137: 0 | H137: 0 | I137: 0 | J137: 0 | K137: 0 | L137: 0 | M137: 0 | N137: 0 | O137: 0 | P137: 0 | Q137: 0 | R137: 0 | S137: 0 | T137: 0 | U137: 0 | V137: 0 | W137: 0 | X137: 0 | Y137: 0 | Z137: 0 | AA137: 0 | AB137: 0 | AC137: 0 | AD137: 0 | AE137: 0 | AF137: 0 | AG137: 0 | AH137: 0 | AI137: 0
B138: =+'I1 General Inputs'!$B$29 -> Option 16 | D138: $ | E138: 0 | F138: 0 | G138: 0 | H138: 0 | I138: 0 | J138: 0 | K138: 0 | L138: 0 | M138: 0 | N138: 0 | O138: 0 | P138: 0 | Q138: 0 | R138: 0 | S138: 0 | T138: 0 | U138: 0 | V138: 0 | W138: 0 | X138: 0 | Y138: 0 | Z138: 0 | AA138: 0 | AB138: 0 | AC138: 0 | AD138: 0 | AE138: 0 | AF138: 0 | AG138: 0 | AH138: 0 | AI138: 0
B141: Incremental cost calculation | F141: =IF(FirstYear+AnalysisPeriod-1>='I2 CBA Inputs'!E41,1,0) -> 1 | G141: =IF(FirstYear+AnalysisPeriod-1>='I2 CBA Inputs'!F41,1,0) -> 1 | H141: =IF(FirstYear+AnalysisPeriod-1>='I2 CBA Inputs'!G41,1,0) -> 1 | I141: =IF(FirstYear+AnalysisPeriod-1>='I2 CBA Inputs'!H41,1,0) -> 1 | J141: =IF(FirstYear+AnalysisPeriod-1>='I2 CBA Inputs'!I41,1,0) -> 1 | K141: =IF(FirstYear+AnalysisPeriod-1>='I2 CBA Inputs'!J41,1,0) -> 1 | L141: =IF(FirstYear+AnalysisPeriod-1>='I2 CBA Inputs'!K41,1,0) -> 1 | M141: =IF(FirstYear+AnalysisPeriod-1>='I2 CBA Inputs'!L41,1,0) -> 1 | N141: =IF(FirstYear+AnalysisPeriod-1>='I2 CBA Inputs'!M41,1,0) -> 1 | O141: =IF(FirstYear+AnalysisPeriod-1>='I2 CBA Inputs'!N41,1,0) -> 1 | P141: =IF(FirstYear+AnalysisPeriod-1>='I2 CBA Inputs'!O41,1,0) -> 1 | Q141: =IF(FirstYear+AnalysisPeriod-1>='I2 CBA Inputs'!P41,1,0) -> 1 | R141: =IF(FirstYear+AnalysisPeriod-1>='I2 CBA Inputs'!Q41,1,0) -> 1 | S141: =IF(FirstYear+AnalysisPeriod-1>='I2 CBA Inputs'!R41,1,0) -> 1 | T141: =IF(FirstYear+AnalysisPeriod-1>='I2 CBA Inputs'!S41,1,0) -> 1 | U141: =IF(FirstYear+AnalysisPeriod-1>='I2 CBA Inputs'!T41,1,0) -> 1 | V141: =IF(FirstYear+AnalysisPeriod-1>='I2 CBA Inputs'!U41,1,0) -> 1 | W141: =IF(FirstYear+AnalysisPeriod-1>='I2 CBA Inputs'!V41,1,0) -> 1 | X141: =IF(FirstYear+AnalysisPeriod-1>='I2 CBA Inputs'!W41,1,0) -> 1 | Y141: =IF(FirstYear+AnalysisPeriod-1>='I2 CBA Inputs'!X41,1,0) -> 1 | Z141: =IF(FirstYear+AnalysisPeriod-1>='I2 CBA Inputs'!Y41,1,0) -> 0 | AA141: =IF(FirstYear+AnalysisPeriod-1>='I2 CBA Inputs'!Z41,1,0) -> 0 | AB141: =IF(FirstYear+AnalysisPeriod-1>='I2 CBA Inputs'!AA41,1,0) -> 0 | AC141: =IF(FirstYear+AnalysisPeriod-1>='I2 CBA Inputs'!AB41,1,0) -> 0 | AD141: =IF(FirstYear+AnalysisPeriod-1>='I2 CBA Inputs'!AC41,1,0) -> 0 | AE141: =IF(FirstYear+AnalysisPeriod-1>='I2 CBA Inputs'!AD41,1,0) -> 0 | AF141: =IF(FirstYear+AnalysisPeriod-1>='I2 CBA Inputs'!AE41,1,0) -> 0 | AG141: =IF(FirstYear+AnalysisPeriod-1>='I2 CBA Inputs'!AF41,1,0) -> 0 | AH141: =IF(FirstYear+AnalysisPeriod-1>='I2 CBA Inputs'!AG41,1,0) -> 0 | AI141: =IF(FirstYear+AnalysisPeriod-1>='I2 CBA Inputs'!AH41,1,0) -> 0
B143: Capital outflow
B144: =+B69 -> Option name | C144: Capex component | D144: =+D69 -> Units | E144: PV | F144: =FirstYear -> 2025 | G144: =F144+1 -> 2026 | H144: =G144+1 -> 2027 | I144: 2028 | J144: 2029 | K144: 2030 | L144: 2031 | M144: 2032 | N144: 2033 | O144: 2034 | P144: 2035 | Q144: 2036 | R144: 2037 | S144: 2038 | T144: 2039 | U144: 2040 | V144: 2041 | W144: 2042 | X144: 2043 | Y144: 2044 | Z144: 2045 | AA144: 2046 | AB144: 2047 | AC144: 2048 | AD144: 2049 | AE144: 2050 | AF144: 2051 | AG144: 2052 | AH144: 2053 | AI144: 2054 | AK144: Annual depreciation | AL144: Years in analysis | AM144: Terminal value
B145: =+'I2 CBA Inputs'!B9 -> Option 3 | C145: =+'I2 CBA Inputs'!C9 -> Transformers | D145: $ | E145: =NPV($F$8,$F145:$AI145)/(1+$F$8)^(FirstYear-BaseYear-1) -> -996220.082 | F145: =-'I2 CBA Inputs'!H9*$F$13+IF(F$144=FirstYear+AnalysisPeriod-1,$AM145,0) -> 0 | G145: =-'I2 CBA Inputs'!I9*$F$13+IF(G$144=FirstYear+AnalysisPeriod-1,$AM145,0) -> 0 | H145: =-'I2 CBA Inputs'!J9*$F$13+IF(H$144=FirstYear+AnalysisPeriod-1,$AM145,0) -> 0 | I145: =-'I2 CBA Inputs'!K9*$F$13+IF(I$144=FirstYear+AnalysisPeriod-1,$AM145,0) -> 0 | J145: =-'I2 CBA Inputs'!L9*$F$13+IF(J$144=FirstYear+AnalysisPeriod-1,$AM145,0) -> 0 | K145: =-'I2 CBA Inputs'!M9*$F$13+IF(K$144=FirstYear+AnalysisPeriod-1,$AM145,0) -> -301979.3889 | L145: =-'I2 CBA Inputs'!N9*$F$13+IF(L$144=FirstYear+AnalysisPeriod-1,$AM145,0) -> -767628.0381 | M145: =-'I2 CBA Inputs'!O9*$F$13+IF(M$144=FirstYear+AnalysisPeriod-1,$AM145,0) -> -1354258.659 | N145: =-'I2 CBA Inputs'!P9*$F$13+IF(N$144=FirstYear+AnalysisPeriod-1,$AM145,0) -> 0 | O145: =-'I2 CBA Inputs'!Q9*$F$13+IF(O$144=FirstYear+AnalysisPeriod-1,$AM145,0) -> 0 | P145: =-'I2 CBA Inputs'!R9*$F$13+IF(P$144=FirstYear+AnalysisPeriod-1,$AM145,0) -> 0 | Q145: =-'I2 CBA Inputs'!S9*$F$13+IF(Q$144=FirstYear+AnalysisPeriod-1,$AM145,0) -> 0 | R145: =-'I2 CBA Inputs'!T9*$F$13+IF(R$144=FirstYear+AnalysisPeriod-1,$AM145,0) -> 0 | S145: =-'I2 CBA Inputs'!U9*$F$13+IF(S$144=FirstYear+AnalysisPeriod-1,$AM145,0) -> 0 | T145: =-'I2 CBA Inputs'!V9*$F$13+IF(T$144=FirstYear+AnalysisPeriod-1,$AM145,0) -> 0 | U145: =-'I2 CBA Inputs'!W9*$F$13+IF(U$144=FirstYear+AnalysisPeriod-1,$AM145,0) -> 0 | V145: =-'I2 CBA Inputs'!X9*$F$13+IF(V$144=FirstYear+AnalysisPeriod-1,$AM145,0) -> 0 | W145: =-'I2 CBA Inputs'!Y9*$F$13+IF(W$144=FirstYear+AnalysisPeriod-1,$AM145,0) -> 0 | X145: =-'I2 CBA Inputs'!Z9*$F$13+IF(X$144=FirstYear+AnalysisPeriod-1,$AM145,0) -> 0 | Y145: =-'I2 CBA Inputs'!AA9*$F$13+IF(Y$144=FirstYear+AnalysisPeriod-1,$AM145,0) -> 1842138.226 | Z145: =-'I2 CBA Inputs'!AB9*$F$13+IF(Z$144=FirstYear+AnalysisPeriod-1,$AM145,0) -> 0 | AA145: =-'I2 CBA Inputs'!AC9*$F$13+IF(AA$144=FirstYear+AnalysisPeriod-1,$AM145,0) -> 0 | AB145: =-'I2 CBA Inputs'!AD9*$F$13+IF(AB$144=FirstYear+AnalysisPeriod-1,$AM145,0) -> 0 | AC145: =-'I2 CBA Inputs'!AE9*$F$13+IF(AC$144=FirstYear+AnalysisPeriod-1,$AM145,0) -> 0 | AD145: =-'I2 CBA Inputs'!AF9*$F$13+IF(AD$144=FirstYear+AnalysisPeriod-1,$AM145,0) -> 0 | AE145: =-'I2 CBA Inputs'!AG9*$F$13+IF(AE$144=FirstYear+AnalysisPeriod-1,$AM145,0) -> 0 | AF145: =-'I2 CBA Inputs'!AH9*$F$13+IF(AF$144=FirstYear+AnalysisPeriod-1,$AM145,0) -> 0 | AG145: =-'I2 CBA Inputs'!AI9*$F$13+IF(AG$144=FirstYear+AnalysisPeriod-1,$AM145,0) -> 0 | AH145: =-'I2 CBA Inputs'!AJ9*$F$13+IF(AH$144=FirstYear+AnalysisPeriod-1,$AM145,0) -> 0 | AI145: =-'I2 CBA Inputs'!AK9*$F$13+IF(AI$144=FirstYear+AnalysisPeriod-1,$AM145,0) -> 0 | AK145: =IFERROR(('I2 CBA Inputs'!D9/'I2 CBA Inputs'!F9)*$F$13,0) -> 48477.32172 | AL145: =(FirstYear+AnalysisPeriod)-'I2 CBA Inputs'!E9 -> 12 | AM145: =MAX('I2 CBA Inputs'!$D9*$F$13-PRODUCT($AK145:$AL145),0) -> 1842138.226
B146: =+'I2 CBA Inputs'!B10 -> Option 3 | C146: =+'I2 CBA Inputs'!C10 -> Switchgear | D146: $ | E146: -9342368.011 | F146: =-'I2 CBA Inputs'!H10*$F$13+IF(F$144=FirstYear+AnalysisPeriod-1,$AM146,0) -> 0 | G146: =-'I2 CBA Inputs'!I10*$F$13+IF(G$144=FirstYear+AnalysisPeriod-1,$AM146,0) -> 0 | H146: =-'I2 CBA Inputs'!J10*$F$13+IF(H$144=FirstYear+AnalysisPeriod-1,$AM146,0) -> 0 | I146: =-'I2 CBA Inputs'!K10*$F$13+IF(I$144=FirstYear+AnalysisPeriod-1,$AM146,0) -> 0 | J146: =-'I2 CBA Inputs'!L10*$F$13+IF(J$144=FirstYear+AnalysisPeriod-1,$AM146,0) -> 0 | K146: =-'I2 CBA Inputs'!M10*$F$13+IF(K$144=FirstYear+AnalysisPeriod-1,$AM146,0) -> -2831906.959 | L146: =-'I2 CBA Inputs'!N10*$F$13+IF(L$144=FirstYear+AnalysisPeriod-1,$AM146,0) -> -7198674.025 | M146: =-'I2 CBA Inputs'!O10*$F$13+IF(M$144=FirstYear+AnalysisPeriod-1,$AM146,0) -> -12699987.69 | N146: =-'I2 CBA Inputs'!P10*$F$13+IF(N$144=FirstYear+AnalysisPeriod-1,$AM146,0) -> 0 | O146: =-'I2 CBA Inputs'!Q10*$F$13+IF(O$144=FirstYear+AnalysisPeriod-1,$AM146,0) -> 0 | P146: =-'I2 CBA Inputs'!R10*$F$13+IF(P$144=FirstYear+AnalysisPeriod-1,$AM146,0) -> 0 | Q146: =-'I2 CBA Inputs'!S10*$F$13+IF(Q$144=FirstYear+AnalysisPeriod-1,$AM146,0) -> 0 | R146: =-'I2 CBA Inputs'!T10*$F$13+IF(R$144=FirstYear+AnalysisPeriod-1,$AM146,0) -> 0 | S146: =-'I2 CBA Inputs'!U10*$F$13+IF(S$144=FirstYear+AnalysisPeriod-1,$AM146,0) -> 0 | T146: =-'I2 CBA Inputs'!V10*$F$13+IF(T$144=FirstYear+AnalysisPeriod-1,$AM146,0) -> 0 | U146: =-'I2 CBA Inputs'!W10*$F$13+IF(U$144=FirstYear+AnalysisPeriod-1,$AM146,0) -> 0 | V146: =-'I2 CBA Inputs'!X10*$F$13+IF(V$144=FirstYear+AnalysisPeriod-1,$AM146,0) -> 0 | W146: =-'I2 CBA Inputs'!Y10*$F$13+IF(W$144=FirstYear+AnalysisPeriod-1,$AM146,0) -> 0 | X146: =-'I2 CBA Inputs'!Z10*$F$13+IF(X$144=FirstYear+AnalysisPeriod-1,$AM146,0) -> 0 | Y146: =-'I2 CBA Inputs'!AA10*$F$13+IF(Y$144=FirstYear+AnalysisPeriod-1,$AM146,0) -> 17275232.19 | Z146: =-'I2 CBA Inputs'!AB10*$F$13+IF(Z$144=FirstYear+AnalysisPeriod-1,$AM146,0) -> 0 | AA146: =-'I2 CBA Inputs'!AC10*$F$13+IF(AA$144=FirstYear+AnalysisPeriod-1,$AM146,0) -> 0 | AB146: =-'I2 CBA Inputs'!AD10*$F$13+IF(AB$144=FirstYear+AnalysisPeriod-1,$AM146,0) -> 0 | AC146: =-'I2 CBA Inputs'!AE10*$F$13+IF(AC$144=FirstYear+AnalysisPeriod-1,$AM146,0) -> 0 | AD146: =-'I2 CBA Inputs'!AF10*$F$13+IF(AD$144=FirstYear+AnalysisPeriod-1,$AM146,0) -> 0 | AE146: =-'I2 CBA Inputs'!AG10*$F$13+IF(AE$144=FirstYear+AnalysisPeriod-1,$AM146,0) -> 0 | AF146: =-'I2 CBA Inputs'!AH10*$F$13+IF(AF$144=FirstYear+AnalysisPeriod-1,$AM146,0) -> 0 | AG146: =-'I2 CBA Inputs'!AI10*$F$13+IF(AG$144=FirstYear+AnalysisPeriod-1,$AM146,0) -> 0 | AH146: =-'I2 CBA Inputs'!AJ10*$F$13+IF(AH$144=FirstYear+AnalysisPeriod-1,$AM146,0) -> 0 | AI146: =-'I2 CBA Inputs'!AK10*$F$13+IF(AI$144=FirstYear+AnalysisPeriod-1,$AM146,0) -> 0 | AK146: =IFERROR(('I2 CBA Inputs'!D10/'I2 CBA Inputs'!F10)*$F$13,0) -> 454611.3734 | AL146: =(FirstYear+AnalysisPeriod)-'I2 CBA Inputs'!E10 -> 12 | AM146: =MAX('I2 CBA Inputs'!$D10*$F$13-PRODUCT($AK146:$AL146),0) -> 17275232.19
B147: =+'I2 CBA Inputs'!B11 -> Option 3 | C147: =+'I2 CBA Inputs'!C11 -> Protection systems | D147: $ | E147: -5724124.039 | F147: =-'I2 CBA Inputs'!H11*$F$13+IF(F$144=FirstYear+AnalysisPeriod-1,$AM147,0) -> 0 | G147: =-'I2 CBA Inputs'!I11*$F$13+IF(G$144=FirstYear+AnalysisPeriod-1,$AM147,0) -> 0 | H147: =-'I2 CBA Inputs'!J11*$F$13+IF(H$144=FirstYear+AnalysisPeriod-1,$AM147,0) -> 0 | I147: =-'I2 CBA Inputs'!K11*$F$13+IF(I$144=FirstYear+AnalysisPeriod-1,$AM147,0) -> 0 | J147: =-'I2 CBA Inputs'!L11*$F$13+IF(J$144=FirstYear+AnalysisPeriod-1,$AM147,0) -> 0 | K147: =-'I2 CBA Inputs'!M11*$F$13+IF(K$144=FirstYear+AnalysisPeriod-1,$AM147,0) -> -1321256.026 | L147: =-'I2 CBA Inputs'!N11*$F$13+IF(L$144=FirstYear+AnalysisPeriod-1,$AM147,0) -> -3358617.205 | M147: =-'I2 CBA Inputs'!O11*$F$13+IF(M$144=FirstYear+AnalysisPeriod-1,$AM147,0) -> -5925313.051 | N147: =-'I2 CBA Inputs'!P11*$F$13+IF(N$144=FirstYear+AnalysisPeriod-1,$AM147,0) -> 0 | O147: =-'I2 CBA Inputs'!Q11*$F$13+IF(O$144=FirstYear+AnalysisPeriod-1,$AM147,0) -> 0 | P147: =-'I2 CBA Inputs'!R11*$F$13+IF(P$144=FirstYear+AnalysisPeriod-1,$AM147,0) -> 0 | Q147: =-'I2 CBA Inputs'!S11*$F$13+IF(Q$144=FirstYear+AnalysisPeriod-1,$AM147,0) -> 0 | R147: =-'I2 CBA Inputs'!T11*$F$13+IF(R$144=FirstYear+AnalysisPeriod-1,$AM147,0) -> 0 | S147: =-'I2 CBA Inputs'!U11*$F$13+IF(S$144=FirstYear+AnalysisPeriod-1,$AM147,0) -> 0 | T147: =-'I2 CBA Inputs'!V11*$F$13+IF(T$144=FirstYear+AnalysisPeriod-1,$AM147,0) -> 0 | U147: =-'I2 CBA Inputs'!W11*$F$13+IF(U$144=FirstYear+AnalysisPeriod-1,$AM147,0) -> 0 | V147: =-'I2 CBA Inputs'!X11*$F$13+IF(V$144=FirstYear+AnalysisPeriod-1,$AM147,0) -> 0 | W147: =-'I2 CBA Inputs'!Y11*$F$13+IF(W$144=FirstYear+AnalysisPeriod-1,$AM147,0) -> 0 | X147: =-'I2 CBA Inputs'!Z11*$F$13+IF(X$144=FirstYear+AnalysisPeriod-1,$AM147,0) -> 0 | Y147: =-'I2 CBA Inputs'!AA11*$F$13+IF(Y$144=FirstYear+AnalysisPeriod-1,$AM147,0) -> 4242074.513 | Z147: =-'I2 CBA Inputs'!AB11*$F$13+IF(Z$144=FirstYear+AnalysisPeriod-1,$AM147,0) -> 0 | AA147: =-'I2 CBA Inputs'!AC11*$F$13+IF(AA$144=FirstYear+AnalysisPeriod-1,$AM147,0) -> 0 | AB147: =-'I2 CBA Inputs'!AD11*$F$13+IF(AB$144=FirstYear+AnalysisPeriod-1,$AM147,0) -> 0 | AC147: =-'I2 CBA Inputs'!AE11*$F$13+IF(AC$144=FirstYear+AnalysisPeriod-1,$AM147,0) -> 0 | AD147: =-'I2 CBA Inputs'!AF11*$F$13+IF(AD$144=FirstYear+AnalysisPeriod-1,$AM147,0) -> 0 | AE147: =-'I2 CBA Inputs'!AG11*$F$13+IF(AE$144=FirstYear+AnalysisPeriod-1,$AM147,0) -> 0 | AF147: =-'I2 CBA Inputs'!AH11*$F$13+IF(AF$144=FirstYear+AnalysisPeriod-1,$AM147,0) -> 0 | AG147: =-'I2 CBA Inputs'!AI11*$F$13+IF(AG$144=FirstYear+AnalysisPeriod-1,$AM147,0) -> 0 | AH147: =-'I2 CBA Inputs'!AJ11*$F$13+IF(AH$144=FirstYear+AnalysisPeriod-1,$AM147,0) -> 0 | AI147: =-'I2 CBA Inputs'!AK11*$F$13+IF(AI$144=FirstYear+AnalysisPeriod-1,$AM147,0) -> 0 | AK147: =IFERROR(('I2 CBA Inputs'!D11/'I2 CBA Inputs'!F11)*$F$13,0) -> 530259.3141 | AL147: =(FirstYear+AnalysisPeriod)-'I2 CBA Inputs'!E11 -> 12 | AM147: =MAX('I2 CBA Inputs'!$D11*$F$13-PRODUCT($AK147:$AL147),0) -> 4242074.513
B148: =+'I2 CBA Inputs'!B12 -> Option 4 | C148: =+'I2 CBA Inputs'!C12 -> Switchgear | D148: $ | E148: -8188765.627 | F148: =-'I2 CBA Inputs'!H12*$F$13+IF(F$144=FirstYear+AnalysisPeriod-1,$AM148,0) -> 0 | G148: =-'I2 CBA Inputs'!I12*$F$13+IF(G$144=FirstYear+AnalysisPeriod-1,$AM148,0) -> 0 | H148: =-'I2 CBA Inputs'!J12*$F$13+IF(H$144=FirstYear+AnalysisPeriod-1,$AM148,0) -> 0 | I148: =-'I2 CBA Inputs'!K12*$F$13+IF(I$144=FirstYear+AnalysisPeriod-1,$AM148,0) -> 0 | J148: =-'I2 CBA Inputs'!L12*$F$13+IF(J$144=FirstYear+AnalysisPeriod-1,$AM148,0) -> 0 | K148: =-'I2 CBA Inputs'!M12*$F$13+IF(K$144=FirstYear+AnalysisPeriod-1,$AM148,0) -> -17164618.1 | L148: =-'I2 CBA Inputs'!N12*$F$13+IF(L$144=FirstYear+AnalysisPeriod-1,$AM148,0) -> 0 | M148: =-'I2 CBA Inputs'!O12*$F$13+IF(M$144=FirstYear+AnalysisPeriod-1,$AM148,0) -> 0 | N148: =-'I2 CBA Inputs'!P12*$F$13+IF(N$144=FirstYear+AnalysisPeriod-1,$AM148,0) -> 0 | O148: =-'I2 CBA Inputs'!Q12*$F$13+IF(O$144=FirstYear+AnalysisPeriod-1,$AM148,0) -> 0 | P148: =-'I2 CBA Inputs'!R12*$F$13+IF(P$144=FirstYear+AnalysisPeriod-1,$AM148,0) -> 0 | Q148: =-'I2 CBA Inputs'!S12*$F$13+IF(Q$144=FirstYear+AnalysisPeriod-1,$AM148,0) -> 0 | R148: =-'I2 CBA Inputs'!T12*$F$13+IF(R$144=FirstYear+AnalysisPeriod-1,$AM148,0) -> 0 | S148: =-'I2 CBA Inputs'!U12*$F$13+IF(S$144=FirstYear+AnalysisPeriod-1,$AM148,0) -> 0 | T148: =-'I2 CBA Inputs'!V12*$F$13+IF(T$144=FirstYear+AnalysisPeriod-1,$AM148,0) -> 0 | U148: =-'I2 CBA Inputs'!W12*$F$13+IF(U$144=FirstYear+AnalysisPeriod-1,$AM148,0) -> 0 | V148: =-'I2 CBA Inputs'!X12*$F$13+IF(V$144=FirstYear+AnalysisPeriod-1,$AM148,0) -> 0 | W148: =-'I2 CBA Inputs'!Y12*$F$13+IF(W$144=FirstYear+AnalysisPeriod-1,$AM148,0) -> 0 | X148: =-'I2 CBA Inputs'!Z12*$F$13+IF(X$144=FirstYear+AnalysisPeriod-1,$AM148,0) -> 0 | Y148: =-'I2 CBA Inputs'!AA12*$F$13+IF(Y$144=FirstYear+AnalysisPeriod-1,$AM148,0) -> 12358525.03 | Z148: =-'I2 CBA Inputs'!AB12*$F$13+IF(Z$144=FirstYear+AnalysisPeriod-1,$AM148,0) -> 0 | AA148: =-'I2 CBA Inputs'!AC12*$F$13+IF(AA$144=FirstYear+AnalysisPeriod-1,$AM148,0) -> 0 | AB148: =-'I2 CBA Inputs'!AD12*$F$13+IF(AB$144=FirstYear+AnalysisPeriod-1,$AM148,0) -> 0 | AC148: =-'I2 CBA Inputs'!AE12*$F$13+IF(AC$144=FirstYear+AnalysisPeriod-1,$AM148,0) -> 0 | AD148: =-'I2 CBA Inputs'!AF12*$F$13+IF(AD$144=FirstYear+AnalysisPeriod-1,$AM148,0) -> 0 | AE148: =-'I2 CBA Inputs'!AG12*$F$13+IF(AE$144=FirstYear+AnalysisPeriod-1,$AM148,0) -> 0 | AF148: =-'I2 CBA Inputs'!AH12*$F$13+IF(AF$144=FirstYear+AnalysisPeriod-1,$AM148,0) -> 0 | AG148: =-'I2 CBA Inputs'!AI12*$F$13+IF(AG$144=FirstYear+AnalysisPeriod-1,$AM148,0) -> 0 | AH148: =-'I2 CBA Inputs'!AJ12*$F$13+IF(AH$144=FirstYear+AnalysisPeriod-1,$AM148,0) -> 0 | AI148: =-'I2 CBA Inputs'!AK12*$F$13+IF(AI$144=FirstYear+AnalysisPeriod-1,$AM148,0) -> 0 | AK148: =IFERROR(('I2 CBA Inputs'!D12/'I2 CBA Inputs'!F12)*$F$13,0) -> 343292.362 | AL148: =(FirstYear+AnalysisPeriod)-'I2 CBA Inputs'!E12 -> 14 | AM148: =MAX('I2 CBA Inputs'!$D12*$F$13-PRODUCT($AK148:$AL148),0) -> 12358525.03
B149: =+'I2 CBA Inputs'!B13 -> Option 4 | C149: =+'I2 CBA Inputs'!C13 -> Transformers | D149: $ | E149: -799281.2564 | F149: =-'I2 CBA Inputs'!H13*$F$13+IF(F$144=FirstYear+AnalysisPeriod-1,$AM149,0) -> 0 | G149: =-'I2 CBA Inputs'!I13*$F$13+IF(G$144=FirstYear+AnalysisPeriod-1,$AM149,0) -> 0 | H149: =-'I2 CBA Inputs'!J13*$F$13+IF(H$144=FirstYear+AnalysisPeriod-1,$AM149,0) -> 0 | I149: =-'I2 CBA Inputs'!K13*$F$13+IF(I$144=FirstYear+AnalysisPeriod-1,$AM149,0) -> 0 | J149: =-'I2 CBA Inputs'!L13*$F$13+IF(J$144=FirstYear+AnalysisPeriod-1,$AM149,0) -> 0 | K149: =-'I2 CBA Inputs'!M13*$F$13+IF(K$144=FirstYear+AnalysisPeriod-1,$AM149,0) -> 0 | L149: =-'I2 CBA Inputs'!N13*$F$13+IF(L$144=FirstYear+AnalysisPeriod-1,$AM149,0) -> 0 | M149: =-'I2 CBA Inputs'!O13*$F$13+IF(M$144=FirstYear+AnalysisPeriod-1,$AM149,0) -> 0 | N149: =-'I2 CBA Inputs'!P13*$F$13+IF(N$144=FirstYear+AnalysisPeriod-1,$AM149,0) -> 0 | O149: =-'I2 CBA Inputs'!Q13*$F$13+IF(O$144=FirstYear+AnalysisPeriod-1,$AM149,0) -> 0 | P149: =-'I2 CBA Inputs'!R13*$F$13+IF(P$144=FirstYear+AnalysisPeriod-1,$AM149,0) -> -2908639.303 | Q149: =-'I2 CBA Inputs'!S13*$F$13+IF(Q$144=FirstYear+AnalysisPeriod-1,$AM149,0) -> 0 | R149: =-'I2 CBA Inputs'!T13*$F$13+IF(R$144=FirstYear+AnalysisPeriod-1,$AM149,0) -> 0 | S149: =-'I2 CBA Inputs'!U13*$F$13+IF(S$144=FirstYear+AnalysisPeriod-1,$AM149,0) -> 0 | T149: =-'I2 CBA Inputs'!V13*$F$13+IF(T$144=FirstYear+AnalysisPeriod-1,$AM149,0) -> 0 | U149: =-'I2 CBA Inputs'!W13*$F$13+IF(U$144=FirstYear+AnalysisPeriod-1,$AM149,0) -> 0 | V149: =-'I2 CBA Inputs'!X13*$F$13+IF(V$144=FirstYear+AnalysisPeriod-1,$AM149,0) -> 0 | W149: =-'I2 CBA Inputs'!Y13*$F$13+IF(W$144=FirstYear+AnalysisPeriod-1,$AM149,0) -> 0 | X149: =-'I2 CBA Inputs'!Z13*$F$13+IF(X$144=FirstYear+AnalysisPeriod-1,$AM149,0) -> 0 | Y149: =-'I2 CBA Inputs'!AA13*$F$13+IF(Y$144=FirstYear+AnalysisPeriod-1,$AM149,0) -> 2385084.229 | Z149: =-'I2 CBA Inputs'!AB13*$F$13+IF(Z$144=FirstYear+AnalysisPeriod-1,$AM149,0) -> 0 | AA149: =-'I2 CBA Inputs'!AC13*$F$13+IF(AA$144=FirstYear+AnalysisPeriod-1,$AM149,0) -> 0 | AB149: =-'I2 CBA Inputs'!AD13*$F$13+IF(AB$144=FirstYear+AnalysisPeriod-1,$AM149,0) -> 0 | AC149: =-'I2 CBA Inputs'!AE13*$F$13+IF(AC$144=FirstYear+AnalysisPeriod-1,$AM149,0) -> 0 | AD149: =-'I2 CBA Inputs'!AF13*$F$13+IF(AD$144=FirstYear+AnalysisPeriod-1,$AM149,0) -> 0 | AE149: =-'I2 CBA Inputs'!AG13*$F$13+IF(AE$144=FirstYear+AnalysisPeriod-1,$AM149,0) -> 0 | AF149: =-'I2 CBA Inputs'!AH13*$F$13+IF(AF$144=FirstYear+AnalysisPeriod-1,$AM149,0) -> 0 | AG149: =-'I2 CBA Inputs'!AI13*$F$13+IF(AG$144=FirstYear+AnalysisPeriod-1,$AM149,0) -> 0 | AH149: =-'I2 CBA Inputs'!AJ13*$F$13+IF(AH$144=FirstYear+AnalysisPeriod-1,$AM149,0) -> 0 | AI149: =-'I2 CBA Inputs'!AK13*$F$13+IF(AI$144=FirstYear+AnalysisPeriod-1,$AM149,0) -> 0 | AK149: =IFERROR(('I2 CBA Inputs'!D13/'I2 CBA Inputs'!F13)*$F$13,0) -> 58172.78607 | AL149: =(FirstYear+AnalysisPeriod)-'I2 CBA Inputs'!E13 -> 9 | AM149: =MAX('I2 CBA Inputs'!$D13*$F$13-PRODUCT($AK149:$AL149),0) -> 2385084.229
B150: =+'I2 CBA Inputs'!B14 -> Option 4 | C150: =+'I2 CBA Inputs'!C14 -> Switchgear | D150: $ | E150: -2778750.687 | F150: =-'I2 CBA Inputs'!H14*$F$13+IF(F$144=FirstYear+AnalysisPeriod-1,$AM150,0) -> 0 | G150: =-'I2 CBA Inputs'!I14*$F$13+IF(G$144=FirstYear+AnalysisPeriod-1,$AM150,0) -> 0 | H150: =-'I2 CBA Inputs'!J14*$F$13+IF(H$144=FirstYear+AnalysisPeriod-1,$AM150,0) -> 0 | I150: =-'I2 CBA Inputs'!K14*$F$13+IF(I$144=FirstYear+AnalysisPeriod-1,$AM150,0) -> 0 | J150: =-'I2 CBA Inputs'!L14*$F$13+IF(J$144=FirstYear+AnalysisPeriod-1,$AM150,0) -> 0 | K150: =-'I2 CBA Inputs'!M14*$F$13+IF(K$144=FirstYear+AnalysisPeriod-1,$AM150,0) -> 0 | L150: =-'I2 CBA Inputs'!N14*$F$13+IF(L$144=FirstYear+AnalysisPeriod-1,$AM150,0) -> 0 | M150: =-'I2 CBA Inputs'!O14*$F$13+IF(M$144=FirstYear+AnalysisPeriod-1,$AM150,0) -> 0 | N150: =-'I2 CBA Inputs'!P14*$F$13+IF(N$144=FirstYear+AnalysisPeriod-1,$AM150,0) -> 0 | O150: =-'I2 CBA Inputs'!Q14*$F$13+IF(O$144=FirstYear+AnalysisPeriod-1,$AM150,0) -> 0 | P150: =-'I2 CBA Inputs'!R14*$F$13+IF(P$144=FirstYear+AnalysisPeriod-1,$AM150,0) -> -10112064.31 | Q150: =-'I2 CBA Inputs'!S14*$F$13+IF(Q$144=FirstYear+AnalysisPeriod-1,$AM150,0) -> 0 | R150: =-'I2 CBA Inputs'!T14*$F$13+IF(R$144=FirstYear+AnalysisPeriod-1,$AM150,0) -> 0 | S150: =-'I2 CBA Inputs'!U14*$F$13+IF(S$144=FirstYear+AnalysisPeriod-1,$AM150,0) -> 0 | T150: =-'I2 CBA Inputs'!V14*$F$13+IF(T$144=FirstYear+AnalysisPeriod-1,$AM150,0) -> 0 | U150: =-'I2 CBA Inputs'!W14*$F$13+IF(U$144=FirstYear+AnalysisPeriod-1,$AM150,0) -> 0 | V150: =-'I2 CBA Inputs'!X14*$F$13+IF(V$144=FirstYear+AnalysisPeriod-1,$AM150,0) -> 0 | W150: =-'I2 CBA Inputs'!Y14*$F$13+IF(W$144=FirstYear+AnalysisPeriod-1,$AM150,0) -> 0 | X150: =-'I2 CBA Inputs'!Z14*$F$13+IF(X$144=FirstYear+AnalysisPeriod-1,$AM150,0) -> 0 | Y150: =-'I2 CBA Inputs'!AA14*$F$13+IF(Y$144=FirstYear+AnalysisPeriod-1,$AM150,0) -> 8291892.731 | Z150: =-'I2 CBA Inputs'!AB14*$F$13+IF(Z$144=FirstYear+AnalysisPeriod-1,$AM150,0) -> 0 | AA150: =-'I2 CBA Inputs'!AC14*$F$13+IF(AA$144=FirstYear+AnalysisPeriod-1,$AM150,0) -> 0 | AB150: =-'I2 CBA Inputs'!AD14*$F$13+IF(AB$144=FirstYear+AnalysisPeriod-1,$AM150,0) -> 0 | AC150: =-'I2 CBA Inputs'!AE14*$F$13+IF(AC$144=FirstYear+AnalysisPeriod-1,$AM150,0) -> 0 | AD150: =-'I2 CBA Inputs'!AF14*$F$13+IF(AD$144=FirstYear+AnalysisPeriod-1,$AM150,0) -> 0 | AE150: =-'I2 CBA Inputs'!AG14*$F$13+IF(AE$144=FirstYear+AnalysisPeriod-1,$AM150,0) -> 0 | AF150: =-'I2 CBA Inputs'!AH14*$F$13+IF(AF$144=FirstYear+AnalysisPeriod-1,$AM150,0) -> 0 | AG150: =-'I2 CBA Inputs'!AI14*$F$13+IF(AG$144=FirstYear+AnalysisPeriod-1,$AM150,0) -> 0 | AH150: =-'I2 CBA Inputs'!AJ14*$F$13+IF(AH$144=FirstYear+AnalysisPeriod-1,$AM150,0) -> 0 | AI150: =-'I2 CBA Inputs'!AK14*$F$13+IF(AI$144=FirstYear+AnalysisPeriod-1,$AM150,0) -> 0 | AK150: =IFERROR(('I2 CBA Inputs'!D14/'I2 CBA Inputs'!F14)*$F$13,0) -> 202241.2861 | AL150: =(FirstYear+AnalysisPeriod)-'I2 CBA Inputs'!E14 -> 9 | AM150: =MAX('I2 CBA Inputs'!$D14*$F$13-PRODUCT($AK150:$AL150),0) -> 8291892.731
B151: =+'I2 CBA Inputs'!B15 -> Option 4 | C151: =+'I2 CBA Inputs'!C15 -> Protection systems | D151: $ | E151: -4725919.558 | F151: =-'I2 CBA Inputs'!H15*$F$13+IF(F$144=FirstYear+AnalysisPeriod-1,$AM151,0) -> 0 | G151: =-'I2 CBA Inputs'!I15*$F$13+IF(G$144=FirstYear+AnalysisPeriod-1,$AM151,0) -> 0 | H151: =-'I2 CBA Inputs'!J15*$F$13+IF(H$144=FirstYear+AnalysisPeriod-1,$AM151,0) -> 0 | I151: =-'I2 CBA Inputs'!K15*$F$13+IF(I$144=FirstYear+AnalysisPeriod-1,$AM151,0) -> 0 | J151: =-'I2 CBA Inputs'!L15*$F$13+IF(J$144=FirstYear+AnalysisPeriod-1,$AM151,0) -> 0 | K151: =-'I2 CBA Inputs'!M15*$F$13+IF(K$144=FirstYear+AnalysisPeriod-1,$AM151,0) -> 0 | L151: =-'I2 CBA Inputs'!N15*$F$13+IF(L$144=FirstYear+AnalysisPeriod-1,$AM151,0) -> 0 | M151: =-'I2 CBA Inputs'!O15*$F$13+IF(M$144=FirstYear+AnalysisPeriod-1,$AM151,0) -> 0 | N151: =-'I2 CBA Inputs'!P15*$F$13+IF(N$144=FirstYear+AnalysisPeriod-1,$AM151,0) -> 0 | O151: =-'I2 CBA Inputs'!Q15*$F$13+IF(O$144=FirstYear+AnalysisPeriod-1,$AM151,0) -> 0 | P151: =-'I2 CBA Inputs'!R15*$F$13+IF(P$144=FirstYear+AnalysisPeriod-1,$AM151,0) -> -12726223.54 | Q151: =-'I2 CBA Inputs'!S15*$F$13+IF(Q$144=FirstYear+AnalysisPeriod-1,$AM151,0) -> 0 | R151: =-'I2 CBA Inputs'!T15*$F$13+IF(R$144=FirstYear+AnalysisPeriod-1,$AM151,0) -> 0 | S151: =-'I2 CBA Inputs'!U15*$F$13+IF(S$144=FirstYear+AnalysisPeriod-1,$AM151,0) -> 0 | T151: =-'I2 CBA Inputs'!V15*$F$13+IF(T$144=FirstYear+AnalysisPeriod-1,$AM151,0) -> 0 | U151: =-'I2 CBA Inputs'!W15*$F$13+IF(U$144=FirstYear+AnalysisPeriod-1,$AM151,0) -> 0 | V151: =-'I2 CBA Inputs'!X15*$F$13+IF(V$144=FirstYear+AnalysisPeriod-1,$AM151,0) -> 0 | W151: =-'I2 CBA Inputs'!Y15*$F$13+IF(W$144=FirstYear+AnalysisPeriod-1,$AM151,0) -> 0 | X151: =-'I2 CBA Inputs'!Z15*$F$13+IF(X$144=FirstYear+AnalysisPeriod-1,$AM151,0) -> 0 | Y151: =-'I2 CBA Inputs'!AA15*$F$13+IF(Y$144=FirstYear+AnalysisPeriod-1,$AM151,0) -> 6999422.947 | Z151: =-'I2 CBA Inputs'!AB15*$F$13+IF(Z$144=FirstYear+AnalysisPeriod-1,$AM151,0) -> 0 | AA151: =-'I2 CBA Inputs'!AC15*$F$13+IF(AA$144=FirstYear+AnalysisPeriod-1,$AM151,0) -> 0 | AB151: =-'I2 CBA Inputs'!AD15*$F$13+IF(AB$144=FirstYear+AnalysisPeriod-1,$AM151,0) -> 0 | AC151: =-'I2 CBA Inputs'!AE15*$F$13+IF(AC$144=FirstYear+AnalysisPeriod-1,$AM151,0) -> 0 | AD151: =-'I2 CBA Inputs'!AF15*$F$13+IF(AD$144=FirstYear+AnalysisPeriod-1,$AM151,0) -> 0 | AE151: =-'I2 CBA Inputs'!AG15*$F$13+IF(AE$144=FirstYear+AnalysisPeriod-1,$AM151,0) -> 0 | AF151: =-'I2 CBA Inputs'!AH15*$F$13+IF(AF$144=FirstYear+AnalysisPeriod-1,$AM151,0) -> 0 | AG151: =-'I2 CBA Inputs'!AI15*$F$13+IF(AG$144=FirstYear+AnalysisPeriod-1,$AM151,0) -> 0 | AH151: =-'I2 CBA Inputs'!AJ15*$F$13+IF(AH$144=FirstYear+AnalysisPeriod-1,$AM151,0) -> 0 | AI151: =-'I2 CBA Inputs'!AK15*$F$13+IF(AI$144=FirstYear+AnalysisPeriod-1,$AM151,0) -> 0 | AK151: =IFERROR(('I2 CBA Inputs'!D15/'I2 CBA Inputs'!F15)*$F$13,0) -> 636311.177 | AL151: =(FirstYear+AnalysisPeriod)-'I2 CBA Inputs'!E15 -> 9 | AM151: =MAX('I2 CBA Inputs'!$D15*$F$13-PRODUCT($AK151:$AL151),0) -> 6999422.947
B152: =+'I2 CBA Inputs'!B16 -> 0 | C152: =+'I2 CBA Inputs'!C16 -> 0 | D152: $ | E152: 0 | F152: =-'I2 CBA Inputs'!H16*$F$13+IF(F$144=FirstYear+AnalysisPeriod-1,$AM152,0) -> 0 | G152: =-'I2 CBA Inputs'!I16*$F$13+IF(G$144=FirstYear+AnalysisPeriod-1,$AM152,0) -> 0 | H152: =-'I2 CBA Inputs'!J16*$F$13+IF(H$144=FirstYear+AnalysisPeriod-1,$AM152,0) -> 0 | I152: =-'I2 CBA Inputs'!K16*$F$13+IF(I$144=FirstYear+AnalysisPeriod-1,$AM152,0) -> 0 | J152: =-'I2 CBA Inputs'!L16*$F$13+IF(J$144=FirstYear+AnalysisPeriod-1,$AM152,0) -> 0 | K152: =-'I2 CBA Inputs'!M16*$F$13+IF(K$144=FirstYear+AnalysisPeriod-1,$AM152,0) -> 0 | L152: =-'I2 CBA Inputs'!N16*$F$13+IF(L$144=FirstYear+AnalysisPeriod-1,$AM152,0) -> 0 | M152: =-'I2 CBA Inputs'!O16*$F$13+IF(M$144=FirstYear+AnalysisPeriod-1,$AM152,0) -> 0 | N152: =-'I2 CBA Inputs'!P16*$F$13+IF(N$144=FirstYear+AnalysisPeriod-1,$AM152,0) -> 0 | O152: =-'I2 CBA Inputs'!Q16*$F$13+IF(O$144=FirstYear+AnalysisPeriod-1,$AM152,0) -> 0 | P152: =-'I2 CBA Inputs'!R16*$F$13+IF(P$144=FirstYear+AnalysisPeriod-1,$AM152,0) -> 0 | Q152: =-'I2 CBA Inputs'!S16*$F$13+IF(Q$144=FirstYear+AnalysisPeriod-1,$AM152,0) -> 0 | R152: =-'I2 CBA Inputs'!T16*$F$13+IF(R$144=FirstYear+AnalysisPeriod-1,$AM152,0) -> 0 | S152: =-'I2 CBA Inputs'!U16*$F$13+IF(S$144=FirstYear+AnalysisPeriod-1,$AM152,0) -> 0 | T152: =-'I2 CBA Inputs'!V16*$F$13+IF(T$144=FirstYear+AnalysisPeriod-1,$AM152,0) -> 0 | U152: =-'I2 CBA Inputs'!W16*$F$13+IF(U$144=FirstYear+AnalysisPeriod-1,$AM152,0) -> 0 | V152: =-'I2 CBA Inputs'!X16*$F$13+IF(V$144=FirstYear+AnalysisPeriod-1,$AM152,0) -> 0 | W152: =-'I2 CBA Inputs'!Y16*$F$13+IF(W$144=FirstYear+AnalysisPeriod-1,$AM152,0) -> 0 | X152: =-'I2 CBA Inputs'!Z16*$F$13+IF(X$144=FirstYear+AnalysisPeriod-1,$AM152,0) -> 0 | Y152: =-'I2 CBA Inputs'!AA16*$F$13+IF(Y$144=FirstYear+AnalysisPeriod-1,$AM152,0) -> 0 | Z152: =-'I2 CBA Inputs'!AB16*$F$13+IF(Z$144=FirstYear+AnalysisPeriod-1,$AM152,0) -> 0 | AA152: =-'I2 CBA Inputs'!AC16*$F$13+IF(AA$144=FirstYear+AnalysisPeriod-1,$AM152,0) -> 0 | AB152: =-'I2 CBA Inputs'!AD16*$F$13+IF(AB$144=FirstYear+AnalysisPeriod-1,$AM152,0) -> 0 | AC152: =-'I2 CBA Inputs'!AE16*$F$13+IF(AC$144=FirstYear+AnalysisPeriod-1,$AM152,0) -> 0 | AD152: =-'I2 CBA Inputs'!AF16*$F$13+IF(AD$144=FirstYear+AnalysisPeriod-1,$AM152,0) -> 0 | AE152: =-'I2 CBA Inputs'!AG16*$F$13+IF(AE$144=FirstYear+AnalysisPeriod-1,$AM152,0) -> 0 | AF152: =-'I2 CBA Inputs'!AH16*$F$13+IF(AF$144=FirstYear+AnalysisPeriod-1,$AM152,0) -> 0 | AG152: =-'I2 CBA Inputs'!AI16*$F$13+IF(AG$144=FirstYear+AnalysisPeriod-1,$AM152,0) -> 0 | AH152: =-'I2 CBA Inputs'!AJ16*$F$13+IF(AH$144=FirstYear+AnalysisPeriod-1,$AM152,0) -> 0 | AI152: =-'I2 CBA Inputs'!AK16*$F$13+IF(AI$144=FirstYear+AnalysisPeriod-1,$AM152,0) -> 0 | AK152: =IFERROR(('I2 CBA Inputs'!D16/'I2 CBA Inputs'!F16)*$F$13,0) -> 0 | AL152: =(FirstYear+AnalysisPeriod)-'I2 CBA Inputs'!E16 -> 2045 | AM152: =MAX('I2 CBA Inputs'!$D16*$F$13-PRODUCT($AK152:$AL152),0) -> 0
B153: =+'I2 CBA Inputs'!B17 -> 0 | C153: =+'I2 CBA Inputs'!C17 -> 0 | D153: $ | E153: 0 | F153: =-'I2 CBA Inputs'!H17*$F$13+IF(F$144=FirstYear+AnalysisPeriod-1,$AM153,0) -> 0 | G153: =-'I2 CBA Inputs'!I17*$F$13+IF(G$144=FirstYear+AnalysisPeriod-1,$AM153,0) -> 0 | H153: =-'I2 CBA Inputs'!J17*$F$13+IF(H$144=FirstYear+AnalysisPeriod-1,$AM153,0) -> 0 | I153: =-'I2 CBA Inputs'!K17*$F$13+IF(I$144=FirstYear+AnalysisPeriod-1,$AM153,0) -> 0 | J153: =-'I2 CBA Inputs'!L17*$F$13+IF(J$144=FirstYear+AnalysisPeriod-1,$AM153,0) -> 0 | K153: =-'I2 CBA Inputs'!M17*$F$13+IF(K$144=FirstYear+AnalysisPeriod-1,$AM153,0) -> 0 | L153: =-'I2 CBA Inputs'!N17*$F$13+IF(L$144=FirstYear+AnalysisPeriod-1,$AM153,0) -> 0 | M153: =-'I2 CBA Inputs'!O17*$F$13+IF(M$144=FirstYear+AnalysisPeriod-1,$AM153,0) -> 0 | N153: =-'I2 CBA Inputs'!P17*$F$13+IF(N$144=FirstYear+AnalysisPeriod-1,$AM153,0) -> 0 | O153: =-'I2 CBA Inputs'!Q17*$F$13+IF(O$144=FirstYear+AnalysisPeriod-1,$AM153,0) -> 0 | P153: =-'I2 CBA Inputs'!R17*$F$13+IF(P$144=FirstYear+AnalysisPeriod-1,$AM153,0) -> 0 | Q153: =-'I2 CBA Inputs'!S17*$F$13+IF(Q$144=FirstYear+AnalysisPeriod-1,$AM153,0) -> 0 | R153: =-'I2 CBA Inputs'!T17*$F$13+IF(R$144=FirstYear+AnalysisPeriod-1,$AM153,0) -> 0 | S153: =-'I2 CBA Inputs'!U17*$F$13+IF(S$144=FirstYear+AnalysisPeriod-1,$AM153,0) -> 0 | T153: =-'I2 CBA Inputs'!V17*$F$13+IF(T$144=FirstYear+AnalysisPeriod-1,$AM153,0) -> 0 | U153: =-'I2 CBA Inputs'!W17*$F$13+IF(U$144=FirstYear+AnalysisPeriod-1,$AM153,0) -> 0 | V153: =-'I2 CBA Inputs'!X17*$F$13+IF(V$144=FirstYear+AnalysisPeriod-1,$AM153,0) -> 0 | W153: =-'I2 CBA Inputs'!Y17*$F$13+IF(W$144=FirstYear+AnalysisPeriod-1,$AM153,0) -> 0 | X153: =-'I2 CBA Inputs'!Z17*$F$13+IF(X$144=FirstYear+AnalysisPeriod-1,$AM153,0) -> 0 | Y153: =-'I2 CBA Inputs'!AA17*$F$13+IF(Y$144=FirstYear+AnalysisPeriod-1,$AM153,0) -> 0 | Z153: =-'I2 CBA Inputs'!AB17*$F$13+IF(Z$144=FirstYear+AnalysisPeriod-1,$AM153,0) -> 0 | AA153: =-'I2 CBA Inputs'!AC17*$F$13+IF(AA$144=FirstYear+AnalysisPeriod-1,$AM153,0) -> 0 | AB153: =-'I2 CBA Inputs'!AD17*$F$13+IF(AB$144=FirstYear+AnalysisPeriod-1,$AM153,0) -> 0 | AC153: =-'I2 CBA Inputs'!AE17*$F$13+IF(AC$144=FirstYear+AnalysisPeriod-1,$AM153,0) -> 0 | AD153: =-'I2 CBA Inputs'!AF17*$F$13+IF(AD$144=FirstYear+AnalysisPeriod-1,$AM153,0) -> 0 | AE153: =-'I2 CBA Inputs'!AG17*$F$13+IF(AE$144=FirstYear+AnalysisPeriod-1,$AM153,0) -> 0 | AF153: =-'I2 CBA Inputs'!AH17*$F$13+IF(AF$144=FirstYear+AnalysisPeriod-1,$AM153,0) -> 0 | AG153: =-'I2 CBA Inputs'!AI17*$F$13+IF(AG$144=FirstYear+AnalysisPeriod-1,$AM153,0) -> 0 | AH153: =-'I2 CBA Inputs'!AJ17*$F$13+IF(AH$144=FirstYear+AnalysisPeriod-1,$AM153,0) -> 0 | AI153: =-'I2 CBA Inputs'!AK17*$F$13+IF(AI$144=FirstYear+AnalysisPeriod-1,$AM153,0) -> 0 | AK153: =IFERROR(('I2 CBA Inputs'!D17/'I2 CBA Inputs'!F17)*$F$13,0) -> 0 | AL153: =(FirstYear+AnalysisPeriod)-'I2 CBA Inputs'!E17 -> 2045 | AM153: =MAX('I2 CBA Inputs'!$D17*$F$13-PRODUCT($AK153:$AL153),0) -> 0
B154: =+'I2 CBA Inputs'!B18 -> 0 | C154: =+'I2 CBA Inputs'!C18 -> 0 | D154: $ | E154: 0 | F154: =-'I2 CBA Inputs'!H18*$F$13+IF(F$144=FirstYear+AnalysisPeriod-1,$AM154,0) -> 0 | G154: =-'I2 CBA Inputs'!I18*$F$13+IF(G$144=FirstYear+AnalysisPeriod-1,$AM154,0) -> 0 | H154: =-'I2 CBA Inputs'!J18*$F$13+IF(H$144=FirstYear+AnalysisPeriod-1,$AM154,0) -> 0 | I154: =-'I2 CBA Inputs'!K18*$F$13+IF(I$144=FirstYear+AnalysisPeriod-1,$AM154,0) -> 0 | J154: =-'I2 CBA Inputs'!L18*$F$13+IF(J$144=FirstYear+AnalysisPeriod-1,$AM154,0) -> 0 | K154: =-'I2 CBA Inputs'!M18*$F$13+IF(K$144=FirstYear+AnalysisPeriod-1,$AM154,0) -> 0 | L154: =-'I2 CBA Inputs'!N18*$F$13+IF(L$144=FirstYear+AnalysisPeriod-1,$AM154,0) -> 0 | M154: =-'I2 CBA Inputs'!O18*$F$13+IF(M$144=FirstYear+AnalysisPeriod-1,$AM154,0) -> 0 | N154: =-'I2 CBA Inputs'!P18*$F$13+IF(N$144=FirstYear+AnalysisPeriod-1,$AM154,0) -> 0 | O154: =-'I2 CBA Inputs'!Q18*$F$13+IF(O$144=FirstYear+AnalysisPeriod-1,$AM154,0) -> 0 | P154: =-'I2 CBA Inputs'!R18*$F$13+IF(P$144=FirstYear+AnalysisPeriod-1,$AM154,0) -> 0 | Q154: =-'I2 CBA Inputs'!S18*$F$13+IF(Q$144=FirstYear+AnalysisPeriod-1,$AM154,0) -> 0 | R154: =-'I2 CBA Inputs'!T18*$F$13+IF(R$144=FirstYear+AnalysisPeriod-1,$AM154,0) -> 0 | S154: =-'I2 CBA Inputs'!U18*$F$13+IF(S$144=FirstYear+AnalysisPeriod-1,$AM154,0) -> 0 | T154: =-'I2 CBA Inputs'!V18*$F$13+IF(T$144=FirstYear+AnalysisPeriod-1,$AM154,0) -> 0 | U154: =-'I2 CBA Inputs'!W18*$F$13+IF(U$144=FirstYear+AnalysisPeriod-1,$AM154,0) -> 0 | V154: =-'I2 CBA Inputs'!X18*$F$13+IF(V$144=FirstYear+AnalysisPeriod-1,$AM154,0) -> 0 | W154: =-'I2 CBA Inputs'!Y18*$F$13+IF(W$144=FirstYear+AnalysisPeriod-1,$AM154,0) -> 0 | X154: =-'I2 CBA Inputs'!Z18*$F$13+IF(X$144=FirstYear+AnalysisPeriod-1,$AM154,0) -> 0 | Y154: =-'I2 CBA Inputs'!AA18*$F$13+IF(Y$144=FirstYear+AnalysisPeriod-1,$AM154,0) -> 0 | Z154: =-'I2 CBA Inputs'!AB18*$F$13+IF(Z$144=FirstYear+AnalysisPeriod-1,$AM154,0) -> 0 | AA154: =-'I2 CBA Inputs'!AC18*$F$13+IF(AA$144=FirstYear+AnalysisPeriod-1,$AM154,0) -> 0 | AB154: =-'I2 CBA Inputs'!AD18*$F$13+IF(AB$144=FirstYear+AnalysisPeriod-1,$AM154,0) -> 0 | AC154: =-'I2 CBA Inputs'!AE18*$F$13+IF(AC$144=FirstYear+AnalysisPeriod-1,$AM154,0) -> 0 | AD154: =-'I2 CBA Inputs'!AF18*$F$13+IF(AD$144=FirstYear+AnalysisPeriod-1,$AM154,0) -> 0 | AE154: =-'I2 CBA Inputs'!AG18*$F$13+IF(AE$144=FirstYear+AnalysisPeriod-1,$AM154,0) -> 0 | AF154: =-'I2 CBA Inputs'!AH18*$F$13+IF(AF$144=FirstYear+AnalysisPeriod-1,$AM154,0) -> 0 | AG154: =-'I2 CBA Inputs'!AI18*$F$13+IF(AG$144=FirstYear+AnalysisPeriod-1,$AM154,0) -> 0 | AH154: =-'I2 CBA Inputs'!AJ18*$F$13+IF(AH$144=FirstYear+AnalysisPeriod-1,$AM154,0) -> 0 | AI154: =-'I2 CBA Inputs'!AK18*$F$13+IF(AI$144=FirstYear+AnalysisPeriod-1,$AM154,0) -> 0 | AK154: =IFERROR(('I2 CBA Inputs'!D18/'I2 CBA Inputs'!F18)*$F$13,0) -> 0 | AL154: =(FirstYear+AnalysisPeriod)-'I2 CBA Inputs'!E18 -> 2045 | AM154: =MAX('I2 CBA Inputs'!$D18*$F$13-PRODUCT($AK154:$AL154),0) -> 0
B155: =+'I2 CBA Inputs'!B19 -> 0 | C155: =+'I2 CBA Inputs'!C19 -> 0 | D155: $ | E155: 0 | F155: =-'I2 CBA Inputs'!H19*$F$13+IF(F$144=FirstYear+AnalysisPeriod-1,$AM155,0) -> 0 | G155: =-'I2 CBA Inputs'!I19*$F$13+IF(G$144=FirstYear+AnalysisPeriod-1,$AM155,0) -> 0 | H155: =-'I2 CBA Inputs'!J19*$F$13+IF(H$144=FirstYear+AnalysisPeriod-1,$AM155,0) -> 0 | I155: =-'I2 CBA Inputs'!K19*$F$13+IF(I$144=FirstYear+AnalysisPeriod-1,$AM155,0) -> 0 | J155: =-'I2 CBA Inputs'!L19*$F$13+IF(J$144=FirstYear+AnalysisPeriod-1,$AM155,0) -> 0 | K155: =-'I2 CBA Inputs'!M19*$F$13+IF(K$144=FirstYear+AnalysisPeriod-1,$AM155,0) -> 0 | L155: =-'I2 CBA Inputs'!N19*$F$13+IF(L$144=FirstYear+AnalysisPeriod-1,$AM155,0) -> 0 | M155: =-'I2 CBA Inputs'!O19*$F$13+IF(M$144=FirstYear+AnalysisPeriod-1,$AM155,0) -> 0 | N155: =-'I2 CBA Inputs'!P19*$F$13+IF(N$144=FirstYear+AnalysisPeriod-1,$AM155,0) -> 0 | O155: =-'I2 CBA Inputs'!Q19*$F$13+IF(O$144=FirstYear+AnalysisPeriod-1,$AM155,0) -> 0 | P155: =-'I2 CBA Inputs'!R19*$F$13+IF(P$144=FirstYear+AnalysisPeriod-1,$AM155,0) -> 0 | Q155: =-'I2 CBA Inputs'!S19*$F$13+IF(Q$144=FirstYear+AnalysisPeriod-1,$AM155,0) -> 0 | R155: =-'I2 CBA Inputs'!T19*$F$13+IF(R$144=FirstYear+AnalysisPeriod-1,$AM155,0) -> 0 | S155: =-'I2 CBA Inputs'!U19*$F$13+IF(S$144=FirstYear+AnalysisPeriod-1,$AM155,0) -> 0 | T155: =-'I2 CBA Inputs'!V19*$F$13+IF(T$144=FirstYear+AnalysisPeriod-1,$AM155,0) -> 0 | U155: =-'I2 CBA Inputs'!W19*$F$13+IF(U$144=FirstYear+AnalysisPeriod-1,$AM155,0) -> 0 | V155: =-'I2 CBA Inputs'!X19*$F$13+IF(V$144=FirstYear+AnalysisPeriod-1,$AM155,0) -> 0 | W155: =-'I2 CBA Inputs'!Y19*$F$13+IF(W$144=FirstYear+AnalysisPeriod-1,$AM155,0) -> 0 | X155: =-'I2 CBA Inputs'!Z19*$F$13+IF(X$144=FirstYear+AnalysisPeriod-1,$AM155,0) -> 0 | Y155: =-'I2 CBA Inputs'!AA19*$F$13+IF(Y$144=FirstYear+AnalysisPeriod-1,$AM155,0) -> 0 | Z155: =-'I2 CBA Inputs'!AB19*$F$13+IF(Z$144=FirstYear+AnalysisPeriod-1,$AM155,0) -> 0 | AA155: =-'I2 CBA Inputs'!AC19*$F$13+IF(AA$144=FirstYear+AnalysisPeriod-1,$AM155,0) -> 0 | AB155: =-'I2 CBA Inputs'!AD19*$F$13+IF(AB$144=FirstYear+AnalysisPeriod-1,$AM155,0) -> 0 | AC155: =-'I2 CBA Inputs'!AE19*$F$13+IF(AC$144=FirstYear+AnalysisPeriod-1,$AM155,0) -> 0 | AD155: =-'I2 CBA Inputs'!AF19*$F$13+IF(AD$144=FirstYear+AnalysisPeriod-1,$AM155,0) -> 0 | AE155: =-'I2 CBA Inputs'!AG19*$F$13+IF(AE$144=FirstYear+AnalysisPeriod-1,$AM155,0) -> 0 | AF155: =-'I2 CBA Inputs'!AH19*$F$13+IF(AF$144=FirstYear+AnalysisPeriod-1,$AM155,0) -> 0 | AG155: =-'I2 CBA Inputs'!AI19*$F$13+IF(AG$144=FirstYear+AnalysisPeriod-1,$AM155,0) -> 0 | AH155: =-'I2 CBA Inputs'!AJ19*$F$13+IF(AH$144=FirstYear+AnalysisPeriod-1,$AM155,0) -> 0 | AI155: =-'I2 CBA Inputs'!AK19*$F$13+IF(AI$144=FirstYear+AnalysisPeriod-1,$AM155,0) -> 0 | AK155: =IFERROR(('I2 CBA Inputs'!D19/'I2 CBA Inputs'!F19)*$F$13,0) -> 0 | AL155: =(FirstYear+AnalysisPeriod)-'I2 CBA Inputs'!E19 -> 2045 | AM155: =MAX('I2 CBA Inputs'!$D19*$F$13-PRODUCT($AK155:$AL155),0) -> 0
B156: =+'I2 CBA Inputs'!B20 -> 0 | C156: =+'I2 CBA Inputs'!C20 -> 0 | D156: $ | E156: 0 | F156: =-'I2 CBA Inputs'!H20*$F$13+IF(F$144=FirstYear+AnalysisPeriod-1,$AM156,0) -> 0 | G156: =-'I2 CBA Inputs'!I20*$F$13+IF(G$144=FirstYear+AnalysisPeriod-1,$AM156,0) -> 0 | H156: =-'I2 CBA Inputs'!J20*$F$13+IF(H$144=FirstYear+AnalysisPeriod-1,$AM156,0) -> 0 | I156: =-'I2 CBA Inputs'!K20*$F$13+IF(I$144=FirstYear+AnalysisPeriod-1,$AM156,0) -> 0 | J156: =-'I2 CBA Inputs'!L20*$F$13+IF(J$144=FirstYear+AnalysisPeriod-1,$AM156,0) -> 0 | K156: =-'I2 CBA Inputs'!M20*$F$13+IF(K$144=FirstYear+AnalysisPeriod-1,$AM156,0) -> 0 | L156: =-'I2 CBA Inputs'!N20*$F$13+IF(L$144=FirstYear+AnalysisPeriod-1,$AM156,0) -> 0 | M156: =-'I2 CBA Inputs'!O20*$F$13+IF(M$144=FirstYear+AnalysisPeriod-1,$AM156,0) -> 0 | N156: =-'I2 CBA Inputs'!P20*$F$13+IF(N$144=FirstYear+AnalysisPeriod-1,$AM156,0) -> 0 | O156: =-'I2 CBA Inputs'!Q20*$F$13+IF(O$144=FirstYear+AnalysisPeriod-1,$AM156,0) -> 0 | P156: =-'I2 CBA Inputs'!R20*$F$13+IF(P$144=FirstYear+AnalysisPeriod-1,$AM156,0) -> 0 | Q156: =-'I2 CBA Inputs'!S20*$F$13+IF(Q$144=FirstYear+AnalysisPeriod-1,$AM156,0) -> 0 | R156: =-'I2 CBA Inputs'!T20*$F$13+IF(R$144=FirstYear+AnalysisPeriod-1,$AM156,0) -> 0 | S156: =-'I2 CBA Inputs'!U20*$F$13+IF(S$144=FirstYear+AnalysisPeriod-1,$AM156,0) -> 0 | T156: =-'I2 CBA Inputs'!V20*$F$13+IF(T$144=FirstYear+AnalysisPeriod-1,$AM156,0) -> 0 | U156: =-'I2 CBA Inputs'!W20*$F$13+IF(U$144=FirstYear+AnalysisPeriod-1,$AM156,0) -> 0 | V156: =-'I2 CBA Inputs'!X20*$F$13+IF(V$144=FirstYear+AnalysisPeriod-1,$AM156,0) -> 0 | W156: =-'I2 CBA Inputs'!Y20*$F$13+IF(W$144=FirstYear+AnalysisPeriod-1,$AM156,0) -> 0 | X156: =-'I2 CBA Inputs'!Z20*$F$13+IF(X$144=FirstYear+AnalysisPeriod-1,$AM156,0) -> 0 | Y156: =-'I2 CBA Inputs'!AA20*$F$13+IF(Y$144=FirstYear+AnalysisPeriod-1,$AM156,0) -> 0 | Z156: =-'I2 CBA Inputs'!AB20*$F$13+IF(Z$144=FirstYear+AnalysisPeriod-1,$AM156,0) -> 0 | AA156: =-'I2 CBA Inputs'!AC20*$F$13+IF(AA$144=FirstYear+AnalysisPeriod-1,$AM156,0) -> 0 | AB156: =-'I2 CBA Inputs'!AD20*$F$13+IF(AB$144=FirstYear+AnalysisPeriod-1,$AM156,0) -> 0 | AC156: =-'I2 CBA Inputs'!AE20*$F$13+IF(AC$144=FirstYear+AnalysisPeriod-1,$AM156,0) -> 0 | AD156: =-'I2 CBA Inputs'!AF20*$F$13+IF(AD$144=FirstYear+AnalysisPeriod-1,$AM156,0) -> 0 | AE156: =-'I2 CBA Inputs'!AG20*$F$13+IF(AE$144=FirstYear+AnalysisPeriod-1,$AM156,0) -> 0 | AF156: =-'I2 CBA Inputs'!AH20*$F$13+IF(AF$144=FirstYear+AnalysisPeriod-1,$AM156,0) -> 0 | AG156: =-'I2 CBA Inputs'!AI20*$F$13+IF(AG$144=FirstYear+AnalysisPeriod-1,$AM156,0) -> 0 | AH156: =-'I2 CBA Inputs'!AJ20*$F$13+IF(AH$144=FirstYear+AnalysisPeriod-1,$AM156,0) -> 0 | AI156: =-'I2 CBA Inputs'!AK20*$F$13+IF(AI$144=FirstYear+AnalysisPeriod-1,$AM156,0) -> 0 | AK156: =IFERROR(('I2 CBA Inputs'!D20/'I2 CBA Inputs'!F20)*$F$13,0) -> 0 | AL156: =(FirstYear+AnalysisPeriod)-'I2 CBA Inputs'!E20 -> 2045 | AM156: =MAX('I2 CBA Inputs'!$D20*$F$13-PRODUCT($AK156:$AL156),0) -> 0
B157: =+'I2 CBA Inputs'!B21 -> 0 | C157: =+'I2 CBA Inputs'!C21 -> 0 | D157: $ | E157: 0 | F157: =-'I2 CBA Inputs'!H21*$F$13+IF(F$144=FirstYear+AnalysisPeriod-1,$AM157,0) -> 0 | G157: =-'I2 CBA Inputs'!I21*$F$13+IF(G$144=FirstYear+AnalysisPeriod-1,$AM157,0) -> 0 | H157: =-'I2 CBA Inputs'!J21*$F$13+IF(H$144=FirstYear+AnalysisPeriod-1,$AM157,0) -> 0 | I157: =-'I2 CBA Inputs'!K21*$F$13+IF(I$144=FirstYear+AnalysisPeriod-1,$AM157,0) -> 0 | J157: =-'I2 CBA Inputs'!L21*$F$13+IF(J$144=FirstYear+AnalysisPeriod-1,$AM157,0) -> 0 | K157: =-'I2 CBA Inputs'!M21*$F$13+IF(K$144=FirstYear+AnalysisPeriod-1,$AM157,0) -> 0 | L157: =-'I2 CBA Inputs'!N21*$F$13+IF(L$144=FirstYear+AnalysisPeriod-1,$AM157,0) -> 0 | M157: =-'I2 CBA Inputs'!O21*$F$13+IF(M$144=FirstYear+AnalysisPeriod-1,$AM157,0) -> 0 | N157: =-'I2 CBA Inputs'!P21*$F$13+IF(N$144=FirstYear+AnalysisPeriod-1,$AM157,0) -> 0 | O157: =-'I2 CBA Inputs'!Q21*$F$13+IF(O$144=FirstYear+AnalysisPeriod-1,$AM157,0) -> 0 | P157: =-'I2 CBA Inputs'!R21*$F$13+IF(P$144=FirstYear+AnalysisPeriod-1,$AM157,0) -> 0 | Q157: =-'I2 CBA Inputs'!S21*$F$13+IF(Q$144=FirstYear+AnalysisPeriod-1,$AM157,0) -> 0 | R157: =-'I2 CBA Inputs'!T21*$F$13+IF(R$144=FirstYear+AnalysisPeriod-1,$AM157,0) -> 0 | S157: =-'I2 CBA Inputs'!U21*$F$13+IF(S$144=FirstYear+AnalysisPeriod-1,$AM157,0) -> 0 | T157: =-'I2 CBA Inputs'!V21*$F$13+IF(T$144=FirstYear+AnalysisPeriod-1,$AM157,0) -> 0 | U157: =-'I2 CBA Inputs'!W21*$F$13+IF(U$144=FirstYear+AnalysisPeriod-1,$AM157,0) -> 0 | V157: =-'I2 CBA Inputs'!X21*$F$13+IF(V$144=FirstYear+AnalysisPeriod-1,$AM157,0) -> 0 | W157: =-'I2 CBA Inputs'!Y21*$F$13+IF(W$144=FirstYear+AnalysisPeriod-1,$AM157,0) -> 0 | X157: =-'I2 CBA Inputs'!Z21*$F$13+IF(X$144=FirstYear+AnalysisPeriod-1,$AM157,0) -> 0 | Y157: =-'I2 CBA Inputs'!AA21*$F$13+IF(Y$144=FirstYear+AnalysisPeriod-1,$AM157,0) -> 0 | Z157: =-'I2 CBA Inputs'!AB21*$F$13+IF(Z$144=FirstYear+AnalysisPeriod-1,$AM157,0) -> 0 | AA157: =-'I2 CBA Inputs'!AC21*$F$13+IF(AA$144=FirstYear+AnalysisPeriod-1,$AM157,0) -> 0 | AB157: =-'I2 CBA Inputs'!AD21*$F$13+IF(AB$144=FirstYear+AnalysisPeriod-1,$AM157,0) -> 0 | AC157: =-'I2 CBA Inputs'!AE21*$F$13+IF(AC$144=FirstYear+AnalysisPeriod-1,$AM157,0) -> 0 | AD157: =-'I2 CBA Inputs'!AF21*$F$13+IF(AD$144=FirstYear+AnalysisPeriod-1,$AM157,0) -> 0 | AE157: =-'I2 CBA Inputs'!AG21*$F$13+IF(AE$144=FirstYear+AnalysisPeriod-1,$AM157,0) -> 0 | AF157: =-'I2 CBA Inputs'!AH21*$F$13+IF(AF$144=FirstYear+AnalysisPeriod-1,$AM157,0) -> 0 | AG157: =-'I2 CBA Inputs'!AI21*$F$13+IF(AG$144=FirstYear+AnalysisPeriod-1,$AM157,0) -> 0 | AH157: =-'I2 CBA Inputs'!AJ21*$F$13+IF(AH$144=FirstYear+AnalysisPeriod-1,$AM157,0) -> 0 | AI157: =-'I2 CBA Inputs'!AK21*$F$13+IF(AI$144=FirstYear+AnalysisPeriod-1,$AM157,0) -> 0 | AK157: =IFERROR(('I2 CBA Inputs'!D21/'I2 CBA Inputs'!F21)*$F$13,0) -> 0 | AL157: =(FirstYear+AnalysisPeriod)-'I2 CBA Inputs'!E21 -> 2045 | AM157: =MAX('I2 CBA Inputs'!$D21*$F$13-PRODUCT($AK157:$AL157),0) -> 0
B158: =+'I2 CBA Inputs'!B22 -> 0 | C158: =+'I2 CBA Inputs'!C22 -> 0 | D158: $ | E158: 0 | F158: =-'I2 CBA Inputs'!H22*$F$13+IF(F$144=FirstYear+AnalysisPeriod-1,$AM158,0) -> 0 | G158: =-'I2 CBA Inputs'!I22*$F$13+IF(G$144=FirstYear+AnalysisPeriod-1,$AM158,0) -> 0 | H158: =-'I2 CBA Inputs'!J22*$F$13+IF(H$144=FirstYear+AnalysisPeriod-1,$AM158,0) -> 0 | I158: =-'I2 CBA Inputs'!K22*$F$13+IF(I$144=FirstYear+AnalysisPeriod-1,$AM158,0) -> 0 | J158: =-'I2 CBA Inputs'!L22*$F$13+IF(J$144=FirstYear+AnalysisPeriod-1,$AM158,0) -> 0 | K158: =-'I2 CBA Inputs'!M22*$F$13+IF(K$144=FirstYear+AnalysisPeriod-1,$AM158,0) -> 0 | L158: =-'I2 CBA Inputs'!N22*$F$13+IF(L$144=FirstYear+AnalysisPeriod-1,$AM158,0) -> 0 | M158: =-'I2 CBA Inputs'!O22*$F$13+IF(M$144=FirstYear+AnalysisPeriod-1,$AM158,0) -> 0 | N158: =-'I2 CBA Inputs'!P22*$F$13+IF(N$144=FirstYear+AnalysisPeriod-1,$AM158,0) -> 0 | O158: =-'I2 CBA Inputs'!Q22*$F$13+IF(O$144=FirstYear+AnalysisPeriod-1,$AM158,0) -> 0 | P158: =-'I2 CBA Inputs'!R22*$F$13+IF(P$144=FirstYear+AnalysisPeriod-1,$AM158,0) -> 0 | Q158: =-'I2 CBA Inputs'!S22*$F$13+IF(Q$144=FirstYear+AnalysisPeriod-1,$AM158,0) -> 0 | R158: =-'I2 CBA Inputs'!T22*$F$13+IF(R$144=FirstYear+AnalysisPeriod-1,$AM158,0) -> 0 | S158: =-'I2 CBA Inputs'!U22*$F$13+IF(S$144=FirstYear+AnalysisPeriod-1,$AM158,0) -> 0 | T158: =-'I2 CBA Inputs'!V22*$F$13+IF(T$144=FirstYear+AnalysisPeriod-1,$AM158,0) -> 0 | U158: =-'I2 CBA Inputs'!W22*$F$13+IF(U$144=FirstYear+AnalysisPeriod-1,$AM158,0) -> 0 | V158: =-'I2 CBA Inputs'!X22*$F$13+IF(V$144=FirstYear+AnalysisPeriod-1,$AM158,0) -> 0 | W158: =-'I2 CBA Inputs'!Y22*$F$13+IF(W$144=FirstYear+AnalysisPeriod-1,$AM158,0) -> 0 | X158: =-'I2 CBA Inputs'!Z22*$F$13+IF(X$144=FirstYear+AnalysisPeriod-1,$AM158,0) -> 0 | Y158: =-'I2 CBA Inputs'!AA22*$F$13+IF(Y$144=FirstYear+AnalysisPeriod-1,$AM158,0) -> 0 | Z158: =-'I2 CBA Inputs'!AB22*$F$13+IF(Z$144=FirstYear+AnalysisPeriod-1,$AM158,0) -> 0 | AA158: =-'I2 CBA Inputs'!AC22*$F$13+IF(AA$144=FirstYear+AnalysisPeriod-1,$AM158,0) -> 0 | AB158: =-'I2 CBA Inputs'!AD22*$F$13+IF(AB$144=FirstYear+AnalysisPeriod-1,$AM158,0) -> 0 | AC158: =-'I2 CBA Inputs'!AE22*$F$13+IF(AC$144=FirstYear+AnalysisPeriod-1,$AM158,0) -> 0 | AD158: =-'I2 CBA Inputs'!AF22*$F$13+IF(AD$144=FirstYear+AnalysisPeriod-1,$AM158,0) -> 0 | AE158: =-'I2 CBA Inputs'!AG22*$F$13+IF(AE$144=FirstYear+AnalysisPeriod-1,$AM158,0) -> 0 | AF158: =-'I2 CBA Inputs'!AH22*$F$13+IF(AF$144=FirstYear+AnalysisPeriod-1,$AM158,0) -> 0 | AG158: =-'I2 CBA Inputs'!AI22*$F$13+IF(AG$144=FirstYear+AnalysisPeriod-1,$AM158,0) -> 0 | AH158: =-'I2 CBA Inputs'!AJ22*$F$13+IF(AH$144=FirstYear+AnalysisPeriod-1,$AM158,0) -> 0 | AI158: =-'I2 CBA Inputs'!AK22*$F$13+IF(AI$144=FirstYear+AnalysisPeriod-1,$AM158,0) -> 0 | AK158: =IFERROR(('I2 CBA Inputs'!D22/'I2 CBA Inputs'!F22)*$F$13,0) -> 0 | AL158: =(FirstYear+AnalysisPeriod)-'I2 CBA Inputs'!E22 -> 2045 | AM158: =MAX('I2 CBA Inputs'!$D22*$F$13-PRODUCT($AK158:$AL158),0) -> 0
B159: =+'I2 CBA Inputs'!B23 -> 0 | C159: =+'I2 CBA Inputs'!C23 -> 0 | D159: $ | E159: 0 | F159: =-'I2 CBA Inputs'!H23*$F$13+IF(F$144=FirstYear+AnalysisPeriod-1,$AM159,0) -> 0 | G159: =-'I2 CBA Inputs'!I23*$F$13+IF(G$144=FirstYear+AnalysisPeriod-1,$AM159,0) -> 0 | H159: =-'I2 CBA Inputs'!J23*$F$13+IF(H$144=FirstYear+AnalysisPeriod-1,$AM159,0) -> 0 | I159: =-'I2 CBA Inputs'!K23*$F$13+IF(I$144=FirstYear+AnalysisPeriod-1,$AM159,0) -> 0 | J159: =-'I2 CBA Inputs'!L23*$F$13+IF(J$144=FirstYear+AnalysisPeriod-1,$AM159,0) -> 0 | K159: =-'I2 CBA Inputs'!M23*$F$13+IF(K$144=FirstYear+AnalysisPeriod-1,$AM159,0) -> 0 | L159: =-'I2 CBA Inputs'!N23*$F$13+IF(L$144=FirstYear+AnalysisPeriod-1,$AM159,0) -> 0 | M159: =-'I2 CBA Inputs'!O23*$F$13+IF(M$144=FirstYear+AnalysisPeriod-1,$AM159,0) -> 0 | N159: =-'I2 CBA Inputs'!P23*$F$13+IF(N$144=FirstYear+AnalysisPeriod-1,$AM159,0) -> 0 | O159: =-'I2 CBA Inputs'!Q23*$F$13+IF(O$144=FirstYear+AnalysisPeriod-1,$AM159,0) -> 0 | P159: =-'I2 CBA Inputs'!R23*$F$13+IF(P$144=FirstYear+AnalysisPeriod-1,$AM159,0) -> 0 | Q159: =-'I2 CBA Inputs'!S23*$F$13+IF(Q$144=FirstYear+AnalysisPeriod-1,$AM159,0) -> 0 | R159: =-'I2 CBA Inputs'!T23*$F$13+IF(R$144=FirstYear+AnalysisPeriod-1,$AM159,0) -> 0 | S159: =-'I2 CBA Inputs'!U23*$F$13+IF(S$144=FirstYear+AnalysisPeriod-1,$AM159,0) -> 0 | T159: =-'I2 CBA Inputs'!V23*$F$13+IF(T$144=FirstYear+AnalysisPeriod-1,$AM159,0) -> 0 | U159: =-'I2 CBA Inputs'!W23*$F$13+IF(U$144=FirstYear+AnalysisPeriod-1,$AM159,0) -> 0 | V159: =-'I2 CBA Inputs'!X23*$F$13+IF(V$144=FirstYear+AnalysisPeriod-1,$AM159,0) -> 0 | W159: =-'I2 CBA Inputs'!Y23*$F$13+IF(W$144=FirstYear+AnalysisPeriod-1,$AM159,0) -> 0 | X159: =-'I2 CBA Inputs'!Z23*$F$13+IF(X$144=FirstYear+AnalysisPeriod-1,$AM159,0) -> 0 | Y159: =-'I2 CBA Inputs'!AA23*$F$13+IF(Y$144=FirstYear+AnalysisPeriod-1,$AM159,0) -> 0 | Z159: =-'I2 CBA Inputs'!AB23*$F$13+IF(Z$144=FirstYear+AnalysisPeriod-1,$AM159,0) -> 0 | AA159: =-'I2 CBA Inputs'!AC23*$F$13+IF(AA$144=FirstYear+AnalysisPeriod-1,$AM159,0) -> 0 | AB159: =-'I2 CBA Inputs'!AD23*$F$13+IF(AB$144=FirstYear+AnalysisPeriod-1,$AM159,0) -> 0 | AC159: =-'I2 CBA Inputs'!AE23*$F$13+IF(AC$144=FirstYear+AnalysisPeriod-1,$AM159,0) -> 0 | AD159: =-'I2 CBA Inputs'!AF23*$F$13+IF(AD$144=FirstYear+AnalysisPeriod-1,$AM159,0) -> 0 | AE159: =-'I2 CBA Inputs'!AG23*$F$13+IF(AE$144=FirstYear+AnalysisPeriod-1,$AM159,0) -> 0 | AF159: =-'I2 CBA Inputs'!AH23*$F$13+IF(AF$144=FirstYear+AnalysisPeriod-1,$AM159,0) -> 0 | AG159: =-'I2 CBA Inputs'!AI23*$F$13+IF(AG$144=FirstYear+AnalysisPeriod-1,$AM159,0) -> 0 | AH159: =-'I2 CBA Inputs'!AJ23*$F$13+IF(AH$144=FirstYear+AnalysisPeriod-1,$AM159,0) -> 0 | AI159: =-'I2 CBA Inputs'!AK23*$F$13+IF(AI$144=FirstYear+AnalysisPeriod-1,$AM159,0) -> 0 | AK159: =IFERROR(('I2 CBA Inputs'!D23/'I2 CBA Inputs'!F23)*$F$13,0) -> 0 | AL159: =(FirstYear+AnalysisPeriod)-'I2 CBA Inputs'!E23 -> 2045 | AM159: =MAX('I2 CBA Inputs'!$D23*$F$13-PRODUCT($AK159:$AL159),0) -> 0
B160: =+'I2 CBA Inputs'!B24 -> 0 | C160: =+'I2 CBA Inputs'!C24 -> 0 | D160: $ | E160: 0 | F160: =-'I2 CBA Inputs'!H24*$F$13+IF(F$144=FirstYear+AnalysisPeriod-1,$AM160,0) -> 0 | G160: =-'I2 CBA Inputs'!I24*$F$13+IF(G$144=FirstYear+AnalysisPeriod-1,$AM160,0) -> 0 | H160: =-'I2 CBA Inputs'!J24*$F$13+IF(H$144=FirstYear+AnalysisPeriod-1,$AM160,0) -> 0 | I160: =-'I2 CBA Inputs'!K24*$F$13+IF(I$144=FirstYear+AnalysisPeriod-1,$AM160,0) -> 0 | J160: =-'I2 CBA Inputs'!L24*$F$13+IF(J$144=FirstYear+AnalysisPeriod-1,$AM160,0) -> 0 | K160: =-'I2 CBA Inputs'!M24*$F$13+IF(K$144=FirstYear+AnalysisPeriod-1,$AM160,0) -> 0 | L160: =-'I2 CBA Inputs'!N24*$F$13+IF(L$144=FirstYear+AnalysisPeriod-1,$AM160,0) -> 0 | M160: =-'I2 CBA Inputs'!O24*$F$13+IF(M$144=FirstYear+AnalysisPeriod-1,$AM160,0) -> 0 | N160: =-'I2 CBA Inputs'!P24*$F$13+IF(N$144=FirstYear+AnalysisPeriod-1,$AM160,0) -> 0 | O160: =-'I2 CBA Inputs'!Q24*$F$13+IF(O$144=FirstYear+AnalysisPeriod-1,$AM160,0) -> 0 | P160: =-'I2 CBA Inputs'!R24*$F$13+IF(P$144=FirstYear+AnalysisPeriod-1,$AM160,0) -> 0 | Q160: =-'I2 CBA Inputs'!S24*$F$13+IF(Q$144=FirstYear+AnalysisPeriod-1,$AM160,0) -> 0 | R160: =-'I2 CBA Inputs'!T24*$F$13+IF(R$144=FirstYear+AnalysisPeriod-1,$AM160,0) -> 0 | S160: =-'I2 CBA Inputs'!U24*$F$13+IF(S$144=FirstYear+AnalysisPeriod-1,$AM160,0) -> 0 | T160: =-'I2 CBA Inputs'!V24*$F$13+IF(T$144=FirstYear+AnalysisPeriod-1,$AM160,0) -> 0 | U160: =-'I2 CBA Inputs'!W24*$F$13+IF(U$144=FirstYear+AnalysisPeriod-1,$AM160,0) -> 0 | V160: =-'I2 CBA Inputs'!X24*$F$13+IF(V$144=FirstYear+AnalysisPeriod-1,$AM160,0) -> 0 | W160: =-'I2 CBA Inputs'!Y24*$F$13+IF(W$144=FirstYear+AnalysisPeriod-1,$AM160,0) -> 0 | X160: =-'I2 CBA Inputs'!Z24*$F$13+IF(X$144=FirstYear+AnalysisPeriod-1,$AM160,0) -> 0 | Y160: =-'I2 CBA Inputs'!AA24*$F$13+IF(Y$144=FirstYear+AnalysisPeriod-1,$AM160,0) -> 0 | Z160: =-'I2 CBA Inputs'!AB24*$F$13+IF(Z$144=FirstYear+AnalysisPeriod-1,$AM160,0) -> 0 | AA160: =-'I2 CBA Inputs'!AC24*$F$13+IF(AA$144=FirstYear+AnalysisPeriod-1,$AM160,0) -> 0 | AB160: =-'I2 CBA Inputs'!AD24*$F$13+IF(AB$144=FirstYear+AnalysisPeriod-1,$AM160,0) -> 0 | AC160: =-'I2 CBA Inputs'!AE24*$F$13+IF(AC$144=FirstYear+AnalysisPeriod-1,$AM160,0) -> 0 | AD160: =-'I2 CBA Inputs'!AF24*$F$13+IF(AD$144=FirstYear+AnalysisPeriod-1,$AM160,0) -> 0 | AE160: =-'I2 CBA Inputs'!AG24*$F$13+IF(AE$144=FirstYear+AnalysisPeriod-1,$AM160,0) -> 0 | AF160: =-'I2 CBA Inputs'!AH24*$F$13+IF(AF$144=FirstYear+AnalysisPeriod-1,$AM160,0) -> 0 | AG160: =-'I2 CBA Inputs'!AI24*$F$13+IF(AG$144=FirstYear+AnalysisPeriod-1,$AM160,0) -> 0 | AH160: =-'I2 CBA Inputs'!AJ24*$F$13+IF(AH$144=FirstYear+AnalysisPeriod-1,$AM160,0) -> 0 | AI160: =-'I2 CBA Inputs'!AK24*$F$13+IF(AI$144=FirstYear+AnalysisPeriod-1,$AM160,0) -> 0 | AK160: =IFERROR(('I2 CBA Inputs'!D24/'I2 CBA Inputs'!F24)*$F$13,0) -> 0 | AL160: =(FirstYear+AnalysisPeriod)-'I2 CBA Inputs'!E24 -> 2045 | AM160: =MAX('I2 CBA Inputs'!$D24*$F$13-PRODUCT($AK160:$AL160),0) -> 0
B161: =+'I2 CBA Inputs'!B25 -> 0 | C161: =+'I2 CBA Inputs'!C25 -> 0 | D161: $ | E161: 0 | F161: =-'I2 CBA Inputs'!H25*$F$13+IF(F$144=FirstYear+AnalysisPeriod-1,$AM161,0) -> 0 | G161: =-'I2 CBA Inputs'!I25*$F$13+IF(G$144=FirstYear+AnalysisPeriod-1,$AM161,0) -> 0 | H161: =-'I2 CBA Inputs'!J25*$F$13+IF(H$144=FirstYear+AnalysisPeriod-1,$AM161,0) -> 0 | I161: =-'I2 CBA Inputs'!K25*$F$13+IF(I$144=FirstYear+AnalysisPeriod-1,$AM161,0) -> 0 | J161: =-'I2 CBA Inputs'!L25*$F$13+IF(J$144=FirstYear+AnalysisPeriod-1,$AM161,0) -> 0 | K161: =-'I2 CBA Inputs'!M25*$F$13+IF(K$144=FirstYear+AnalysisPeriod-1,$AM161,0) -> 0 | L161: =-'I2 CBA Inputs'!N25*$F$13+IF(L$144=FirstYear+AnalysisPeriod-1,$AM161,0) -> 0 | M161: =-'I2 CBA Inputs'!O25*$F$13+IF(M$144=FirstYear+AnalysisPeriod-1,$AM161,0) -> 0 | N161: =-'I2 CBA Inputs'!P25*$F$13+IF(N$144=FirstYear+AnalysisPeriod-1,$AM161,0) -> 0 | O161: =-'I2 CBA Inputs'!Q25*$F$13+IF(O$144=FirstYear+AnalysisPeriod-1,$AM161,0) -> 0 | P161: =-'I2 CBA Inputs'!R25*$F$13+IF(P$144=FirstYear+AnalysisPeriod-1,$AM161,0) -> 0 | Q161: =-'I2 CBA Inputs'!S25*$F$13+IF(Q$144=FirstYear+AnalysisPeriod-1,$AM161,0) -> 0 | R161: =-'I2 CBA Inputs'!T25*$F$13+IF(R$144=FirstYear+AnalysisPeriod-1,$AM161,0) -> 0 | S161: =-'I2 CBA Inputs'!U25*$F$13+IF(S$144=FirstYear+AnalysisPeriod-1,$AM161,0) -> 0 | T161: =-'I2 CBA Inputs'!V25*$F$13+IF(T$144=FirstYear+AnalysisPeriod-1,$AM161,0) -> 0 | U161: =-'I2 CBA Inputs'!W25*$F$13+IF(U$144=FirstYear+AnalysisPeriod-1,$AM161,0) -> 0 | V161: =-'I2 CBA Inputs'!X25*$F$13+IF(V$144=FirstYear+AnalysisPeriod-1,$AM161,0) -> 0 | W161: =-'I2 CBA Inputs'!Y25*$F$13+IF(W$144=FirstYear+AnalysisPeriod-1,$AM161,0) -> 0 | X161: =-'I2 CBA Inputs'!Z25*$F$13+IF(X$144=FirstYear+AnalysisPeriod-1,$AM161,0) -> 0 | Y161: =-'I2 CBA Inputs'!AA25*$F$13+IF(Y$144=FirstYear+AnalysisPeriod-1,$AM161,0) -> 0 | Z161: =-'I2 CBA Inputs'!AB25*$F$13+IF(Z$144=FirstYear+AnalysisPeriod-1,$AM161,0) -> 0 | AA161: =-'I2 CBA Inputs'!AC25*$F$13+IF(AA$144=FirstYear+AnalysisPeriod-1,$AM161,0) -> 0 | AB161: =-'I2 CBA Inputs'!AD25*$F$13+IF(AB$144=FirstYear+AnalysisPeriod-1,$AM161,0) -> 0 | AC161: =-'I2 CBA Inputs'!AE25*$F$13+IF(AC$144=FirstYear+AnalysisPeriod-1,$AM161,0) -> 0 | AD161: =-'I2 CBA Inputs'!AF25*$F$13+IF(AD$144=FirstYear+AnalysisPeriod-1,$AM161,0) -> 0 | AE161: =-'I2 CBA Inputs'!AG25*$F$13+IF(AE$144=FirstYear+AnalysisPeriod-1,$AM161,0) -> 0 | AF161: =-'I2 CBA Inputs'!AH25*$F$13+IF(AF$144=FirstYear+AnalysisPeriod-1,$AM161,0) -> 0 | AG161: =-'I2 CBA Inputs'!AI25*$F$13+IF(AG$144=FirstYear+AnalysisPeriod-1,$AM161,0) -> 0 | AH161: =-'I2 CBA Inputs'!AJ25*$F$13+IF(AH$144=FirstYear+AnalysisPeriod-1,$AM161,0) -> 0 | AI161: =-'I2 CBA Inputs'!AK25*$F$13+IF(AI$144=FirstYear+AnalysisPeriod-1,$AM161,0) -> 0 | AK161: =IFERROR(('I2 CBA Inputs'!D25/'I2 CBA Inputs'!F25)*$F$13,0) -> 0 | AL161: =(FirstYear+AnalysisPeriod)-'I2 CBA Inputs'!E25 -> 2045 | AM161: =MAX('I2 CBA Inputs'!$D25*$F$13-PRODUCT($AK161:$AL161),0) -> 0
B162: =+'I2 CBA Inputs'!B26 -> 0 | C162: =+'I2 CBA Inputs'!C26 -> 0 | D162: $ | E162: 0 | F162: =-'I2 CBA Inputs'!H26*$F$13+IF(F$144=FirstYear+AnalysisPeriod-1,$AM162,0) -> 0 | G162: =-'I2 CBA Inputs'!I26*$F$13+IF(G$144=FirstYear+AnalysisPeriod-1,$AM162,0) -> 0 | H162: =-'I2 CBA Inputs'!J26*$F$13+IF(H$144=FirstYear+AnalysisPeriod-1,$AM162,0) -> 0 | I162: =-'I2 CBA Inputs'!K26*$F$13+IF(I$144=FirstYear+AnalysisPeriod-1,$AM162,0) -> 0 | J162: =-'I2 CBA Inputs'!L26*$F$13+IF(J$144=FirstYear+AnalysisPeriod-1,$AM162,0) -> 0 | K162: =-'I2 CBA Inputs'!M26*$F$13+IF(K$144=FirstYear+AnalysisPeriod-1,$AM162,0) -> 0 | L162: =-'I2 CBA Inputs'!N26*$F$13+IF(L$144=FirstYear+AnalysisPeriod-1,$AM162,0) -> 0 | M162: =-'I2 CBA Inputs'!O26*$F$13+IF(M$144=FirstYear+AnalysisPeriod-1,$AM162,0) -> 0 | N162: =-'I2 CBA Inputs'!P26*$F$13+IF(N$144=FirstYear+AnalysisPeriod-1,$AM162,0) -> 0 | O162: =-'I2 CBA Inputs'!Q26*$F$13+IF(O$144=FirstYear+AnalysisPeriod-1,$AM162,0) -> 0 | P162: =-'I2 CBA Inputs'!R26*$F$13+IF(P$144=FirstYear+AnalysisPeriod-1,$AM162,0) -> 0 | Q162: =-'I2 CBA Inputs'!S26*$F$13+IF(Q$144=FirstYear+AnalysisPeriod-1,$AM162,0) -> 0 | R162: =-'I2 CBA Inputs'!T26*$F$13+IF(R$144=FirstYear+AnalysisPeriod-1,$AM162,0) -> 0 | S162: =-'I2 CBA Inputs'!U26*$F$13+IF(S$144=FirstYear+AnalysisPeriod-1,$AM162,0) -> 0 | T162: =-'I2 CBA Inputs'!V26*$F$13+IF(T$144=FirstYear+AnalysisPeriod-1,$AM162,0) -> 0 | U162: =-'I2 CBA Inputs'!W26*$F$13+IF(U$144=FirstYear+AnalysisPeriod-1,$AM162,0) -> 0 | V162: =-'I2 CBA Inputs'!X26*$F$13+IF(V$144=FirstYear+AnalysisPeriod-1,$AM162,0) -> 0 | W162: =-'I2 CBA Inputs'!Y26*$F$13+IF(W$144=FirstYear+AnalysisPeriod-1,$AM162,0) -> 0 | X162: =-'I2 CBA Inputs'!Z26*$F$13+IF(X$144=FirstYear+AnalysisPeriod-1,$AM162,0) -> 0 | Y162: =-'I2 CBA Inputs'!AA26*$F$13+IF(Y$144=FirstYear+AnalysisPeriod-1,$AM162,0) -> 0 | Z162: =-'I2 CBA Inputs'!AB26*$F$13+IF(Z$144=FirstYear+AnalysisPeriod-1,$AM162,0) -> 0 | AA162: =-'I2 CBA Inputs'!AC26*$F$13+IF(AA$144=FirstYear+AnalysisPeriod-1,$AM162,0) -> 0 | AB162: =-'I2 CBA Inputs'!AD26*$F$13+IF(AB$144=FirstYear+AnalysisPeriod-1,$AM162,0) -> 0 | AC162: =-'I2 CBA Inputs'!AE26*$F$13+IF(AC$144=FirstYear+AnalysisPeriod-1,$AM162,0) -> 0 | AD162: =-'I2 CBA Inputs'!AF26*$F$13+IF(AD$144=FirstYear+AnalysisPeriod-1,$AM162,0) -> 0 | AE162: =-'I2 CBA Inputs'!AG26*$F$13+IF(AE$144=FirstYear+AnalysisPeriod-1,$AM162,0) -> 0 | AF162: =-'I2 CBA Inputs'!AH26*$F$13+IF(AF$144=FirstYear+AnalysisPeriod-1,$AM162,0) -> 0 | AG162: =-'I2 CBA Inputs'!AI26*$F$13+IF(AG$144=FirstYear+AnalysisPeriod-1,$AM162,0) -> 0 | AH162: =-'I2 CBA Inputs'!AJ26*$F$13+IF(AH$144=FirstYear+AnalysisPeriod-1,$AM162,0) -> 0 | AI162: =-'I2 CBA Inputs'!AK26*$F$13+IF(AI$144=FirstYear+AnalysisPeriod-1,$AM162,0) -> 0 | AK162: =IFERROR(('I2 CBA Inputs'!D26/'I2 CBA Inputs'!F26)*$F$13,0) -> 0 | AL162: =(FirstYear+AnalysisPeriod)-'I2 CBA Inputs'!E26 -> 2045 | AM162: =MAX('I2 CBA Inputs'!$D26*$F$13-PRODUCT($AK162:$AL162),0) -> 0
B163: =+'I2 CBA Inputs'!B27 -> 0 | C163: =+'I2 CBA Inputs'!C27 -> 0 | D163: $ | E163: 0 | F163: =-'I2 CBA Inputs'!H27*$F$13+IF(F$144=FirstYear+AnalysisPeriod-1,$AM163,0) -> 0 | G163: =-'I2 CBA Inputs'!I27*$F$13+IF(G$144=FirstYear+AnalysisPeriod-1,$AM163,0) -> 0 | H163: =-'I2 CBA Inputs'!J27*$F$13+IF(H$144=FirstYear+AnalysisPeriod-1,$AM163,0) -> 0 | I163: =-'I2 CBA Inputs'!K27*$F$13+IF(I$144=FirstYear+AnalysisPeriod-1,$AM163,0) -> 0 | J163: =-'I2 CBA Inputs'!L27*$F$13+IF(J$144=FirstYear+AnalysisPeriod-1,$AM163,0) -> 0 | K163: =-'I2 CBA Inputs'!M27*$F$13+IF(K$144=FirstYear+AnalysisPeriod-1,$AM163,0) -> 0 | L163: =-'I2 CBA Inputs'!N27*$F$13+IF(L$144=FirstYear+AnalysisPeriod-1,$AM163,0) -> 0 | M163: =-'I2 CBA Inputs'!O27*$F$13+IF(M$144=FirstYear+AnalysisPeriod-1,$AM163,0) -> 0 | N163: =-'I2 CBA Inputs'!P27*$F$13+IF(N$144=FirstYear+AnalysisPeriod-1,$AM163,0) -> 0 | O163: =-'I2 CBA Inputs'!Q27*$F$13+IF(O$144=FirstYear+AnalysisPeriod-1,$AM163,0) -> 0 | P163: =-'I2 CBA Inputs'!R27*$F$13+IF(P$144=FirstYear+AnalysisPeriod-1,$AM163,0) -> 0 | Q163: =-'I2 CBA Inputs'!S27*$F$13+IF(Q$144=FirstYear+AnalysisPeriod-1,$AM163,0) -> 0 | R163: =-'I2 CBA Inputs'!T27*$F$13+IF(R$144=FirstYear+AnalysisPeriod-1,$AM163,0) -> 0 | S163: =-'I2 CBA Inputs'!U27*$F$13+IF(S$144=FirstYear+AnalysisPeriod-1,$AM163,0) -> 0 | T163: =-'I2 CBA Inputs'!V27*$F$13+IF(T$144=FirstYear+AnalysisPeriod-1,$AM163,0) -> 0 | U163: =-'I2 CBA Inputs'!W27*$F$13+IF(U$144=FirstYear+AnalysisPeriod-1,$AM163,0) -> 0 | V163: =-'I2 CBA Inputs'!X27*$F$13+IF(V$144=FirstYear+AnalysisPeriod-1,$AM163,0) -> 0 | W163: =-'I2 CBA Inputs'!Y27*$F$13+IF(W$144=FirstYear+AnalysisPeriod-1,$AM163,0) -> 0 | X163: =-'I2 CBA Inputs'!Z27*$F$13+IF(X$144=FirstYear+AnalysisPeriod-1,$AM163,0) -> 0 | Y163: =-'I2 CBA Inputs'!AA27*$F$13+IF(Y$144=FirstYear+AnalysisPeriod-1,$AM163,0) -> 0 | Z163: =-'I2 CBA Inputs'!AB27*$F$13+IF(Z$144=FirstYear+AnalysisPeriod-1,$AM163,0) -> 0 | AA163: =-'I2 CBA Inputs'!AC27*$F$13+IF(AA$144=FirstYear+AnalysisPeriod-1,$AM163,0) -> 0 | AB163: =-'I2 CBA Inputs'!AD27*$F$13+IF(AB$144=FirstYear+AnalysisPeriod-1,$AM163,0) -> 0 | AC163: =-'I2 CBA Inputs'!AE27*$F$13+IF(AC$144=FirstYear+AnalysisPeriod-1,$AM163,0) -> 0 | AD163: =-'I2 CBA Inputs'!AF27*$F$13+IF(AD$144=FirstYear+AnalysisPeriod-1,$AM163,0) -> 0 | AE163: =-'I2 CBA Inputs'!AG27*$F$13+IF(AE$144=FirstYear+AnalysisPeriod-1,$AM163,0) -> 0 | AF163: =-'I2 CBA Inputs'!AH27*$F$13+IF(AF$144=FirstYear+AnalysisPeriod-1,$AM163,0) -> 0 | AG163: =-'I2 CBA Inputs'!AI27*$F$13+IF(AG$144=FirstYear+AnalysisPeriod-1,$AM163,0) -> 0 | AH163: =-'I2 CBA Inputs'!AJ27*$F$13+IF(AH$144=FirstYear+AnalysisPeriod-1,$AM163,0) -> 0 | AI163: =-'I2 CBA Inputs'!AK27*$F$13+IF(AI$144=FirstYear+AnalysisPeriod-1,$AM163,0) -> 0 | AK163: =IFERROR(('I2 CBA Inputs'!D27/'I2 CBA Inputs'!F27)*$F$13,0) -> 0 | AL163: =(FirstYear+AnalysisPeriod)-'I2 CBA Inputs'!E27 -> 2045 | AM163: =MAX('I2 CBA Inputs'!$D27*$F$13-PRODUCT($AK163:$AL163),0) -> 0
B164: =+'I2 CBA Inputs'!B28 -> 0 | C164: =+'I2 CBA Inputs'!C28 -> 0 | D164: $ | E164: 0 | F164: =-'I2 CBA Inputs'!H28*$F$13+IF(F$144=FirstYear+AnalysisPeriod-1,$AM164,0) -> 0 | G164: =-'I2 CBA Inputs'!I28*$F$13+IF(G$144=FirstYear+AnalysisPeriod-1,$AM164,0) -> 0 | H164: =-'I2 CBA Inputs'!J28*$F$13+IF(H$144=FirstYear+AnalysisPeriod-1,$AM164,0) -> 0 | I164: =-'I2 CBA Inputs'!K28*$F$13+IF(I$144=FirstYear+AnalysisPeriod-1,$AM164,0) -> 0 | J164: =-'I2 CBA Inputs'!L28*$F$13+IF(J$144=FirstYear+AnalysisPeriod-1,$AM164,0) -> 0 | K164: =-'I2 CBA Inputs'!M28*$F$13+IF(K$144=FirstYear+AnalysisPeriod-1,$AM164,0) -> 0 | L164: =-'I2 CBA Inputs'!N28*$F$13+IF(L$144=FirstYear+AnalysisPeriod-1,$AM164,0) -> 0 | M164: =-'I2 CBA Inputs'!O28*$F$13+IF(M$144=FirstYear+AnalysisPeriod-1,$AM164,0) -> 0 | N164: =-'I2 CBA Inputs'!P28*$F$13+IF(N$144=FirstYear+AnalysisPeriod-1,$AM164,0) -> 0 | O164: =-'I2 CBA Inputs'!Q28*$F$13+IF(O$144=FirstYear+AnalysisPeriod-1,$AM164,0) -> 0 | P164: =-'I2 CBA Inputs'!R28*$F$13+IF(P$144=FirstYear+AnalysisPeriod-1,$AM164,0) -> 0 | Q164: =-'I2 CBA Inputs'!S28*$F$13+IF(Q$144=FirstYear+AnalysisPeriod-1,$AM164,0) -> 0 | R164: =-'I2 CBA Inputs'!T28*$F$13+IF(R$144=FirstYear+AnalysisPeriod-1,$AM164,0) -> 0 | S164: =-'I2 CBA Inputs'!U28*$F$13+IF(S$144=FirstYear+AnalysisPeriod-1,$AM164,0) -> 0 | T164: =-'I2 CBA Inputs'!V28*$F$13+IF(T$144=FirstYear+AnalysisPeriod-1,$AM164,0) -> 0 | U164: =-'I2 CBA Inputs'!W28*$F$13+IF(U$144=FirstYear+AnalysisPeriod-1,$AM164,0) -> 0 | V164: =-'I2 CBA Inputs'!X28*$F$13+IF(V$144=FirstYear+AnalysisPeriod-1,$AM164,0) -> 0 | W164: =-'I2 CBA Inputs'!Y28*$F$13+IF(W$144=FirstYear+AnalysisPeriod-1,$AM164,0) -> 0 | X164: =-'I2 CBA Inputs'!Z28*$F$13+IF(X$144=FirstYear+AnalysisPeriod-1,$AM164,0) -> 0 | Y164: =-'I2 CBA Inputs'!AA28*$F$13+IF(Y$144=FirstYear+AnalysisPeriod-1,$AM164,0) -> 0 | Z164: =-'I2 CBA Inputs'!AB28*$F$13+IF(Z$144=FirstYear+AnalysisPeriod-1,$AM164,0) -> 0 | AA164: =-'I2 CBA Inputs'!AC28*$F$13+IF(AA$144=FirstYear+AnalysisPeriod-1,$AM164,0) -> 0 | AB164: =-'I2 CBA Inputs'!AD28*$F$13+IF(AB$144=FirstYear+AnalysisPeriod-1,$AM164,0) -> 0 | AC164: =-'I2 CBA Inputs'!AE28*$F$13+IF(AC$144=FirstYear+AnalysisPeriod-1,$AM164,0) -> 0 | AD164: =-'I2 CBA Inputs'!AF28*$F$13+IF(AD$144=FirstYear+AnalysisPeriod-1,$AM164,0) -> 0 | AE164: =-'I2 CBA Inputs'!AG28*$F$13+IF(AE$144=FirstYear+AnalysisPeriod-1,$AM164,0) -> 0 | AF164: =-'I2 CBA Inputs'!AH28*$F$13+IF(AF$144=FirstYear+AnalysisPeriod-1,$AM164,0) -> 0 | AG164: =-'I2 CBA Inputs'!AI28*$F$13+IF(AG$144=FirstYear+AnalysisPeriod-1,$AM164,0) -> 0 | AH164: =-'I2 CBA Inputs'!AJ28*$F$13+IF(AH$144=FirstYear+AnalysisPeriod-1,$AM164,0) -> 0 | AI164: =-'I2 CBA Inputs'!AK28*$F$13+IF(AI$144=FirstYear+AnalysisPeriod-1,$AM164,0) -> 0 | AK164: =IFERROR(('I2 CBA Inputs'!D28/'I2 CBA Inputs'!F28)*$F$13,0) -> 0 | AL164: =(FirstYear+AnalysisPeriod)-'I2 CBA Inputs'!E28 -> 2045 | AM164: =MAX('I2 CBA Inputs'!$D28*$F$13-PRODUCT($AK164:$AL164),0) -> 0
B165: =+'I2 CBA Inputs'!B29 -> 0 | C165: =+'I2 CBA Inputs'!C29 -> 0 | D165: $ | E165: 0 | F165: =-'I2 CBA Inputs'!H29*$F$13+IF(F$144=FirstYear+AnalysisPeriod-1,$AM165,0) -> 0 | G165: =-'I2 CBA Inputs'!I29*$F$13+IF(G$144=FirstYear+AnalysisPeriod-1,$AM165,0) -> 0 | H165: =-'I2 CBA Inputs'!J29*$F$13+IF(H$144=FirstYear+AnalysisPeriod-1,$AM165,0) -> 0 | I165: =-'I2 CBA Inputs'!K29*$F$13+IF(I$144=FirstYear+AnalysisPeriod-1,$AM165,0) -> 0 | J165: =-'I2 CBA Inputs'!L29*$F$13+IF(J$144=FirstYear+AnalysisPeriod-1,$AM165,0) -> 0 | K165: =-'I2 CBA Inputs'!M29*$F$13+IF(K$144=FirstYear+AnalysisPeriod-1,$AM165,0) -> 0 | L165: =-'I2 CBA Inputs'!N29*$F$13+IF(L$144=FirstYear+AnalysisPeriod-1,$AM165,0) -> 0 | M165: =-'I2 CBA Inputs'!O29*$F$13+IF(M$144=FirstYear+AnalysisPeriod-1,$AM165,0) -> 0 | N165: =-'I2 CBA Inputs'!P29*$F$13+IF(N$144=FirstYear+AnalysisPeriod-1,$AM165,0) -> 0 | O165: =-'I2 CBA Inputs'!Q29*$F$13+IF(O$144=FirstYear+AnalysisPeriod-1,$AM165,0) -> 0 | P165: =-'I2 CBA Inputs'!R29*$F$13+IF(P$144=FirstYear+AnalysisPeriod-1,$AM165,0) -> 0 | Q165: =-'I2 CBA Inputs'!S29*$F$13+IF(Q$144=FirstYear+AnalysisPeriod-1,$AM165,0) -> 0 | R165: =-'I2 CBA Inputs'!T29*$F$13+IF(R$144=FirstYear+AnalysisPeriod-1,$AM165,0) -> 0 | S165: =-'I2 CBA Inputs'!U29*$F$13+IF(S$144=FirstYear+AnalysisPeriod-1,$AM165,0) -> 0 | T165: =-'I2 CBA Inputs'!V29*$F$13+IF(T$144=FirstYear+AnalysisPeriod-1,$AM165,0) -> 0 | U165: =-'I2 CBA Inputs'!W29*$F$13+IF(U$144=FirstYear+AnalysisPeriod-1,$AM165,0) -> 0 | V165: =-'I2 CBA Inputs'!X29*$F$13+IF(V$144=FirstYear+AnalysisPeriod-1,$AM165,0) -> 0 | W165: =-'I2 CBA Inputs'!Y29*$F$13+IF(W$144=FirstYear+AnalysisPeriod-1,$AM165,0) -> 0 | X165: =-'I2 CBA Inputs'!Z29*$F$13+IF(X$144=FirstYear+AnalysisPeriod-1,$AM165,0) -> 0 | Y165: =-'I2 CBA Inputs'!AA29*$F$13+IF(Y$144=FirstYear+AnalysisPeriod-1,$AM165,0) -> 0 | Z165: =-'I2 CBA Inputs'!AB29*$F$13+IF(Z$144=FirstYear+AnalysisPeriod-1,$AM165,0) -> 0 | AA165: =-'I2 CBA Inputs'!AC29*$F$13+IF(AA$144=FirstYear+AnalysisPeriod-1,$AM165,0) -> 0 | AB165: =-'I2 CBA Inputs'!AD29*$F$13+IF(AB$144=FirstYear+AnalysisPeriod-1,$AM165,0) -> 0 | AC165: =-'I2 CBA Inputs'!AE29*$F$13+IF(AC$144=FirstYear+AnalysisPeriod-1,$AM165,0) -> 0 | AD165: =-'I2 CBA Inputs'!AF29*$F$13+IF(AD$144=FirstYear+AnalysisPeriod-1,$AM165,0) -> 0 | AE165: =-'I2 CBA Inputs'!AG29*$F$13+IF(AE$144=FirstYear+AnalysisPeriod-1,$AM165,0) -> 0 | AF165: =-'I2 CBA Inputs'!AH29*$F$13+IF(AF$144=FirstYear+AnalysisPeriod-1,$AM165,0) -> 0 | AG165: =-'I2 CBA Inputs'!AI29*$F$13+IF(AG$144=FirstYear+AnalysisPeriod-1,$AM165,0) -> 0 | AH165: =-'I2 CBA Inputs'!AJ29*$F$13+IF(AH$144=FirstYear+AnalysisPeriod-1,$AM165,0) -> 0 | AI165: =-'I2 CBA Inputs'!AK29*$F$13+IF(AI$144=FirstYear+AnalysisPeriod-1,$AM165,0) -> 0 | AK165: =IFERROR(('I2 CBA Inputs'!D29/'I2 CBA Inputs'!F29)*$F$13,0) -> 0 | AL165: =(FirstYear+AnalysisPeriod)-'I2 CBA Inputs'!E29 -> 2045 | AM165: =MAX('I2 CBA Inputs'!$D29*$F$13-PRODUCT($AK165:$AL165),0) -> 0
B166: =+'I2 CBA Inputs'!B30 -> 0 | C166: =+'I2 CBA Inputs'!C30 -> 0 | D166: $ | E166: 0 | F166: =-'I2 CBA Inputs'!H30*$F$13+IF(F$144=FirstYear+AnalysisPeriod-1,$AM166,0) -> 0 | G166: =-'I2 CBA Inputs'!I30*$F$13+IF(G$144=FirstYear+AnalysisPeriod-1,$AM166,0) -> 0 | H166: =-'I2 CBA Inputs'!J30*$F$13+IF(H$144=FirstYear+AnalysisPeriod-1,$AM166,0) -> 0 | I166: =-'I2 CBA Inputs'!K30*$F$13+IF(I$144=FirstYear+AnalysisPeriod-1,$AM166,0) -> 0 | J166: =-'I2 CBA Inputs'!L30*$F$13+IF(J$144=FirstYear+AnalysisPeriod-1,$AM166,0) -> 0 | K166: =-'I2 CBA Inputs'!M30*$F$13+IF(K$144=FirstYear+AnalysisPeriod-1,$AM166,0) -> 0 | L166: =-'I2 CBA Inputs'!N30*$F$13+IF(L$144=FirstYear+AnalysisPeriod-1,$AM166,0) -> 0 | M166: =-'I2 CBA Inputs'!O30*$F$13+IF(M$144=FirstYear+AnalysisPeriod-1,$AM166,0) -> 0 | N166: =-'I2 CBA Inputs'!P30*$F$13+IF(N$144=FirstYear+AnalysisPeriod-1,$AM166,0) -> 0 | O166: =-'I2 CBA Inputs'!Q30*$F$13+IF(O$144=FirstYear+AnalysisPeriod-1,$AM166,0) -> 0 | P166: =-'I2 CBA Inputs'!R30*$F$13+IF(P$144=FirstYear+AnalysisPeriod-1,$AM166,0) -> 0 | Q166: =-'I2 CBA Inputs'!S30*$F$13+IF(Q$144=FirstYear+AnalysisPeriod-1,$AM166,0) -> 0 | R166: =-'I2 CBA Inputs'!T30*$F$13+IF(R$144=FirstYear+AnalysisPeriod-1,$AM166,0) -> 0 | S166: =-'I2 CBA Inputs'!U30*$F$13+IF(S$144=FirstYear+AnalysisPeriod-1,$AM166,0) -> 0 | T166: =-'I2 CBA Inputs'!V30*$F$13+IF(T$144=FirstYear+AnalysisPeriod-1,$AM166,0) -> 0 | U166: =-'I2 CBA Inputs'!W30*$F$13+IF(U$144=FirstYear+AnalysisPeriod-1,$AM166,0) -> 0 | V166: =-'I2 CBA Inputs'!X30*$F$13+IF(V$144=FirstYear+AnalysisPeriod-1,$AM166,0) -> 0 | W166: =-'I2 CBA Inputs'!Y30*$F$13+IF(W$144=FirstYear+AnalysisPeriod-1,$AM166,0) -> 0 | X166: =-'I2 CBA Inputs'!Z30*$F$13+IF(X$144=FirstYear+AnalysisPeriod-1,$AM166,0) -> 0 | Y166: =-'I2 CBA Inputs'!AA30*$F$13+IF(Y$144=FirstYear+AnalysisPeriod-1,$AM166,0) -> 0 | Z166: =-'I2 CBA Inputs'!AB30*$F$13+IF(Z$144=FirstYear+AnalysisPeriod-1,$AM166,0) -> 0 | AA166: =-'I2 CBA Inputs'!AC30*$F$13+IF(AA$144=FirstYear+AnalysisPeriod-1,$AM166,0) -> 0 | AB166: =-'I2 CBA Inputs'!AD30*$F$13+IF(AB$144=FirstYear+AnalysisPeriod-1,$AM166,0) -> 0 | AC166: =-'I2 CBA Inputs'!AE30*$F$13+IF(AC$144=FirstYear+AnalysisPeriod-1,$AM166,0) -> 0 | AD166: =-'I2 CBA Inputs'!AF30*$F$13+IF(AD$144=FirstYear+AnalysisPeriod-1,$AM166,0) -> 0 | AE166: =-'I2 CBA Inputs'!AG30*$F$13+IF(AE$144=FirstYear+AnalysisPeriod-1,$AM166,0) -> 0 | AF166: =-'I2 CBA Inputs'!AH30*$F$13+IF(AF$144=FirstYear+AnalysisPeriod-1,$AM166,0) -> 0 | AG166: =-'I2 CBA Inputs'!AI30*$F$13+IF(AG$144=FirstYear+AnalysisPeriod-1,$AM166,0) -> 0 | AH166: =-'I2 CBA Inputs'!AJ30*$F$13+IF(AH$144=FirstYear+AnalysisPeriod-1,$AM166,0) -> 0 | AI166: =-'I2 CBA Inputs'!AK30*$F$13+IF(AI$144=FirstYear+AnalysisPeriod-1,$AM166,0) -> 0 | AK166: =IFERROR(('I2 CBA Inputs'!D30/'I2 CBA Inputs'!F30)*$F$13,0) -> 0 | AL166: =(FirstYear+AnalysisPeriod)-'I2 CBA Inputs'!E30 -> 2045 | AM166: =MAX('I2 CBA Inputs'!$D30*$F$13-PRODUCT($AK166:$AL166),0) -> 0
B167: =+'I2 CBA Inputs'!B31 -> 0 | C167: =+'I2 CBA Inputs'!C31 -> 0 | D167: $ | E167: 0 | F167: =-'I2 CBA Inputs'!H31*$F$13+IF(F$144=FirstYear+AnalysisPeriod-1,$AM167,0) -> 0 | G167: =-'I2 CBA Inputs'!I31*$F$13+IF(G$144=FirstYear+AnalysisPeriod-1,$AM167,0) -> 0 | H167: =-'I2 CBA Inputs'!J31*$F$13+IF(H$144=FirstYear+AnalysisPeriod-1,$AM167,0) -> 0 | I167: =-'I2 CBA Inputs'!K31*$F$13+IF(I$144=FirstYear+AnalysisPeriod-1,$AM167,0) -> 0 | J167: =-'I2 CBA Inputs'!L31*$F$13+IF(J$144=FirstYear+AnalysisPeriod-1,$AM167,0) -> 0 | K167: =-'I2 CBA Inputs'!M31*$F$13+IF(K$144=FirstYear+AnalysisPeriod-1,$AM167,0) -> 0 | L167: =-'I2 CBA Inputs'!N31*$F$13+IF(L$144=FirstYear+AnalysisPeriod-1,$AM167,0) -> 0 | M167: =-'I2 CBA Inputs'!O31*$F$13+IF(M$144=FirstYear+AnalysisPeriod-1,$AM167,0) -> 0 | N167: =-'I2 CBA Inputs'!P31*$F$13+IF(N$144=FirstYear+AnalysisPeriod-1,$AM167,0) -> 0 | O167: =-'I2 CBA Inputs'!Q31*$F$13+IF(O$144=FirstYear+AnalysisPeriod-1,$AM167,0) -> 0 | P167: =-'I2 CBA Inputs'!R31*$F$13+IF(P$144=FirstYear+AnalysisPeriod-1,$AM167,0) -> 0 | Q167: =-'I2 CBA Inputs'!S31*$F$13+IF(Q$144=FirstYear+AnalysisPeriod-1,$AM167,0) -> 0 | R167: =-'I2 CBA Inputs'!T31*$F$13+IF(R$144=FirstYear+AnalysisPeriod-1,$AM167,0) -> 0 | S167: =-'I2 CBA Inputs'!U31*$F$13+IF(S$144=FirstYear+AnalysisPeriod-1,$AM167,0) -> 0 | T167: =-'I2 CBA Inputs'!V31*$F$13+IF(T$144=FirstYear+AnalysisPeriod-1,$AM167,0) -> 0 | U167: =-'I2 CBA Inputs'!W31*$F$13+IF(U$144=FirstYear+AnalysisPeriod-1,$AM167,0) -> 0 | V167: =-'I2 CBA Inputs'!X31*$F$13+IF(V$144=FirstYear+AnalysisPeriod-1,$AM167,0) -> 0 | W167: =-'I2 CBA Inputs'!Y31*$F$13+IF(W$144=FirstYear+AnalysisPeriod-1,$AM167,0) -> 0 | X167: =-'I2 CBA Inputs'!Z31*$F$13+IF(X$144=FirstYear+AnalysisPeriod-1,$AM167,0) -> 0 | Y167: =-'I2 CBA Inputs'!AA31*$F$13+IF(Y$144=FirstYear+AnalysisPeriod-1,$AM167,0) -> 0 | Z167: =-'I2 CBA Inputs'!AB31*$F$13+IF(Z$144=FirstYear+AnalysisPeriod-1,$AM167,0) -> 0 | AA167: =-'I2 CBA Inputs'!AC31*$F$13+IF(AA$144=FirstYear+AnalysisPeriod-1,$AM167,0) -> 0 | AB167: =-'I2 CBA Inputs'!AD31*$F$13+IF(AB$144=FirstYear+AnalysisPeriod-1,$AM167,0) -> 0 | AC167: =-'I2 CBA Inputs'!AE31*$F$13+IF(AC$144=FirstYear+AnalysisPeriod-1,$AM167,0) -> 0 | AD167: =-'I2 CBA Inputs'!AF31*$F$13+IF(AD$144=FirstYear+AnalysisPeriod-1,$AM167,0) -> 0 | AE167: =-'I2 CBA Inputs'!AG31*$F$13+IF(AE$144=FirstYear+AnalysisPeriod-1,$AM167,0) -> 0 | AF167: =-'I2 CBA Inputs'!AH31*$F$13+IF(AF$144=FirstYear+AnalysisPeriod-1,$AM167,0) -> 0 | AG167: =-'I2 CBA Inputs'!AI31*$F$13+IF(AG$144=FirstYear+AnalysisPeriod-1,$AM167,0) -> 0 | AH167: =-'I2 CBA Inputs'!AJ31*$F$13+IF(AH$144=FirstYear+AnalysisPeriod-1,$AM167,0) -> 0 | AI167: =-'I2 CBA Inputs'!AK31*$F$13+IF(AI$144=FirstYear+AnalysisPeriod-1,$AM167,0) -> 0 | AK167: =IFERROR(('I2 CBA Inputs'!D31/'I2 CBA Inputs'!F31)*$F$13,0) -> 0 | AL167: =(FirstYear+AnalysisPeriod)-'I2 CBA Inputs'!E31 -> 2045 | AM167: =MAX('I2 CBA Inputs'!$D31*$F$13-PRODUCT($AK167:$AL167),0) -> 0
B168: =+'I2 CBA Inputs'!B32 -> 0 | C168: =+'I2 CBA Inputs'!C32 -> 0 | D168: $ | E168: 0 | F168: =-'I2 CBA Inputs'!H32*$F$13+IF(F$144=FirstYear+AnalysisPeriod-1,$AM168,0) -> 0 | G168: =-'I2 CBA Inputs'!I32*$F$13+IF(G$144=FirstYear+AnalysisPeriod-1,$AM168,0) -> 0 | H168: =-'I2 CBA Inputs'!J32*$F$13+IF(H$144=FirstYear+AnalysisPeriod-1,$AM168,0) -> 0 | I168: =-'I2 CBA Inputs'!K32*$F$13+IF(I$144=FirstYear+AnalysisPeriod-1,$AM168,0) -> 0 | J168: =-'I2 CBA Inputs'!L32*$F$13+IF(J$144=FirstYear+AnalysisPeriod-1,$AM168,0) -> 0 | K168: =-'I2 CBA Inputs'!M32*$F$13+IF(K$144=FirstYear+AnalysisPeriod-1,$AM168,0) -> 0 | L168: =-'I2 CBA Inputs'!N32*$F$13+IF(L$144=FirstYear+AnalysisPeriod-1,$AM168,0) -> 0 | M168: =-'I2 CBA Inputs'!O32*$F$13+IF(M$144=FirstYear+AnalysisPeriod-1,$AM168,0) -> 0 | N168: =-'I2 CBA Inputs'!P32*$F$13+IF(N$144=FirstYear+AnalysisPeriod-1,$AM168,0) -> 0 | O168: =-'I2 CBA Inputs'!Q32*$F$13+IF(O$144=FirstYear+AnalysisPeriod-1,$AM168,0) -> 0 | P168: =-'I2 CBA Inputs'!R32*$F$13+IF(P$144=FirstYear+AnalysisPeriod-1,$AM168,0) -> 0 | Q168: =-'I2 CBA Inputs'!S32*$F$13+IF(Q$144=FirstYear+AnalysisPeriod-1,$AM168,0) -> 0 | R168: =-'I2 CBA Inputs'!T32*$F$13+IF(R$144=FirstYear+AnalysisPeriod-1,$AM168,0) -> 0 | S168: =-'I2 CBA Inputs'!U32*$F$13+IF(S$144=FirstYear+AnalysisPeriod-1,$AM168,0) -> 0 | T168: =-'I2 CBA Inputs'!V32*$F$13+IF(T$144=FirstYear+AnalysisPeriod-1,$AM168,0) -> 0 | U168: =-'I2 CBA Inputs'!W32*$F$13+IF(U$144=FirstYear+AnalysisPeriod-1,$AM168,0) -> 0 | V168: =-'I2 CBA Inputs'!X32*$F$13+IF(V$144=FirstYear+AnalysisPeriod-1,$AM168,0) -> 0 | W168: =-'I2 CBA Inputs'!Y32*$F$13+IF(W$144=FirstYear+AnalysisPeriod-1,$AM168,0) -> 0 | X168: =-'I2 CBA Inputs'!Z32*$F$13+IF(X$144=FirstYear+AnalysisPeriod-1,$AM168,0) -> 0 | Y168: =-'I2 CBA Inputs'!AA32*$F$13+IF(Y$144=FirstYear+AnalysisPeriod-1,$AM168,0) -> 0 | Z168: =-'I2 CBA Inputs'!AB32*$F$13+IF(Z$144=FirstYear+AnalysisPeriod-1,$AM168,0) -> 0 | AA168: =-'I2 CBA Inputs'!AC32*$F$13+IF(AA$144=FirstYear+AnalysisPeriod-1,$AM168,0) -> 0 | AB168: =-'I2 CBA Inputs'!AD32*$F$13+IF(AB$144=FirstYear+AnalysisPeriod-1,$AM168,0) -> 0 | AC168: =-'I2 CBA Inputs'!AE32*$F$13+IF(AC$144=FirstYear+AnalysisPeriod-1,$AM168,0) -> 0 | AD168: =-'I2 CBA Inputs'!AF32*$F$13+IF(AD$144=FirstYear+AnalysisPeriod-1,$AM168,0) -> 0 | AE168: =-'I2 CBA Inputs'!AG32*$F$13+IF(AE$144=FirstYear+AnalysisPeriod-1,$AM168,0) -> 0 | AF168: =-'I2 CBA Inputs'!AH32*$F$13+IF(AF$144=FirstYear+AnalysisPeriod-1,$AM168,0) -> 0 | AG168: =-'I2 CBA Inputs'!AI32*$F$13+IF(AG$144=FirstYear+AnalysisPeriod-1,$AM168,0) -> 0 | AH168: =-'I2 CBA Inputs'!AJ32*$F$13+IF(AH$144=FirstYear+AnalysisPeriod-1,$AM168,0) -> 0 | AI168: =-'I2 CBA Inputs'!AK32*$F$13+IF(AI$144=FirstYear+AnalysisPeriod-1,$AM168,0) -> 0 | AK168: =IFERROR(('I2 CBA Inputs'!D32/'I2 CBA Inputs'!F32)*$F$13,0) -> 0 | AL168: =(FirstYear+AnalysisPeriod)-'I2 CBA Inputs'!E32 -> 2045 | AM168: =MAX('I2 CBA Inputs'!$D32*$F$13-PRODUCT($AK168:$AL168),0) -> 0
B169: =+'I2 CBA Inputs'!B33 -> 0 | C169: =+'I2 CBA Inputs'!C33 -> 0 | D169: $ | E169: 0 | F169: =-'I2 CBA Inputs'!H33*$F$13+IF(F$144=FirstYear+AnalysisPeriod-1,$AM169,0) -> 0 | G169: =-'I2 CBA Inputs'!I33*$F$13+IF(G$144=FirstYear+AnalysisPeriod-1,$AM169,0) -> 0 | H169: =-'I2 CBA Inputs'!J33*$F$13+IF(H$144=FirstYear+AnalysisPeriod-1,$AM169,0) -> 0 | I169: =-'I2 CBA Inputs'!K33*$F$13+IF(I$144=FirstYear+AnalysisPeriod-1,$AM169,0) -> 0 | J169: =-'I2 CBA Inputs'!L33*$F$13+IF(J$144=FirstYear+AnalysisPeriod-1,$AM169,0) -> 0 | K169: =-'I2 CBA Inputs'!M33*$F$13+IF(K$144=FirstYear+AnalysisPeriod-1,$AM169,0) -> 0 | L169: =-'I2 CBA Inputs'!N33*$F$13+IF(L$144=FirstYear+AnalysisPeriod-1,$AM169,0) -> 0 | M169: =-'I2 CBA Inputs'!O33*$F$13+IF(M$144=FirstYear+AnalysisPeriod-1,$AM169,0) -> 0 | N169: =-'I2 CBA Inputs'!P33*$F$13+IF(N$144=FirstYear+AnalysisPeriod-1,$AM169,0) -> 0 | O169: =-'I2 CBA Inputs'!Q33*$F$13+IF(O$144=FirstYear+AnalysisPeriod-1,$AM169,0) -> 0 | P169: =-'I2 CBA Inputs'!R33*$F$13+IF(P$144=FirstYear+AnalysisPeriod-1,$AM169,0) -> 0 | Q169: =-'I2 CBA Inputs'!S33*$F$13+IF(Q$144=FirstYear+AnalysisPeriod-1,$AM169,0) -> 0 | R169: =-'I2 CBA Inputs'!T33*$F$13+IF(R$144=FirstYear+AnalysisPeriod-1,$AM169,0) -> 0 | S169: =-'I2 CBA Inputs'!U33*$F$13+IF(S$144=FirstYear+AnalysisPeriod-1,$AM169,0) -> 0 | T169: =-'I2 CBA Inputs'!V33*$F$13+IF(T$144=FirstYear+AnalysisPeriod-1,$AM169,0) -> 0 | U169: =-'I2 CBA Inputs'!W33*$F$13+IF(U$144=FirstYear+AnalysisPeriod-1,$AM169,0) -> 0 | V169: =-'I2 CBA Inputs'!X33*$F$13+IF(V$144=FirstYear+AnalysisPeriod-1,$AM169,0) -> 0 | W169: =-'I2 CBA Inputs'!Y33*$F$13+IF(W$144=FirstYear+AnalysisPeriod-1,$AM169,0) -> 0 | X169: =-'I2 CBA Inputs'!Z33*$F$13+IF(X$144=FirstYear+AnalysisPeriod-1,$AM169,0) -> 0 | Y169: =-'I2 CBA Inputs'!AA33*$F$13+IF(Y$144=FirstYear+AnalysisPeriod-1,$AM169,0) -> 0 | Z169: =-'I2 CBA Inputs'!AB33*$F$13+IF(Z$144=FirstYear+AnalysisPeriod-1,$AM169,0) -> 0 | AA169: =-'I2 CBA Inputs'!AC33*$F$13+IF(AA$144=FirstYear+AnalysisPeriod-1,$AM169,0) -> 0 | AB169: =-'I2 CBA Inputs'!AD33*$F$13+IF(AB$144=FirstYear+AnalysisPeriod-1,$AM169,0) -> 0 | AC169: =-'I2 CBA Inputs'!AE33*$F$13+IF(AC$144=FirstYear+AnalysisPeriod-1,$AM169,0) -> 0 | AD169: =-'I2 CBA Inputs'!AF33*$F$13+IF(AD$144=FirstYear+AnalysisPeriod-1,$AM169,0) -> 0 | AE169: =-'I2 CBA Inputs'!AG33*$F$13+IF(AE$144=FirstYear+AnalysisPeriod-1,$AM169,0) -> 0 | AF169: =-'I2 CBA Inputs'!AH33*$F$13+IF(AF$144=FirstYear+AnalysisPeriod-1,$AM169,0) -> 0 | AG169: =-'I2 CBA Inputs'!AI33*$F$13+IF(AG$144=FirstYear+AnalysisPeriod-1,$AM169,0) -> 0 | AH169: =-'I2 CBA Inputs'!AJ33*$F$13+IF(AH$144=FirstYear+AnalysisPeriod-1,$AM169,0) -> 0 | AI169: =-'I2 CBA Inputs'!AK33*$F$13+IF(AI$144=FirstYear+AnalysisPeriod-1,$AM169,0) -> 0 | AK169: =IFERROR(('I2 CBA Inputs'!D33/'I2 CBA Inputs'!F33)*$F$13,0) -> 0 | AL169: =(FirstYear+AnalysisPeriod)-'I2 CBA Inputs'!E33 -> 2045 | AM169: =MAX('I2 CBA Inputs'!$D33*$F$13-PRODUCT($AK169:$AL169),0) -> 0
B170: =+'I2 CBA Inputs'!B34 -> 0 | C170: =+'I2 CBA Inputs'!C34 -> 0 | D170: $ | E170: 0 | F170: =-'I2 CBA Inputs'!H34*$F$13+IF(F$144=FirstYear+AnalysisPeriod-1,$AM170,0) -> 0 | G170: =-'I2 CBA Inputs'!I34*$F$13+IF(G$144=FirstYear+AnalysisPeriod-1,$AM170,0) -> 0 | H170: =-'I2 CBA Inputs'!J34*$F$13+IF(H$144=FirstYear+AnalysisPeriod-1,$AM170,0) -> 0 | I170: =-'I2 CBA Inputs'!K34*$F$13+IF(I$144=FirstYear+AnalysisPeriod-1,$AM170,0) -> 0 | J170: =-'I2 CBA Inputs'!L34*$F$13+IF(J$144=FirstYear+AnalysisPeriod-1,$AM170,0) -> 0 | K170: =-'I2 CBA Inputs'!M34*$F$13+IF(K$144=FirstYear+AnalysisPeriod-1,$AM170,0) -> 0 | L170: =-'I2 CBA Inputs'!N34*$F$13+IF(L$144=FirstYear+AnalysisPeriod-1,$AM170,0) -> 0 | M170: =-'I2 CBA Inputs'!O34*$F$13+IF(M$144=FirstYear+AnalysisPeriod-1,$AM170,0) -> 0 | N170: =-'I2 CBA Inputs'!P34*$F$13+IF(N$144=FirstYear+AnalysisPeriod-1,$AM170,0) -> 0 | O170: =-'I2 CBA Inputs'!Q34*$F$13+IF(O$144=FirstYear+AnalysisPeriod-1,$AM170,0) -> 0 | P170: =-'I2 CBA Inputs'!R34*$F$13+IF(P$144=FirstYear+AnalysisPeriod-1,$AM170,0) -> 0 | Q170: =-'I2 CBA Inputs'!S34*$F$13+IF(Q$144=FirstYear+AnalysisPeriod-1,$AM170,0) -> 0 | R170: =-'I2 CBA Inputs'!T34*$F$13+IF(R$144=FirstYear+AnalysisPeriod-1,$AM170,0) -> 0 | S170: =-'I2 CBA Inputs'!U34*$F$13+IF(S$144=FirstYear+AnalysisPeriod-1,$AM170,0) -> 0 | T170: =-'I2 CBA Inputs'!V34*$F$13+IF(T$144=FirstYear+AnalysisPeriod-1,$AM170,0) -> 0 | U170: =-'I2 CBA Inputs'!W34*$F$13+IF(U$144=FirstYear+AnalysisPeriod-1,$AM170,0) -> 0 | V170: =-'I2 CBA Inputs'!X34*$F$13+IF(V$144=FirstYear+AnalysisPeriod-1,$AM170,0) -> 0 | W170: =-'I2 CBA Inputs'!Y34*$F$13+IF(W$144=FirstYear+AnalysisPeriod-1,$AM170,0) -> 0 | X170: =-'I2 CBA Inputs'!Z34*$F$13+IF(X$144=FirstYear+AnalysisPeriod-1,$AM170,0) -> 0 | Y170: =-'I2 CBA Inputs'!AA34*$F$13+IF(Y$144=FirstYear+AnalysisPeriod-1,$AM170,0) -> 0 | Z170: =-'I2 CBA Inputs'!AB34*$F$13+IF(Z$144=FirstYear+AnalysisPeriod-1,$AM170,0) -> 0 | AA170: =-'I2 CBA Inputs'!AC34*$F$13+IF(AA$144=FirstYear+AnalysisPeriod-1,$AM170,0) -> 0 | AB170: =-'I2 CBA Inputs'!AD34*$F$13+IF(AB$144=FirstYear+AnalysisPeriod-1,$AM170,0) -> 0 | AC170: =-'I2 CBA Inputs'!AE34*$F$13+IF(AC$144=FirstYear+AnalysisPeriod-1,$AM170,0) -> 0 | AD170: =-'I2 CBA Inputs'!AF34*$F$13+IF(AD$144=FirstYear+AnalysisPeriod-1,$AM170,0) -> 0 | AE170: =-'I2 CBA Inputs'!AG34*$F$13+IF(AE$144=FirstYear+AnalysisPeriod-1,$AM170,0) -> 0 | AF170: =-'I2 CBA Inputs'!AH34*$F$13+IF(AF$144=FirstYear+AnalysisPeriod-1,$AM170,0) -> 0 | AG170: =-'I2 CBA Inputs'!AI34*$F$13+IF(AG$144=FirstYear+AnalysisPeriod-1,$AM170,0) -> 0 | AH170: =-'I2 CBA Inputs'!AJ34*$F$13+IF(AH$144=FirstYear+AnalysisPeriod-1,$AM170,0) -> 0 | AI170: =-'I2 CBA Inputs'!AK34*$F$13+IF(AI$144=FirstYear+AnalysisPeriod-1,$AM170,0) -> 0 | AK170: =IFERROR(('I2 CBA Inputs'!D34/'I2 CBA Inputs'!F34)*$F$13,0) -> 0 | AL170: =(FirstYear+AnalysisPeriod)-'I2 CBA Inputs'!E34 -> 2045 | AM170: =MAX('I2 CBA Inputs'!$D34*$F$13-PRODUCT($AK170:$AL170),0) -> 0
B171: =+'I2 CBA Inputs'!B35 -> 0 | C171: =+'I2 CBA Inputs'!C35 -> 0 | D171: $ | E171: 0 | F171: =-'I2 CBA Inputs'!H35*$F$13+IF(F$144=FirstYear+AnalysisPeriod-1,$AM171,0) -> 0 | G171: =-'I2 CBA Inputs'!I35*$F$13+IF(G$144=FirstYear+AnalysisPeriod-1,$AM171,0) -> 0 | H171: =-'I2 CBA Inputs'!J35*$F$13+IF(H$144=FirstYear+AnalysisPeriod-1,$AM171,0) -> 0 | I171: =-'I2 CBA Inputs'!K35*$F$13+IF(I$144=FirstYear+AnalysisPeriod-1,$AM171,0) -> 0 | J171: =-'I2 CBA Inputs'!L35*$F$13+IF(J$144=FirstYear+AnalysisPeriod-1,$AM171,0) -> 0 | K171: =-'I2 CBA Inputs'!M35*$F$13+IF(K$144=FirstYear+AnalysisPeriod-1,$AM171,0) -> 0 | L171: =-'I2 CBA Inputs'!N35*$F$13+IF(L$144=FirstYear+AnalysisPeriod-1,$AM171,0) -> 0 | M171: =-'I2 CBA Inputs'!O35*$F$13+IF(M$144=FirstYear+AnalysisPeriod-1,$AM171,0) -> 0 | N171: =-'I2 CBA Inputs'!P35*$F$13+IF(N$144=FirstYear+AnalysisPeriod-1,$AM171,0) -> 0 | O171: =-'I2 CBA Inputs'!Q35*$F$13+IF(O$144=FirstYear+AnalysisPeriod-1,$AM171,0) -> 0 | P171: =-'I2 CBA Inputs'!R35*$F$13+IF(P$144=FirstYear+AnalysisPeriod-1,$AM171,0) -> 0 | Q171: =-'I2 CBA Inputs'!S35*$F$13+IF(Q$144=FirstYear+AnalysisPeriod-1,$AM171,0) -> 0 | R171: =-'I2 CBA Inputs'!T35*$F$13+IF(R$144=FirstYear+AnalysisPeriod-1,$AM171,0) -> 0 | S171: =-'I2 CBA Inputs'!U35*$F$13+IF(S$144=FirstYear+AnalysisPeriod-1,$AM171,0) -> 0 | T171: =-'I2 CBA Inputs'!V35*$F$13+IF(T$144=FirstYear+AnalysisPeriod-1,$AM171,0) -> 0 | U171: =-'I2 CBA Inputs'!W35*$F$13+IF(U$144=FirstYear+AnalysisPeriod-1,$AM171,0) -> 0 | V171: =-'I2 CBA Inputs'!X35*$F$13+IF(V$144=FirstYear+AnalysisPeriod-1,$AM171,0) -> 0 | W171: =-'I2 CBA Inputs'!Y35*$F$13+IF(W$144=FirstYear+AnalysisPeriod-1,$AM171,0) -> 0 | X171: =-'I2 CBA Inputs'!Z35*$F$13+IF(X$144=FirstYear+AnalysisPeriod-1,$AM171,0) -> 0 | Y171: =-'I2 CBA Inputs'!AA35*$F$13+IF(Y$144=FirstYear+AnalysisPeriod-1,$AM171,0) -> 0 | Z171: =-'I2 CBA Inputs'!AB35*$F$13+IF(Z$144=FirstYear+AnalysisPeriod-1,$AM171,0) -> 0 | AA171: =-'I2 CBA Inputs'!AC35*$F$13+IF(AA$144=FirstYear+AnalysisPeriod-1,$AM171,0) -> 0 | AB171: =-'I2 CBA Inputs'!AD35*$F$13+IF(AB$144=FirstYear+AnalysisPeriod-1,$AM171,0) -> 0 | AC171: =-'I2 CBA Inputs'!AE35*$F$13+IF(AC$144=FirstYear+AnalysisPeriod-1,$AM171,0) -> 0 | AD171: =-'I2 CBA Inputs'!AF35*$F$13+IF(AD$144=FirstYear+AnalysisPeriod-1,$AM171,0) -> 0 | AE171: =-'I2 CBA Inputs'!AG35*$F$13+IF(AE$144=FirstYear+AnalysisPeriod-1,$AM171,0) -> 0 | AF171: =-'I2 CBA Inputs'!AH35*$F$13+IF(AF$144=FirstYear+AnalysisPeriod-1,$AM171,0) -> 0 | AG171: =-'I2 CBA Inputs'!AI35*$F$13+IF(AG$144=FirstYear+AnalysisPeriod-1,$AM171,0) -> 0 | AH171: =-'I2 CBA Inputs'!AJ35*$F$13+IF(AH$144=FirstYear+AnalysisPeriod-1,$AM171,0) -> 0 | AI171: =-'I2 CBA Inputs'!AK35*$F$13+IF(AI$144=FirstYear+AnalysisPeriod-1,$AM171,0) -> 0 | AK171: =IFERROR(('I2 CBA Inputs'!D35/'I2 CBA Inputs'!F35)*$F$13,0) -> 0 | AL171: =(FirstYear+AnalysisPeriod)-'I2 CBA Inputs'!E35 -> 2045 | AM171: =MAX('I2 CBA Inputs'!$D35*$F$13-PRODUCT($AK171:$AL171),0) -> 0
B172: =+'I2 CBA Inputs'!B36 -> 0 | C172: =+'I2 CBA Inputs'!C36 -> 0 | D172: $ | E172: 0 | F172: =-'I2 CBA Inputs'!H36*$F$13+IF(F$144=FirstYear+AnalysisPeriod-1,$AM172,0) -> 0 | G172: =-'I2 CBA Inputs'!I36*$F$13+IF(G$144=FirstYear+AnalysisPeriod-1,$AM172,0) -> 0 | H172: =-'I2 CBA Inputs'!J36*$F$13+IF(H$144=FirstYear+AnalysisPeriod-1,$AM172,0) -> 0 | I172: =-'I2 CBA Inputs'!K36*$F$13+IF(I$144=FirstYear+AnalysisPeriod-1,$AM172,0) -> 0 | J172: =-'I2 CBA Inputs'!L36*$F$13+IF(J$144=FirstYear+AnalysisPeriod-1,$AM172,0) -> 0 | K172: =-'I2 CBA Inputs'!M36*$F$13+IF(K$144=FirstYear+AnalysisPeriod-1,$AM172,0) -> 0 | L172: =-'I2 CBA Inputs'!N36*$F$13+IF(L$144=FirstYear+AnalysisPeriod-1,$AM172,0) -> 0 | M172: =-'I2 CBA Inputs'!O36*$F$13+IF(M$144=FirstYear+AnalysisPeriod-1,$AM172,0) -> 0 | N172: =-'I2 CBA Inputs'!P36*$F$13+IF(N$144=FirstYear+AnalysisPeriod-1,$AM172,0) -> 0 | O172: =-'I2 CBA Inputs'!Q36*$F$13+IF(O$144=FirstYear+AnalysisPeriod-1,$AM172,0) -> 0 | P172: =-'I2 CBA Inputs'!R36*$F$13+IF(P$144=FirstYear+AnalysisPeriod-1,$AM172,0) -> 0 | Q172: =-'I2 CBA Inputs'!S36*$F$13+IF(Q$144=FirstYear+AnalysisPeriod-1,$AM172,0) -> 0 | R172: =-'I2 CBA Inputs'!T36*$F$13+IF(R$144=FirstYear+AnalysisPeriod-1,$AM172,0) -> 0 | S172: =-'I2 CBA Inputs'!U36*$F$13+IF(S$144=FirstYear+AnalysisPeriod-1,$AM172,0) -> 0 | T172: =-'I2 CBA Inputs'!V36*$F$13+IF(T$144=FirstYear+AnalysisPeriod-1,$AM172,0) -> 0 | U172: =-'I2 CBA Inputs'!W36*$F$13+IF(U$144=FirstYear+AnalysisPeriod-1,$AM172,0) -> 0 | V172: =-'I2 CBA Inputs'!X36*$F$13+IF(V$144=FirstYear+AnalysisPeriod-1,$AM172,0) -> 0 | W172: =-'I2 CBA Inputs'!Y36*$F$13+IF(W$144=FirstYear+AnalysisPeriod-1,$AM172,0) -> 0 | X172: =-'I2 CBA Inputs'!Z36*$F$13+IF(X$144=FirstYear+AnalysisPeriod-1,$AM172,0) -> 0 | Y172: =-'I2 CBA Inputs'!AA36*$F$13+IF(Y$144=FirstYear+AnalysisPeriod-1,$AM172,0) -> 0 | Z172: =-'I2 CBA Inputs'!AB36*$F$13+IF(Z$144=FirstYear+AnalysisPeriod-1,$AM172,0) -> 0 | AA172: =-'I2 CBA Inputs'!AC36*$F$13+IF(AA$144=FirstYear+AnalysisPeriod-1,$AM172,0) -> 0 | AB172: =-'I2 CBA Inputs'!AD36*$F$13+IF(AB$144=FirstYear+AnalysisPeriod-1,$AM172,0) -> 0 | AC172: =-'I2 CBA Inputs'!AE36*$F$13+IF(AC$144=FirstYear+AnalysisPeriod-1,$AM172,0) -> 0 | AD172: =-'I2 CBA Inputs'!AF36*$F$13+IF(AD$144=FirstYear+AnalysisPeriod-1,$AM172,0) -> 0 | AE172: =-'I2 CBA Inputs'!AG36*$F$13+IF(AE$144=FirstYear+AnalysisPeriod-1,$AM172,0) -> 0 | AF172: =-'I2 CBA Inputs'!AH36*$F$13+IF(AF$144=FirstYear+AnalysisPeriod-1,$AM172,0) -> 0 | AG172: =-'I2 CBA Inputs'!AI36*$F$13+IF(AG$144=FirstYear+AnalysisPeriod-1,$AM172,0) -> 0 | AH172: =-'I2 CBA Inputs'!AJ36*$F$13+IF(AH$144=FirstYear+AnalysisPeriod-1,$AM172,0) -> 0 | AI172: =-'I2 CBA Inputs'!AK36*$F$13+IF(AI$144=FirstYear+AnalysisPeriod-1,$AM172,0) -> 0 | AK172: =IFERROR(('I2 CBA Inputs'!D36/'I2 CBA Inputs'!F36)*$F$13,0) -> 0 | AL172: =(FirstYear+AnalysisPeriod)-'I2 CBA Inputs'!E36 -> 2045 | AM172: =MAX('I2 CBA Inputs'!$D36*$F$13-PRODUCT($AK172:$AL172),0) -> 0
B173: =+'I2 CBA Inputs'!B37 -> 0 | C173: =+'I2 CBA Inputs'!C37 -> 0 | D173: $ | E173: 0 | F173: =-'I2 CBA Inputs'!H37*$F$13+IF(F$144=FirstYear+AnalysisPeriod-1,$AM173,0) -> 0 | G173: =-'I2 CBA Inputs'!I37*$F$13+IF(G$144=FirstYear+AnalysisPeriod-1,$AM173,0) -> 0 | H173: =-'I2 CBA Inputs'!J37*$F$13+IF(H$144=FirstYear+AnalysisPeriod-1,$AM173,0) -> 0 | I173: =-'I2 CBA Inputs'!K37*$F$13+IF(I$144=FirstYear+AnalysisPeriod-1,$AM173,0) -> 0 | J173: =-'I2 CBA Inputs'!L37*$F$13+IF(J$144=FirstYear+AnalysisPeriod-1,$AM173,0) -> 0 | K173: =-'I2 CBA Inputs'!M37*$F$13+IF(K$144=FirstYear+AnalysisPeriod-1,$AM173,0) -> 0 | L173: =-'I2 CBA Inputs'!N37*$F$13+IF(L$144=FirstYear+AnalysisPeriod-1,$AM173,0) -> 0 | M173: =-'I2 CBA Inputs'!O37*$F$13+IF(M$144=FirstYear+AnalysisPeriod-1,$AM173,0) -> 0 | N173: =-'I2 CBA Inputs'!P37*$F$13+IF(N$144=FirstYear+AnalysisPeriod-1,$AM173,0) -> 0 | O173: =-'I2 CBA Inputs'!Q37*$F$13+IF(O$144=FirstYear+AnalysisPeriod-1,$AM173,0) -> 0 | P173: =-'I2 CBA Inputs'!R37*$F$13+IF(P$144=FirstYear+AnalysisPeriod-1,$AM173,0) -> 0 | Q173: =-'I2 CBA Inputs'!S37*$F$13+IF(Q$144=FirstYear+AnalysisPeriod-1,$AM173,0) -> 0 | R173: =-'I2 CBA Inputs'!T37*$F$13+IF(R$144=FirstYear+AnalysisPeriod-1,$AM173,0) -> 0 | S173: =-'I2 CBA Inputs'!U37*$F$13+IF(S$144=FirstYear+AnalysisPeriod-1,$AM173,0) -> 0 | T173: =-'I2 CBA Inputs'!V37*$F$13+IF(T$144=FirstYear+AnalysisPeriod-1,$AM173,0) -> 0 | U173: =-'I2 CBA Inputs'!W37*$F$13+IF(U$144=FirstYear+AnalysisPeriod-1,$AM173,0) -> 0 | V173: =-'I2 CBA Inputs'!X37*$F$13+IF(V$144=FirstYear+AnalysisPeriod-1,$AM173,0) -> 0 | W173: =-'I2 CBA Inputs'!Y37*$F$13+IF(W$144=FirstYear+AnalysisPeriod-1,$AM173,0) -> 0 | X173: =-'I2 CBA Inputs'!Z37*$F$13+IF(X$144=FirstYear+AnalysisPeriod-1,$AM173,0) -> 0 | Y173: =-'I2 CBA Inputs'!AA37*$F$13+IF(Y$144=FirstYear+AnalysisPeriod-1,$AM173,0) -> 0 | Z173: =-'I2 CBA Inputs'!AB37*$F$13+IF(Z$144=FirstYear+AnalysisPeriod-1,$AM173,0) -> 0 | AA173: =-'I2 CBA Inputs'!AC37*$F$13+IF(AA$144=FirstYear+AnalysisPeriod-1,$AM173,0) -> 0 | AB173: =-'I2 CBA Inputs'!AD37*$F$13+IF(AB$144=FirstYear+AnalysisPeriod-1,$AM173,0) -> 0 | AC173: =-'I2 CBA Inputs'!AE37*$F$13+IF(AC$144=FirstYear+AnalysisPeriod-1,$AM173,0) -> 0 | AD173: =-'I2 CBA Inputs'!AF37*$F$13+IF(AD$144=FirstYear+AnalysisPeriod-1,$AM173,0) -> 0 | AE173: =-'I2 CBA Inputs'!AG37*$F$13+IF(AE$144=FirstYear+AnalysisPeriod-1,$AM173,0) -> 0 | AF173: =-'I2 CBA Inputs'!AH37*$F$13+IF(AF$144=FirstYear+AnalysisPeriod-1,$AM173,0) -> 0 | AG173: =-'I2 CBA Inputs'!AI37*$F$13+IF(AG$144=FirstYear+AnalysisPeriod-1,$AM173,0) -> 0 | AH173: =-'I2 CBA Inputs'!AJ37*$F$13+IF(AH$144=FirstYear+AnalysisPeriod-1,$AM173,0) -> 0 | AI173: =-'I2 CBA Inputs'!AK37*$F$13+IF(AI$144=FirstYear+AnalysisPeriod-1,$AM173,0) -> 0 | AK173: =IFERROR(('I2 CBA Inputs'!D37/'I2 CBA Inputs'!F37)*$F$13,0) -> 0 | AL173: =(FirstYear+AnalysisPeriod)-'I2 CBA Inputs'!E37 -> 2045 | AM173: =MAX('I2 CBA Inputs'!$D37*$F$13-PRODUCT($AK173:$AL173),0) -> 0
B174: =+'I2 CBA Inputs'!B38 -> 0 | C174: =+'I2 CBA Inputs'!C38 -> 0 | D174: $ | E174: 0 | F174: =-'I2 CBA Inputs'!H38*$F$13+IF(F$144=FirstYear+AnalysisPeriod-1,$AM174,0) -> 0 | G174: =-'I2 CBA Inputs'!I38*$F$13+IF(G$144=FirstYear+AnalysisPeriod-1,$AM174,0) -> 0 | H174: =-'I2 CBA Inputs'!J38*$F$13+IF(H$144=FirstYear+AnalysisPeriod-1,$AM174,0) -> 0 | I174: =-'I2 CBA Inputs'!K38*$F$13+IF(I$144=FirstYear+AnalysisPeriod-1,$AM174,0) -> 0 | J174: =-'I2 CBA Inputs'!L38*$F$13+IF(J$144=FirstYear+AnalysisPeriod-1,$AM174,0) -> 0 | K174: =-'I2 CBA Inputs'!M38*$F$13+IF(K$144=FirstYear+AnalysisPeriod-1,$AM174,0) -> 0 | L174: =-'I2 CBA Inputs'!N38*$F$13+IF(L$144=FirstYear+AnalysisPeriod-1,$AM174,0) -> 0 | M174: =-'I2 CBA Inputs'!O38*$F$13+IF(M$144=FirstYear+AnalysisPeriod-1,$AM174,0) -> 0 | N174: =-'I2 CBA Inputs'!P38*$F$13+IF(N$144=FirstYear+AnalysisPeriod-1,$AM174,0) -> 0 | O174: =-'I2 CBA Inputs'!Q38*$F$13+IF(O$144=FirstYear+AnalysisPeriod-1,$AM174,0) -> 0 | P174: =-'I2 CBA Inputs'!R38*$F$13+IF(P$144=FirstYear+AnalysisPeriod-1,$AM174,0) -> 0 | Q174: =-'I2 CBA Inputs'!S38*$F$13+IF(Q$144=FirstYear+AnalysisPeriod-1,$AM174,0) -> 0 | R174: =-'I2 CBA Inputs'!T38*$F$13+IF(R$144=FirstYear+AnalysisPeriod-1,$AM174,0) -> 0 | S174: =-'I2 CBA Inputs'!U38*$F$13+IF(S$144=FirstYear+AnalysisPeriod-1,$AM174,0) -> 0 | T174: =-'I2 CBA Inputs'!V38*$F$13+IF(T$144=FirstYear+AnalysisPeriod-1,$AM174,0) -> 0 | U174: =-'I2 CBA Inputs'!W38*$F$13+IF(U$144=FirstYear+AnalysisPeriod-1,$AM174,0) -> 0 | V174: =-'I2 CBA Inputs'!X38*$F$13+IF(V$144=FirstYear+AnalysisPeriod-1,$AM174,0) -> 0 | W174: =-'I2 CBA Inputs'!Y38*$F$13+IF(W$144=FirstYear+AnalysisPeriod-1,$AM174,0) -> 0 | X174: =-'I2 CBA Inputs'!Z38*$F$13+IF(X$144=FirstYear+AnalysisPeriod-1,$AM174,0) -> 0 | Y174: =-'I2 CBA Inputs'!AA38*$F$13+IF(Y$144=FirstYear+AnalysisPeriod-1,$AM174,0) -> 0 | Z174: =-'I2 CBA Inputs'!AB38*$F$13+IF(Z$144=FirstYear+AnalysisPeriod-1,$AM174,0) -> 0 | AA174: =-'I2 CBA Inputs'!AC38*$F$13+IF(AA$144=FirstYear+AnalysisPeriod-1,$AM174,0) -> 0 | AB174: =-'I2 CBA Inputs'!AD38*$F$13+IF(AB$144=FirstYear+AnalysisPeriod-1,$AM174,0) -> 0 | AC174: =-'I2 CBA Inputs'!AE38*$F$13+IF(AC$144=FirstYear+AnalysisPeriod-1,$AM174,0) -> 0 | AD174: =-'I2 CBA Inputs'!AF38*$F$13+IF(AD$144=FirstYear+AnalysisPeriod-1,$AM174,0) -> 0 | AE174: =-'I2 CBA Inputs'!AG38*$F$13+IF(AE$144=FirstYear+AnalysisPeriod-1,$AM174,0) -> 0 | AF174: =-'I2 CBA Inputs'!AH38*$F$13+IF(AF$144=FirstYear+AnalysisPeriod-1,$AM174,0) -> 0 | AG174: =-'I2 CBA Inputs'!AI38*$F$13+IF(AG$144=FirstYear+AnalysisPeriod-1,$AM174,0) -> 0 | AH174: =-'I2 CBA Inputs'!AJ38*$F$13+IF(AH$144=FirstYear+AnalysisPeriod-1,$AM174,0) -> 0 | AI174: =-'I2 CBA Inputs'!AK38*$F$13+IF(AI$144=FirstYear+AnalysisPeriod-1,$AM174,0) -> 0 | AK174: =IFERROR(('I2 CBA Inputs'!D38/'I2 CBA Inputs'!F38)*$F$13,0) -> 0 | AL174: =(FirstYear+AnalysisPeriod)-'I2 CBA Inputs'!E38 -> 2045 | AM174: =MAX('I2 CBA Inputs'!$D38*$F$13-PRODUCT($AK174:$AL174),0) -> 0
B176: ='I1 General Inputs'!$B$37 -> Capital cost
B177: Option name | D177: =D$69 -> Units | E177: PV | F177: =F$144 -> 2025 | G177: =G$144 -> 2026 | H177: 2027 | I177: 2028 | J177: 2029 | K177: 2030 | L177: 2031 | M177: 2032 | N177: 2033 | O177: 2034 | P177: 2035 | Q177: 2036 | R177: 2037 | S177: 2038 | T177: 2039 | U177: 2040 | V177: 2041 | W177: 2042 | X177: 2043 | Y177: 2044 | Z177: 2045 | AA177: 2046 | AB177: 2047 | AC177: 2048 | AD177: 2049 | AE177: 2050 | AF177: 2051 | AG177: 2052 | AH177: 2053 | AI177: 2054
B178: =+'I1 General Inputs'!$B$15 -> Option 2 | D178: $ | E178: =NPV($F$8,$F178:$AI178)/(1+$F$8)^(FirstYear-BaseYear-1) -> 0 | F178: =(SUMIF($B$145:$B$174,$B178,F$145:F$174)-SUMIF($B$145:$B$174,'I1 General Inputs'!$B$14,F$145:F$174))*'I1 General Inputs'!$D15 -> 0 | G178: =(SUMIF($B$145:$B$174,$B178,G$145:G$174)-SUMIF($B$145:$B$174,'I1 General Inputs'!$B$14,G$145:G$174))*'I1 General Inputs'!$D15 -> 0 | H178: =(SUMIF($B$145:$B$174,$B178,H$145:H$174)-SUMIF($B$145:$B$174,'I1 General Inputs'!$B$14,H$145:H$174))*'I1 General Inputs'!$D15 -> 0 | I178: =(SUMIF($B$145:$B$174,$B178,I$145:I$174)-SUMIF($B$145:$B$174,'I1 General Inputs'!$B$14,I$145:I$174))*'I1 General Inputs'!$D15 -> 0 | J178: =(SUMIF($B$145:$B$174,$B178,J$145:J$174)-SUMIF($B$145:$B$174,'I1 General Inputs'!$B$14,J$145:J$174))*'I1 General Inputs'!$D15 -> 0 | K178: =(SUMIF($B$145:$B$174,$B178,K$145:K$174)-SUMIF($B$145:$B$174,'I1 General Inputs'!$B$14,K$145:K$174))*'I1 General Inputs'!$D15 -> 0 | L178: =(SUMIF($B$145:$B$174,$B178,L$145:L$174)-SUMIF($B$145:$B$174,'I1 General Inputs'!$B$14,L$145:L$174))*'I1 General Inputs'!$D15 -> 0 | M178: =(SUMIF($B$145:$B$174,$B178,M$145:M$174)-SUMIF($B$145:$B$174,'I1 General Inputs'!$B$14,M$145:M$174))*'I1 General Inputs'!$D15 -> 0 | N178: =(SUMIF($B$145:$B$174,$B178,N$145:N$174)-SUMIF($B$145:$B$174,'I1 General Inputs'!$B$14,N$145:N$174))*'I1 General Inputs'!$D15 -> 0 | O178: =(SUMIF($B$145:$B$174,$B178,O$145:O$174)-SUMIF($B$145:$B$174,'I1 General Inputs'!$B$14,O$145:O$174))*'I1 General Inputs'!$D15 -> 0 | P178: =(SUMIF($B$145:$B$174,$B178,P$145:P$174)-SUMIF($B$145:$B$174,'I1 General Inputs'!$B$14,P$145:P$174))*'I1 General Inputs'!$D15 -> 0 | Q178: =(SUMIF($B$145:$B$174,$B178,Q$145:Q$174)-SUMIF($B$145:$B$174,'I1 General Inputs'!$B$14,Q$145:Q$174))*'I1 General Inputs'!$D15 -> 0 | R178: =(SUMIF($B$145:$B$174,$B178,R$145:R$174)-SUMIF($B$145:$B$174,'I1 General Inputs'!$B$14,R$145:R$174))*'I1 General Inputs'!$D15 -> 0 | S178: =(SUMIF($B$145:$B$174,$B178,S$145:S$174)-SUMIF($B$145:$B$174,'I1 General Inputs'!$B$14,S$145:S$174))*'I1 General Inputs'!$D15 -> 0 | T178: =(SUMIF($B$145:$B$174,$B178,T$145:T$174)-SUMIF($B$145:$B$174,'I1 General Inputs'!$B$14,T$145:T$174))*'I1 General Inputs'!$D15 -> 0 | U178: =(SUMIF($B$145:$B$174,$B178,U$145:U$174)-SUMIF($B$145:$B$174,'I1 General Inputs'!$B$14,U$145:U$174))*'I1 General Inputs'!$D15 -> 0 | V178: =(SUMIF($B$145:$B$174,$B178,V$145:V$174)-SUMIF($B$145:$B$174,'I1 General Inputs'!$B$14,V$145:V$174))*'I1 General Inputs'!$D15 -> 0 | W178: =(SUMIF($B$145:$B$174,$B178,W$145:W$174)-SUMIF($B$145:$B$174,'I1 General Inputs'!$B$14,W$145:W$174))*'I1 General Inputs'!$D15 -> 0 | X178: =(SUMIF($B$145:$B$174,$B178,X$145:X$174)-SUMIF($B$145:$B$174,'I1 General Inputs'!$B$14,X$145:X$174))*'I1 General Inputs'!$D15 -> 0 | Y178: =(SUMIF($B$145:$B$174,$B178,Y$145:Y$174)-SUMIF($B$145:$B$174,'I1 General Inputs'!$B$14,Y$145:Y$174))*'I1 General Inputs'!$D15 -> 0 | Z178: =(SUMIF($B$145:$B$174,$B178,Z$145:Z$174)-SUMIF($B$145:$B$174,'I1 General Inputs'!$B$14,Z$145:Z$174))*'I1 General Inputs'!$D15 -> 0 | AA178: =(SUMIF($B$145:$B$174,$B178,AA$145:AA$174)-SUMIF($B$145:$B$174,'I1 General Inputs'!$B$14,AA$145:AA$174))*'I1 General Inputs'!$D15 -> 0 | AB178: =(SUMIF($B$145:$B$174,$B178,AB$145:AB$174)-SUMIF($B$145:$B$174,'I1 General Inputs'!$B$14,AB$145:AB$174))*'I1 General Inputs'!$D15 -> 0 | AC178: =(SUMIF($B$145:$B$174,$B178,AC$145:AC$174)-SUMIF($B$145:$B$174,'I1 General Inputs'!$B$14,AC$145:AC$174))*'I1 General Inputs'!$D15 -> 0 | AD178: =(SUMIF($B$145:$B$174,$B178,AD$145:AD$174)-SUMIF($B$145:$B$174,'I1 General Inputs'!$B$14,AD$145:AD$174))*'I1 General Inputs'!$D15 -> 0 | AE178: =(SUMIF($B$145:$B$174,$B178,AE$145:AE$174)-SUMIF($B$145:$B$174,'I1 General Inputs'!$B$14,AE$145:AE$174))*'I1 General Inputs'!$D15 -> 0 | AF178: =(SUMIF($B$145:$B$174,$B178,AF$145:AF$174)-SUMIF($B$145:$B$174,'I1 General Inputs'!$B$14,AF$145:AF$174))*'I1 General Inputs'!$D15 -> 0 | AG178: =(SUMIF($B$145:$B$174,$B178,AG$145:AG$174)-SUMIF($B$145:$B$174,'I1 General Inputs'!$B$14,AG$145:AG$174))*'I1 General Inputs'!$D15 -> 0 | AH178: =(SUMIF($B$145:$B$174,$B178,AH$145:AH$174)-SUMIF($B$145:$B$174,'I1 General Inputs'!$B$14,AH$145:AH$174))*'I1 General Inputs'!$D15 -> 0 | AI178: =(SUMIF($B$145:$B$174,$B178,AI$145:AI$174)-SUMIF($B$145:$B$174,'I1 General Inputs'!$B$14,AI$145:AI$174))*'I1 General Inputs'!$D15 -> 0
